Workbook

Sheet Home
C2: Fermenter 1 | E2: Fermenter 2 | G2: Fermenter 3 | I2: Fermenter 4 | K2: Fermenter 5
C3: ='Full Ferment Logs'!C4 -> Example 1 | E3: ='Full Ferment Logs'!Y4 -> Example 2 | G3: ='Full Ferment Logs'!AU4 -> Example 3 | I3: ='Full Ferment Logs'!BQ4 -> Example 4 | K3: ='Full Ferment Logs'!CM4 -> Enter Tank Name
C4: ='Full Ferment Logs'!C19 -> Good | E4: ='Full Ferment Logs'!Y19 -> Good | G4: ='Full Ferment Logs'!AU19 -> Warning - Sluggish Ferment | I4: ='Full Ferment Logs'!BQ19 -> Warning - Sluggish Ferment | K4: ='Full Ferment Logs'!CM19 -> Warning - Rapid ferment
C5: =MIN('Full Ferment Logs'!C23:C83) & " Be" -> -0.4 Be | E5: =MIN('Full Ferment Logs'!Y23:Y83) & " Be" -> -0.2 Be | G5: =MIN('Full Ferment Logs'!AU23:AU83) & " Be" -> -1 Be | I5: =MIN('Full Ferment Logs'!BQ23:BQ83) & " Be" -> 1.6 Be | K5: =MIN('Full Ferment Logs'!CM23:CM83) & " Be" -> 6 Be
C6: ='Full Ferment Logs'!C16& " days" -> 9 days | E6: ='Full Ferment Logs'!Y16& " days" -> 11 days | G6: ='Full Ferment Logs'!AU16& " days" -> 18.5 days | I6: ='Full Ferment Logs'!BQ16& " days" -> 13.5 days | K6: ='Full Ferment Logs'!CM16& " days" -> 4.5 days
C8: Fermenter 6 | E8: Fermenter 7 | G8: Fermenter 8 | I8: Fermenter 9 | K8: Fermenter 10
C9: ='Full Ferment Logs'!DI4 -> Enter Tank Name | E9: ='Full Ferment Logs'!EE4 -> Enter Tank Name | G9: ='Full Ferment Logs'!FA4 -> Enter Tank Name | I9: ='Full Ferment Logs'!FW4 -> Enter Tank Name | K9: ='Full Ferment Logs'!GS4 -> Enter Tank Name
C10: ='Full Ferment Logs'!DI19 -> Good | E10: ='Full Ferment Logs'!EE19 -> Warning - Rapid ferment | G10: ='Full Ferment Logs'!FA19 -> Warning - Rapid ferment | I10: ='Full Ferment Logs'!FW19 -> Warning - Rapid ferment | K10: ='Full Ferment Logs'!GS19 -> Warning - Rapid ferment
C11: =MIN('Full Ferment Logs'!DI23:DI83) & " Be" -> 2.9 Be | E11: =MIN('Full Ferment Logs'!EE23:EE83) & " Be" -> 5 Be | G11: =MIN('Full Ferment Logs'!FA23:FA83) & " Be" -> 5.9 Be | I11: =MIN('Full Ferment Logs'!FW23:FW83) & " Be" -> 5.3 Be | K11: =MIN('Full Ferment Logs'!GS23:GS83) & " Be" -> 5.1 Be
C12: ='Full Ferment Logs'!DI16& " days" -> 7.5 days | E12: ='Full Ferment Logs'!EE16& " days" -> 6.5 days | G12: ='Full Ferment Logs'!FA16& " days" -> 5.5 days | I12: ='Full Ferment Logs'!FW16& " days" -> 4 days | K12: ='Full Ferment Logs'!GS16& " days" -> 5 days
C14: Fermenter 11 | E14: Fermenter 12 | G14: Fermenter 13 | I14: Fermenter 14 | K14: Fermenter 15
C15: ='Full Ferment Logs'!HO4 -> Enter Tank Name | E15: ='Full Ferment Logs'!IK4 -> Enter Tank Name | G15: ='Full Ferment Logs'!JG4 -> Enter Tank Name | I15: ='Full Ferment Logs'!KC4 -> Enter Tank Name | K15: ='Full Ferment Logs'!KY4 -> Enter Tank Name
C16: ='Full Ferment Logs'!HO19 -> Warning - Sluggish Ferment | E16: ='Full Ferment Logs'!IK19 -> Warning - Sluggish Ferment | G16: ='Full Ferment Logs'!JG19 -> Good | I16: ='Full Ferment Logs'!KC19 -> Good | K16: ='Full Ferment Logs'!KY19 -> High range on spec
C17: =MIN('Full Ferment Logs'!HO23:HO83) & " Be" -> 4.8 Be | E17: =MIN('Full Ferment Logs'!IK23:IK83) & " Be" -> 5.1 Be | G17: =MIN('Full Ferment Logs'!JG23:JG83) & " Be" -> 1.9 Be | I17: =MIN('Full Ferment Logs'!KC23:KC83) & " Be" -> 0.9 Be | K17: =MIN('Full Ferment Logs'!KY23:KY83) & " Be" -> 4.6 Be
C18: ='Full Ferment Logs'!HO16& " days" -> 15 days | E18: ='Full Ferment Logs'!IK16& " days" -> 16 days | G18: ='Full Ferment Logs'!JG16& " days" -> 10.5 days | I18: ='Full Ferment Logs'!KC16& " days" -> 7.5 days | K18: ='Full Ferment Logs'!KY16& " days" -> 5.5 days
C20: Fermenter 16 | E20: Fermenter 17 | G20: Fermenter 18 | I20: Fermenter 19 | K20: Fermenter 20
C21: ='Full Ferment Logs'!LU4 -> Enter Tank Name | E21: ='Full Ferment Logs'!MQ4 -> Enter Tank Name | G21: ='Full Ferment Logs'!NM4 -> Enter Tank Name | I21: ='Full Ferment Logs'!OI4 -> Enter Tank Name | K21: ='Full Ferment Logs'!PE4 -> Enter Tank Name
C22: ='Full Ferment Logs'!LU19 -> Good | E22: ='Full Ferment Logs'!MQ19 -> Insufficient data for prediction | G22: ='Full Ferment Logs'!NM19 -> Good | I22: ='Full Ferment Logs'!OI19 -> Insufficient data for prediction | K22: ='Full Ferment Logs'!PE19 -> Low range on spec
C23: =MIN('Full Ferment Logs'!LU23:LU83) & " Be" -> 3.5 Be | E23: =MIN('Full Ferment Logs'!MQ23:MQ83) & " Be" -> 0 Be | G23: =MIN('Full Ferment Logs'!NM23:NM83) & " Be" -> 2.3 Be | I23: =MIN('Full Ferment Logs'!OI23:OI83) & " Be" -> 9.8 Be | K23: =MIN('Full Ferment Logs'!PE23:PE83) & " Be" -> 1 Be
C24: ='Full Ferment Logs'!LU16& " days" -> 6.5 days | E24: ='Full Ferment Logs'!MQ16& " days" -> days | G24: ='Full Ferment Logs'!NM16& " days" -> 6.5 days | I24: ='Full Ferment Logs'!OI16& " days" -> days | K24: ='Full Ferment Logs'!PE16& " days" -> 7.5 days
C26: Fermenter 21 | E26: Fermenter 22 | G26: Fermenter 23 | I26: Fermenter 24 | K26: Fermenter 25
C27: ='Full Ferment Logs'!QA4 -> Enter Tank Name | E27: ='Full Ferment Logs'!QW4 -> Enter Tank Name | G27: ='Full Ferment Logs'!RS4 -> Enter Tank Name | I27: ='Full Ferment Logs'!SO4 -> Enter Tank Name | K27: ='Full Ferment Logs'!TK4 -> Enter Tank Name
C28: ='Full Ferment Logs'!QA19 -> Good | E28: ='Full Ferment Logs'!QW19 -> Warning - Sluggish Ferment | G28: ='Full Ferment Logs'!RS19 -> Good | I28: ='Full Ferment Logs'!SO19 -> Good | K28: ='Full Ferment Logs'!TK19 -> Insufficient data for prediction
C29: =MIN('Full Ferment Logs'!QA23:QA83) & " Be" -> 5 Be | E29: =MIN('Full Ferment Logs'!QW23:QW83) & " Be" -> 0.5 Be | G29: =MIN('Full Ferment Logs'!RS23:RS83) & " Be" -> 5 Be | I29: =MIN('Full Ferment Logs'!SO23:SO83) & " Be" -> 7.3 Be | K29: =MIN('Full Ferment Logs'!TK23:TK83) & " Be" -> 6.7 Be
C30: ='Full Ferment Logs'!QA16& " days" -> 6.5 days | E30: ='Full Ferment Logs'!QW16& " days" -> 19 days | G30: ='Full Ferment Logs'!RS16& " days" -> 8 days | I30: ='Full Ferment Logs'!SO16& " days" -> 6.5 days | K30: ='Full Ferment Logs'!TK16& " days" -> days
C32: Fermenter 26 | E32: Fermenter 27 | G32: Fermenter 28 | I32: Fermenter 29 | K32: Fermenter 30
C33: ='Full Ferment Logs'!UG4 -> Enter Tank Name | E33: ='Full Ferment Logs'!VC4 -> Enter Tank Name | G33: ='Full Ferment Logs'!VY4 -> Enter Tank Name | I33: ='Full Ferment Logs'!WU4 -> Enter Tank Name | K33: ='Full Ferment Logs'!XQ4 -> Enter Tank Name
C34: ='Full Ferment Logs'!UG19 -> Good | E34: ='Full Ferment Logs'!VC19 -> Good | G34: ='Full Ferment Logs'!VY19 -> Warning - Rapid ferment | I34: ='Full Ferment Logs'!WU19 -> Warning - Rapid ferment | K34: ='Full Ferment Logs'!XQ19 -> Warning - Rapid ferment
C35: =MIN('Full Ferment Logs'!UG23:UG83) & " Be" -> 2.9 Be | E35: =MIN('Full Ferment Logs'!VC23:VC83) & " Be" -> 4.7 Be | G35: =MIN('Full Ferment Logs'!VY23:VY83) & " Be" -> 5.9 Be | I35: =MIN('Full Ferment Logs'!WU23:WU83) & " Be" -> 5.3 Be | K35: =MIN('Full Ferment Logs'!XQ23:XQ83) & " Be" -> 5.1 Be
C36: ='Full Ferment Logs'!UG16& " days" -> 7.5 days | E36: ='Full Ferment Logs'!VC16& " days" -> 9 days | G36: ='Full Ferment Logs'!VY16& " days" -> 6 days | I36: ='Full Ferment Logs'!WU16& " days" -> 4 days | K36: ='Full Ferment Logs'!XQ16& " days" -> 5 days
C38: Fermenter 31 | E38: Fermenter 32 | G38: Fermenter 33 | I38: Fermenter 34 | K38: Fermenter 35
C39: ='Full Ferment Logs'!YM4 -> Enter Tank Name | E39: ='Full Ferment Logs'!ZI4 -> Enter Tank Name | G39: ='Full Ferment Logs'!AAE4 -> Enter Tank Name | I39: ='Full Ferment Logs'!ABA4 -> Enter Tank Name | K39: ='Full Ferment Logs'!ABW4 -> Enter Tank Name
C40: ='Full Ferment Logs'!YM19 -> Warning - Sluggish Ferment | E40: ='Full Ferment Logs'!ZI19 -> Warning - Sluggish Ferment | G40: ='Full Ferment Logs'!AAE19 -> Good | I40: ='Full Ferment Logs'!ABA19 -> Good | K40: ='Full Ferment Logs'!ABW19 -> Warning - Rapid ferment
C41: =MIN('Full Ferment Logs'!YM23:YM83) & " Be" -> 4.8 Be | E41: =MIN('Full Ferment Logs'!ZI23:ZI83) & " Be" -> 5.1 Be | G41: =MIN('Full Ferment Logs'!AAE23:AAE83) & " Be" -> 1.9 Be | I41: =MIN('Full Ferment Logs'!ABA23:ABA83) & " Be" -> 0.9 Be | K41: =MIN('Full Ferment Logs'!ABW23:ABW83) & " Be" -> 4.6 Be
C42: ='Full Ferment Logs'!YM16& " days" -> 15 days | E42: ='Full Ferment Logs'!ZI16& " days" -> 15.5 days | G42: ='Full Ferment Logs'!AAE16& " days" -> 10.5 days | I42: ='Full Ferment Logs'!ABA16& " days" -> 7 days | K42: ='Full Ferment Logs'!YU16& " days" -> days
C44: Fermenter 36 | E44: Fermenter 37 | G44: Fermenter 38 | I44: Fermenter 39 | K44: Fermenter 40
C45: ='Full Ferment Logs'!ACS4 -> Enter Tank Name | E45: ='Full Ferment Logs'!ADO4 -> Enter Tank Name | G45: ='Full Ferment Logs'!AEK4 -> Enter Tank Name | I45: ='Full Ferment Logs'!AFG4 -> Enter Tank Name | K45: ='Full Ferment Logs'!AGC4 -> Enter Tank Name
C46: ='Full Ferment Logs'!ACS19 -> Good | E46: ='Full Ferment Logs'!ADO19 -> Insufficient data for prediction | G46: ='Full Ferment Logs'!AEK19 -> Good | I46: ='Full Ferment Logs'!AFG19 -> Insufficient data for prediction | K46: ='Full Ferment Logs'!AGC19 -> Good
C47: =MIN('Full Ferment Logs'!ACS23:ACS83) & " Be" -> 3.5 Be | E47: =MIN('Full Ferment Logs'!ADO23:ADO83) & " Be" -> 0 Be | G47: =MIN('Full Ferment Logs'!AEK23:AEK83) & " Be" -> 2.3 Be | I47: =MIN('Full Ferment Logs'!AFG23:AFG83) & " Be" -> 9.8 Be | K47: =MIN('Full Ferment Logs'!AGC23:AGC83) & " Be" -> 1 Be
C48: ='Full Ferment Logs'!ACS16& " days" -> 6.5 days | E48: ='Full Ferment Logs'!ADO16& " days" -> days | G48: ='Full Ferment Logs'!AEK16& " days" -> 6 days | I48: ='Full Ferment Logs'!AFG16& " days" -> days | K48: ='Full Ferment Logs'!AGC16& " days" -> 7 days
C50: Fermenter 41 | E50: Fermenter 42 | G50: Fermenter 43 | I50: Fermenter 44 | K50: Fermenter 45
C51: ='Full Ferment Logs'!AGY4 -> Enter Tank Name | E51: ='Full Ferment Logs'!AHU4 -> Enter Tank Name | G51: ='Full Ferment Logs'!AIQ4 -> Enter Tank Name | I51: ='Full Ferment Logs'!AJM4 -> Enter Tank Name | K51: ='Full Ferment Logs'!AKI4 -> Enter Tank Name
C52: ='Full Ferment Logs'!AGY19 -> Good | E52: ='Full Ferment Logs'!AHU19 -> Warning - Sluggish Ferment | G52: ='Full Ferment Logs'!AIQ19 -> Good | I52: ='Full Ferment Logs'!AJM19 -> Good | K52: ='Full Ferment Logs'!AKI19 -> Insufficient data for prediction
C53: =MIN('Full Ferment Logs'!AGY23:AGY83) & " Be" -> 5 Be | E53: =MIN('Full Ferment Logs'!AHU23:AHU83) & " Be" -> 0.5 Be | G53: =MIN('Full Ferment Logs'!AIQ23:AIQ83) & " Be" -> 5 Be | I53: =MIN('Full Ferment Logs'!AJM23:AJM83) & " Be" -> 7.3 Be | K53: =MIN('Full Ferment Logs'!AKI23:AKI83) & " Be" -> 6.7 Be
C54: ='Full Ferment Logs'!AGY16& " days" -> 7 days | E54: ='Full Ferment Logs'!AHU16& " days" -> 19 days | G54: ='Full Ferment Logs'!AIQ16& " days" -> 8 days | I54: ='Full Ferment Logs'!AJM16& " days" -> 6.5 days | K54: ='Full Ferment Logs'!AKI16& " days" -> days
C56: Fermenter 46 | E56: Fermenter 47 | G56: Fermenter 48 | I56: Fermenter 49 | K56: Fermenter 50
C57: ='Full Ferment Logs'!ALE4 -> Enter Tank Name | E57: ='Full Ferment Logs'!AMA4 -> Enter Tank Name | G57: ='Full Ferment Logs'!AMW4 -> Enter Tank Name | I57: ='Full Ferment Logs'!ANS4 -> Enter Tank Name | K57: ='Full Ferment Logs'!AOO4 -> Enter Tank Name
C58: ='Full Ferment Logs'!ALE19 -> Good | E58: ='Full Ferment Logs'!AMA19 -> Good | G58: ='Full Ferment Logs'!AMW19 -> Warning - Rapid ferment | I58: ='Full Ferment Logs'!ANS19 -> Warning - Rapid ferment | K58: ='Full Ferment Logs'!AOO19 -> Warning - Rapid ferment
C59: =MIN('Full Ferment Logs'!ALE23:ALE83) & " Be" -> 2.9 Be | E59: =MIN('Full Ferment Logs'!AMA23:AMA83) & " Be" -> 4.7 Be | G59: =MIN('Full Ferment Logs'!AMW23:AMW83) & " Be" -> 5.9 Be | I59: =MIN('Full Ferment Logs'!ANS23:ANS83) & " Be" -> 5.3 Be | K59: =MIN('Full Ferment Logs'!AOO23:AOO83) & " Be" -> 5.1 Be
C60: ='Full Ferment Logs'!ALE16& " days" -> 7.5 days | E60: ='Full Ferment Logs'!AMA16& " days" -> 9 days | G60: ='Full Ferment Logs'!AMW16& " days" -> 5.5 days | I60: ='Full Ferment Logs'!ANS16& " days" -> 4 days | K60: ='Full Ferment Logs'!AOO16& " days" -> 4.5 days
C62: Fermenter 51 | E62: Fermenter 52 | G62: Fermenter 53 | I62: Fermenter 54 | K62: Fermenter 55
C63: ='Full Ferment Logs'!APK4 -> Enter Tank Name | E63: ='Full Ferment Logs'!AQG4 -> Enter Tank Name | G63: ='Full Ferment Logs'!ARC4 -> Enter Tank Name | I63: ='Full Ferment Logs'!ARY4 -> Enter Tank Name | K63: ='Full Ferment Logs'!ASU4 -> Enter Tank Name
C64: ='Full Ferment Logs'!APK19 -> Warning - Sluggish Ferment | E64: ='Full Ferment Logs'!AQG19 -> Warning - Sluggish Ferment | G64: ='Full Ferment Logs'!ARC19 -> Good | I64: ='Full Ferment Logs'!ARY19 -> Good | K64: ='Full Ferment Logs'!ASU19 -> Warning - Rapid ferment
C65: =MIN('Full Ferment Logs'!APK23:APK83) & " Be" -> 4.8 Be | E65: =MIN('Full Ferment Logs'!AQG23:AQG83) & " Be" -> 5.1 Be | G65: =MIN('Full Ferment Logs'!ARC23:ARC83) & " Be" -> 1.9 Be | I65: =MIN('Full Ferment Logs'!ARY23:ARY83) & " Be" -> 0.9 Be | K65: =MIN('Full Ferment Logs'!ASU23:ASU83) & " Be" -> 4.6 Be
C66: ='Full Ferment Logs'!APK16& " days" -> 15 days | E66: ='Full Ferment Logs'!AQG16& " days" -> 15.5 days | G66: ='Full Ferment Logs'!ARC16& " days" -> 10.5 days | I66: ='Full Ferment Logs'!ARY16& " days" -> 7 days | K66: ='Full Ferment Logs'!ASU16& " days" -> 4.5 days
C68: Fermenter 56 | E68: Fermenter 57 | G68: Fermenter 58 | I68: Fermenter 59 | K68: Fermenter 60
C69: ='Full Ferment Logs'!ATQ4 -> Enter Tank Name | E69: ='Full Ferment Logs'!AUM4 -> Enter Tank Name | G69: ='Full Ferment Logs'!AVI4 -> Enter Tank Name | I69: ='Full Ferment Logs'!AWE4 -> Enter Tank Name | K69: ='Full Ferment Logs'!AXA4 -> Enter Tank Name
C70: ='Full Ferment Logs'!ATQ19 -> Good | E70: ='Full Ferment Logs'!AUM19 -> Insufficient data for prediction | G70: ='Full Ferment Logs'!AVI19 -> Good | I70: ='Full Ferment Logs'!AWE19 -> Insufficient data for prediction | K70: ='Full Ferment Logs'!AXA19 -> Good
C71: =MIN('Full Ferment Logs'!ATQ23:ATQ83) & " Be" -> 3.5 Be | E71: =MIN('Full Ferment Logs'!AUM23:AUM83) & " Be" -> 0 Be | G71: =MIN('Full Ferment Logs'!AVI23:AVI83) & " Be" -> 2.3 Be | I71: =MIN('Full Ferment Logs'!AWE23:AWE83) & " Be" -> 9.8 Be | K71: =MIN('Full Ferment Logs'!AXA23:AXA83) & " Be" -> 1 Be
C72: ='Full Ferment Logs'!ATQ16& " days" -> 6.5 days | E72: ='Full Ferment Logs'!AUM16& " days" -> days | G72: ='Full Ferment Logs'!AVI16& " days" -> 6 days | I72: ='Full Ferment Logs'!AWE16& " days" -> days | K72: ='Full Ferment Logs'!AXA16& " days" -> 7 days
C74: Fermenter 61 | E74: Fermenter 62 | G74: Fermenter 63 | I74: Fermenter 64 | K74: Fermenter 65
C75: ='Full Ferment Logs'!AXW4 -> Enter Tank Name | E75: ='Full Ferment Logs'!AYS4 -> Enter Tank Name | G75: ='Full Ferment Logs'!AZO4 -> Enter Tank Name | I75: ='Full Ferment Logs'!BAK4 -> Enter Tank Name | K75: ='Full Ferment Logs'!BBG4 -> Enter Tank Name
C76: ='Full Ferment Logs'!AXW19 -> Good | E76: ='Full Ferment Logs'!AYS19 -> Warning - Sluggish Ferment | G76: ='Full Ferment Logs'!AZO19 -> Good | I76: ='Full Ferment Logs'!BAK19 -> Good | K76: ='Full Ferment Logs'!BBG19 -> Insufficient data for prediction
C77: =MIN('Full Ferment Logs'!AXW23:AXW83) & " Be" -> 5 Be | E77: =MIN('Full Ferment Logs'!AYS23:AYS83) & " Be" -> 0.5 Be | G77: =MIN('Full Ferment Logs'!AZO23:AZO83) & " Be" -> 5 Be | I77: =MIN('Full Ferment Logs'!BAK23:BAK83) & " Be" -> 7.3 Be | K77: =MIN('Full Ferment Logs'!BBG23:BBG83) & " Be" -> 6.7 Be
C78: ='Full Ferment Logs'!AXW16& " days" -> 7 days | E78: ='Full Ferment Logs'!AYS16& " days" -> 19 days | G78: ='Full Ferment Logs'!AZO16& " days" -> 8 days | I78: ='Full Ferment Logs'!BAK16& " days" -> 6.5 days | K78: ='Full Ferment Logs'!BBG16& " days" -> days
C80: Fermenter 66 | E80: Fermenter 67 | G80: Fermenter 68 | I80: Fermenter 69 | K80: Fermenter 70
C81: ='Full Ferment Logs'!BCC4 -> Enter Tank Name | E81: ='Full Ferment Logs'!BCY4 -> Enter Tank Name | G81: ='Full Ferment Logs'!BDU4 -> Enter Tank Name | I81: ='Full Ferment Logs'!BEQ4 -> Enter Tank Name | K81: ='Full Ferment Logs'!BFM4 -> Enter Tank Name
C82: ='Full Ferment Logs'!BCC19 -> Good | E82: ='Full Ferment Logs'!BCY19 -> Good | G82: ='Full Ferment Logs'!BDU19 -> Warning - Rapid ferment | I82: ='Full Ferment Logs'!BEQ19 -> Warning - Rapid ferment | K82: ='Full Ferment Logs'!BFM19 -> Warning - Rapid ferment
C83: =MIN('Full Ferment Logs'!BCC23:BCC83) & " Be" -> 2.9 Be | E83: =MIN('Full Ferment Logs'!BCY23:BCY83) & " Be" -> 4.7 Be | G83: =MIN('Full Ferment Logs'!BDU23:BDU83) & " Be" -> 5.9 Be | I83: =MIN('Full Ferment Logs'!BEQ23:BEQ83) & " Be" -> 5.3 Be | K83: =MIN('Full Ferment Logs'!BFM23:BFM83) & " Be" -> 5.1 Be
C84: ='Full Ferment Logs'!BCC16& " days" -> 7.5 days | E84: ='Full Ferment Logs'!BCY16& " days" -> 10 days | G84: ='Full Ferment Logs'!BDU16& " days" -> 6 days | I84: ='Full Ferment Logs'!BEQ16& " days" -> 4 days | K84: ='Full Ferment Logs'!BFM16& " days" -> 5 days
C86: Fermenter 71 | E86: Fermenter 72 | G86: Fermenter 73 | I86: Fermenter 74 | K86: Fermenter 75
C87: ='Full Ferment Logs'!BGI4 -> Enter Tank Name | E87: ='Full Ferment Logs'!BHE4 -> Enter Tank Name | G87: ='Full Ferment Logs'!BIA4 -> Enter Tank Name | I87: ='Full Ferment Logs'!BIW4 -> Enter Tank Name | K87: ='Full Ferment Logs'!BJS4 -> Enter Tank Name
C88: ='Full Ferment Logs'!BGI19 -> Warning - Sluggish Ferment | E88: ='Full Ferment Logs'!BHE19 -> Warning - Sluggish Ferment | G88: ='Full Ferment Logs'!BIA19 -> Good | I88: ='Full Ferment Logs'!BIW19 -> Good | K88: ='Full Ferment Logs'!BJS19 -> Warning - Rapid ferment
C89: =MIN('Full Ferment Logs'!BGI23:BGI83) & " Be" -> 4.8 Be | E89: =MIN('Full Ferment Logs'!BHE23:BHE83) & " Be" -> 5.1 Be | G89: =MIN('Full Ferment Logs'!BIA23:BIA83) & " Be" -> 1.9 Be | I89: =MIN('Full Ferment Logs'!BIW23:BIW83) & " Be" -> 0.9 Be | K89: =MIN('Full Ferment Logs'!BJS23:BJS83) & " Be" -> 4.6 Be
C90: ='Full Ferment Logs'!BGI16& " days" -> 14.5 days | E90: ='Full Ferment Logs'!BHE16& " days" -> 15.5 days | G90: ='Full Ferment Logs'!BIA16& " days" -> 10 days | I90: ='Full Ferment Logs'!BIW16& " days" -> 7 days | K90: ='Full Ferment Logs'!BJS16& " days" -> 4.5 days
C92: Fermenter 76 | E92: Fermenter 77 | G92: Fermenter 78 | I92: Fermenter 79 | K92: Fermenter 80
C93: ='Full Ferment Logs'!BKO4 -> Enter Tank Name | E93: ='Full Ferment Logs'!BLK4 -> Enter Tank Name | G93: ='Full Ferment Logs'!BMG4 -> Enter Tank Name | I93: ='Full Ferment Logs'!BNC4 -> Enter Tank Name | K93: ='Full Ferment Logs'!BNY4 -> Enter Tank Name
C94: ='Full Ferment Logs'!BKO19 -> Good | E94: ='Full Ferment Logs'!BLK19 -> Insufficient data for prediction | G94: ='Full Ferment Logs'!BMG19 -> Good | I94: ='Full Ferment Logs'!BNC19 -> Insufficient data for prediction | K94: ='Full Ferment Logs'!BNY19 -> Good
C95: =MIN('Full Ferment Logs'!BKO23:BKO83) & " Be" -> 3.5 Be | E95: =MIN('Full Ferment Logs'!BLK23:BLK83) & " Be" -> 0 Be | G95: =MIN('Full Ferment Logs'!BMG23:BMG83) & " Be" -> 2.3 Be | I95: =MIN('Full Ferment Logs'!BNC23:BNC83) & " Be" -> 9.8 Be | K95: =MIN('Full Ferment Logs'!BNY23:BNY83) & " Be" -> 1 Be
C96: ='Full Ferment Logs'!BKO16& " days" -> 6.5 days | E96: ='Full Ferment Logs'!BLK16& " days" -> days | G96: ='Full Ferment Logs'!BMG16& " days" -> 6.5 days | I96: ='Full Ferment Logs'!BNC16& " days" -> days | K96: ='Full Ferment Logs'!BNY16& " days" -> 7 days
C98: Fermenter 81 | E98: Fermenter 82 | G98: Fermenter 83 | I98: Fermenter 84 | K98: Fermenter 85
C99: ='Full Ferment Logs'!BOU4 -> Enter Tank Name | E99: ='Full Ferment Logs'!BPQ4 -> Enter Tank Name | G99: ='Full Ferment Logs'!BQM4 -> Enter Tank Name | I99: ='Full Ferment Logs'!BRI4 -> Enter Tank Name | K99: ='Full Ferment Logs'!BSE4 -> Enter Tank Name
C100: ='Full Ferment Logs'!BOU19 -> Good | E100: ='Full Ferment Logs'!BPQ19 -> Warning - Sluggish Ferment | G100: ='Full Ferment Logs'!BQM19 -> Good | I100: ='Full Ferment Logs'!BRI19 -> Good | K100: ='Full Ferment Logs'!BSE19 -> Insufficient data for prediction
C101: =MIN('Full Ferment Logs'!BOU23:BOU83) & " Be" -> 5 Be | E101: =MIN('Full Ferment Logs'!BPQ23:BPQ83) & " Be" -> 0.5 Be | G101: =MIN('Full Ferment Logs'!BQM23:BQM83) & " Be" -> 5 Be | I101: =MIN('Full Ferment Logs'!BRI23:BRI83) & " Be" -> 7.3 Be | K101: =MIN('Full Ferment Logs'!BSE23:BSE83) & " Be" -> 6.7 Be
C102: ='Full Ferment Logs'!BOU16& " days" -> 6.5 days | E102: ='Full Ferment Logs'!BPQ16& " days" -> 19.5 days | G102: ='Full Ferment Logs'!BQM16& " days" -> 8 days | I102: ='Full Ferment Logs'!BRI16& " days" -> 6.5 days | K102: ='Full Ferment Logs'!BSE16& " days" -> days
C104: Fermenter 86 | E104: Fermenter 87 | G104: Fermenter 88 | I104: Fermenter 89 | K104: Fermenter 90
C105: ='Full Ferment Logs'!BTA4 -> Enter Tank Name | E105: ='Full Ferment Logs'!BTW4 -> Enter Tank Name | G105: ='Full Ferment Logs'!BUS4 -> Enter Tank Name | I105: ='Full Ferment Logs'!BVO4 -> Enter Tank Name | K105: ='Full Ferment Logs'!BWK4 -> Enter Tank Name
C106: ='Full Ferment Logs'!BTA19 -> Good | E106: ='Full Ferment Logs'!BTW19 -> Good | G106: ='Full Ferment Logs'!BUS19 -> Warning - Rapid ferment | I106: ='Full Ferment Logs'!BVO19 -> Warning - Rapid ferment | K106: ='Full Ferment Logs'!BWK19 -> Warning - Rapid ferment
C107: =MIN('Full Ferment Logs'!BTA23:BTA83) & " Be" -> 2.9 Be | E107: =MIN('Full Ferment Logs'!BTW23:BTW83) & " Be" -> 4.7 Be | G107: =MIN('Full Ferment Logs'!BUS23:BUS83) & " Be" -> 5.9 Be | I107: =MIN('Full Ferment Logs'!BVO23:BVO83) & " Be" -> 5.3 Be | K107: =MIN('Full Ferment Logs'!BWK23:BWK83) & " Be" -> 5.1 Be
C108: ='Full Ferment Logs'!BTA16& " days" -> 7.5 days | E108: ='Full Ferment Logs'!BTW16& " days" -> 9 days | G108: ='Full Ferment Logs'!BTE16& " days" -> days | I108: ='Full Ferment Logs'!BVO16& " days" -> 4 days | K108: ='Full Ferment Logs'!BWK16& " days" -> 4.5 days
C110: Fermenter 91 | E110: Fermenter 92 | G110: Fermenter 93 | I110: Fermenter 94 | K110: Fermenter 95
C111: ='Full Ferment Logs'!BXG4 -> Enter Tank Name | E111: ='Full Ferment Logs'!BYC4 -> Enter Tank Name | G111: ='Full Ferment Logs'!BYY4 -> Enter Tank Name | I111: ='Full Ferment Logs'!BZU4 -> Enter Tank Name | K111: ='Full Ferment Logs'!BZU4 -> Enter Tank Name
C112: ='Full Ferment Logs'!BXG19 -> Warning - Sluggish Ferment | E112: ='Full Ferment Logs'!BYC19 -> Warning - Sluggish Ferment | G112: ='Full Ferment Logs'!BYY19 -> Good | I112: ='Full Ferment Logs'!BZU19 -> Good | K112: ='Full Ferment Logs'!BZU19 -> Good
C113: =MIN('Full Ferment Logs'!BXG23:BXG83) & " Be" -> 4.8 Be | E113: =MIN('Full Ferment Logs'!BYC23:BYC83) & " Be" -> 5.1 Be | G113: =MIN('Full Ferment Logs'!BYY23:BYY83) & " Be" -> 1.9 Be | I113: =MIN('Full Ferment Logs'!BZU23:BZU83) & " Be" -> 0.9 Be | K113: =MIN('Full Ferment Logs'!BZU23:BZU83) & " Be" -> 0.9 Be
C114: ='Full Ferment Logs'!BXG16& " days" -> 15 days | E114: ='Full Ferment Logs'!BYC16& " days" -> 15.5 days | G114: ='Full Ferment Logs'!BYY16& " days" -> 10.5 days | I114: ='Full Ferment Logs'!BZU16& " days" -> 7 days | K114: ='Full Ferment Logs'!BZU16& " days" -> 7 days
C116: Fermenter 96 | E116: Fermenter 97 | G116: Fermenter 98 | I116: Fermenter 99 | K116: Fermenter 100
C117: ='Full Ferment Logs'!CBM4 -> Enter Tank Name | E117: ='Full Ferment Logs'!CCI4 -> Enter Tank Name | G117: ='Full Ferment Logs'!CDE4 -> Enter Tank Name | I117: ='Full Ferment Logs'!CEA4 -> Enter Tank Name | K117: ='Full Ferment Logs'!CEW4 -> Enter Tank Name
C118: ='Full Ferment Logs'!CBM19 -> Good | E118: ='Full Ferment Logs'!CCI19 -> Insufficient data for prediction | G118: ='Full Ferment Logs'!CDE19 -> Good | I118: ='Full Ferment Logs'!CEA19 -> Insufficient data for prediction | K118: ='Full Ferment Logs'!CEW19 -> Good
C119: =MIN('Full Ferment Logs'!CBM23:CBM83) & " Be" -> 3.5 Be | E119: =MIN('Full Ferment Logs'!CCI23:CCI83) & " Be" -> 0 Be | G119: =MIN('Full Ferment Logs'!CDE23:CDE83) & " Be" -> 2.3 Be | I119: =MIN('Full Ferment Logs'!CEA23:CEA83) & " Be" -> 9.8 Be | K119: =MIN('Full Ferment Logs'!CEW23:CEW83) & " Be" -> 1 Be
C120: ='Full Ferment Logs'!CBM16& " days" -> 6.5 days | E120: ='Full Ferment Logs'!CCI16& " days" -> days | G120: ='Full Ferment Logs'!CDE16& " days" -> 6.5 days | I120: ='Full Ferment Logs'!CEA16& " days" -> days | K120: ='Full Ferment Logs'!CEW16& " days" -> 7 days

Sheet Basic Ferment Entry
H2: Display ferment # : | L2: Tank Name | N2: Enter Tank Name | AE2: Display ferment Calculations | AI2: 9.157526291
H3: Ferment: | J3: 5 | L3: Start Date | N3: 2012-03-08 | AE3: Day | AF3: Baume – actual | AG3: Temp C | AH3: Baume - Model | AJ3: Low range | AK3: High range | AL3: Adjusted Low range | AM3: Adjusted high range | AN3: Range parameters
H4: Prediction score | J4: 9.157526291 | L4: Start Time | N4: 07:00:00 | AE4: 0 | AF4: 9.1 | AG4: 16.3 | AH4: 8.666666667 | AI4: -0.1660743134 | AJ4: =IF(AF4="",IF(AE4<$AN$66,AH4-TINV($AN$68,$AN$67-2)*(0.0536816635160681*$AI$2+0.0181)*SQRT(1+1/$AN$67),AH4-TINV($AN$68,$AN$67-2)*(0.0536816635160681*$AI$2+0.0181)*SQRT(1+1/$AN$67+(AE4-$AN$66)^2/$AO$66)),"") ->  | AK4: =IF(AF4="",IF(AE4<$AN$66,AH4+TINV($AN$68,$AN$67-2)*(0.0536816635160681*$AI$2+0.0181)*SQRT(1+1/$AN$67),AH4+TINV($AN$68,$AN$67-2)*(0.0536816635160681*$AI$2+0.0181)*SQRT(1+1/$AN$67+(AE4-$AN$66)^2/$AO$66)),"") ->  | AL4: =IF(AJ4="",AH4,IF(AJ4<-3,-3,AJ4)) -> 8.666666667 | AM4: =IF(AK4="",AH4,AK4) -> 8.666666667 | AN4: =IF(AF4="","",AE4) -> 0 | AO4: =IF(AN4="","",(AN4-$AN$66)^2) -> 1
L5: Volume | N5: 250 | O5: kL | AE5: 0.5 | AF5: 8.8 | AG5: 17.9 | AH5: 8.51342644 | AI5: 13.25166216 | AJ5: =IF(AF5="",IF(AE5<$AN$66,AH5-TINV($AN$68,$AN$67-2)*(0.0536816635160681*$AI$2+0.0181)*SQRT(1+1/$AN$67),AH5-TINV($AN$68,$AN$67-2)*(0.0536816635160681*$AI$2+0.0181)*SQRT(1+1/$AN$67+(AE5-$AN$66)^2/$AO$66)),"") ->  | AL5: =IF(AJ5="",AH5,IF(AJ5<-3,-3,AJ5)) -> 8.51342644 | AM5: =IF(AK5="",AH5,IF(AK5>AM4,AM4,AK5)) -> 8.51342644 | AN5: =IF(AF5="","",AE5) -> 0.5 | AO5: 0.25
L6: Initial N | N6: 0.2 | O6: g/L | AE6: 1 | AF6: 8.1 | AG6: 18 | AH6: 8.241972003 | AI6: 23.79960978 | AL6: 8.241972003 | AM6: =IF(AK6="",AH6,IF(AK6>AM5,AM5,AK6)) -> 8.241972003 | AN6: 1 | AO6: 0
AE7: 1.5 | AF7: 7.2 | AG7: 18 | AH7: 7.416672748 | AI7: 72.05939637 | AL7: 7.416672748 | AM7: 7.416672748 | AN7: 1.5 | AO7: 0.25
L8: Date | M8: Day | N8: Baume | O8: Temp C | AE8: 2 | AF8: 6 | AG8: 18 | AH8: 5.993277652 | AI8: 105.7113225 | AL8: 5.993277652 | AM8: 5.993277652 | AN8: 2 | AO8: 1
L9: =IF(N$4<0.5,N$3+M9,N$3+M9+0.5) -> 2012-03-08 | M9: 0 | N9: 9.1 | O9: 16.3 | AE9: 2.5 | AG9: 18 | AH9: 3.978000903 | AI9: 123.2678543 | AJ9: 3.720063958 | AK9: 4.235937848 | AL9: 3.720063958 | AM9: 4.235937848
L10: 2012-03-08T12:00:00 | M10: 0.5 | N10: 8.8 | O10: 17.9 | AE10: 3 | AG10: 18 | AH10: 2.339203496 | AI10: 90.42321535 | AJ10: 2.041363566 | AK10: 2.637043425 | AL10: 2.041363566 | AM10: 2.637043425
L11: 2012-03-09 | M11: 1 | N11: 8.1 | O11: 18 | AE11: 3.5 | AG11: 18 | AH11: 1.168186434 | AI11: 66.65668501 | AJ11: 0.8258092886 | AK11: 1.51056358 | AL11: 0.8258092886 | AM11: 1.51056358
L12: 2012-03-09T12:00:00 | M12: 1.5 | N12: 7.2 | O12: 18 | AE12: 4 | AG12: 17.7 | AH12: 0.3852375381 | AI12: 41.18361845 | AJ12: -0.004726468326 | AK12: 0.7752015445 | AL12: -0.004726468326 | AM12: 0.7752015445
L13: 2012-03-10 | M13: 2 | N13: 6 | O13: 18 | AE13: 4.5 | AG13: 18 | AH13: -0.112875937 | AI13: 28.51771568 | AJ13: -0.5524872119 | AK13: 0.3267353379 | AL13: -0.5524872119 | AM13: 0.3267353379
L14: 2012-03-10T12:00:00 | M14: 2.5 | O14: 18 | AE14: 5 | AG14: 18 | AH14: -0.4328776811 | AI14: 15.48017387 | AJ14: -0.9235716285 | AK14: 0.05781626629 | AL14: -0.9235716285 | AM14: 0.05781626629
L15: 2012-03-11 | M15: 3 | O15: 18 | AE15: 5.5 | AG15: 17.9 | AH15: -0.6482871532 | AI15: 15.82321884 | AJ15: -1.191094078 | AK15: -0.1054802287 | AL15: -1.191094078 | AM15: -0.1054802287
L16: 2012-03-11T12:00:00 | M16: 3.5 | O16: 18 | AE16: 6 | AG16: 17.9 | AH16: -0.7937054168 | AI16: 10.97309398 | AJ16: -1.389385276 | AK16: -0.1980255575 | AL16: -1.389385276 | AM16: -0.1980255575
L17: 2012-03-12 | M17: 4 | O17: 17.7 | AE17: 6.5 | AH17: -0.8950154752 | AI17: 12.97381104 | AJ17: -1.544142552 | AK17: -0.2458883979 | AL17: -1.544142552 | AM17: -0.2458883979
L18: 2012-03-12T12:00:00 | M18: 4.5 | O18: 18 | AE18: 7 | AH18: -0.9685738447 | AI18: 4.020143333 | AJ18: =IF(AF18="",IF(AE18<$AN$66,AH18-TINV($AN$68,$AN$67-2)*(0.0536816635160681*$AI$2+0.0181)*SQRT(1+1/$AN$67),AH18-TINV($AN$68,$AN$67-2)*(0.0536816635160681*$AI$2+0.0181)*SQRT(1+1/$AN$67+(AE18-$AN$66)^2/$AO$66)),"") -> -1.671591455 | AK18: -0.2655562343 | AL18: -1.671591455 | AM18: -0.2655562343
L19: 2012-03-13 | M19: 5 | O19: 18 | AE19: 7.5 | AH19: -1.023619589 | AI19: 11.80099222 | AJ19: -1.780876408 | AK19: -0.2663627711 | AL19: -1.780876408 | AM19: -0.2663627711
L20: 2012-03-13T12:00:00 | M20: 5.5 | O20: 17.9 | AE20: 8 | AH20: -1.065882884 | AI20: 1.825931478 | AJ20: -1.877657697 | AK20: -0.2541080704 | AL20: -1.877657697 | AM20: -0.2663627711
L21: 2012-03-14 | M21: 6 | O21: 17.9 | AE21: 8.5 | AH21: -1.099063296 | AI21: 11.19491578 | AJ21: -1.965582272 | AK21: -0.2325443199 | AL21: -1.965582272 | AM21: -0.2663627711
L22: 2012-03-14T12:00:00 | M22: 6.5 | AE22: 9 | AH22: -1.12562155 | AI22: 1.537930352 | AJ22: -2.047070547 | AK22: -0.2041725519 | AL22: -2.047070547 | AM22: -0.2663627711
L23: 2012-03-15 | M23: 7 | AE23: 9.5 | AH23: -1.147239952 | AI23: 7.469603211 | AJ23: -2.123773466 | AK23: -0.1707064374 | AL23: -2.123773466 | AM23: -0.2663627711
L24: 2012-03-15T12:00:00 | M24: 7.5 | AE24: 10 | AH24: -1.16509786 | AI24: 3.277939837 | AJ24: -2.196845641 | AK24: -0.1333500786 | AL24: -2.196845641 | AM24: -0.2663627711
L25: 2012-03-16 | M25: 8 | AE25: 10.5 | AH25: -1.180041023 | AI25: 6.77093887 | AJ25: -2.267113051 | AK25: -0.09296899468 | AL25: -2.267113051 | AM25: -0.2663627711
L26: 2012-03-16T12:00:00 | M26: 8.5 | AE26: 11 | AH26: -1.192688478 | AI26: -0.8850291096 | AJ26: -2.335178755 | AK26: -0.05019820006 | AL26: -2.335178755 | AM26: -0.2663627711
L27: 2012-03-17 | M27: 9 | AE27: 11.5 | AH27: -1.20350174 | AI27: 5.655727697 | AJ27: -2.401491225 | AK27: -0.005512255961 | AL27: -2.401491225 | AM27: -0.2663627711
L28: 2012-03-17T12:00:00 | M28: 9.5 | AE28: 12 | AH28: -1.212830645 | AI28: -1.070354701 | AJ28: -2.466389541 | AK28: 0.0407282509 | AL28: -2.466389541 | AM28: -0.2663627711
L29: 2012-03-18 | M29: 10 | AE29: 12.5 | AH29: -1.220944374 | AI29: 5.504291318 | AJ29: -2.530133946 | AK29: 0.08824519812 | AL29: -2.530133946 | AM29: -0.2663627711
L30: 2012-03-18T12:00:00 | M30: 10.5 | AE30: 13 | AH30: -1.228052885 | AI30: -1.195418711 | AJ30: -2.592926907 | AK30: 0.1368211378 | AL30: -2.592926907 | AM30: -0.2663627711
L31: 2012-03-19 | M31: 11 | AE31: 13.5 | AH31: -1.234321971 | AI31: 5.400009774 | AJ31: -2.654927894 | AK31: 0.1862839518 | AL31: -2.654927894 | AM31: -0.2663627711
L32: 2012-03-19T12:00:00 | M32: 11.5 | AE32: 14 | AH32: -1.239884036 | AI32: -1.283134266 | AJ32: -2.716263937 | AK32: 0.2364958643 | AL32: -2.716263937 | AM32: -0.2663627711
L33: 2012-03-20 | M33: 12 | AE33: 14.5 | AH33: -1.244845908 | AI33: 5.325638038 | AJ33: -2.777037267 | AK33: 0.2873454519 | AL33: -2.777037267 | AM33: -0.2663627711
L34: 2012-03-20T12:00:00 | M34: 12.5 | AE34: 15 | AH34: -1.249294597 | AI34: -1.34665411 | AJ34: -2.837330945 | AK34: 0.3387417519 | AL34: -2.837330945 | AM34: -0.2663627711
L35: 2012-03-21 | M35: 13 | AE35: 15.5 | AH35: -1.25330159 | AI35: 5.271021612 | AJ35: -2.897213041 | AK35: 0.3906098603 | AL35: -2.897213041 | AM35: -0.2663627711
L36: 2012-03-21T12:00:00 | M36: 13.5 | AE36: 16 | AH36: -1.256926093 | AI36: -1.393906179 | AJ36: =IF(AF36="",IF(AE36<$AN$66,AH36-TINV($AN$68,$AN$67-2)*(0.0536816635160681*$AI$2+0.0181)*SQRT(1+1/$AN$67),AH36-TINV($AN$68,$AN$67-2)*(0.0536816635160681*$AI$2+0.0181)*SQRT(1+1/$AN$67+(AE36-$AN$66)^2/$AO$66)),"") -> -2.956739789 | AK36: =IF(AF36="",IF(AE36<$AN$66,AH36+TINV($AN$68,$AN$67-2)*(0.0536816635160681*$AI$2+0.0181)*SQRT(1+1/$AN$67),AH36+TINV($AN$68,$AN$67-2)*(0.0536816635160681*$AI$2+0.0181)*SQRT(1+1/$AN$67+(AE36-$AN$66)^2/$AO$66)),"") -> 0.4428876026 | AL36: -2.956739789 | AM36: -0.2663627711 | AO36: =IF(AN36="","",(AN36-$AN$66)^2) -> 
L37: 2012-03-22 | M37: 14 | AE37: 16.5 | AH37: -1.260217502 | AI37: 5.229906776 | AJ37: -3.015957993 | AK37: 0.4955229893 | AL37: -3 | AM37: -0.2663627711
L38: 2012-03-22T12:00:00 | M38: 14.5 | AE38: 17 | AH38: -1.263217315 | AI38: -1.429870728 | AJ38: -3.074906879 | AK38: 0.548472249 | AL38: -3 | AM38: -0.2663627711
L39: 2012-03-23 | M39: 15 | AE39: 17.5 | AH39: -1.265960617 | AI39: 5.198292303 | AJ39: -3.133619528 | AK39: 0.6016982947 | AL39: -3 | AM39: -0.2663627711
L40: 2012-03-23T12:00:00 | M40: 15.5 | AE40: 18 | AH40: -1.268477247 | AI40: -1.457788827 | AJ40: -3.192124012 | AK40: 0.6551695168 | AL40: -3 | AM40: -0.2663627711
L41: =IF(N$4<0.5,N$3+M41,N$3+M41+0.5) -> 2012-03-24 | M41: 16 | AE41: 18.5 | AH41: -1.270792727 | AI41: 5.1735328 | AJ41: -3.250444279 | AK41: 0.7088588251 | AL41: -3 | AM41: -0.2663627711
L42: 2012-03-24T12:00:00 | M42: 16.5 | AE42: 19 | AH42: -1.272928995 | AI42: -1.479835056 | AJ42: -3.308600872 | AK42: 0.7627428823 | AL42: -3 | AM42: -0.2663627711
L43: 2012-03-25 | M43: 17 | AE43: 19.5 | AH43: -1.274905005 | AI43: 5.153828812 | AJ43: -3.366611496 | AK43: 0.8168014868 | AL43: -3 | AM43: -0.2663627711
L44: 2012-03-25T12:00:00 | M44: 17.5 | AE44: 20 | AH44: -1.276737205 | AI44: -1.497507734 | AJ44: -3.424491481 | AK44: 0.8710170715 | AL44: -3 | AM44: -0.2663627711
L45: 2012-03-26 | M45: 18 | AE45: 20.5 | AH45: -1.278439932 | AI45: 5.137925467 | AJ45: -3.482254159 | AK45: 0.9253742952 | AL45: -3 | AM45: -0.2663627711
L46: 2012-03-26T12:00:00 | M46: 18.5 | AE46: 21 | AH46: -1.280025732 | AI46: -1.51186361 | AJ46: -3.53991117 | AK46: 0.979859706 | AL46: -3 | AM46: -0.2663627711
L47: 2012-03-27 | M47: 19 | AE47: 21.5 | AH47: -1.281505627 | AI47: 5.124928257 | AJ47: -3.597472718 | AK47: 1.034461464 | AL47: -3 | AM47: -0.2663627711
L48: 2012-03-27T12:00:00 | M48: 19.5 | AE48: 22 | AH48: -1.282889335 | AI48: -1.523663551 | AJ48: -3.654947781 | AK48: 1.089169112 | AL48: -3 | AM48: -0.2663627711
L49: 2012-03-28 | M49: 20 | AE49: 22.5 | AH49: -1.284185453 | AI49: 5.114187014 | AJ49: -3.712344284 | AK49: 1.143973378 | AL49: -3 | AM49: -0.2663627711
L50: 2012-03-28T12:00:00 | M50: 20.5 | AE50: 23 | AH50: -1.285401612 | AI50: -1.533465556 | AJ50: -3.769669246 | AK50: 1.198866021 | AL50: -3 | AM50: -0.2663627711
L51: 2012-03-29 | M51: 21 | AE51: 23.5 | AH51: -1.286544607 | AI51: 5.105220867 | AJ51: -3.826928903 | AK51: 1.253839689 | AL51: -3 | AM51: -0.2663627711
L52: 2012-03-29T12:00:00 | M52: 21.5 | AE52: 24 | AH52: -1.287620503 | AI52: -1.541685644 | AJ52: -3.884128812 | AK52: 1.308887806 | AL52: -3 | AM52: -0.2663627711
L53: 2012-03-30 | M53: 22 | AE53: 24.5 | AH53: -1.288634734 | AI53: 5.097668562 | AJ53: -3.94127394 | AK53: 1.364004472 | AL53: -3 | AM53: -0.2663627711
L54: 2012-03-30T12:00:00 | M54: 22.5 | AE54: 25 | AH54: -1.289592176 | AI54: -1.548638623 | AJ54: -3.998368735 | AK54: 1.419184382 | AL54: -3 | AM54: -0.2663627711
L55: 2012-03-31 | M55: 23 | AE55: 25.5 | AH55: -1.290497221 | AI55: 5.091254846 | AJ55: -4.055417195 | AK55: 1.474422753 | AL55: -3 | AM55: -0.2663627711
L56: 2012-03-31T12:00:00 | M56: 23.5 | AE56: 26 | AH56: -1.291353828 | AI56: -1.554565934 | AJ56: -4.112422918 | AK56: 1.529715262 | AL56: -3 | AM56: -0.2663627711
L57: 2012-04-01 | M57: 24 | AE57: 26.5 | AH57: -1.292165582 | AI57: 5.085767288 | AJ57: -4.169389155 | AK57: 1.585057991 | AL57: -3 | AM57: -0.2663627711
L58: 2012-04-01T12:00:00 | M58: 24.5 | AE58: 27 | AH58: -1.292935728 | AI58: -1.559655029 | AJ58: -4.226318843 | AK58: 1.640447387 | AL58: -3 | AM58: -0.2663627711
L59: 2012-04-02 | M59: 25 | AE59: 27.5 | AH59: -1.293667217 | AI59: 5.081040017 | AJ59: -4.283214647 | AK59: 1.695880213 | AL59: -3 | AM59: -0.2663627711
L60: 2012-04-02T12:00:00 | M60: 25.5 | AE60: 28 | AH60: -1.294362732 | AI60: -1.564053073 | AJ60: -4.340078987 | AK60: 1.751353523 | AL60: -3 | AM60: -0.2663627711
L61: 2012-04-03 | M61: 26 | AE61: 28.5 | AH61: -1.295024723 | AI61: 5.076942127 | AJ61: -4.396914067 | AK61: 1.806864622 | AL61: -3 | AM61: -0.2663627711
L62: 2012-04-03T12:00:00 | M62: 26.5 | AE62: 29 | AH62: -1.295655425 | AI62: -1.567876798 | AJ62: -4.453721896 | AK62: 1.862411046 | AL62: -3 | AM62: -0.2663627711
L63: 2012-04-04 | M63: 27 | AE63: 29.5 | AH63: -1.296256887 | AI63: 5.073369284 | AJ63: -4.51050431 | AK63: 1.917990536 | AL63: -3 | AM63: -0.2663627711
L64: 2012-04-04T12:00:00 | M64: 27.5 | AE64: 30 | AH64: -1.296830985 | AI64: -1.571219665 | AJ64: -4.567262988 | AK64: 1.973601018 | AL64: -3 | AM64: -0.2663627711
L65: 2012-04-05 | M65: 28
L66: 2012-04-05T12:00:00 | M66: 28.5 | AM66: Range totals | AN66: =AVERAGE(AN4:AN64) -> 1 | AO66: =SUM(AO4:AO64) -> 2.5
L67: 2012-04-06 | M67: 29 | AN67: =COUNT(AN4:AN64) -> 5
L68: 2012-04-06T12:00:00 | M68: 29.5 | AM68: alpha | AN68: 0.75
L69: 2012-04-07 | M69: 30

Sheet Full Ferment Logs
A1: Fermenter Logs
A2: Active | C2: 1 | W2: Active | Y2: 1 | AS2: Active | AU2: 1 | BO2: Active | BQ2: 1 | CK2: Active | CM2: 1 | DG2: Active | DI2: 1 | EC2: Active | EE2: 1 | EY2: Active | FA2: 1 | FU2: Active | FW2: 1 | GQ2: Active | GS2: 1 | HM2: Active | HO2: 1 | II2: Active | IK2: 1 | JE2: Active | JG2: 1 | KA2: Active | KC2: 1 | KW2: Active | KY2: 1 | LS2: Active | LU2: 1 | MO2: Active | MQ2: 1 | NK2: Active | NM2: 1 | OG2: Active | OI2: 1 | PC2: Active | PE2: 1 | PY2: Active | QA2: 1 | QU2: Active | QW2: 1 | RQ2: Active | RS2: 1 | SM2: Active | SO2: 1 | TI2: Active | TK2: 1 | UE2: Active | UG2: 1 | VA2: Active | VC2: 1 | VW2: Active | VY2: 1 | WS2: Active | WU2: 1 | XO2: Active | XQ2: 1 | YK2: Active | YM2: 1 | ZG2: Active | ZI2: 1 | AAC2: Active | AAE2: 1 | AAY2: Active | ABA2: 1 | ABU2: Active | ABW2: 1 | ACQ2: Active | ACS2: 1 | ADM2: Active | ADO2: 1 | AEI2: Active | AEK2: 1 | AFE2: Active | AFG2: 1 | AGA2: Active | AGC2: 1 | AGW2: Active | AGY2: 1 | AHS2: Active | AHU2: 1 | AIO2: Active | AIQ2: 1 | AJK2: Active | AJM2: 1 | AKG2: Active | AKI2: 1 | ALC2: Active | ALE2: 1 | ALY2: Active | AMA2: 1 | AMU2: Active | AMW2: 1 | ANQ2: Active | ANS2: 1 | AOM2: Active | AOO2: 1 | API2: Active | APK2: 1 | AQE2: Active | AQG2: 1 | ARA2: Active | ARC2: 1 | ARW2: Active | ARY2: 1 | ASS2: Active | ASU2: 1 | ATO2: Active | ATQ2: 1 | AUK2: Active | AUM2: 1 | AVG2: Active | AVI2: 1 | AWC2: Active | AWE2: 1 | AWY2: Active | AXA2: 1 | AXU2: Active | AXW2: 1 | AYQ2: Active | AYS2: 1 | AZM2: Active | AZO2: 1 | BAI2: Active | BAK2: 1 | BBE2: Active | BBG2: 1 | BCA2: Active | BCC2: 1 | BCW2: Active | BCY2: 1 | BDS2: Active | BDU2: 1 | BEO2: Active | BEQ2: 1 | BFK2: Active | BFM2: 1 | BGG2: Active | BGI2: 1 | BHC2: Active | BHE2: 1 | BHY2: Active | BIA2: 1 | BIU2: Active | BIW2: 1 | BJQ2: Active | BJS2: 1 | BKM2: Active | BKO2: 1 | BLI2: Active | BLK2: 1 | BME2: Active | BMG2: 1 | BNA2: Active | BNC2: 1 | BNW2: Active | BNY2: 1 | BOS2: Active | BOU2: 1 | BPO2: Active | BPQ2: 1 | BQK2: Active | BQM2: 1 | BRG2: Active | BRI2: 1 | BSC2: Active | BSE2: 1 | BSY2: Active | BTA2: 1 | BTU2: Active | BTW2: 1 | BUQ2: Active | BUS2: 1 | BVM2: Active | BVO2: 1 | BWI2: Active | BWK2: 1 | BXE2: Active | BXG2: 1 | BYA2: Active | BYC2: 1 | BYW2: Active | BYY2: 1 | BZS2: Active | BZU2: 1 | CAO2: Active | CAQ2: 1 | CBK2: Active | CBM2: 1 | CCG2: Active | CCI2: 1 | CDC2: Active | CDE2: 1 | CDY2: Active | CEA2: 1 | CEU2: Active | CEW2: 1
A3: Fermenter | C3: 1 | F3: Must Chill On (1) / Off (0) | H3: 1 | K3: Cold Settling On (1) / Off (0) | M3: 1 | P3: Cool Climate | Q3: 0 | R3: (1=Yes, 0=No) | W3: Fermenter | Y3: 2 | AB3: Must Chill On (1) / Off (0) | AD3: 1 | AG3: Cold Settling On (1) / Off (0) | AI3: 1 | AL3: Cool Climate | AM3: 1 | AN3: (1=Yes, 0=No) | AS3: Fermenter | AU3: 3 | AX3: Must Chill On (1) / Off (0) | AZ3: 1 | BC3: Cold Settling On (1) / Off (0) | BE3: 1 | BH3: Cool Climate | BI3: 1 | BJ3: (1=Yes, 0=No) | BO3: Fermenter | BQ3: 4 | BT3: Must Chill On (1) / Off (0) | BV3: 0 | BY3: Cold Settling On (1) / Off (0) | CA3: 0 | CD3: Cool Climate | CE3: 1 | CF3: (1=Yes, 0=No) | CK3: Fermenter | CM3: 5 | CP3: Must Chill On (1) / Off (0) | CR3: 0 | CU3: Cold Settling On (1) / Off (0) | CW3: 0 | CZ3: Cool Climate | DA3: 1 | DB3: (1=Yes, 0=No) | DG3: Fermenter | DI3: 6 | DL3: Must Chill On (1) / Off (0) | DN3: 0 | DQ3: Cold Settling On (1) / Off (0) | DS3: 0 | DV3: Cool Climate | DW3: 1 | DX3: (1=Yes, 0=No) | EC3: Fermenter | EE3: 7 | EH3: Must Chill On (1) / Off (0) | EJ3: 0 | EM3: Cold Settling On (1) / Off (0) | EO3: 0 | ER3: Cool Climate | ES3: 1 | ET3: (1=Yes, 0=No) | EY3: Fermenter | FA3: 8 | FD3: Must Chill On (1) / Off (0) | FF3: 0 | FI3: Cold Settling On (1) / Off (0) | FK3: 0 | FN3: Cool Climate | FO3: 1 | FP3: (1=Yes, 0=No) | FU3: Fermenter | FW3: 9 | FZ3: Must Chill On (1) / Off (0) | GB3: 0 | GE3: Cold Settling On (1) / Off (0) | GG3: 0 | GJ3: Cool Climate | GK3: 1 | GL3: (1=Yes, 0=No) | GQ3: Fermenter | GS3: 10 | GV3: Must Chill On (1) / Off (0) | GX3: 0 | HA3: Cold Settling On (1) / Off (0) | HC3: 0 | HF3: Cool Climate | HG3: 1 | HH3: (1=Yes, 0=No) | HM3: Fermenter | HO3: 11 | HR3: Must Chill On (1) / Off (0) | HT3: 0 | HW3: Cold Settling On (1) / Off (0) | HY3: 0 | IB3: Cool Climate | IC3: 1 | ID3: (1=Yes, 0=No) | II3: Fermenter | IK3: 12 | IN3: Must Chill On (1) / Off (0) | IP3: 0 | IS3: Cold Settling On (1) / Off (0) | IU3: 0 | IX3: Cool Climate | IY3: 1 | IZ3: (1=Yes, 0=No) | JE3: Fermenter | JG3: 13 | JJ3: Must Chill On (1) / Off (0) | JL3: 0 | JO3: Cold Settling On (1) / Off (0) | JQ3: 0 | JT3: Cool Climate | JU3: 1 | JV3: (1=Yes, 0=No) | KA3: Fermenter | KC3: 14 | KF3: Must Chill On (1) / Off (0) | KH3: 0 | KK3: Cold Settling On (1) / Off (0) | KM3: 0 | KP3: Cool Climate | KQ3: 1 | KR3: (1=Yes, 0=No) | KW3: Fermenter | KY3: 15 | LB3: Must Chill On (1) / Off (0) | LD3: 0 | LG3: Cold Settling On (1) / Off (0) | LI3: 0 | LL3: Cool Climate | LM3: 1 | LN3: (1=Yes, 0=No) | LS3: Fermenter | LU3: 16 | LX3: Must Chill On (1) / Off (0) | LZ3: 0 | MC3: Cold Settling On (1) / Off (0) | ME3: 0 | MH3: Cool Climate | MI3: 1 | MJ3: (1=Yes, 0=No) | MO3: Fermenter | MQ3: 17 | MT3: Must Chill On (1) / Off (0) | MV3: 0 | MY3: Cold Settling On (1) / Off (0) | NA3: 0 | ND3: Cool Climate | NE3: 1 | NF3: (1=Yes, 0=No) | NK3: Fermenter | NM3: 18 | NP3: Must Chill On (1) / Off (0) | NR3: 0 | NU3: Cold Settling On (1) / Off (0) | NW3: 0 | NZ3: Cool Climate | OA3: 1 | OB3: (1=Yes, 0=No) | OG3: Fermenter | OI3: 19 | OL3: Must Chill On (1) / Off (0) | ON3: 0 | OQ3: Cold Settling On (1) / Off (0) | OS3: 0 | OV3: Cool Climate | OW3: 1 | OX3: (1=Yes, 0=No) | PC3: Fermenter | PE3: 20 | PH3: Must Chill On (1) / Off (0) | PJ3: 0 | PM3: Cold Settling On (1) / Off (0) | PO3: 0 | PR3: Cool Climate | PS3: 1 | PT3: (1=Yes, 0=No) | PY3: Fermenter | QA3: 21 | QD3: Must Chill On (1) / Off (0) | QF3: 0 | QI3: Cold Settling On (1) / Off (0) | QK3: 0 | QN3: Cool Climate | QO3: 1 | QP3: (1=Yes, 0=No) | QU3: Fermenter | QW3: 22 | QZ3: Must Chill On (1) / Off (0) | RB3: 0 | RE3: Cold Settling On (1) / Off (0) | RG3: 0 | RJ3: Cool Climate | RK3: 1 | RL3: (1=Yes, 0=No) | RQ3: Fermenter | RS3: 23 | RV3: Must Chill On (1) / Off (0) | RX3: 0 | SA3: Cold Settling On (1) / Off (0) | SC3: 0 | SF3: Cool Climate | SG3: 1 | SH3: (1=Yes, 0=No) | SM3: Fermenter | SO3: 24 | SR3: Must Chill On (1) / Off (0) | ST3: 0 | SW3: Cold Settling On (1) / Off (0) | SY3: 0 | TB3: Cool Climate | TC3: 1 | TD3: (1=Yes, 0=No) | TI3: Fermenter | TK3: 25 | TN3: Must Chill On (1) / Off (0) | TP3: 0 | TS3: Cold Settling On (1) / Off (0) | TU3: 0 | TX3: Cool Climate | TY3: 1 | TZ3: (1=Yes, 0=No) | UE3: Fermenter | UG3: 26 | UJ3: Must Chill On (1) / Off (0) | UL3: 0 | UO3: Cold Settling On (1) / Off (0) | UQ3: 0 | UT3: Cool Climate | UU3: 1 | UV3: (1=Yes, 0=No) | VA3: Fermenter | VC3: 27 | VF3: Must Chill On (1) / Off (0) | VH3: 0 | VK3: Cold Settling On (1) / Off (0) | VM3: 0 | VP3: Cool Climate | VQ3: 1 | VR3: (1=Yes, 0=No) | VW3: Fermenter | VY3: 28 | WB3: Must Chill On (1) / Off (0) | WD3: 0 | WG3: Cold Settling On (1) / Off (0) | WI3: 0 | WL3: Cool Climate | WM3: 1 | WN3: (1=Yes, 0=No) | WS3: Fermenter | WU3: 29 | WX3: Must Chill On (1) / Off (0) | WZ3: 0 | XC3: Cold Settling On (1) / Off (0) | XE3: 0 | XH3: Cool Climate | XI3: 1 | XJ3: (1=Yes, 0=No) | XO3: Fermenter | XQ3: 30 | XT3: Must Chill On (1) / Off (0) | XV3: 0 | XY3: Cold Settling On (1) / Off (0) | YA3: 0 | YD3: Cool Climate | YE3: 1 | YF3: (1=Yes, 0=No) | YK3: Fermenter | YM3: 31 | YP3: Must Chill On (1) / Off (0) | YR3: 0 | YU3: Cold Settling On (1) / Off (0) | YW3: 0 | YZ3: Cool Climate | ZA3: 1 | ZB3: (1=Yes, 0=No) | ZG3: Fermenter | ZI3: 32 | ZL3: Must Chill On (1) / Off (0) | ZN3: 0 | ZQ3: Cold Settling On (1) / Off (0) | ZS3: 0 | ZV3: Cool Climate | ZW3: 1 | ZX3: (1=Yes, 0=No) | AAC3: Fermenter | AAE3: 33 | AAH3: Must Chill On (1) / Off (0) | AAJ3: 0 | AAM3: Cold Settling On (1) / Off (0) | AAO3: 0 | AAR3: Cool Climate | AAS3: 1 | AAT3: (1=Yes, 0=No) | AAY3: Fermenter | ABA3: 34 | ABD3: Must Chill On (1) / Off (0) | ABF3: 0 | ABI3: Cold Settling On (1) / Off (0) | ABK3: 0 | ABN3: Cool Climate | ABO3: 1 | ABP3: (1=Yes, 0=No) | ABU3: Fermenter | ABW3: 35 | ABZ3: Must Chill On (1) / Off (0) | ACB3: 0 | ACE3: Cold Settling On (1) / Off (0) | ACG3: 0 | ACJ3: Cool Climate | ACK3: 1 | ACL3: (1=Yes, 0=No) | ACQ3: Fermenter | ACS3: 36 | ACV3: Must Chill On (1) / Off (0) | ACX3: 0 | ADA3: Cold Settling On (1) / Off (0) | ADC3: 0 | ADF3: Cool Climate | ADG3: 1 | ADH3: (1=Yes, 0=No) | ADM3: Fermenter | ADO3: 37 | ADR3: Must Chill On (1) / Off (0) | ADT3: 0 | ADW3: Cold Settling On (1) / Off (0) | ADY3: 0 | AEB3: Cool Climate | AEC3: 1 | AED3: (1=Yes, 0=No) | AEI3: Fermenter | AEK3: 38 | AEN3: Must Chill On (1) / Off (0) | AEP3: 0 | AES3: Cold Settling On (1) / Off (0) | AEU3: 0 | AEX3: Cool Climate | AEY3: 1 | AEZ3: (1=Yes, 0=No) | AFE3: Fermenter | AFG3: 39 | AFJ3: Must Chill On (1) / Off (0) | AFL3: 0 | AFO3: Cold Settling On (1) / Off (0) | AFQ3: 0 | AFT3: Cool Climate | AFU3: 1 | AFV3: (1=Yes, 0=No) | AGA3: Fermenter | AGC3: 40 | AGF3: Must Chill On (1) / Off (0) | AGH3: 0 | AGK3: Cold Settling On (1) / Off (0) | AGM3: 0 | AGP3: Cool Climate | AGQ3: 1 | AGR3: (1=Yes, 0=No) | AGW3: Fermenter | AGY3: 41 | AHB3: Must Chill On (1) / Off (0) | AHD3: 0 | AHG3: Cold Settling On (1) / Off (0) | AHI3: 0 | AHL3: Cool Climate | AHM3: 1 | AHN3: (1=Yes, 0=No) | AHS3: Fermenter | AHU3: 42 | AHX3: Must Chill On (1) / Off (0) | AHZ3: 0 | AIC3: Cold Settling On (1) / Off (0) | AIE3: 0 | AIH3: Cool Climate | AII3: 1 | AIJ3: (1=Yes, 0=No) | AIO3: Fermenter | AIQ3: 43 | AIT3: Must Chill On (1) / Off (0) | AIV3: 0 | AIY3: Cold Settling On (1) / Off (0) | AJA3: 0 | AJD3: Cool Climate | AJE3: 1 | AJF3: (1=Yes, 0=No) | AJK3: Fermenter | AJM3: 44 | AJP3: Must Chill On (1) / Off (0) | AJR3: 0 | AJU3: Cold Settling On (1) / Off (0) | AJW3: 0 | AJZ3: Cool Climate | AKA3: 1 | AKB3: (1=Yes, 0=No) | AKG3: Fermenter | AKI3: 45 | AKL3: Must Chill On (1) / Off (0) | AKN3: 0 | AKQ3: Cold Settling On (1) / Off (0) | AKS3: 0 | AKV3: Cool Climate | AKW3: 1 | AKX3: (1=Yes, 0=No) | ALC3: Fermenter | ALE3: 46 | ALH3: Must Chill On (1) / Off (0) | ALJ3: 0 | ALM3: Cold Settling On (1) / Off (0) | ALO3: 0 | ALR3: Cool Climate | ALS3: 1 | ALT3: (1=Yes, 0=No) | ALY3: Fermenter | AMA3: 47 | AMD3: Must Chill On (1) / Off (0) | AMF3: 0 | AMI3: Cold Settling On (1) / Off (0) | AMK3: 0 | AMN3: Cool Climate | AMO3: 1 | AMP3: (1=Yes, 0=No) | AMU3: Fermenter | AMW3: 48 | AMZ3: Must Chill On (1) / Off (0) | ANB3: 0 | ANE3: Cold Settling On (1) / Off (0) | ANG3: 0 | ANJ3: Cool Climate | ANK3: 1 | ANL3: (1=Yes, 0=No) | ANQ3: Fermenter | ANS3: 49 | ANV3: Must Chill On (1) / Off (0) | ANX3: 0 | AOA3: Cold Settling On (1) / Off (0) | AOC3: 0 | AOF3: Cool Climate | AOG3: 1 | AOH3: (1=Yes, 0=No) | AOM3: Fermenter | AOO3: 50 | AOR3: Must Chill On (1) / Off (0) | AOT3: 0 | AOW3: Cold Settling On (1) / Off (0) | AOY3: 0 | APB3: Cool Climate | APC3: 1 | APD3: (1=Yes, 0=No) | API3: Fermenter | APK3: 51 | APN3: Must Chill On (1) / Off (0) | APP3: 0 | APS3: Cold Settling On (1) / Off (0) | APU3: 0 | APX3: Cool Climate | APY3: 1 | APZ3: (1=Yes, 0=No) | AQE3: Fermenter | AQG3: 52 | AQJ3: Must Chill On (1) / Off (0) | AQL3: 0 | AQO3: Cold Settling On (1) / Off (0) | AQQ3: 0 | AQT3: Cool Climate | AQU3: 1 | AQV3: (1=Yes, 0=No) | ARA3: Fermenter | ARC3: 53 | ARF3: Must Chill On (1) / Off (0) | ARH3: 0 | ARK3: Cold Settling On (1) / Off (0) | ARM3: 0 | ARP3: Cool Climate | ARQ3: 1 | ARR3: (1=Yes, 0=No) | ARW3: Fermenter | ARY3: 54 | ASB3: Must Chill On (1) / Off (0) | ASD3: 0 | ASG3: Cold Settling On (1) / Off (0) | ASI3: 0 | ASL3: Cool Climate | ASM3: 1 | ASN3: (1=Yes, 0=No) | ASS3: Fermenter | ASU3: 55 | ASX3: Must Chill On (1) / Off (0) | ASZ3: 0 | ATC3: Cold Settling On (1) / Off (0) | ATE3: 0 | ATH3: Cool Climate | ATI3: 1 | ATJ3: (1=Yes, 0=No) | ATO3: Fermenter | ATQ3: 56 | ATT3: Must Chill On (1) / Off (0) | ATV3: 0 | ATY3: Cold Settling On (1) / Off (0) | AUA3: 0 | AUD3: Cool Climate | AUE3: 1 | AUF3: (1=Yes, 0=No) | AUK3: Fermenter | AUM3: 57 | AUP3: Must Chill On (1) / Off (0) | AUR3: 0 | AUU3: Cold Settling On (1) / Off (0) | AUW3: 0 | AUZ3: Cool Climate | AVA3: 1 | AVB3: (1=Yes, 0=No) | AVG3: Fermenter | AVI3: 58 | AVL3: Must Chill On (1) / Off (0) | AVN3: 0 | AVQ3: Cold Settling On (1) / Off (0) | AVS3: 0 | AVV3: Cool Climate | AVW3: 1 | AVX3: (1=Yes, 0=No) | AWC3: Fermenter | AWE3: 59 | AWH3: Must Chill On (1) / Off (0) | AWJ3: 0 | AWM3: Cold Settling On (1) / Off (0) | AWO3: 0 | AWR3: Cool Climate | AWS3: 1 | AWT3: (1=Yes, 0=No) | AWY3: Fermenter | AXA3: 60 | AXD3: Must Chill On (1) / Off (0) | AXF3: 0 | AXI3: Cold Settling On (1) / Off (0) | AXK3: 0 | AXN3: Cool Climate | AXO3: 1 | AXP3: (1=Yes, 0=No) | AXU3: Fermenter | AXW3: 61 | AXZ3: Must Chill On (1) / Off (0) | AYB3: 0 | AYE3: Cold Settling On (1) / Off (0) | AYG3: 0 | AYJ3: Cool Climate | AYK3: 1 | AYL3: (1=Yes, 0=No) | AYQ3: Fermenter | AYS3: 62 | AYV3: Must Chill On (1) / Off (0) | AYX3: 0 | AZA3: Cold Settling On (1) / Off (0) | AZC3: 0 | AZF3: Cool Climate | AZG3: 1 | AZH3: (1=Yes, 0=No) | AZM3: Fermenter | AZO3: 63 | AZR3: Must Chill On (1) / Off (0) | AZT3: 0 | AZW3: Cold Settling On (1) / Off (0) | AZY3: 0 | BAB3: Cool Climate | BAC3: 1 | BAD3: (1=Yes, 0=No) | BAI3: Fermenter | BAK3: 64 | BAN3: Must Chill On (1) / Off (0) | BAP3: 0 | BAS3: Cold Settling On (1) / Off (0) | BAU3: 0 | BAX3: Cool Climate | BAY3: 1 | BAZ3: (1=Yes, 0=No) | BBE3: Fermenter | BBG3: 65 | BBJ3: Must Chill On (1) / Off (0) | BBL3: 0 | BBO3: Cold Settling On (1) / Off (0) | BBQ3: 0 | BBT3: Cool Climate | BBU3: 1 | BBV3: (1=Yes, 0=No) | BCA3: Fermenter | BCC3: 66 | BCF3: Must Chill On (1) / Off (0) | BCH3: 0 | BCK3: Cold Settling On (1) / Off (0) | BCM3: 0 | BCP3: Cool Climate | BCQ3: 1 | BCR3: (1=Yes, 0=No) | BCW3: Fermenter | BCY3: 67 | BDB3: Must Chill On (1) / Off (0) | BDD3: 0 | BDG3: Cold Settling On (1) / Off (0) | BDI3: 0 | BDL3: Cool Climate | BDM3: 1 | BDN3: (1=Yes, 0=No) | BDS3: Fermenter | BDU3: 68 | BDX3: Must Chill On (1) / Off (0) | BDZ3: 0 | BEC3: Cold Settling On (1) / Off (0) | BEE3: 0 | BEH3: Cool Climate | BEI3: 1 | BEJ3: (1=Yes, 0=No) | BEO3: Fermenter | BEQ3: 69 | BET3: Must Chill On (1) / Off (0) | BEV3: 0 | BEY3: Cold Settling On (1) / Off (0) | BFA3: 0 | BFD3: Cool Climate | BFE3: 1 | BFF3: (1=Yes, 0=No) | BFK3: Fermenter | BFM3: 70 | BFP3: Must Chill On (1) / Off (0) | BFR3: 0 | BFU3: Cold Settling On (1) / Off (0) | BFW3: 0 | BFZ3: Cool Climate | BGA3: 1 | BGB3: (1=Yes, 0=No) | BGG3: Fermenter | BGI3: 71 | BGL3: Must Chill On (1) / Off (0) | BGN3: 0 | BGQ3: Cold Settling On (1) / Off (0) | BGS3: 0 | BGV3: Cool Climate | BGW3: 1 | BGX3: (1=Yes, 0=No) | BHC3: Fermenter | BHE3: 72 | BHH3: Must Chill On (1) / Off (0) | BHJ3: 0 | BHM3: Cold Settling On (1) / Off (0) | BHO3: 0 | BHR3: Cool Climate | BHS3: 1 | BHT3: (1=Yes, 0=No) | BHY3: Fermenter | BIA3: 73 | BID3: Must Chill On (1) / Off (0) | BIF3: 0 | BII3: Cold Settling On (1) / Off (0) | BIK3: 0 | BIN3: Cool Climate | BIO3: 1 | BIP3: (1=Yes, 0=No) | BIU3: Fermenter | BIW3: 74 | BIZ3: Must Chill On (1) / Off (0) | BJB3: 0 | BJE3: Cold Settling On (1) / Off (0) | BJG3: 0 | BJJ3: Cool Climate | BJK3: 1 | BJL3: (1=Yes, 0=No) | BJQ3: Fermenter | BJS3: 75 | BJV3: Must Chill On (1) / Off (0) | BJX3: 0 | BKA3: Cold Settling On (1) / Off (0) | BKC3: 0 | BKF3: Cool Climate | BKG3: 1 | BKH3: (1=Yes, 0=No) | BKM3: Fermenter | BKO3: 76 | BKR3: Must Chill On (1) / Off (0) | BKT3: 0 | BKW3: Cold Settling On (1) / Off (0) | BKY3: 0 | BLB3: Cool Climate | BLC3: 1 | BLD3: (1=Yes, 0=No) | BLI3: Fermenter | BLK3: 77 | BLN3: Must Chill On (1) / Off (0) | BLP3: 0 | BLS3: Cold Settling On (1) / Off (0) | BLU3: 0 | BLX3: Cool Climate | BLY3: 1 | BLZ3: (1=Yes, 0=No) | BME3: Fermenter | BMG3: 78 | BMJ3: Must Chill On (1) / Off (0) | BML3: 0 | BMO3: Cold Settling On (1) / Off (0) | BMQ3: 0 | BMT3: Cool Climate | BMU3: 1 | BMV3: (1=Yes, 0=No) | BNA3: Fermenter | BNC3: 79 | BNF3: Must Chill On (1) / Off (0) | BNH3: 0 | BNK3: Cold Settling On (1) / Off (0) | BNM3: 0 | BNP3: Cool Climate | BNQ3: 1 | BNR3: (1=Yes, 0=No) | BNW3: Fermenter | BNY3: 80 | BOB3: Must Chill On (1) / Off (0) | BOD3: 0 | BOG3: Cold Settling On (1) / Off (0) | BOI3: 0 | BOL3: Cool Climate | BOM3: 1 | BON3: (1=Yes, 0=No) | BOS3: Fermenter | BOU3: 81 | BOX3: Must Chill On (1) / Off (0) | BOZ3: 0 | BPC3: Cold Settling On (1) / Off (0) | BPE3: 0 | BPH3: Cool Climate | BPI3: 1 | BPJ3: (1=Yes, 0=No) | BPO3: Fermenter | BPQ3: 82 | BPT3: Must Chill On (1) / Off (0) | BPV3: 0 | BPY3: Cold Settling On (1) / Off (0) | BQA3: 0 | BQD3: Cool Climate | BQE3: 1 | BQF3: (1=Yes, 0=No) | BQK3: Fermenter | BQM3: 83 | BQP3: Must Chill On (1) / Off (0) | BQR3: 0 | BQU3: Cold Settling On (1) / Off (0) | BQW3: 0 | BQZ3: Cool Climate | BRA3: 1 | BRB3: (1=Yes, 0=No) | BRG3: Fermenter | BRI3: 84 | BRL3: Must Chill On (1) / Off (0) | BRN3: 0 | BRQ3: Cold Settling On (1) / Off (0) | BRS3: 0 | BRV3: Cool Climate | BRW3: 1 | BRX3: (1=Yes, 0=No) | BSC3: Fermenter | BSE3: 85 | BSH3: Must Chill On (1) / Off (0) | BSJ3: 0 | BSM3: Cold Settling On (1) / Off (0) | BSO3: 0 | BSR3: Cool Climate | BSS3: 1 | BST3: (1=Yes, 0=No) | BSY3: Fermenter | BTA3: 86 | BTD3: Must Chill On (1) / Off (0) | BTF3: 0 | BTI3: Cold Settling On (1) / Off (0) | BTK3: 0 | BTN3: Cool Climate | BTO3: 1 | BTP3: (1=Yes, 0=No) | BTU3: Fermenter | BTW3: 87 | BTZ3: Must Chill On (1) / Off (0) | BUB3: 0 | BUE3: Cold Settling On (1) / Off (0) | BUG3: 0 | BUJ3: Cool Climate | BUK3: 1 | BUL3: (1=Yes, 0=No) | BUQ3: Fermenter | BUS3: 88 | BUV3: Must Chill On (1) / Off (0) | BUX3: 0 | BVA3: Cold Settling On (1) / Off (0) | BVC3: 0 | BVF3: Cool Climate | BVG3: 1 | BVH3: (1=Yes, 0=No) | BVM3: Fermenter | BVO3: 89 | BVR3: Must Chill On (1) / Off (0) | BVT3: 0 | BVW3: Cold Settling On (1) / Off (0) | BVY3: 0 | BWB3: Cool Climate | BWC3: 1 | BWD3: (1=Yes, 0=No) | BWI3: Fermenter | BWK3: 90 | BWN3: Must Chill On (1) / Off (0) | BWP3: 0 | BWS3: Cold Settling On (1) / Off (0) | BWU3: 0 | BWX3: Cool Climate | BWY3: 1 | BWZ3: (1=Yes, 0=No) | BXE3: Fermenter | BXG3: 91 | BXJ3: Must Chill On (1) / Off (0) | BXL3: 0 | BXO3: Cold Settling On (1) / Off (0) | BXQ3: 0 | BXT3: Cool Climate | BXU3: 1 | BXV3: (1=Yes, 0=No) | BYA3: Fermenter | BYC3: 92 | BYF3: Must Chill On (1) / Off (0) | BYH3: 0 | BYK3: Cold Settling On (1) / Off (0) | BYM3: 0 | BYP3: Cool Climate | BYQ3: 1 | BYR3: (1=Yes, 0=No) | BYW3: Fermenter | BYY3: 93 | BZB3: Must Chill On (1) / Off (0) | BZD3: 0 | BZG3: Cold Settling On (1) / Off (0) | BZI3: 0 | BZL3: Cool Climate | BZM3: 1 | BZN3: (1=Yes, 0=No) | BZS3: Fermenter | BZU3: 94 | BZX3: Must Chill On (1) / Off (0) | BZZ3: 0 | CAC3: Cold Settling On (1) / Off (0) | CAE3: 0 | CAH3: Cool Climate | CAI3: 1 | CAJ3: (1=Yes, 0=No) | CAO3: Fermenter | CAQ3: 95 | CAT3: Must Chill On (1) / Off (0) | CAV3: 0 | CAY3: Cold Settling On (1) / Off (0) | CBA3: 0 | CBD3: Cool Climate | CBE3: 1 | CBF3: (1=Yes, 0=No) | CBK3: Fermenter | CBM3: 96 | CBP3: Must Chill On (1) / Off (0) | CBR3: 0 | CBU3: Cold Settling On (1) / Off (0) | CBW3: 0 | CBZ3: Cool Climate | CCA3: 1 | CCB3: (1=Yes, 0=No) | CCG3: Fermenter | CCI3: 97 | CCL3: Must Chill On (1) / Off (0) | CCN3: 0 | CCQ3: Cold Settling On (1) / Off (0) | CCS3: 0 | CCV3: Cool Climate | CCW3: 1 | CCX3: (1=Yes, 0=No) | CDC3: Fermenter | CDE3: 98 | CDH3: Must Chill On (1) / Off (0) | CDJ3: 0 | CDM3: Cold Settling On (1) / Off (0) | CDO3: 0 | CDR3: Cool Climate | CDS3: 1 | CDT3: (1=Yes, 0=No) | CDY3: Fermenter | CEA3: 99 | CED3: Must Chill On (1) / Off (0) | CEF3: 0 | CEI3: Cold Settling On (1) / Off (0) | CEK3: 0 | CEN3: Cool Climate | CEO3: 1 | CEP3: (1=Yes, 0=No) | CEU3: Fermenter | CEW3: 100 | CEZ3: Must Chill On (1) / Off (0) | CFB3: 0 | CFE3: Cold Settling On (1) / Off (0) | CFG3: 0 | CFJ3: Cool Climate | CFK3: 1 | CFL3: (1=Yes, 0=No)
A4: Tank Name | C4: Example 1 | F4: Must Chill Start Date | H4: 2013-01-01 | K4: Cold Settling/Soak Start Date | M4: 2013-01-02 | P4: Warm Climate | Q4: 1 | R4: (1=Yes, 0=No) | W4: Tank Name | Y4: Example 2 | AB4: Must Chill Start Date | AD4: 2013-01-01 | AG4: Cold Settling/Soak Start Date | AI4: 2013-01-02 | AL4: Warm Climate | AM4: 0 | AN4: (1=Yes, 0=No) | AS4: Tank Name | AU4: Example 3 | AX4: Must Chill Start Date | AZ4: 2013-01-01 | BC4: Cold Settling/Soak Start Date | BE4: 2013-01-02 | BH4: Warm Climate | BI4: 0 | BJ4: (1=Yes, 0=No) | BO4: Tank Name | BQ4: Example 4 | BT4: Must Chill Start Date | BY4: Cold Settling/Soak Start Date | CD4: Warm Climate | CE4: 0 | CF4: (1=Yes, 0=No) | CK4: Tank Name | CM4: Enter Tank Name | CP4: Must Chill Start Date | CU4: Cold Settling/Soak Start Date | CZ4: Warm Climate | DA4: 0 | DB4: (1=Yes, 0=No) | DG4: Tank Name | DI4: Enter Tank Name | DL4: Must Chill Start Date | DQ4: Cold Settling/Soak Start Date | DV4: Warm Climate | DW4: 0 | DX4: (1=Yes, 0=No) | EC4: Tank Name | EE4: Enter Tank Name | EH4: Must Chill Start Date | EM4: Cold Settling/Soak Start Date | ER4: Warm Climate | ES4: 0 | ET4: (1=Yes, 0=No) | EY4: Tank Name | FA4: Enter Tank Name | FD4: Must Chill Start Date | FI4: Cold Settling/Soak Start Date | FN4: Warm Climate | FO4: 0 | FP4: (1=Yes, 0=No) | FU4: Tank Name | FW4: Enter Tank Name | FZ4: Must Chill Start Date | GE4: Cold Settling/Soak Start Date | GJ4: Warm Climate | GK4: 0 | GL4: (1=Yes, 0=No) | GQ4: Tank Name | GS4: Enter Tank Name | GV4: Must Chill Start Date | HA4: Cold Settling/Soak Start Date | HF4: Warm Climate | HG4: 0 | HH4: (1=Yes, 0=No) | HM4: Tank Name | HO4: Enter Tank Name | HR4: Must Chill Start Date | HW4: Cold Settling/Soak Start Date | IB4: Warm Climate | IC4: 0 | ID4: (1=Yes, 0=No) | II4: Tank Name | IK4: Enter Tank Name | IN4: Must Chill Start Date | IS4: Cold Settling/Soak Start Date | IX4: Warm Climate | IY4: 0 | IZ4: (1=Yes, 0=No) | JE4: Tank Name | JG4: Enter Tank Name | JJ4: Must Chill Start Date | JO4: Cold Settling/Soak Start Date | JT4: Warm Climate | JU4: 0 | JV4: (1=Yes, 0=No) | KA4: Tank Name | KC4: Enter Tank Name | KF4: Must Chill Start Date | KK4: Cold Settling/Soak Start Date | KP4: Warm Climate | KQ4: 0 | KR4: (1=Yes, 0=No) | KW4: Tank Name | KY4: Enter Tank Name | LB4: Must Chill Start Date | LG4: Cold Settling/Soak Start Date | LL4: Warm Climate | LM4: 0 | LN4: (1=Yes, 0=No) | LS4: Tank Name | LU4: Enter Tank Name | LX4: Must Chill Start Date | MC4: Cold Settling/Soak Start Date | MH4: Warm Climate | MI4: 0 | MJ4: (1=Yes, 0=No) | MO4: Tank Name | MQ4: Enter Tank Name | MT4: Must Chill Start Date | MY4: Cold Settling/Soak Start Date | ND4: Warm Climate | NE4: 0 | NF4: (1=Yes, 0=No) | NK4: Tank Name | NM4: Enter Tank Name | NP4: Must Chill Start Date | NU4: Cold Settling/Soak Start Date | NZ4: Warm Climate | OA4: 0 | OB4: (1=Yes, 0=No) | OG4: Tank Name | OI4: Enter Tank Name | OL4: Must Chill Start Date | OQ4: Cold Settling/Soak Start Date | OV4: Warm Climate | OW4: 0 | OX4: (1=Yes, 0=No) | PC4: Tank Name | PE4: Enter Tank Name | PH4: Must Chill Start Date | PM4: Cold Settling/Soak Start Date | PR4: Warm Climate | PS4: 0 | PT4: (1=Yes, 0=No) | PY4: Tank Name | QA4: Enter Tank Name | QD4: Must Chill Start Date | QI4: Cold Settling/Soak Start Date | QN4: Warm Climate | QO4: 0 | QP4: (1=Yes, 0=No) | QU4: Tank Name | QW4: Enter Tank Name | QZ4: Must Chill Start Date | RE4: Cold Settling/Soak Start Date | RJ4: Warm Climate | RK4: 0 | RL4: (1=Yes, 0=No) | RQ4: Tank Name | RS4: Enter Tank Name | RV4: Must Chill Start Date | SA4: Cold Settling/Soak Start Date | SF4: Warm Climate | SG4: 0 | SH4: (1=Yes, 0=No) | SM4: Tank Name | SO4: Enter Tank Name | SR4: Must Chill Start Date | SW4: Cold Settling/Soak Start Date | TB4: Warm Climate | TC4: 0 | TD4: (1=Yes, 0=No) | TI4: Tank Name | TK4: Enter Tank Name | TN4: Must Chill Start Date | TS4: Cold Settling/Soak Start Date | TX4: Warm Climate | TY4: 0 | TZ4: (1=Yes, 0=No) | UE4: Tank Name | UG4: Enter Tank Name | UJ4: Must Chill Start Date | UO4: Cold Settling/Soak Start Date | UT4: Warm Climate | UU4: 0 | UV4: (1=Yes, 0=No) | VA4: Tank Name | VC4: Enter Tank Name | VF4: Must Chill Start Date | VK4: Cold Settling/Soak Start Date | VP4: Warm Climate | VQ4: 0 | VR4: (1=Yes, 0=No) | VW4: Tank Name | VY4: Enter Tank Name | WB4: Must Chill Start Date | WG4: Cold Settling/Soak Start Date | WL4: Warm Climate | WM4: 0 | WN4: (1=Yes, 0=No) | WS4: Tank Name | WU4: Enter Tank Name | WX4: Must Chill Start Date | XC4: Cold Settling/Soak Start Date | XH4: Warm Climate | XI4: 0 | XJ4: (1=Yes, 0=No) | XO4: Tank Name | XQ4: Enter Tank Name | XT4: Must Chill Start Date | XY4: Cold Settling/Soak Start Date | YD4: Warm Climate | YE4: 0 | YF4: (1=Yes, 0=No) | YK4: Tank Name | YM4: Enter Tank Name | YP4: Must Chill Start Date | YU4: Cold Settling/Soak Start Date | YZ4: Warm Climate | ZA4: 0 | ZB4: (1=Yes, 0=No) | ZG4: Tank Name | ZI4: Enter Tank Name | ZL4: Must Chill Start Date | ZQ4: Cold Settling/Soak Start Date | ZV4: Warm Climate | ZW4: 0 | ZX4: (1=Yes, 0=No) | AAC4: Tank Name | AAE4: Enter Tank Name | AAH4: Must Chill Start Date | AAM4: Cold Settling/Soak Start Date | AAR4: Warm Climate | AAS4: 0 | AAT4: (1=Yes, 0=No) | AAY4: Tank Name | ABA4: Enter Tank Name | ABD4: Must Chill Start Date | ABI4: Cold Settling/Soak Start Date | ABN4: Warm Climate | ABO4: 0 | ABP4: (1=Yes, 0=No) | ABU4: Tank Name | ABW4: Enter Tank Name | ABZ4: Must Chill Start Date | ACE4: Cold Settling/Soak Start Date | ACJ4: Warm Climate | ACK4: 0 | ACL4: (1=Yes, 0=No) | ACQ4: Tank Name | ACS4: Enter Tank Name | ACV4: Must Chill Start Date | ADA4: Cold Settling/Soak Start Date | ADF4: Warm Climate | ADG4: 0 | ADH4: (1=Yes, 0=No) | ADM4: Tank Name | ADO4: Enter Tank Name | ADR4: Must Chill Start Date | ADW4: Cold Settling/Soak Start Date | AEB4: Warm Climate | AEC4: 0 | AED4: (1=Yes, 0=No) | AEI4: Tank Name | AEK4: Enter Tank Name | AEN4: Must Chill Start Date | AES4: Cold Settling/Soak Start Date | AEX4: Warm Climate | AEY4: 0 | AEZ4: (1=Yes, 0=No) | AFE4: Tank Name | AFG4: Enter Tank Name | AFJ4: Must Chill Start Date | AFO4: Cold Settling/Soak Start Date | AFT4: Warm Climate | AFU4: 0 | AFV4: (1=Yes, 0=No) | AGA4: Tank Name | AGC4: Enter Tank Name | AGF4: Must Chill Start Date | AGK4: Cold Settling/Soak Start Date | AGP4: Warm Climate | AGQ4: 0 | AGR4: (1=Yes, 0=No) | AGW4: Tank Name | AGY4: Enter Tank Name | AHB4: Must Chill Start Date | AHG4: Cold Settling/Soak Start Date | AHL4: Warm Climate | AHM4: 0 | AHN4: (1=Yes, 0=No) | AHS4: Tank Name | AHU4: Enter Tank Name | AHX4: Must Chill Start Date | AIC4: Cold Settling/Soak Start Date | AIH4: Warm Climate | AII4: 0 | AIJ4: (1=Yes, 0=No) | AIO4: Tank Name | AIQ4: Enter Tank Name | AIT4: Must Chill Start Date | AIY4: Cold Settling/Soak Start Date | AJD4: Warm Climate | AJE4: 0 | AJF4: (1=Yes, 0=No) | AJK4: Tank Name | AJM4: Enter Tank Name | AJP4: Must Chill Start Date | AJU4: Cold Settling/Soak Start Date | AJZ4: Warm Climate | AKA4: 0 | AKB4: (1=Yes, 0=No) | AKG4: Tank Name | AKI4: Enter Tank Name | AKL4: Must Chill Start Date | AKQ4: Cold Settling/Soak Start Date | AKV4: Warm Climate | AKW4: 0 | AKX4: (1=Yes, 0=No) | ALC4: Tank Name | ALE4: Enter Tank Name | ALH4: Must Chill Start Date | ALM4: Cold Settling/Soak Start Date | ALR4: Warm Climate | ALS4: 0 | ALT4: (1=Yes, 0=No) | ALY4: Tank Name | AMA4: Enter Tank Name | AMD4: Must Chill Start Date | AMI4: Cold Settling/Soak Start Date | AMN4: Warm Climate | AMO4: 0 | AMP4: (1=Yes, 0=No) | AMU4: Tank Name | AMW4: Enter Tank Name | AMZ4: Must Chill Start Date | ANE4: Cold Settling/Soak Start Date | ANJ4: Warm Climate | ANK4: 0 | ANL4: (1=Yes, 0=No) | ANQ4: Tank Name | ANS4: Enter Tank Name | ANV4: Must Chill Start Date | AOA4: Cold Settling/Soak Start Date | AOF4: Warm Climate | AOG4: 0 | AOH4: (1=Yes, 0=No) | AOM4: Tank Name | AOO4: Enter Tank Name | AOR4: Must Chill Start Date | AOW4: Cold Settling/Soak Start Date | APB4: Warm Climate | APC4: 0 | APD4: (1=Yes, 0=No) | API4: Tank Name | APK4: Enter Tank Name | APN4: Must Chill Start Date | APS4: Cold Settling/Soak Start Date | APX4: Warm Climate | APY4: 0 | APZ4: (1=Yes, 0=No) | AQE4: Tank Name | AQG4: Enter Tank Name | AQJ4: Must Chill Start Date | AQO4: Cold Settling/Soak Start Date | AQT4: Warm Climate | AQU4: 0 | AQV4: (1=Yes, 0=No) | ARA4: Tank Name | ARC4: Enter Tank Name | ARF4: Must Chill Start Date | ARK4: Cold Settling/Soak Start Date | ARP4: Warm Climate | ARQ4: 0 | ARR4: (1=Yes, 0=No) | ARW4: Tank Name | ARY4: Enter Tank Name | ASB4: Must Chill Start Date | ASG4: Cold Settling/Soak Start Date | ASL4: Warm Climate | ASM4: 0 | ASN4: (1=Yes, 0=No) | ASS4: Tank Name | ASU4: Enter Tank Name | ASX4: Must Chill Start Date | ATC4: Cold Settling/Soak Start Date | ATH4: Warm Climate | ATI4: 0 | ATJ4: (1=Yes, 0=No) | ATO4: Tank Name | ATQ4: Enter Tank Name | ATT4: Must Chill Start Date | ATY4: Cold Settling/Soak Start Date | AUD4: Warm Climate | AUE4: 0 | AUF4: (1=Yes, 0=No) | AUK4: Tank Name | AUM4: Enter Tank Name | AUP4: Must Chill Start Date | AUU4: Cold Settling/Soak Start Date | AUZ4: Warm Climate | AVA4: 0 | AVB4: (1=Yes, 0=No) | AVG4: Tank Name | AVI4: Enter Tank Name | AVL4: Must Chill Start Date | AVQ4: Cold Settling/Soak Start Date | AVV4: Warm Climate | AVW4: 0 | AVX4: (1=Yes, 0=No) | AWC4: Tank Name | AWE4: Enter Tank Name | AWH4: Must Chill Start Date | AWM4: Cold Settling/Soak Start Date | AWR4: Warm Climate | AWS4: 0 | AWT4: (1=Yes, 0=No) | AWY4: Tank Name | AXA4: Enter Tank Name | AXD4: Must Chill Start Date | AXI4: Cold Settling/Soak Start Date | AXN4: Warm Climate | AXO4: 0 | AXP4: (1=Yes, 0=No) | AXU4: Tank Name | AXW4: Enter Tank Name | AXZ4: Must Chill Start Date | AYE4: Cold Settling/Soak Start Date | AYJ4: Warm Climate | AYK4: 0 | AYL4: (1=Yes, 0=No) | AYQ4: Tank Name | AYS4: Enter Tank Name | AYV4: Must Chill Start Date | AZA4: Cold Settling/Soak Start Date | AZF4: Warm Climate | AZG4: 0 | AZH4: (1=Yes, 0=No) | AZM4: Tank Name | AZO4: Enter Tank Name | AZR4: Must Chill Start Date | AZW4: Cold Settling/Soak Start Date | BAB4: Warm Climate | BAC4: 0 | BAD4: (1=Yes, 0=No) | BAI4: Tank Name | BAK4: Enter Tank Name | BAN4: Must Chill Start Date | BAS4: Cold Settling/Soak Start Date | BAX4: Warm Climate | BAY4: 0 | BAZ4: (1=Yes, 0=No) | BBE4: Tank Name | BBG4: Enter Tank Name | BBJ4: Must Chill Start Date | BBO4: Cold Settling/Soak Start Date | BBT4: Warm Climate | BBU4: 0 | BBV4: (1=Yes, 0=No) | BCA4: Tank Name | BCC4: Enter Tank Name | BCF4: Must Chill Start Date | BCK4: Cold Settling/Soak Start Date | BCP4: Warm Climate | BCQ4: 0 | BCR4: (1=Yes, 0=No) | BCW4: Tank Name | BCY4: Enter Tank Name | BDB4: Must Chill Start Date | BDG4: Cold Settling/Soak Start Date | BDL4: Warm Climate | BDM4: 0 | BDN4: (1=Yes, 0=No) | BDS4: Tank Name | BDU4: Enter Tank Name | BDX4: Must Chill Start Date | BEC4: Cold Settling/Soak Start Date | BEH4: Warm Climate | BEI4: 0 | BEJ4: (1=Yes, 0=No) | BEO4: Tank Name | BEQ4: Enter Tank Name | BET4: Must Chill Start Date | BEY4: Cold Settling/Soak Start Date | BFD4: Warm Climate | BFE4: 0 | BFF4: (1=Yes, 0=No) | BFK4: Tank Name | BFM4: Enter Tank Name | BFP4: Must Chill Start Date | BFU4: Cold Settling/Soak Start Date | BFZ4: Warm Climate | BGA4: 0 | BGB4: (1=Yes, 0=No) | BGG4: Tank Name | BGI4: Enter Tank Name | BGL4: Must Chill Start Date | BGQ4: Cold Settling/Soak Start Date | BGV4: Warm Climate | BGW4: 0 | BGX4: (1=Yes, 0=No) | BHC4: Tank Name | BHE4: Enter Tank Name | BHH4: Must Chill Start Date | BHM4: Cold Settling/Soak Start Date | BHR4: Warm Climate | BHS4: 0 | BHT4: (1=Yes, 0=No) | BHY4: Tank Name | BIA4: Enter Tank Name | BID4: Must Chill Start Date | BII4: Cold Settling/Soak Start Date | BIN4: Warm Climate | BIO4: 0 | BIP4: (1=Yes, 0=No) | BIU4: Tank Name | BIW4: Enter Tank Name | BIZ4: Must Chill Start Date | BJE4: Cold Settling/Soak Start Date | BJJ4: Warm Climate | BJK4: 0 | BJL4: (1=Yes, 0=No) | BJQ4: Tank Name | BJS4: Enter Tank Name | BJV4: Must Chill Start Date | BKA4: Cold Settling/Soak Start Date | BKF4: Warm Climate | BKG4: 0 | BKH4: (1=Yes, 0=No) | BKM4: Tank Name | BKO4: Enter Tank Name | BKR4: Must Chill Start Date | BKW4: Cold Settling/Soak Start Date | BLB4: Warm Climate | BLC4: 0 | BLD4: (1=Yes, 0=No) | BLI4: Tank Name | BLK4: Enter Tank Name | BLN4: Must Chill Start Date | BLS4: Cold Settling/Soak Start Date | BLX4: Warm Climate | BLY4: 0 | BLZ4: (1=Yes, 0=No) | BME4: Tank Name | BMG4: Enter Tank Name | BMJ4: Must Chill Start Date | BMO4: Cold Settling/Soak Start Date | BMT4: Warm Climate | BMU4: 0 | BMV4: (1=Yes, 0=No) | BNA4: Tank Name | BNC4: Enter Tank Name | BNF4: Must Chill Start Date | BNK4: Cold Settling/Soak Start Date | BNP4: Warm Climate | BNQ4: 0 | BNR4: (1=Yes, 0=No) | BNW4: Tank Name | BNY4: Enter Tank Name | BOB4: Must Chill Start Date | BOG4: Cold Settling/Soak Start Date | BOL4: Warm Climate | BOM4: 0 | BON4: (1=Yes, 0=No) | BOS4: Tank Name | BOU4: Enter Tank Name | BOX4: Must Chill Start Date | BPC4: Cold Settling/Soak Start Date | BPH4: Warm Climate | BPI4: 0 | BPJ4: (1=Yes, 0=No) | BPO4: Tank Name | BPQ4: Enter Tank Name | BPT4: Must Chill Start Date | BPY4: Cold Settling/Soak Start Date | BQD4: Warm Climate | BQE4: 0 | BQF4: (1=Yes, 0=No) | BQK4: Tank Name | BQM4: Enter Tank Name | BQP4: Must Chill Start Date | BQU4: Cold Settling/Soak Start Date | BQZ4: Warm Climate | BRA4: 0 | BRB4: (1=Yes, 0=No) | BRG4: Tank Name | BRI4: Enter Tank Name | BRL4: Must Chill Start Date | BRQ4: Cold Settling/Soak Start Date | BRV4: Warm Climate | BRW4: 0 | BRX4: (1=Yes, 0=No) | BSC4: Tank Name | BSE4: Enter Tank Name | BSH4: Must Chill Start Date | BSM4: Cold Settling/Soak Start Date | BSR4: Warm Climate | BSS4: 0 | BST4: (1=Yes, 0=No) | BSY4: Tank Name | BTA4: Enter Tank Name | BTD4: Must Chill Start Date | BTI4: Cold Settling/Soak Start Date | BTN4: Warm Climate | BTO4: 0 | BTP4: (1=Yes, 0=No) | BTU4: Tank Name | BTW4: Enter Tank Name | BTZ4: Must Chill Start Date | BUE4: Cold Settling/Soak Start Date | BUJ4: Warm Climate | BUK4: 0 | BUL4: (1=Yes, 0=No) | BUQ4: Tank Name | BUS4: Enter Tank Name | BUV4: Must Chill Start Date | BVA4: Cold Settling/Soak Start Date | BVF4: Warm Climate | BVG4: 0 | BVH4: (1=Yes, 0=No) | BVM4: Tank Name | BVO4: Enter Tank Name | BVR4: Must Chill Start Date | BVW4: Cold Settling/Soak Start Date | BWB4: Warm Climate | BWC4: 0 | BWD4: (1=Yes, 0=No) | BWI4: Tank Name | BWK4: Enter Tank Name | BWN4: Must Chill Start Date | BWS4: Cold Settling/Soak Start Date | BWX4: Warm Climate | BWY4: 0 | BWZ4: (1=Yes, 0=No) | BXE4: Tank Name | BXG4: Enter Tank Name | BXJ4: Must Chill Start Date | BXO4: Cold Settling/Soak Start Date | BXT4: Warm Climate | BXU4: 0 | BXV4: (1=Yes, 0=No) | BYA4: Tank Name | BYC4: Enter Tank Name | BYF4: Must Chill Start Date | BYK4: Cold Settling/Soak Start Date | BYP4: Warm Climate | BYQ4: 0 | BYR4: (1=Yes, 0=No) | BYW4: Tank Name | BYY4: Enter Tank Name | BZB4: Must Chill Start Date | BZG4: Cold Settling/Soak Start Date | BZL4: Warm Climate | BZM4: 0 | BZN4: (1=Yes, 0=No) | BZS4: Tank Name | BZU4: Enter Tank Name | BZX4: Must Chill Start Date | CAC4: Cold Settling/Soak Start Date | CAH4: Warm Climate | CAI4: 0 | CAJ4: (1=Yes, 0=No) | CAO4: Tank Name | CAQ4: Enter Tank Name | CAT4: Must Chill Start Date | CAY4: Cold Settling/Soak Start Date | CBD4: Warm Climate | CBE4: 0 | CBF4: (1=Yes, 0=No) | CBK4: Tank Name | CBM4: Enter Tank Name | CBP4: Must Chill Start Date | CBU4: Cold Settling/Soak Start Date | CBZ4: Warm Climate | CCA4: 0 | CCB4: (1=Yes, 0=No) | CCG4: Tank Name | CCI4: Enter Tank Name | CCL4: Must Chill Start Date | CCQ4: Cold Settling/Soak Start Date | CCV4: Warm Climate | CCW4: 0 | CCX4: (1=Yes, 0=No) | CDC4: Tank Name | CDE4: Enter Tank Name | CDH4: Must Chill Start Date | CDM4: Cold Settling/Soak Start Date | CDR4: Warm Climate | CDS4: 0 | CDT4: (1=Yes, 0=No) | CDY4: Tank Name | CEA4: Enter Tank Name | CED4: Must Chill Start Date | CEI4: Cold Settling/Soak Start Date | CEN4: Warm Climate | CEO4: 0 | CEP4: (1=Yes, 0=No) | CEU4: Tank Name | CEW4: Enter Tank Name | CEZ4: Must Chill Start Date | CFE4: Cold Settling/Soak Start Date | CFJ4: Warm Climate | CFK4: 0 | CFL4: (1=Yes, 0=No)
A5: Start Date | C5: 2012-03-10 | F5: Must Chill Start Time | H5: 10:00:00 | K5: Cold Settling/Soak Start Time | M5: 10:00:00 | P5: Wild Ferment | Q5: 0 | R5: (1=Yes, 0=No) | W5: Start Date | Y5: 2012-03-09 | AB5: Must Chill Start Time | AD5: 10:00:00 | AG5: Cold Settling/Soak Start Time | AI5: 10:00:00 | AL5: Wild Ferment | AM5: 0 | AN5: (1=Yes, 0=No) | AS5: Start Date | AU5: 2012-03-09 | AX5: Must Chill Start Time | AZ5: 10:00:00 | BC5: Cold Settling/Soak Start Time | BE5: 10:00:00 | BH5: Wild Ferment | BI5: 0 | BJ5: (1=Yes, 0=No) | BO5: Start Date | BQ5: 2012-03-09 | BT5: Must Chill Start Time | BY5: Cold Settling/Soak Start Time | CD5: Wild Ferment | CE5: 0 | CF5: (1=Yes, 0=No) | CK5: Start Date | CM5: 2012-03-08 | CP5: Must Chill Start Time | CU5: Cold Settling/Soak Start Time | CZ5: Wild Ferment | DA5: 0 | DB5: (1=Yes, 0=No) | DG5: Start Date | DI5: 2012-03-11 | DL5: Must Chill Start Time | DQ5: Cold Settling/Soak Start Time | DV5: Wild Ferment | DW5: 0 | DX5: (1=Yes, 0=No) | EC5: Start Date | EE5: 2012-03-10 | EH5: Must Chill Start Time | EM5: Cold Settling/Soak Start Time | ER5: Wild Ferment | ES5: 0 | ET5: (1=Yes, 0=No) | EY5: Start Date | FA5: 2012-03-08 | FD5: Must Chill Start Time | FI5: Cold Settling/Soak Start Time | FN5: Wild Ferment | FO5: 0 | FP5: (1=Yes, 0=No) | FU5: Start Date | FW5: 2012-03-09 | FZ5: Must Chill Start Time | GE5: Cold Settling/Soak Start Time | GJ5: Wild Ferment | GK5: 0 | GL5: (1=Yes, 0=No) | GQ5: Start Date | GS5: 2012-03-09 | GV5: Must Chill Start Time | HA5: Cold Settling/Soak Start Time | HF5: Wild Ferment | HG5: 0 | HH5: (1=Yes, 0=No) | HM5: Start Date | HO5: 2012-03-09 | HR5: Must Chill Start Time | HW5: Cold Settling/Soak Start Time | IB5: Wild Ferment | IC5: 0 | ID5: (1=Yes, 0=No) | II5: Start Date | IK5: 2012-03-08 | IN5: Must Chill Start Time | IS5: Cold Settling/Soak Start Time | IX5: Wild Ferment | IY5: 0 | IZ5: (1=Yes, 0=No) | JE5: Start Date | JG5: 2012-03-11 | JJ5: Must Chill Start Time | JO5: Cold Settling/Soak Start Time | JT5: Wild Ferment | JU5: 0 | JV5: (1=Yes, 0=No) | KA5: Start Date | KC5: 2012-03-12 | KF5: Must Chill Start Time | KK5: Cold Settling/Soak Start Time | KP5: Wild Ferment | KQ5: 0 | KR5: (1=Yes, 0=No) | KW5: Start Date | KY5: 2012-03-10 | LB5: Must Chill Start Time | LG5: Cold Settling/Soak Start Time | LL5: Wild Ferment | LM5: 0 | LN5: (1=Yes, 0=No) | LS5: Start Date | LU5: 2012-03-11 | LX5: Must Chill Start Time | MC5: Cold Settling/Soak Start Time | MH5: Wild Ferment | MI5: 0 | MJ5: (1=Yes, 0=No) | MO5: Start Date | MQ5: 2012-03-07 | MT5: Must Chill Start Time | MY5: Cold Settling/Soak Start Time | ND5: Wild Ferment | NE5: 0 | NF5: (1=Yes, 0=No) | NK5: Start Date | NM5: 2012-03-10 | NP5: Must Chill Start Time | NU5: Cold Settling/Soak Start Time | NZ5: Wild Ferment | OA5: 0 | OB5: (1=Yes, 0=No) | OG5: Start Date | OI5: 2012-03-08 | OL5: Must Chill Start Time | OQ5: Cold Settling/Soak Start Time | OV5: Wild Ferment | OW5: 0 | OX5: (1=Yes, 0=No) | PC5: Start Date | PE5: 2012-03-07 | PH5: Must Chill Start Time | PM5: Cold Settling/Soak Start Time | PR5: Wild Ferment | PS5: 0 | PT5: (1=Yes, 0=No) | PY5: Start Date | QA5: 2012-03-10 | QD5: Must Chill Start Time | QI5: Cold Settling/Soak Start Time | QN5: Wild Ferment | QO5: 0 | QP5: (1=Yes, 0=No) | QU5: Start Date | QW5: 2012-03-09 | QZ5: Must Chill Start Time | RE5: Cold Settling/Soak Start Time | RJ5: Wild Ferment | RK5: 0 | RL5: (1=Yes, 0=No) | RQ5: Start Date | RS5: 2012-03-09 | RV5: Must Chill Start Time | SA5: Cold Settling/Soak Start Time | SF5: Wild Ferment | SG5: 0 | SH5: (1=Yes, 0=No) | SM5: Start Date | SO5: 2012-03-09 | SR5: Must Chill Start Time | SW5: Cold Settling/Soak Start Time | TB5: Wild Ferment | TC5: 0 | TD5: (1=Yes, 0=No) | TI5: Start Date | TK5: 2012-03-08 | TN5: Must Chill Start Time | TS5: Cold Settling/Soak Start Time | TX5: Wild Ferment | TY5: 0 | TZ5: (1=Yes, 0=No) | UE5: Start Date | UG5: 2012-03-11 | UJ5: Must Chill Start Time | UO5: Cold Settling/Soak Start Time | UT5: Wild Ferment | UU5: 0 | UV5: (1=Yes, 0=No) | VA5: Start Date | VC5: 2012-03-10 | VF5: Must Chill Start Time | VK5: Cold Settling/Soak Start Time | VP5: Wild Ferment | VQ5: 0 | VR5: (1=Yes, 0=No) | VW5: Start Date | VY5: 2012-03-08 | WB5: Must Chill Start Time | WG5: Cold Settling/Soak Start Time | WL5: Wild Ferment | WM5: 0 | WN5: (1=Yes, 0=No) | WS5: Start Date | WU5: 2012-03-09 | WX5: Must Chill Start Time | XC5: Cold Settling/Soak Start Time | XH5: Wild Ferment | XI5: 0 | XJ5: (1=Yes, 0=No) | XO5: Start Date | XQ5: 2012-03-09 | XT5: Must Chill Start Time | XY5: Cold Settling/Soak Start Time | YD5: Wild Ferment | YE5: 0 | YF5: (1=Yes, 0=No) | YK5: Start Date | YM5: 2012-03-09 | YP5: Must Chill Start Time | YU5: Cold Settling/Soak Start Time | YZ5: Wild Ferment | ZA5: 0 | ZB5: (1=Yes, 0=No) | ZG5: Start Date | ZI5: 2012-03-08 | ZL5: Must Chill Start Time | ZQ5: Cold Settling/Soak Start Time | ZV5: Wild Ferment | ZW5: 0 | ZX5: (1=Yes, 0=No) | AAC5: Start Date | AAE5: 2012-03-11 | AAH5: Must Chill Start Time | AAM5: Cold Settling/Soak Start Time | AAR5: Wild Ferment | AAS5: 0 | AAT5: (1=Yes, 0=No) | AAY5: Start Date | ABA5: 2012-03-12 | ABD5: Must Chill Start Time | ABI5: Cold Settling/Soak Start Time | ABN5: Wild Ferment | ABO5: 0 | ABP5: (1=Yes, 0=No) | ABU5: Start Date | ABW5: 2012-03-10 | ABZ5: Must Chill Start Time | ACE5: Cold Settling/Soak Start Time | ACJ5: Wild Ferment | ACK5: 0 | ACL5: (1=Yes, 0=No) | ACQ5: Start Date | ACS5: 2012-03-11 | ACV5: Must Chill Start Time | ADA5: Cold Settling/Soak Start Time | ADF5: Wild Ferment | ADG5: 0 | ADH5: (1=Yes, 0=No) | ADM5: Start Date | ADO5: 2012-03-07 | ADR5: Must Chill Start Time | ADW5: Cold Settling/Soak Start Time | AEB5: Wild Ferment | AEC5: 0 | AED5: (1=Yes, 0=No) | AEI5: Start Date | AEK5: 2012-03-10 | AEN5: Must Chill Start Time | AES5: Cold Settling/Soak Start Time | AEX5: Wild Ferment | AEY5: 0 | AEZ5: (1=Yes, 0=No) | AFE5: Start Date | AFG5: 2012-03-08 | AFJ5: Must Chill Start Time | AFO5: Cold Settling/Soak Start Time | AFT5: Wild Ferment | AFU5: 0 | AFV5: (1=Yes, 0=No) | AGA5: Start Date | AGC5: 2012-03-07 | AGF5: Must Chill Start Time | AGK5: Cold Settling/Soak Start Time | AGP5: Wild Ferment | AGQ5: 0 | AGR5: (1=Yes, 0=No) | AGW5: Start Date | AGY5: 2012-03-10 | AHB5: Must Chill Start Time | AHG5: Cold Settling/Soak Start Time | AHL5: Wild Ferment | AHM5: 0 | AHN5: (1=Yes, 0=No) | AHS5: Start Date | AHU5: 2012-03-09 | AHX5: Must Chill Start Time | AIC5: Cold Settling/Soak Start Time | AIH5: Wild Ferment | AII5: 0 | AIJ5: (1=Yes, 0=No) | AIO5: Start Date | AIQ5: 2012-03-09 | AIT5: Must Chill Start Time | AIY5: Cold Settling/Soak Start Time | AJD5: Wild Ferment | AJE5: 0 | AJF5: (1=Yes, 0=No) | AJK5: Start Date | AJM5: 2012-03-09 | AJP5: Must Chill Start Time | AJU5: Cold Settling/Soak Start Time | AJZ5: Wild Ferment | AKA5: 0 | AKB5: (1=Yes, 0=No) | AKG5: Start Date | AKI5: 2012-03-08 | AKL5: Must Chill Start Time | AKQ5: Cold Settling/Soak Start Time | AKV5: Wild Ferment | AKW5: 0 | AKX5: (1=Yes, 0=No) | ALC5: Start Date | ALE5: 2012-03-11 | ALH5: Must Chill Start Time | ALM5: Cold Settling/Soak Start Time | ALR5: Wild Ferment | ALS5: 0 | ALT5: (1=Yes, 0=No) | ALY5: Start Date | AMA5: 2012-03-10 | AMD5: Must Chill Start Time | AMI5: Cold Settling/Soak Start Time | AMN5: Wild Ferment | AMO5: 0 | AMP5: (1=Yes, 0=No) | AMU5: Start Date | AMW5: 2012-03-08 | AMZ5: Must Chill Start Time | ANE5: Cold Settling/Soak Start Time | ANJ5: Wild Ferment | ANK5: 0 | ANL5: (1=Yes, 0=No) | ANQ5: Start Date | ANS5: 2012-03-09 | ANV5: Must Chill Start Time | AOA5: Cold Settling/Soak Start Time | AOF5: Wild Ferment | AOG5: 0 | AOH5: (1=Yes, 0=No) | AOM5: Start Date | AOO5: 2012-03-09 | AOR5: Must Chill Start Time | AOW5: Cold Settling/Soak Start Time | APB5: Wild Ferment | APC5: 0 | APD5: (1=Yes, 0=No) | API5: Start Date | APK5: 2012-03-09 | APN5: Must Chill Start Time | APS5: Cold Settling/Soak Start Time | APX5: Wild Ferment | APY5: 0 | APZ5: (1=Yes, 0=No) | AQE5: Start Date | AQG5: 2012-03-08 | AQJ5: Must Chill Start Time | AQO5: Cold Settling/Soak Start Time | AQT5: Wild Ferment | AQU5: 0 | AQV5: (1=Yes, 0=No) | ARA5: Start Date | ARC5: 2012-03-11 | ARF5: Must Chill Start Time | ARK5: Cold Settling/Soak Start Time | ARP5: Wild Ferment | ARQ5: 0 | ARR5: (1=Yes, 0=No) | ARW5: Start Date | ARY5: 2012-03-12 | ASB5: Must Chill Start Time | ASG5: Cold Settling/Soak Start Time | ASL5: Wild Ferment | ASM5: 0 | ASN5: (1=Yes, 0=No) | ASS5: Start Date | ASU5: 2012-03-10 | ASX5: Must Chill Start Time | ATC5: Cold Settling/Soak Start Time | ATH5: Wild Ferment | ATI5: 0 | ATJ5: (1=Yes, 0=No) | ATO5: Start Date | ATQ5: 2012-03-11 | ATT5: Must Chill Start Time | ATY5: Cold Settling/Soak Start Time | AUD5: Wild Ferment | AUE5: 0 | AUF5: (1=Yes, 0=No) | AUK5: Start Date | AUM5: 2012-03-07 | AUP5: Must Chill Start Time | AUU5: Cold Settling/Soak Start Time | AUZ5: Wild Ferment | AVA5: 0 | AVB5: (1=Yes, 0=No) | AVG5: Start Date | AVI5: 2012-03-10 | AVL5: Must Chill Start Time | AVQ5: Cold Settling/Soak Start Time | AVV5: Wild Ferment | AVW5: 0 | AVX5: (1=Yes, 0=No) | AWC5: Start Date | AWE5: 2012-03-08 | AWH5: Must Chill Start Time | AWM5: Cold Settling/Soak Start Time | AWR5: Wild Ferment | AWS5: 0 | AWT5: (1=Yes, 0=No) | AWY5: Start Date | AXA5: 2012-03-07 | AXD5: Must Chill Start Time | AXI5: Cold Settling/Soak Start Time | AXN5: Wild Ferment | AXO5: 0 | AXP5: (1=Yes, 0=No) | AXU5: Start Date | AXW5: 2012-03-10 | AXZ5: Must Chill Start Time | AYE5: Cold Settling/Soak Start Time | AYJ5: Wild Ferment | AYK5: 0 | AYL5: (1=Yes, 0=No) | AYQ5: Start Date | AYS5: 2012-03-09 | AYV5: Must Chill Start Time | AZA5: Cold Settling/Soak Start Time | AZF5: Wild Ferment | AZG5: 0 | AZH5: (1=Yes, 0=No) | AZM5: Start Date | AZO5: 2012-03-09 | AZR5: Must Chill Start Time | AZW5: Cold Settling/Soak Start Time | BAB5: Wild Ferment | BAC5: 0 | BAD5: (1=Yes, 0=No) | BAI5: Start Date | BAK5: 2012-03-09 | BAN5: Must Chill Start Time | BAS5: Cold Settling/Soak Start Time | BAX5: Wild Ferment | BAY5: 0 | BAZ5: (1=Yes, 0=No) | BBE5: Start Date | BBG5: 2012-03-08 | BBJ5: Must Chill Start Time | BBO5: Cold Settling/Soak Start Time | BBT5: Wild Ferment | BBU5: 0 | BBV5: (1=Yes, 0=No) | BCA5: Start Date | BCC5: 2012-03-11 | BCF5: Must Chill Start Time | BCK5: Cold Settling/Soak Start Time | BCP5: Wild Ferment | BCQ5: 0 | BCR5: (1=Yes, 0=No) | BCW5: Start Date | BCY5: 2012-03-10 | BDB5: Must Chill Start Time | BDG5: Cold Settling/Soak Start Time | BDL5: Wild Ferment | BDM5: 0 | BDN5: (1=Yes, 0=No) | BDS5: Start Date | BDU5: 2012-03-08 | BDX5: Must Chill Start Time | BEC5: Cold Settling/Soak Start Time | BEH5: Wild Ferment | BEI5: 0 | BEJ5: (1=Yes, 0=No) | BEO5: Start Date | BEQ5: 2012-03-09 | BET5: Must Chill Start Time | BEY5: Cold Settling/Soak Start Time | BFD5: Wild Ferment | BFE5: 0 | BFF5: (1=Yes, 0=No) | BFK5: Start Date | BFM5: 2012-03-09 | BFP5: Must Chill Start Time | BFU5: Cold Settling/Soak Start Time | BFZ5: Wild Ferment | BGA5: 0 | BGB5: (1=Yes, 0=No) | BGG5: Start Date | BGI5: 2012-03-09 | BGL5: Must Chill Start Time | BGQ5: Cold Settling/Soak Start Time | BGV5: Wild Ferment | BGW5: 0 | BGX5: (1=Yes, 0=No) | BHC5: Start Date | BHE5: 2012-03-08 | BHH5: Must Chill Start Time | BHM5: Cold Settling/Soak Start Time | BHR5: Wild Ferment | BHS5: 0 | BHT5: (1=Yes, 0=No) | BHY5: Start Date | BIA5: 2012-03-11 | BID5: Must Chill Start Time | BII5: Cold Settling/Soak Start Time | BIN5: Wild Ferment | BIO5: 0 | BIP5: (1=Yes, 0=No) | BIU5: Start Date | BIW5: 2012-03-12 | BIZ5: Must Chill Start Time | BJE5: Cold Settling/Soak Start Time | BJJ5: Wild Ferment | BJK5: 0 | BJL5: (1=Yes, 0=No) | BJQ5: Start Date | BJS5: 2012-03-10 | BJV5: Must Chill Start Time | BKA5: Cold Settling/Soak Start Time | BKF5: Wild Ferment | BKG5: 0 | BKH5: (1=Yes, 0=No) | BKM5: Start Date | BKO5: 2012-03-11 | BKR5: Must Chill Start Time | BKW5: Cold Settling/Soak Start Time | BLB5: Wild Ferment | BLC5: 0 | BLD5: (1=Yes, 0=No) | BLI5: Start Date | BLK5: 2012-03-07 | BLN5: Must Chill Start Time | BLS5: Cold Settling/Soak Start Time | BLX5: Wild Ferment | BLY5: 0 | BLZ5: (1=Yes, 0=No) | BME5: Start Date | BMG5: 2012-03-10 | BMJ5: Must Chill Start Time | BMO5: Cold Settling/Soak Start Time | BMT5: Wild Ferment | BMU5: 0 | BMV5: (1=Yes, 0=No) | BNA5: Start Date | BNC5: 2012-03-08 | BNF5: Must Chill Start Time | BNK5: Cold Settling/Soak Start Time | BNP5: Wild Ferment | BNQ5: 0 | BNR5: (1=Yes, 0=No) | BNW5: Start Date | BNY5: 2012-03-07 | BOB5: Must Chill Start Time | BOG5: Cold Settling/Soak Start Time | BOL5: Wild Ferment | BOM5: 0 | BON5: (1=Yes, 0=No) | BOS5: Start Date | BOU5: 2012-03-10 | BOX5: Must Chill Start Time | BPC5: Cold Settling/Soak Start Time | BPH5: Wild Ferment | BPI5: 0 | BPJ5: (1=Yes, 0=No) | BPO5: Start Date | BPQ5: 2012-03-09 | BPT5: Must Chill Start Time | BPY5: Cold Settling/Soak Start Time | BQD5: Wild Ferment | BQE5: 0 | BQF5: (1=Yes, 0=No) | BQK5: Start Date | BQM5: 2012-03-09 | BQP5: Must Chill Start Time | BQU5: Cold Settling/Soak Start Time | BQZ5: Wild Ferment | BRA5: 0 | BRB5: (1=Yes, 0=No) | BRG5: Start Date | BRI5: 2012-03-09 | BRL5: Must Chill Start Time | BRQ5: Cold Settling/Soak Start Time | BRV5: Wild Ferment | BRW5: 0 | BRX5: (1=Yes, 0=No) | BSC5: Start Date | BSE5: 2012-03-08 | BSH5: Must Chill Start Time | BSM5: Cold Settling/Soak Start Time | BSR5: Wild Ferment | BSS5: 0 | BST5: (1=Yes, 0=No) | BSY5: Start Date | BTA5: 2012-03-11 | BTD5: Must Chill Start Time | BTI5: Cold Settling/Soak Start Time | BTN5: Wild Ferment | BTO5: 0 | BTP5: (1=Yes, 0=No) | BTU5: Start Date | BTW5: 2012-03-10 | BTZ5: Must Chill Start Time | BUE5: Cold Settling/Soak Start Time | BUJ5: Wild Ferment | BUK5: 0 | BUL5: (1=Yes, 0=No) | BUQ5: Start Date | BUS5: 2012-03-08 | BUV5: Must Chill Start Time | BVA5: Cold Settling/Soak Start Time | BVF5: Wild Ferment | BVG5: 0 | BVH5: (1=Yes, 0=No) | BVM5: Start Date | BVO5: 2012-03-09 | BVR5: Must Chill Start Time | BVW5: Cold Settling/Soak Start Time | BWB5: Wild Ferment | BWC5: 0 | BWD5: (1=Yes, 0=No) | BWI5: Start Date | BWK5: 2012-03-09 | BWN5: Must Chill Start Time | BWS5: Cold Settling/Soak Start Time | BWX5: Wild Ferment | BWY5: 0 | BWZ5: (1=Yes, 0=No) | BXE5: Start Date | BXG5: 2012-03-09 | BXJ5: Must Chill Start Time | BXO5: Cold Settling/Soak Start Time | BXT5: Wild Ferment | BXU5: 0 | BXV5: (1=Yes, 0=No) | BYA5: Start Date | BYC5: 2012-03-08 | BYF5: Must Chill Start Time | BYK5: Cold Settling/Soak Start Time | BYP5: Wild Ferment | BYQ5: 0 | BYR5: (1=Yes, 0=No) | BYW5: Start Date | BYY5: 2012-03-11 | BZB5: Must Chill Start Time | BZG5: Cold Settling/Soak Start Time | BZL5: Wild Ferment | BZM5: 0 | BZN5: (1=Yes, 0=No) | BZS5: Start Date | BZU5: 2012-03-12 | BZX5: Must Chill Start Time | CAC5: Cold Settling/Soak Start Time | CAH5: Wild Ferment | CAI5: 0 | CAJ5: (1=Yes, 0=No) | CAO5: Start Date | CAQ5: 2012-03-10 | CAT5: Must Chill Start Time | CAY5: Cold Settling/Soak Start Time | CBD5: Wild Ferment | CBE5: 0 | CBF5: (1=Yes, 0=No) | CBK5: Start Date | CBM5: 2012-03-11 | CBP5: Must Chill Start Time | CBU5: Cold Settling/Soak Start Time | CBZ5: Wild Ferment | CCA5: 0 | CCB5: (1=Yes, 0=No) | CCG5: Start Date | CCI5: 2012-03-07 | CCL5: Must Chill Start Time | CCQ5: Cold Settling/Soak Start Time | CCV5: Wild Ferment | CCW5: 0 | CCX5: (1=Yes, 0=No) | CDC5: Start Date | CDE5: 2012-03-10 | CDH5: Must Chill Start Time | CDM5: Cold Settling/Soak Start Time | CDR5: Wild Ferment | CDS5: 0 | CDT5: (1=Yes, 0=No) | CDY5: Start Date | CEA5: 2012-03-08 | CED5: Must Chill Start Time | CEI5: Cold Settling/Soak Start Time | CEN5: Wild Ferment | CEO5: 0 | CEP5: (1=Yes, 0=No) | CEU5: Start Date | CEW5: 2012-03-07 | CEZ5: Must Chill Start Time | CFE5: Cold Settling/Soak Start Time | CFJ5: Wild Ferment | CFK5: 0 | CFL5: (1=Yes, 0=No)
A6: Start Time | C6: 10:00:00 | F6: Time Step | H6: 3 | K6: Time Step | M6: 11 | W6: Start Time | Y6: 06:00:00 | AB6: Time Step | AD6: 3 | AG6: Time Step | AI6: 11 | AS6: Start Time | AU6: 13:00:00 | AX6: Time Step | AZ6: 3 | BC6: Time Step | BE6: 11 | BO6: Start Time | BQ6: 12:00:00 | BT6: Time Step | BV6: =(BV4-'Full Vintage Planner'!$C$8)*8+INT(BV5*8) -> -327272 | BY6: Time Step | CA6: =(CA4-'Full Vintage Planner'!$C$8)*8+INT(CA5*8) -> -327272 | CK6: Start Time | CM6: 07:00:00 | CP6: Time Step | CR6: =(CR4-'Full Vintage Planner'!$C$8)*8+INT(CR5*8) -> -327272 | CU6: Time Step | CW6: =(CW4-'Full Vintage Planner'!$C$8)*8+INT(CW5*8) -> -327272 | DG6: Start Time | DI6: 14:00:00 | DL6: Time Step | DN6: =(DN4-'Full Vintage Planner'!$C$8)*8+INT(DN5*8) -> -327272 | DQ6: Time Step | DS6: =(DS4-'Full Vintage Planner'!$C$8)*8+INT(DS5*8) -> -327272 | EC6: Start Time | EE6: 06:00:00 | EH6: Time Step | EJ6: =(EJ4-'Full Vintage Planner'!$C$8)*8+INT(EJ5*8) -> -327272 | EM6: Time Step | EO6: =(EO4-'Full Vintage Planner'!$C$8)*8+INT(EO5*8) -> -327272 | EY6: Start Time | FA6: 06:00:00 | FD6: Time Step | FF6: =(FF4-'Full Vintage Planner'!$C$8)*8+INT(FF5*8) -> -327272 | FI6: Time Step | FK6: =(FK4-'Full Vintage Planner'!$C$8)*8+INT(FK5*8) -> -327272 | FU6: Start Time | FW6: 18:00:00 | FZ6: Time Step | GB6: =(GB4-'Full Vintage Planner'!$C$8)*8+INT(GB5*8) -> -327272 | GE6: Time Step | GG6: =(GG4-'Full Vintage Planner'!$C$8)*8+INT(GG5*8) -> -327272 | GQ6: Start Time | GS6: 15:00:00 | GV6: Time Step | GX6: =(GX4-'Full Vintage Planner'!$C$8)*8+INT(GX5*8) -> -327272 | HA6: Time Step | HC6: =(HC4-'Full Vintage Planner'!$C$8)*8+INT(HC5*8) -> -327272 | HM6: Start Time | HO6: 06:00:00 | HR6: Time Step | HT6: =(HT4-'Full Vintage Planner'!$C$8)*8+INT(HT5*8) -> -327272 | HW6: Time Step | HY6: =(HY4-'Full Vintage Planner'!$C$8)*8+INT(HY5*8) -> -327272 | II6: Start Time | IK6: 12:00:00 | IN6: Time Step | IP6: =(IP4-'Full Vintage Planner'!$C$8)*8+INT(IP5*8) -> -327272 | IS6: Time Step | IU6: =(IU4-'Full Vintage Planner'!$C$8)*8+INT(IU5*8) -> -327272 | JE6: Start Time | JG6: 11:30:00 | JJ6: Time Step | JL6: =(JL4-'Full Vintage Planner'!$C$8)*8+INT(JL5*8) -> -327272 | JO6: Time Step | JQ6: =(JQ4-'Full Vintage Planner'!$C$8)*8+INT(JQ5*8) -> -327272 | KA6: Start Time | KC6: 06:00:00 | KF6: Time Step | KH6: =(KH4-'Full Vintage Planner'!$C$8)*8+INT(KH5*8) -> -327272 | KK6: Time Step | KM6: =(KM4-'Full Vintage Planner'!$C$8)*8+INT(KM5*8) -> -327272 | KW6: Start Time | KY6: 06:00:00 | LB6: Time Step | LD6: =(LD4-'Full Vintage Planner'!$C$8)*8+INT(LD5*8) -> -327272 | LG6: Time Step | LI6: =(LI4-'Full Vintage Planner'!$C$8)*8+INT(LI5*8) -> -327272 | LS6: Start Time | LU6: 08:00:00 | LX6: Time Step | LZ6: =(LZ4-'Full Vintage Planner'!$C$8)*8+INT(LZ5*8) -> -327272 | MC6: Time Step | ME6: =(ME4-'Full Vintage Planner'!$C$8)*8+INT(ME5*8) -> -327272 | MO6: Start Time | MQ6: 06:00:00 | MT6: Time Step | MV6: =(MV4-'Full Vintage Planner'!$C$8)*8+INT(MV5*8) -> -327272 | MY6: Time Step | NA6: =(NA4-'Full Vintage Planner'!$C$8)*8+INT(NA5*8) -> -327272 | NK6: Start Time | NM6: 06:00:00 | NP6: Time Step | NR6: =(NR4-'Full Vintage Planner'!$C$8)*8+INT(NR5*8) -> -327272 | NU6: Time Step | NW6: =(NW4-'Full Vintage Planner'!$C$8)*8+INT(NW5*8) -> -327272 | OG6: Start Time | OI6: 15:30:00 | OL6: Time Step | ON6: =(ON4-'Full Vintage Planner'!$C$8)*8+INT(ON5*8) -> -327272 | OQ6: Time Step | OS6: =(OS4-'Full Vintage Planner'!$C$8)*8+INT(OS5*8) -> -327272 | PC6: Start Time | PE6: 06:00:00 | PH6: Time Step | PJ6: =(PJ4-'Full Vintage Planner'!$C$8)*8+INT(PJ5*8) -> -327272 | PM6: Time Step | PO6: =(PO4-'Full Vintage Planner'!$C$8)*8+INT(PO5*8) -> -327272 | PY6: Start Time | QA6: 10:00:00 | QD6: Time Step | QF6: =(QF4-'Full Vintage Planner'!$C$8)*8+INT(QF5*8) -> -327272 | QI6: Time Step | QK6: =(QK4-'Full Vintage Planner'!$C$8)*8+INT(QK5*8) -> -327272 | QU6: Start Time | QW6: 06:00:00 | QZ6: Time Step | RB6: =(RB4-'Full Vintage Planner'!$C$8)*8+INT(RB5*8) -> -327272 | RE6: Time Step | RG6: =(RG4-'Full Vintage Planner'!$C$8)*8+INT(RG5*8) -> -327272 | RQ6: Start Time | RS6: 13:00:00 | RV6: Time Step | RX6: =(RX4-'Full Vintage Planner'!$C$8)*8+INT(RX5*8) -> -327272 | SA6: Time Step | SC6: =(SC4-'Full Vintage Planner'!$C$8)*8+INT(SC5*8) -> -327272 | SM6: Start Time | SO6: 12:00:00 | SR6: Time Step | ST6: =(ST4-'Full Vintage Planner'!$C$8)*8+INT(ST5*8) -> -327272 | SW6: Time Step | SY6: =(SY4-'Full Vintage Planner'!$C$8)*8+INT(SY5*8) -> -327272 | TI6: Start Time | TK6: 07:00:00 | TN6: Time Step | TP6: =(TP4-'Full Vintage Planner'!$C$8)*8+INT(TP5*8) -> -327272 | TS6: Time Step | TU6: =(TU4-'Full Vintage Planner'!$C$8)*8+INT(TU5*8) -> -327272 | UE6: Start Time | UG6: 14:00:00 | UJ6: Time Step | UL6: =(UL4-'Full Vintage Planner'!$C$8)*8+INT(UL5*8) -> -327272 | UO6: Time Step | UQ6: =(UQ4-'Full Vintage Planner'!$C$8)*8+INT(UQ5*8) -> -327272 | VA6: Start Time | VC6: 06:00:00 | VF6: Time Step | VH6: =(VH4-'Full Vintage Planner'!$C$8)*8+INT(VH5*8) -> -327272 | VK6: Time Step | VM6: =(VM4-'Full Vintage Planner'!$C$8)*8+INT(VM5*8) -> -327272 | VW6: Start Time | VY6: 06:00:00 | WB6: Time Step | WD6: =(WD4-'Full Vintage Planner'!$C$8)*8+INT(WD5*8) -> -327272 | WG6: Time Step | WI6: =(WI4-'Full Vintage Planner'!$C$8)*8+INT(WI5*8) -> -327272 | WS6: Start Time | WU6: 18:00:00 | WX6: Time Step | WZ6: =(WZ4-'Full Vintage Planner'!$C$8)*8+INT(WZ5*8) -> -327272 | XC6: Time Step | XE6: =(XE4-'Full Vintage Planner'!$C$8)*8+INT(XE5*8) -> -327272 | XO6: Start Time | XQ6: 15:00:00 | XT6: Time Step | XV6: =(XV4-'Full Vintage Planner'!$C$8)*8+INT(XV5*8) -> -327272 | XY6: Time Step | YA6: =(YA4-'Full Vintage Planner'!$C$8)*8+INT(YA5*8) -> -327272 | YK6: Start Time | YM6: 06:00:00 | YP6: Time Step | YR6: =(YR4-'Full Vintage Planner'!$C$8)*8+INT(YR5*8) -> -327272 | YU6: Time Step | YW6: =(YW4-'Full Vintage Planner'!$C$8)*8+INT(YW5*8) -> -327272 | ZG6: Start Time | ZI6: 12:00:00 | ZL6: Time Step | ZN6: =(ZN4-'Full Vintage Planner'!$C$8)*8+INT(ZN5*8) -> -327272 | ZQ6: Time Step | ZS6: =(ZS4-'Full Vintage Planner'!$C$8)*8+INT(ZS5*8) -> -327272 | AAC6: Start Time | AAE6: 11:30:00 | AAH6: Time Step | AAJ6: =(AAJ4-'Full Vintage Planner'!$C$8)*8+INT(AAJ5*8) -> -327272 | AAM6: Time Step | AAO6: =(AAO4-'Full Vintage Planner'!$C$8)*8+INT(AAO5*8) -> -327272 | AAY6: Start Time | ABA6: 06:00:00 | ABD6: Time Step | ABF6: =(ABF4-'Full Vintage Planner'!$C$8)*8+INT(ABF5*8) -> -327272 | ABI6: Time Step | ABK6: =(ABK4-'Full Vintage Planner'!$C$8)*8+INT(ABK5*8) -> -327272 | ABU6: Start Time | ABW6: 06:00:00 | ABZ6: Time Step | ACB6: =(ACB4-'Full Vintage Planner'!$C$8)*8+INT(ACB5*8) -> -327272 | ACE6: Time Step | ACG6: =(ACG4-'Full Vintage Planner'!$C$8)*8+INT(ACG5*8) -> -327272 | ACQ6: Start Time | ACS6: 08:00:00 | ACV6: Time Step | ACX6: =(ACX4-'Full Vintage Planner'!$C$8)*8+INT(ACX5*8) -> -327272 | ADA6: Time Step | ADC6: =(ADC4-'Full Vintage Planner'!$C$8)*8+INT(ADC5*8) -> -327272 | ADM6: Start Time | ADO6: 06:00:00 | ADR6: Time Step | ADT6: =(ADT4-'Full Vintage Planner'!$C$8)*8+INT(ADT5*8) -> -327272 | ADW6: Time Step | ADY6: =(ADY4-'Full Vintage Planner'!$C$8)*8+INT(ADY5*8) -> -327272 | AEI6: Start Time | AEK6: 06:00:00 | AEN6: Time Step | AEP6: =(AEP4-'Full Vintage Planner'!$C$8)*8+INT(AEP5*8) -> -327272 | AES6: Time Step | AEU6: =(AEU4-'Full Vintage Planner'!$C$8)*8+INT(AEU5*8) -> -327272 | AFE6: Start Time | AFG6: 15:30:00 | AFJ6: Time Step | AFL6: =(AFL4-'Full Vintage Planner'!$C$8)*8+INT(AFL5*8) -> -327272 | AFO6: Time Step | AFQ6: =(AFQ4-'Full Vintage Planner'!$C$8)*8+INT(AFQ5*8) -> -327272 | AGA6: Start Time | AGC6: 06:00:00 | AGF6: Time Step | AGH6: =(AGH4-'Full Vintage Planner'!$C$8)*8+INT(AGH5*8) -> -327272 | AGK6: Time Step | AGM6: =(AGM4-'Full Vintage Planner'!$C$8)*8+INT(AGM5*8) -> -327272 | AGW6: Start Time | AGY6: 10:00:00 | AHB6: Time Step | AHD6: =(AHD4-'Full Vintage Planner'!$C$8)*8+INT(AHD5*8) -> -327272 | AHG6: Time Step | AHI6: =(AHI4-'Full Vintage Planner'!$C$8)*8+INT(AHI5*8) -> -327272 | AHS6: Start Time | AHU6: 06:00:00 | AHX6: Time Step | AHZ6: =(AHZ4-'Full Vintage Planner'!$C$8)*8+INT(AHZ5*8) -> -327272 | AIC6: Time Step | AIE6: =(AIE4-'Full Vintage Planner'!$C$8)*8+INT(AIE5*8) -> -327272 | AIO6: Start Time | AIQ6: 13:00:00 | AIT6: Time Step | AIV6: =(AIV4-'Full Vintage Planner'!$C$8)*8+INT(AIV5*8) -> -327272 | AIY6: Time Step | AJA6: =(AJA4-'Full Vintage Planner'!$C$8)*8+INT(AJA5*8) -> -327272 | AJK6: Start Time | AJM6: 12:00:00 | AJP6: Time Step | AJR6: =(AJR4-'Full Vintage Planner'!$C$8)*8+INT(AJR5*8) -> -327272 | AJU6: Time Step | AJW6: =(AJW4-'Full Vintage Planner'!$C$8)*8+INT(AJW5*8) -> -327272 | AKG6: Start Time | AKI6: 07:00:00 | AKL6: Time Step | AKN6: =(AKN4-'Full Vintage Planner'!$C$8)*8+INT(AKN5*8) -> -327272 | AKQ6: Time Step | AKS6: =(AKS4-'Full Vintage Planner'!$C$8)*8+INT(AKS5*8) -> -327272 | ALC6: Start Time | ALE6: 14:00:00 | ALH6: Time Step | ALJ6: =(ALJ4-'Full Vintage Planner'!$C$8)*8+INT(ALJ5*8) -> -327272 | ALM6: Time Step | ALO6: =(ALO4-'Full Vintage Planner'!$C$8)*8+INT(ALO5*8) -> -327272 | ALY6: Start Time | AMA6: 06:00:00 | AMD6: Time Step | AMF6: =(AMF4-'Full Vintage Planner'!$C$8)*8+INT(AMF5*8) -> -327272 | AMI6: Time Step | AMK6: =(AMK4-'Full Vintage Planner'!$C$8)*8+INT(AMK5*8) -> -327272 | AMU6: Start Time | AMW6: 06:00:00 | AMZ6: Time Step | ANB6: =(ANB4-'Full Vintage Planner'!$C$8)*8+INT(ANB5*8) -> -327272 | ANE6: Time Step | ANG6: =(ANG4-'Full Vintage Planner'!$C$8)*8+INT(ANG5*8) -> -327272 | ANQ6: Start Time | ANS6: 18:00:00 | ANV6: Time Step | ANX6: =(ANX4-'Full Vintage Planner'!$C$8)*8+INT(ANX5*8) -> -327272 | AOA6: Time Step | AOC6: =(AOC4-'Full Vintage Planner'!$C$8)*8+INT(AOC5*8) -> -327272 | AOM6: Start Time | AOO6: 15:00:00 | AOR6: Time Step | AOT6: =(AOT4-'Full Vintage Planner'!$C$8)*8+INT(AOT5*8) -> -327272 | AOW6: Time Step | AOY6: =(AOY4-'Full Vintage Planner'!$C$8)*8+INT(AOY5*8) -> -327272 | API6: Start Time | APK6: 06:00:00 | APN6: Time Step | APP6: =(APP4-'Full Vintage Planner'!$C$8)*8+INT(APP5*8) -> -327272 | APS6: Time Step | APU6: =(APU4-'Full Vintage Planner'!$C$8)*8+INT(APU5*8) -> -327272 | AQE6: Start Time | AQG6: 12:00:00 | AQJ6: Time Step | AQL6: =(AQL4-'Full Vintage Planner'!$C$8)*8+INT(AQL5*8) -> -327272 | AQO6: Time Step | AQQ6: =(AQQ4-'Full Vintage Planner'!$C$8)*8+INT(AQQ5*8) -> -327272 | ARA6: Start Time | ARC6: 11:30:00 | ARF6: Time Step | ARH6: =(ARH4-'Full Vintage Planner'!$C$8)*8+INT(ARH5*8) -> -327272 | ARK6: Time Step | ARM6: =(ARM4-'Full Vintage Planner'!$C$8)*8+INT(ARM5*8) -> -327272 | ARW6: Start Time | ARY6: 06:00:00 | ASB6: Time Step | ASD6: =(ASD4-'Full Vintage Planner'!$C$8)*8+INT(ASD5*8) -> -327272 | ASG6: Time Step | ASI6: =(ASI4-'Full Vintage Planner'!$C$8)*8+INT(ASI5*8) -> -327272 | ASS6: Start Time | ASU6: 06:00:00 | ASX6: Time Step | ASZ6: =(ASZ4-'Full Vintage Planner'!$C$8)*8+INT(ASZ5*8) -> -327272 | ATC6: Time Step | ATE6: =(ATE4-'Full Vintage Planner'!$C$8)*8+INT(ATE5*8) -> -327272 | ATO6: Start Time | ATQ6: 08:00:00 | ATT6: Time Step | ATV6: =(ATV4-'Full Vintage Planner'!$C$8)*8+INT(ATV5*8) -> -327272 | ATY6: Time Step | AUA6: =(AUA4-'Full Vintage Planner'!$C$8)*8+INT(AUA5*8) -> -327272 | AUK6: Start Time | AUM6: 06:00:00 | AUP6: Time Step | AUR6: =(AUR4-'Full Vintage Planner'!$C$8)*8+INT(AUR5*8) -> -327272 | AUU6: Time Step | AUW6: =(AUW4-'Full Vintage Planner'!$C$8)*8+INT(AUW5*8) -> -327272 | AVG6: Start Time | AVI6: 06:00:00 | AVL6: Time Step | AVN6: =(AVN4-'Full Vintage Planner'!$C$8)*8+INT(AVN5*8) -> -327272 | AVQ6: Time Step | AVS6: =(AVS4-'Full Vintage Planner'!$C$8)*8+INT(AVS5*8) -> -327272 | AWC6: Start Time | AWE6: 15:30:00 | AWH6: Time Step | AWJ6: =(AWJ4-'Full Vintage Planner'!$C$8)*8+INT(AWJ5*8) -> -327272 | AWM6: Time Step | AWO6: =(AWO4-'Full Vintage Planner'!$C$8)*8+INT(AWO5*8) -> -327272 | AWY6: Start Time | AXA6: 06:00:00 | AXD6: Time Step | AXF6: =(AXF4-'Full Vintage Planner'!$C$8)*8+INT(AXF5*8) -> -327272 | AXI6: Time Step | AXK6: =(AXK4-'Full Vintage Planner'!$C$8)*8+INT(AXK5*8) -> -327272 | AXU6: Start Time | AXW6: 10:00:00 | AXZ6: Time Step | AYB6: =(AYB4-'Full Vintage Planner'!$C$8)*8+INT(AYB5*8) -> -327272 | AYE6: Time Step | AYG6: =(AYG4-'Full Vintage Planner'!$C$8)*8+INT(AYG5*8) -> -327272 | AYQ6: Start Time | AYS6: 06:00:00 | AYV6: Time Step | AYX6: =(AYX4-'Full Vintage Planner'!$C$8)*8+INT(AYX5*8) -> -327272 | AZA6: Time Step | AZC6: =(AZC4-'Full Vintage Planner'!$C$8)*8+INT(AZC5*8) -> -327272 | AZM6: Start Time | AZO6: 13:00:00 | AZR6: Time Step | AZT6: =(AZT4-'Full Vintage Planner'!$C$8)*8+INT(AZT5*8) -> -327272 | AZW6: Time Step | AZY6: =(AZY4-'Full Vintage Planner'!$C$8)*8+INT(AZY5*8) -> -327272 | BAI6: Start Time | BAK6: 12:00:00 | BAN6: Time Step | BAP6: =(BAP4-'Full Vintage Planner'!$C$8)*8+INT(BAP5*8) -> -327272 | BAS6: Time Step | BAU6: =(BAU4-'Full Vintage Planner'!$C$8)*8+INT(BAU5*8) -> -327272 | BBE6: Start Time | BBG6: 07:00:00 | BBJ6: Time Step | BBL6: =(BBL4-'Full Vintage Planner'!$C$8)*8+INT(BBL5*8) -> -327272 | BBO6: Time Step | BBQ6: =(BBQ4-'Full Vintage Planner'!$C$8)*8+INT(BBQ5*8) -> -327272 | BCA6: Start Time | BCC6: 14:00:00 | BCF6: Time Step | BCH6: =(BCH4-'Full Vintage Planner'!$C$8)*8+INT(BCH5*8) -> -327272 | BCK6: Time Step | BCM6: =(BCM4-'Full Vintage Planner'!$C$8)*8+INT(BCM5*8) -> -327272 | BCW6: Start Time | BCY6: 06:00:00 | BDB6: Time Step | BDD6: =(BDD4-'Full Vintage Planner'!$C$8)*8+INT(BDD5*8) -> -327272 | BDG6: Time Step | BDI6: =(BDI4-'Full Vintage Planner'!$C$8)*8+INT(BDI5*8) -> -327272 | BDS6: Start Time | BDU6: 06:00:00 | BDX6: Time Step | BDZ6: =(BDZ4-'Full Vintage Planner'!$C$8)*8+INT(BDZ5*8) -> -327272 | BEC6: Time Step | BEE6: =(BEE4-'Full Vintage Planner'!$C$8)*8+INT(BEE5*8) -> -327272 | BEO6: Start Time | BEQ6: 18:00:00 | BET6: Time Step | BEV6: =(BEV4-'Full Vintage Planner'!$C$8)*8+INT(BEV5*8) -> -327272 | BEY6: Time Step | BFA6: =(BFA4-'Full Vintage Planner'!$C$8)*8+INT(BFA5*8) -> -327272 | BFK6: Start Time | BFM6: 15:00:00 | BFP6: Time Step | BFR6: =(BFR4-'Full Vintage Planner'!$C$8)*8+INT(BFR5*8) -> -327272 | BFU6: Time Step | BFW6: =(BFW4-'Full Vintage Planner'!$C$8)*8+INT(BFW5*8) -> -327272 | BGG6: Start Time | BGI6: 06:00:00 | BGL6: Time Step | BGN6: =(BGN4-'Full Vintage Planner'!$C$8)*8+INT(BGN5*8) -> -327272 | BGQ6: Time Step | BGS6: =(BGS4-'Full Vintage Planner'!$C$8)*8+INT(BGS5*8) -> -327272 | BHC6: Start Time | BHE6: 12:00:00 | BHH6: Time Step | BHJ6: =(BHJ4-'Full Vintage Planner'!$C$8)*8+INT(BHJ5*8) -> -327272 | BHM6: Time Step | BHO6: =(BHO4-'Full Vintage Planner'!$C$8)*8+INT(BHO5*8) -> -327272 | BHY6: Start Time | BIA6: 11:30:00 | BID6: Time Step | BIF6: =(BIF4-'Full Vintage Planner'!$C$8)*8+INT(BIF5*8) -> -327272 | BII6: Time Step | BIK6: =(BIK4-'Full Vintage Planner'!$C$8)*8+INT(BIK5*8) -> -327272 | BIU6: Start Time | BIW6: 06:00:00 | BIZ6: Time Step | BJB6: =(BJB4-'Full Vintage Planner'!$C$8)*8+INT(BJB5*8) -> -327272 | BJE6: Time Step | BJG6: =(BJG4-'Full Vintage Planner'!$C$8)*8+INT(BJG5*8) -> -327272 | BJQ6: Start Time | BJS6: 06:00:00 | BJV6: Time Step | BJX6: =(BJX4-'Full Vintage Planner'!$C$8)*8+INT(BJX5*8) -> -327272 | BKA6: Time Step | BKC6: =(BKC4-'Full Vintage Planner'!$C$8)*8+INT(BKC5*8) -> -327272 | BKM6: Start Time | BKO6: 08:00:00 | BKR6: Time Step | BKT6: =(BKT4-'Full Vintage Planner'!$C$8)*8+INT(BKT5*8) -> -327272 | BKW6: Time Step | BKY6: =(BKY4-'Full Vintage Planner'!$C$8)*8+INT(BKY5*8) -> -327272 | BLI6: Start Time | BLK6: 06:00:00 | BLN6: Time Step | BLP6: =(BLP4-'Full Vintage Planner'!$C$8)*8+INT(BLP5*8) -> -327272 | BLS6: Time Step | BLU6: =(BLU4-'Full Vintage Planner'!$C$8)*8+INT(BLU5*8) -> -327272 | BME6: Start Time | BMG6: 06:00:00 | BMJ6: Time Step | BML6: =(BML4-'Full Vintage Planner'!$C$8)*8+INT(BML5*8) -> -327272 | BMO6: Time Step | BMQ6: =(BMQ4-'Full Vintage Planner'!$C$8)*8+INT(BMQ5*8) -> -327272 | BNA6: Start Time | BNC6: 15:30:00 | BNF6: Time Step | BNH6: =(BNH4-'Full Vintage Planner'!$C$8)*8+INT(BNH5*8) -> -327272 | BNK6: Time Step | BNM6: =(BNM4-'Full Vintage Planner'!$C$8)*8+INT(BNM5*8) -> -327272 | BNW6: Start Time | BNY6: 06:00:00 | BOB6: Time Step | BOD6: =(BOD4-'Full Vintage Planner'!$C$8)*8+INT(BOD5*8) -> -327272 | BOG6: Time Step | BOI6: =(BOI4-'Full Vintage Planner'!$C$8)*8+INT(BOI5*8) -> -327272 | BOS6: Start Time | BOU6: 10:00:00 | BOX6: Time Step | BOZ6: =(BOZ4-'Full Vintage Planner'!$C$8)*8+INT(BOZ5*8) -> -327272 | BPC6: Time Step | BPE6: =(BPE4-'Full Vintage Planner'!$C$8)*8+INT(BPE5*8) -> -327272 | BPO6: Start Time | BPQ6: 06:00:00 | BPT6: Time Step | BPV6: =(BPV4-'Full Vintage Planner'!$C$8)*8+INT(BPV5*8) -> -327272 | BPY6: Time Step | BQA6: =(BQA4-'Full Vintage Planner'!$C$8)*8+INT(BQA5*8) -> -327272 | BQK6: Start Time | BQM6: 13:00:00 | BQP6: Time Step | BQR6: =(BQR4-'Full Vintage Planner'!$C$8)*8+INT(BQR5*8) -> -327272 | BQU6: Time Step | BQW6: =(BQW4-'Full Vintage Planner'!$C$8)*8+INT(BQW5*8) -> -327272 | BRG6: Start Time | BRI6: 12:00:00 | BRL6: Time Step | BRN6: =(BRN4-'Full Vintage Planner'!$C$8)*8+INT(BRN5*8) -> -327272 | BRQ6: Time Step | BRS6: =(BRS4-'Full Vintage Planner'!$C$8)*8+INT(BRS5*8) -> -327272 | BSC6: Start Time | BSE6: 07:00:00 | BSH6: Time Step | BSJ6: =(BSJ4-'Full Vintage Planner'!$C$8)*8+INT(BSJ5*8) -> -327272 | BSM6: Time Step | BSO6: =(BSO4-'Full Vintage Planner'!$C$8)*8+INT(BSO5*8) -> -327272 | BSY6: Start Time | BTA6: 14:00:00 | BTD6: Time Step | BTF6: =(BTF4-'Full Vintage Planner'!$C$8)*8+INT(BTF5*8) -> -327272 | BTI6: Time Step | BTK6: =(BTK4-'Full Vintage Planner'!$C$8)*8+INT(BTK5*8) -> -327272 | BTU6: Start Time | BTW6: 06:00:00 | BTZ6: Time Step | BUB6: =(BUB4-'Full Vintage Planner'!$C$8)*8+INT(BUB5*8) -> -327272 | BUE6: Time Step | BUG6: =(BUG4-'Full Vintage Planner'!$C$8)*8+INT(BUG5*8) -> -327272 | BUQ6: Start Time | BUS6: 06:00:00 | BUV6: Time Step | BUX6: =(BUX4-'Full Vintage Planner'!$C$8)*8+INT(BUX5*8) -> -327272 | BVA6: Time Step | BVC6: =(BVC4-'Full Vintage Planner'!$C$8)*8+INT(BVC5*8) -> -327272 | BVM6: Start Time | BVO6: 18:00:00 | BVR6: Time Step | BVT6: =(BVT4-'Full Vintage Planner'!$C$8)*8+INT(BVT5*8) -> -327272 | BVW6: Time Step | BVY6: =(BVY4-'Full Vintage Planner'!$C$8)*8+INT(BVY5*8) -> -327272 | BWI6: Start Time | BWK6: 15:00:00 | BWN6: Time Step | BWP6: =(BWP4-'Full Vintage Planner'!$C$8)*8+INT(BWP5*8) -> -327272 | BWS6: Time Step | BWU6: =(BWU4-'Full Vintage Planner'!$C$8)*8+INT(BWU5*8) -> -327272 | BXE6: Start Time | BXG6: 06:00:00 | BXJ6: Time Step | BXL6: =(BXL4-'Full Vintage Planner'!$C$8)*8+INT(BXL5*8) -> -327272 | BXO6: Time Step | BXQ6: =(BXQ4-'Full Vintage Planner'!$C$8)*8+INT(BXQ5*8) -> -327272 | BYA6: Start Time | BYC6: 12:00:00 | BYF6: Time Step | BYH6: =(BYH4-'Full Vintage Planner'!$C$8)*8+INT(BYH5*8) -> -327272 | BYK6: Time Step | BYM6: =(BYM4-'Full Vintage Planner'!$C$8)*8+INT(BYM5*8) -> -327272 | BYW6: Start Time | BYY6: 11:30:00 | BZB6: Time Step | BZD6: =(BZD4-'Full Vintage Planner'!$C$8)*8+INT(BZD5*8) -> -327272 | BZG6: Time Step | BZI6: =(BZI4-'Full Vintage Planner'!$C$8)*8+INT(BZI5*8) -> -327272 | BZS6: Start Time | BZU6: 06:00:00 | BZX6: Time Step | BZZ6: =(BZZ4-'Full Vintage Planner'!$C$8)*8+INT(BZZ5*8) -> -327272 | CAC6: Time Step | CAE6: =(CAE4-'Full Vintage Planner'!$C$8)*8+INT(CAE5*8) -> -327272 | CAO6: Start Time | CAQ6: 06:00:00 | CAT6: Time Step | CAV6: =(CAV4-'Full Vintage Planner'!$C$8)*8+INT(CAV5*8) -> -327272 | CAY6: Time Step | CBA6: =(CBA4-'Full Vintage Planner'!$C$8)*8+INT(CBA5*8) -> -327272 | CBK6: Start Time | CBM6: 08:00:00 | CBP6: Time Step | CBR6: =(CBR4-'Full Vintage Planner'!$C$8)*8+INT(CBR5*8) -> -327272 | CBU6: Time Step | CBW6: =(CBW4-'Full Vintage Planner'!$C$8)*8+INT(CBW5*8) -> -327272 | CCG6: Start Time | CCI6: 06:00:00 | CCL6: Time Step | CCN6: =(CCN4-'Full Vintage Planner'!$C$8)*8+INT(CCN5*8) -> -327272 | CCQ6: Time Step | CCS6: =(CCS4-'Full Vintage Planner'!$C$8)*8+INT(CCS5*8) -> -327272 | CDC6: Start Time | CDE6: 06:00:00 | CDH6: Time Step | CDJ6: =(CDJ4-'Full Vintage Planner'!$C$8)*8+INT(CDJ5*8) -> -327272 | CDM6: Time Step | CDO6: =(CDO4-'Full Vintage Planner'!$C$8)*8+INT(CDO5*8) -> -327272 | CDY6: Start Time | CEA6: 15:30:00 | CED6: Time Step | CEF6: =(CEF4-'Full Vintage Planner'!$C$8)*8+INT(CEF5*8) -> -327272 | CEI6: Time Step | CEK6: =(CEK4-'Full Vintage Planner'!$C$8)*8+INT(CEK5*8) -> -327272 | CEU6: Start Time | CEW6: 06:00:00 | CEZ6: Time Step | CFB6: =(CFB4-'Full Vintage Planner'!$C$8)*8+INT(CFB5*8) -> -327272 | CFE6: Time Step | CFG6: =(CFG4-'Full Vintage Planner'!$C$8)*8+INT(CFG5*8) -> -327272
A7: Time Step | C7: 28 | F7: Must Chill Flowrate | H7: 30 | I7: kL/hr | K7: Cold Settling/Soak Finish Date | M7: 2013-01-04 | W7: Time Step | Y7: 28 | AB7: Must Chill Flowrate | AD7: 30 | AE7: kL/hr | AG7: Cold Settling/Soak Finish Date | AI7: 2013-01-04 | AS7: Time Step | AU7: =(AU5-'Full Vintage Planner'!$C$8)*8+INT(AU6*8) -> 548 | AX7: Must Chill Flowrate | AZ7: 30 | BA7: kL/hr | BC7: Cold Settling/Soak Finish Date | BE7: 2013-01-04 | BO7: Time Step | BQ7: =(BQ5-'Full Vintage Planner'!$C$8)*8+INT(BQ6*8) -> 548 | BT7: Must Chill Flowrate | BW7: kL/hr | BY7: Cold Settling/Soak Finish Date | CK7: Time Step | CM7: =(CM5-'Full Vintage Planner'!$C$8)*8+INT(CM6*8) -> 538 | CP7: Must Chill Flowrate | CS7: kL/hr | CU7: Cold Settling/Soak Finish Date | DG7: Time Step | DI7: =(DI5-'Full Vintage Planner'!$C$8)*8+INT(DI6*8) -> 564 | DL7: Must Chill Flowrate | DO7: kL/hr | DQ7: Cold Settling/Soak Finish Date | EC7: Time Step | EE7: =(EE5-'Full Vintage Planner'!$C$8)*8+INT(EE6*8) -> 554 | EH7: Must Chill Flowrate | EK7: kL/hr | EM7: Cold Settling/Soak Finish Date | EY7: Time Step | FA7: =(FA5-'Full Vintage Planner'!$C$8)*8+INT(FA6*8) -> 538 | FD7: Must Chill Flowrate | FG7: kL/hr | FI7: Cold Settling/Soak Finish Date | FU7: Time Step | FW7: =(FW5-'Full Vintage Planner'!$C$8)*8+INT(FW6*8) -> 550 | FZ7: Must Chill Flowrate | GC7: kL/hr | GE7: Cold Settling/Soak Finish Date | GQ7: Time Step | GS7: =(GS5-'Full Vintage Planner'!$C$8)*8+INT(GS6*8) -> 549 | GV7: Must Chill Flowrate | GY7: kL/hr | HA7: Cold Settling/Soak Finish Date | HM7: Time Step | HO7: =(HO5-'Full Vintage Planner'!$C$8)*8+INT(HO6*8) -> 546 | HR7: Must Chill Flowrate | HU7: kL/hr | HW7: Cold Settling/Soak Finish Date | II7: Time Step | IK7: =(IK5-'Full Vintage Planner'!$C$8)*8+INT(IK6*8) -> 540 | IN7: Must Chill Flowrate | IQ7: kL/hr | IS7: Cold Settling/Soak Finish Date | JE7: Time Step | JG7: =(JG5-'Full Vintage Planner'!$C$8)*8+INT(JG6*8) -> 563 | JJ7: Must Chill Flowrate | JM7: kL/hr | JO7: Cold Settling/Soak Finish Date | KA7: Time Step | KC7: =(KC5-'Full Vintage Planner'!$C$8)*8+INT(KC6*8) -> 570 | KF7: Must Chill Flowrate | KI7: kL/hr | KK7: Cold Settling/Soak Finish Date | KW7: Time Step | KY7: =(KY5-'Full Vintage Planner'!$C$8)*8+INT(KY6*8) -> 554 | LB7: Must Chill Flowrate | LE7: kL/hr | LG7: Cold Settling/Soak Finish Date | LS7: Time Step | LU7: =(LU5-'Full Vintage Planner'!$C$8)*8+INT(LU6*8) -> 562 | LX7: Must Chill Flowrate | MA7: kL/hr | MC7: Cold Settling/Soak Finish Date | MO7: Time Step | MQ7: =(MQ5-'Full Vintage Planner'!$C$8)*8+INT(MQ6*8) -> 530 | MT7: Must Chill Flowrate | MW7: kL/hr | MY7: Cold Settling/Soak Finish Date | NK7: Time Step | NM7: =(NM5-'Full Vintage Planner'!$C$8)*8+INT(NM6*8) -> 554 | NP7: Must Chill Flowrate | NS7: kL/hr | NU7: Cold Settling/Soak Finish Date | OG7: Time Step | OI7: =(OI5-'Full Vintage Planner'!$C$8)*8+INT(OI6*8) -> 541 | OL7: Must Chill Flowrate | OO7: kL/hr | OQ7: Cold Settling/Soak Finish Date | PC7: Time Step | PE7: =(PE5-'Full Vintage Planner'!$C$8)*8+INT(PE6*8) -> 530 | PH7: Must Chill Flowrate | PK7: kL/hr | PM7: Cold Settling/Soak Finish Date | PY7: Time Step | QA7: =(QA5-'Full Vintage Planner'!$C$8)*8+INT(QA6*8) -> 555 | QD7: Must Chill Flowrate | QG7: kL/hr | QI7: Cold Settling/Soak Finish Date | QU7: Time Step | QW7: =(QW5-'Full Vintage Planner'!$C$8)*8+INT(QW6*8) -> 546 | QZ7: Must Chill Flowrate | RC7: kL/hr | RE7: Cold Settling/Soak Finish Date | RQ7: Time Step | RS7: =(RS5-'Full Vintage Planner'!$C$8)*8+INT(RS6*8) -> 548 | RV7: Must Chill Flowrate | RY7: kL/hr | SA7: Cold Settling/Soak Finish Date | SM7: Time Step | SO7: =(SO5-'Full Vintage Planner'!$C$8)*8+INT(SO6*8) -> 548 | SR7: Must Chill Flowrate | SU7: kL/hr | SW7: Cold Settling/Soak Finish Date | TI7: Time Step | TK7: =(TK5-'Full Vintage Planner'!$C$8)*8+INT(TK6*8) -> 538 | TN7: Must Chill Flowrate | TQ7: kL/hr | TS7: Cold Settling/Soak Finish Date | UE7: Time Step | UG7: =(UG5-'Full Vintage Planner'!$C$8)*8+INT(UG6*8) -> 564 | UJ7: Must Chill Flowrate | UM7: kL/hr | UO7: Cold Settling/Soak Finish Date | VA7: Time Step | VC7: =(VC5-'Full Vintage Planner'!$C$8)*8+INT(VC6*8) -> 554 | VF7: Must Chill Flowrate | VI7: kL/hr | VK7: Cold Settling/Soak Finish Date | VW7: Time Step | VY7: =(VY5-'Full Vintage Planner'!$C$8)*8+INT(VY6*8) -> 538 | WB7: Must Chill Flowrate | WE7: kL/hr | WG7: Cold Settling/Soak Finish Date | WS7: Time Step | WU7: =(WU5-'Full Vintage Planner'!$C$8)*8+INT(WU6*8) -> 550 | WX7: Must Chill Flowrate | XA7: kL/hr | XC7: Cold Settling/Soak Finish Date | XO7: Time Step | XQ7: =(XQ5-'Full Vintage Planner'!$C$8)*8+INT(XQ6*8) -> 549 | XT7: Must Chill Flowrate | XW7: kL/hr | XY7: Cold Settling/Soak Finish Date | YK7: Time Step | YM7: =(YM5-'Full Vintage Planner'!$C$8)*8+INT(YM6*8) -> 546 | YP7: Must Chill Flowrate | YS7: kL/hr | YU7: Cold Settling/Soak Finish Date | ZG7: Time Step | ZI7: =(ZI5-'Full Vintage Planner'!$C$8)*8+INT(ZI6*8) -> 540 | ZL7: Must Chill Flowrate | ZO7: kL/hr | ZQ7: Cold Settling/Soak Finish Date | AAC7: Time Step | AAE7: =(AAE5-'Full Vintage Planner'!$C$8)*8+INT(AAE6*8) -> 563 | AAH7: Must Chill Flowrate | AAK7: kL/hr | AAM7: Cold Settling/Soak Finish Date | AAY7: Time Step | ABA7: =(ABA5-'Full Vintage Planner'!$C$8)*8+INT(ABA6*8) -> 570 | ABD7: Must Chill Flowrate | ABG7: kL/hr | ABI7: Cold Settling/Soak Finish Date | ABU7: Time Step | ABW7: =(ABW5-'Full Vintage Planner'!$C$8)*8+INT(ABW6*8) -> 554 | ABZ7: Must Chill Flowrate | ACC7: kL/hr | ACE7: Cold Settling/Soak Finish Date | ACQ7: Time Step | ACS7: =(ACS5-'Full Vintage Planner'!$C$8)*8+INT(ACS6*8) -> 562 | ACV7: Must Chill Flowrate | ACY7: kL/hr | ADA7: Cold Settling/Soak Finish Date | ADM7: Time Step | ADO7: =(ADO5-'Full Vintage Planner'!$C$8)*8+INT(ADO6*8) -> 530 | ADR7: Must Chill Flowrate | ADU7: kL/hr | ADW7: Cold Settling/Soak Finish Date | AEI7: Time Step | AEK7: =(AEK5-'Full Vintage Planner'!$C$8)*8+INT(AEK6*8) -> 554 | AEN7: Must Chill Flowrate | AEQ7: kL/hr | AES7: Cold Settling/Soak Finish Date | AFE7: Time Step | AFG7: =(AFG5-'Full Vintage Planner'!$C$8)*8+INT(AFG6*8) -> 541 | AFJ7: Must Chill Flowrate | AFM7: kL/hr | AFO7: Cold Settling/Soak Finish Date | AGA7: Time Step | AGC7: =(AGC5-'Full Vintage Planner'!$C$8)*8+INT(AGC6*8) -> 530 | AGF7: Must Chill Flowrate | AGI7: kL/hr | AGK7: Cold Settling/Soak Finish Date | AGW7: Time Step | AGY7: =(AGY5-'Full Vintage Planner'!$C$8)*8+INT(AGY6*8) -> 555 | AHB7: Must Chill Flowrate | AHE7: kL/hr | AHG7: Cold Settling/Soak Finish Date | AHS7: Time Step | AHU7: =(AHU5-'Full Vintage Planner'!$C$8)*8+INT(AHU6*8) -> 546 | AHX7: Must Chill Flowrate | AIA7: kL/hr | AIC7: Cold Settling/Soak Finish Date | AIO7: Time Step | AIQ7: =(AIQ5-'Full Vintage Planner'!$C$8)*8+INT(AIQ6*8) -> 548 | AIT7: Must Chill Flowrate | AIW7: kL/hr | AIY7: Cold Settling/Soak Finish Date | AJK7: Time Step | AJM7: =(AJM5-'Full Vintage Planner'!$C$8)*8+INT(AJM6*8) -> 548 | AJP7: Must Chill Flowrate | AJS7: kL/hr | AJU7: Cold Settling/Soak Finish Date | AKG7: Time Step | AKI7: =(AKI5-'Full Vintage Planner'!$C$8)*8+INT(AKI6*8) -> 538 | AKL7: Must Chill Flowrate | AKO7: kL/hr | AKQ7: Cold Settling/Soak Finish Date | ALC7: Time Step | ALE7: =(ALE5-'Full Vintage Planner'!$C$8)*8+INT(ALE6*8) -> 564 | ALH7: Must Chill Flowrate | ALK7: kL/hr | ALM7: Cold Settling/Soak Finish Date | ALY7: Time Step | AMA7: =(AMA5-'Full Vintage Planner'!$C$8)*8+INT(AMA6*8) -> 554 | AMD7: Must Chill Flowrate | AMG7: kL/hr | AMI7: Cold Settling/Soak Finish Date | AMU7: Time Step | AMW7: =(AMW5-'Full Vintage Planner'!$C$8)*8+INT(AMW6*8) -> 538 | AMZ7: Must Chill Flowrate | ANC7: kL/hr | ANE7: Cold Settling/Soak Finish Date | ANQ7: Time Step | ANS7: =(ANS5-'Full Vintage Planner'!$C$8)*8+INT(ANS6*8) -> 550 | ANV7: Must Chill Flowrate | ANY7: kL/hr | AOA7: Cold Settling/Soak Finish Date | AOM7: Time Step | AOO7: =(AOO5-'Full Vintage Planner'!$C$8)*8+INT(AOO6*8) -> 549 | AOR7: Must Chill Flowrate | AOU7: kL/hr | AOW7: Cold Settling/Soak Finish Date | API7: Time Step | APK7: =(APK5-'Full Vintage Planner'!$C$8)*8+INT(APK6*8) -> 546 | APN7: Must Chill Flowrate | APQ7: kL/hr | APS7: Cold Settling/Soak Finish Date | AQE7: Time Step | AQG7: =(AQG5-'Full Vintage Planner'!$C$8)*8+INT(AQG6*8) -> 540 | AQJ7: Must Chill Flowrate | AQM7: kL/hr | AQO7: Cold Settling/Soak Finish Date | ARA7: Time Step | ARC7: =(ARC5-'Full Vintage Planner'!$C$8)*8+INT(ARC6*8) -> 563 | ARF7: Must Chill Flowrate | ARI7: kL/hr | ARK7: Cold Settling/Soak Finish Date | ARW7: Time Step | ARY7: =(ARY5-'Full Vintage Planner'!$C$8)*8+INT(ARY6*8) -> 570 | ASB7: Must Chill Flowrate | ASE7: kL/hr | ASG7: Cold Settling/Soak Finish Date | ASS7: Time Step | ASU7: =(ASU5-'Full Vintage Planner'!$C$8)*8+INT(ASU6*8) -> 554 | ASX7: Must Chill Flowrate | ATA7: kL/hr | ATC7: Cold Settling/Soak Finish Date | ATO7: Time Step | ATQ7: =(ATQ5-'Full Vintage Planner'!$C$8)*8+INT(ATQ6*8) -> 562 | ATT7: Must Chill Flowrate | ATW7: kL/hr | ATY7: Cold Settling/Soak Finish Date | AUK7: Time Step | AUM7: =(AUM5-'Full Vintage Planner'!$C$8)*8+INT(AUM6*8) -> 530 | AUP7: Must Chill Flowrate | AUS7: kL/hr | AUU7: Cold Settling/Soak Finish Date | AVG7: Time Step | AVI7: =(AVI5-'Full Vintage Planner'!$C$8)*8+INT(AVI6*8) -> 554 | AVL7: Must Chill Flowrate | AVO7: kL/hr | AVQ7: Cold Settling/Soak Finish Date | AWC7: Time Step | AWE7: =(AWE5-'Full Vintage Planner'!$C$8)*8+INT(AWE6*8) -> 541 | AWH7: Must Chill Flowrate | AWK7: kL/hr | AWM7: Cold Settling/Soak Finish Date | AWY7: Time Step | AXA7: =(AXA5-'Full Vintage Planner'!$C$8)*8+INT(AXA6*8) -> 530 | AXD7: Must Chill Flowrate | AXG7: kL/hr | AXI7: Cold Settling/Soak Finish Date | AXU7: Time Step | AXW7: =(AXW5-'Full Vintage Planner'!$C$8)*8+INT(AXW6*8) -> 555 | AXZ7: Must Chill Flowrate | AYC7: kL/hr | AYE7: Cold Settling/Soak Finish Date | AYQ7: Time Step | AYS7: =(AYS5-'Full Vintage Planner'!$C$8)*8+INT(AYS6*8) -> 546 | AYV7: Must Chill Flowrate | AYY7: kL/hr | AZA7: Cold Settling/Soak Finish Date | AZM7: Time Step | AZO7: =(AZO5-'Full Vintage Planner'!$C$8)*8+INT(AZO6*8) -> 548 | AZR7: Must Chill Flowrate | AZU7: kL/hr | AZW7: Cold Settling/Soak Finish Date | BAI7: Time Step | BAK7: =(BAK5-'Full Vintage Planner'!$C$8)*8+INT(BAK6*8) -> 548 | BAN7: Must Chill Flowrate | BAQ7: kL/hr | BAS7: Cold Settling/Soak Finish Date | BBE7: Time Step | BBG7: =(BBG5-'Full Vintage Planner'!$C$8)*8+INT(BBG6*8) -> 538 | BBJ7: Must Chill Flowrate | BBM7: kL/hr | BBO7: Cold Settling/Soak Finish Date | BCA7: Time Step | BCC7: =(BCC5-'Full Vintage Planner'!$C$8)*8+INT(BCC6*8) -> 564 | BCF7: Must Chill Flowrate | BCI7: kL/hr | BCK7: Cold Settling/Soak Finish Date | BCW7: Time Step | BCY7: =(BCY5-'Full Vintage Planner'!$C$8)*8+INT(BCY6*8) -> 554 | BDB7: Must Chill Flowrate | BDE7: kL/hr | BDG7: Cold Settling/Soak Finish Date | BDS7: Time Step | BDU7: =(BDU5-'Full Vintage Planner'!$C$8)*8+INT(BDU6*8) -> 538 | BDX7: Must Chill Flowrate | BEA7: kL/hr | BEC7: Cold Settling/Soak Finish Date | BEO7: Time Step | BEQ7: =(BEQ5-'Full Vintage Planner'!$C$8)*8+INT(BEQ6*8) -> 550 | BET7: Must Chill Flowrate | BEW7: kL/hr | BEY7: Cold Settling/Soak Finish Date | BFK7: Time Step | BFM7: =(BFM5-'Full Vintage Planner'!$C$8)*8+INT(BFM6*8) -> 549 | BFP7: Must Chill Flowrate | BFS7: kL/hr | BFU7: Cold Settling/Soak Finish Date | BGG7: Time Step | BGI7: =(BGI5-'Full Vintage Planner'!$C$8)*8+INT(BGI6*8) -> 546 | BGL7: Must Chill Flowrate | BGO7: kL/hr | BGQ7: Cold Settling/Soak Finish Date | BHC7: Time Step | BHE7: =(BHE5-'Full Vintage Planner'!$C$8)*8+INT(BHE6*8) -> 540 | BHH7: Must Chill Flowrate | BHK7: kL/hr | BHM7: Cold Settling/Soak Finish Date | BHY7: Time Step | BIA7: =(BIA5-'Full Vintage Planner'!$C$8)*8+INT(BIA6*8) -> 563 | BID7: Must Chill Flowrate | BIG7: kL/hr | BII7: Cold Settling/Soak Finish Date | BIU7: Time Step | BIW7: =(BIW5-'Full Vintage Planner'!$C$8)*8+INT(BIW6*8) -> 570 | BIZ7: Must Chill Flowrate | BJC7: kL/hr | BJE7: Cold Settling/Soak Finish Date | BJQ7: Time Step | BJS7: =(BJS5-'Full Vintage Planner'!$C$8)*8+INT(BJS6*8) -> 554 | BJV7: Must Chill Flowrate | BJY7: kL/hr | BKA7: Cold Settling/Soak Finish Date | BKM7: Time Step | BKO7: =(BKO5-'Full Vintage Planner'!$C$8)*8+INT(BKO6*8) -> 562 | BKR7: Must Chill Flowrate | BKU7: kL/hr | BKW7: Cold Settling/Soak Finish Date | BLI7: Time Step | BLK7: =(BLK5-'Full Vintage Planner'!$C$8)*8+INT(BLK6*8) -> 530 | BLN7: Must Chill Flowrate | BLQ7: kL/hr | BLS7: Cold Settling/Soak Finish Date | BME7: Time Step | BMG7: =(BMG5-'Full Vintage Planner'!$C$8)*8+INT(BMG6*8) -> 554 | BMJ7: Must Chill Flowrate | BMM7: kL/hr | BMO7: Cold Settling/Soak Finish Date | BNA7: Time Step | BNC7: =(BNC5-'Full Vintage Planner'!$C$8)*8+INT(BNC6*8) -> 541 | BNF7: Must Chill Flowrate | BNI7: kL/hr | BNK7: Cold Settling/Soak Finish Date | BNW7: Time Step | BNY7: =(BNY5-'Full Vintage Planner'!$C$8)*8+INT(BNY6*8) -> 530 | BOB7: Must Chill Flowrate | BOE7: kL/hr | BOG7: Cold Settling/Soak Finish Date | BOS7: Time Step | BOU7: =(BOU5-'Full Vintage Planner'!$C$8)*8+INT(BOU6*8) -> 555 | BOX7: Must Chill Flowrate | BPA7: kL/hr | BPC7: Cold Settling/Soak Finish Date | BPO7: Time Step | BPQ7: =(BPQ5-'Full Vintage Planner'!$C$8)*8+INT(BPQ6*8) -> 546 | BPT7: Must Chill Flowrate | BPW7: kL/hr | BPY7: Cold Settling/Soak Finish Date | BQK7: Time Step | BQM7: =(BQM5-'Full Vintage Planner'!$C$8)*8+INT(BQM6*8) -> 548 | BQP7: Must Chill Flowrate | BQS7: kL/hr | BQU7: Cold Settling/Soak Finish Date | BRG7: Time Step | BRI7: =(BRI5-'Full Vintage Planner'!$C$8)*8+INT(BRI6*8) -> 548 | BRL7: Must Chill Flowrate | BRO7: kL/hr | BRQ7: Cold Settling/Soak Finish Date | BSC7: Time Step | BSE7: =(BSE5-'Full Vintage Planner'!$C$8)*8+INT(BSE6*8) -> 538 | BSH7: Must Chill Flowrate | BSK7: kL/hr | BSM7: Cold Settling/Soak Finish Date | BSY7: Time Step | BTA7: =(BTA5-'Full Vintage Planner'!$C$8)*8+INT(BTA6*8) -> 564 | BTD7: Must Chill Flowrate | BTG7: kL/hr | BTI7: Cold Settling/Soak Finish Date | BTU7: Time Step | BTW7: =(BTW5-'Full Vintage Planner'!$C$8)*8+INT(BTW6*8) -> 554 | BTZ7: Must Chill Flowrate | BUC7: kL/hr | BUE7: Cold Settling/Soak Finish Date | BUQ7: Time Step | BUS7: =(BUS5-'Full Vintage Planner'!$C$8)*8+INT(BUS6*8) -> 538 | BUV7: Must Chill Flowrate | BUY7: kL/hr | BVA7: Cold Settling/Soak Finish Date | BVM7: Time Step | BVO7: =(BVO5-'Full Vintage Planner'!$C$8)*8+INT(BVO6*8) -> 550 | BVR7: Must Chill Flowrate | BVU7: kL/hr | BVW7: Cold Settling/Soak Finish Date | BWI7: Time Step | BWK7: =(BWK5-'Full Vintage Planner'!$C$8)*8+INT(BWK6*8) -> 549 | BWN7: Must Chill Flowrate | BWQ7: kL/hr | BWS7: Cold Settling/Soak Finish Date | BXE7: Time Step | BXG7: =(BXG5-'Full Vintage Planner'!$C$8)*8+INT(BXG6*8) -> 546 | BXJ7: Must Chill Flowrate | BXM7: kL/hr | BXO7: Cold Settling/Soak Finish Date | BYA7: Time Step | BYC7: =(BYC5-'Full Vintage Planner'!$C$8)*8+INT(BYC6*8) -> 540 | BYF7: Must Chill Flowrate | BYI7: kL/hr | BYK7: Cold Settling/Soak Finish Date | BYW7: Time Step | BYY7: =(BYY5-'Full Vintage Planner'!$C$8)*8+INT(BYY6*8) -> 563 | BZB7: Must Chill Flowrate | BZE7: kL/hr | BZG7: Cold Settling/Soak Finish Date | BZS7: Time Step | BZU7: =(BZU5-'Full Vintage Planner'!$C$8)*8+INT(BZU6*8) -> 570 | BZX7: Must Chill Flowrate | CAA7: kL/hr | CAC7: Cold Settling/Soak Finish Date | CAO7: Time Step | CAQ7: =(CAQ5-'Full Vintage Planner'!$C$8)*8+INT(CAQ6*8) -> 554 | CAT7: Must Chill Flowrate | CAW7: kL/hr | CAY7: Cold Settling/Soak Finish Date | CBK7: Time Step | CBM7: =(CBM5-'Full Vintage Planner'!$C$8)*8+INT(CBM6*8) -> 562 | CBP7: Must Chill Flowrate | CBS7: kL/hr | CBU7: Cold Settling/Soak Finish Date | CCG7: Time Step | CCI7: =(CCI5-'Full Vintage Planner'!$C$8)*8+INT(CCI6*8) -> 530 | CCL7: Must Chill Flowrate | CCO7: kL/hr | CCQ7: Cold Settling/Soak Finish Date | CDC7: Time Step | CDE7: =(CDE5-'Full Vintage Planner'!$C$8)*8+INT(CDE6*8) -> 554 | CDH7: Must Chill Flowrate | CDK7: kL/hr | CDM7: Cold Settling/Soak Finish Date | CDY7: Time Step | CEA7: =(CEA5-'Full Vintage Planner'!$C$8)*8+INT(CEA6*8) -> 541 | CED7: Must Chill Flowrate | CEG7: kL/hr | CEI7: Cold Settling/Soak Finish Date | CEU7: Time Step | CEW7: =(CEW5-'Full Vintage Planner'!$C$8)*8+INT(CEW6*8) -> 530 | CEZ7: Must Chill Flowrate | CFC7: kL/hr | CFE7: Cold Settling/Soak Finish Date
A8: Volume | C8: 267 | D8: kL | F8: Inlet Juce Temp | H8: 15 | I8: C | K8: Cold Settling/Soak Finish Time | M8: 10:00:00 | W8: Volume | Y8: 250 | Z8: kL | AB8: Inlet Juce Temp | AD8: 15 | AE8: C | AG8: Cold Settling/Soak Finish Time | AI8: 10:00:00 | AS8: Volume | AU8: 250 | AV8: kL | AX8: Inlet Juce Temp | AZ8: 15 | BA8: C | BC8: Cold Settling/Soak Finish Time | BE8: 10:00:00 | BO8: Volume | BQ8: 250 | BR8: kL | BT8: Inlet Juce Temp | BW8: C | BY8: Cold Settling/Soak Finish Time | CK8: Volume | CM8: 250 | CN8: kL | CP8: Inlet Juce Temp | CS8: C | CU8: Cold Settling/Soak Finish Time | DG8: Volume | DI8: 250 | DJ8: kL | DL8: Inlet Juce Temp | DO8: C | DQ8: Cold Settling/Soak Finish Time | EC8: Volume | EE8: 250 | EF8: kL | EH8: Inlet Juce Temp | EK8: C | EM8: Cold Settling/Soak Finish Time | EY8: Volume | FA8: 250 | FB8: kL | FD8: Inlet Juce Temp | FG8: C | FI8: Cold Settling/Soak Finish Time | FU8: Volume | FW8: 250 | FX8: kL | FZ8: Inlet Juce Temp | GC8: C | GE8: Cold Settling/Soak Finish Time | GQ8: Volume | GS8: 250 | GT8: kL | GV8: Inlet Juce Temp | GY8: C | HA8: Cold Settling/Soak Finish Time | HM8: Volume | HO8: 250 | HP8: kL | HR8: Inlet Juce Temp | HU8: C | HW8: Cold Settling/Soak Finish Time | II8: Volume | IK8: 250 | IL8: kL | IN8: Inlet Juce Temp | IQ8: C | IS8: Cold Settling/Soak Finish Time | JE8: Volume | JG8: 250 | JH8: kL | JJ8: Inlet Juce Temp | JM8: C | JO8: Cold Settling/Soak Finish Time | KA8: Volume | KC8: 250 | KD8: kL | KF8: Inlet Juce Temp | KI8: C | KK8: Cold Settling/Soak Finish Time | KW8: Volume | KY8: 250 | KZ8: kL | LB8: Inlet Juce Temp | LE8: C | LG8: Cold Settling/Soak Finish Time | LS8: Volume | LU8: 250 | LV8: kL | LX8: Inlet Juce Temp | MA8: C | MC8: Cold Settling/Soak Finish Time | MO8: Volume | MQ8: 250 | MR8: kL | MT8: Inlet Juce Temp | MW8: C | MY8: Cold Settling/Soak Finish Time | NK8: Volume | NM8: 250 | NN8: kL | NP8: Inlet Juce Temp | NS8: C | NU8: Cold Settling/Soak Finish Time | OG8: Volume | OI8: 250 | OJ8: kL | OL8: Inlet Juce Temp | OO8: C | OQ8: Cold Settling/Soak Finish Time | PC8: Volume | PE8: 250 | PF8: kL | PH8: Inlet Juce Temp | PK8: C | PM8: Cold Settling/Soak Finish Time | PY8: Volume | QA8: 267 | QB8: kL | QD8: Inlet Juce Temp | QG8: C | QI8: Cold Settling/Soak Finish Time | QU8: Volume | QW8: 250 | QX8: kL | QZ8: Inlet Juce Temp | RC8: C | RE8: Cold Settling/Soak Finish Time | RQ8: Volume | RS8: 250 | RT8: kL | RV8: Inlet Juce Temp | RY8: C | SA8: Cold Settling/Soak Finish Time | SM8: Volume | SO8: 250 | SP8: kL | SR8: Inlet Juce Temp | SU8: C | SW8: Cold Settling/Soak Finish Time | TI8: Volume | TK8: 250 | TL8: kL | TN8: Inlet Juce Temp | TQ8: C | TS8: Cold Settling/Soak Finish Time | UE8: Volume | UG8: 250 | UH8: kL | UJ8: Inlet Juce Temp | UM8: C | UO8: Cold Settling/Soak Finish Time | VA8: Volume | VC8: 250 | VD8: kL | VF8: Inlet Juce Temp | VI8: C | VK8: Cold Settling/Soak Finish Time | VW8: Volume | VY8: 250 | VZ8: kL | WB8: Inlet Juce Temp | WE8: C | WG8: Cold Settling/Soak Finish Time | WS8: Volume | WU8: 250 | WV8: kL | WX8: Inlet Juce Temp | XA8: C | XC8: Cold Settling/Soak Finish Time | XO8: Volume | XQ8: 250 | XR8: kL | XT8: Inlet Juce Temp | XW8: C | XY8: Cold Settling/Soak Finish Time | YK8: Volume | YM8: 250 | YN8: kL | YP8: Inlet Juce Temp | YS8: C | YU8: Cold Settling/Soak Finish Time | ZG8: Volume | ZI8: 250 | ZJ8: kL | ZL8: Inlet Juce Temp | ZO8: C | ZQ8: Cold Settling/Soak Finish Time | AAC8: Volume | AAE8: 250 | AAF8: kL | AAH8: Inlet Juce Temp | AAK8: C | AAM8: Cold Settling/Soak Finish Time | AAY8: Volume | ABA8: 250 | ABB8: kL | ABD8: Inlet Juce Temp | ABG8: C | ABI8: Cold Settling/Soak Finish Time | ABU8: Volume | ABW8: 250 | ABX8: kL | ABZ8: Inlet Juce Temp | ACC8: C | ACE8: Cold Settling/Soak Finish Time | ACQ8: Volume | ACS8: 250 | ACT8: kL | ACV8: Inlet Juce Temp | ACY8: C | ADA8: Cold Settling/Soak Finish Time | ADM8: Volume | ADO8: 250 | ADP8: kL | ADR8: Inlet Juce Temp | ADU8: C | ADW8: Cold Settling/Soak Finish Time | AEI8: Volume | AEK8: 250 | AEL8: kL | AEN8: Inlet Juce Temp | AEQ8: C | AES8: Cold Settling/Soak Finish Time | AFE8: Volume | AFG8: 250 | AFH8: kL | AFJ8: Inlet Juce Temp | AFM8: C | AFO8: Cold Settling/Soak Finish Time | AGA8: Volume | AGC8: 250 | AGD8: kL | AGF8: Inlet Juce Temp | AGI8: C | AGK8: Cold Settling/Soak Finish Time | AGW8: Volume | AGY8: 267 | AGZ8: kL | AHB8: Inlet Juce Temp | AHE8: C | AHG8: Cold Settling/Soak Finish Time | AHS8: Volume | AHU8: 250 | AHV8: kL | AHX8: Inlet Juce Temp | AIA8: C | AIC8: Cold Settling/Soak Finish Time | AIO8: Volume | AIQ8: 250 | AIR8: kL | AIT8: Inlet Juce Temp | AIW8: C | AIY8: Cold Settling/Soak Finish Time | AJK8: Volume | AJM8: 250 | AJN8: kL | AJP8: Inlet Juce Temp | AJS8: C | AJU8: Cold Settling/Soak Finish Time | AKG8: Volume | AKI8: 250 | AKJ8: kL | AKL8: Inlet Juce Temp | AKO8: C | AKQ8: Cold Settling/Soak Finish Time | ALC8: Volume | ALE8: 250 | ALF8: kL | ALH8: Inlet Juce Temp | ALK8: C | ALM8: Cold Settling/Soak Finish Time | ALY8: Volume | AMA8: 250 | AMB8: kL | AMD8: Inlet Juce Temp | AMG8: C | AMI8: Cold Settling/Soak Finish Time | AMU8: Volume | AMW8: 250 | AMX8: kL | AMZ8: Inlet Juce Temp | ANC8: C | ANE8: Cold Settling/Soak Finish Time | ANQ8: Volume | ANS8: 250 | ANT8: kL | ANV8: Inlet Juce Temp | ANY8: C | AOA8: Cold Settling/Soak Finish Time | AOM8: Volume | AOO8: 250 | AOP8: kL | AOR8: Inlet Juce Temp | AOU8: C | AOW8: Cold Settling/Soak Finish Time | API8: Volume | APK8: 250 | APL8: kL | APN8: Inlet Juce Temp | APQ8: C | APS8: Cold Settling/Soak Finish Time | AQE8: Volume | AQG8: 250 | AQH8: kL | AQJ8: Inlet Juce Temp | AQM8: C | AQO8: Cold Settling/Soak Finish Time | ARA8: Volume | ARC8: 250 | ARD8: kL | ARF8: Inlet Juce Temp | ARI8: C | ARK8: Cold Settling/Soak Finish Time | ARW8: Volume | ARY8: 250 | ARZ8: kL | ASB8: Inlet Juce Temp | ASE8: C | ASG8: Cold Settling/Soak Finish Time | ASS8: Volume | ASU8: 250 | ASV8: kL | ASX8: Inlet Juce Temp | ATA8: C | ATC8: Cold Settling/Soak Finish Time | ATO8: Volume | ATQ8: 250 | ATR8: kL | ATT8: Inlet Juce Temp | ATW8: C | ATY8: Cold Settling/Soak Finish Time | AUK8: Volume | AUM8: 250 | AUN8: kL | AUP8: Inlet Juce Temp | AUS8: C | AUU8: Cold Settling/Soak Finish Time | AVG8: Volume | AVI8: 250 | AVJ8: kL | AVL8: Inlet Juce Temp | AVO8: C | AVQ8: Cold Settling/Soak Finish Time | AWC8: Volume | AWE8: 250 | AWF8: kL | AWH8: Inlet Juce Temp | AWK8: C | AWM8: Cold Settling/Soak Finish Time | AWY8: Volume | AXA8: 250 | AXB8: kL | AXD8: Inlet Juce Temp | AXG8: C | AXI8: Cold Settling/Soak Finish Time | AXU8: Volume | AXW8: 267 | AXX8: kL | AXZ8: Inlet Juce Temp | AYC8: C | AYE8: Cold Settling/Soak Finish Time | AYQ8: Volume | AYS8: 250 | AYT8: kL | AYV8: Inlet Juce Temp | AYY8: C | AZA8: Cold Settling/Soak Finish Time | AZM8: Volume | AZO8: 250 | AZP8: kL | AZR8: Inlet Juce Temp | AZU8: C | AZW8: Cold Settling/Soak Finish Time | BAI8: Volume | BAK8: 250 | BAL8: kL | BAN8: Inlet Juce Temp | BAQ8: C | BAS8: Cold Settling/Soak Finish Time | BBE8: Volume | BBG8: 250 | BBH8: kL | BBJ8: Inlet Juce Temp | BBM8: C | BBO8: Cold Settling/Soak Finish Time | BCA8: Volume | BCC8: 250 | BCD8: kL | BCF8: Inlet Juce Temp | BCI8: C | BCK8: Cold Settling/Soak Finish Time | BCW8: Volume | BCY8: 250 | BCZ8: kL | BDB8: Inlet Juce Temp | BDE8: C | BDG8: Cold Settling/Soak Finish Time | BDS8: Volume | BDU8: 250 | BDV8: kL | BDX8: Inlet Juce Temp | BEA8: C | BEC8: Cold Settling/Soak Finish Time | BEO8: Volume | BEQ8: 250 | BER8: kL | BET8: Inlet Juce Temp | BEW8: C | BEY8: Cold Settling/Soak Finish Time | BFK8: Volume | BFM8: 250 | BFN8: kL | BFP8: Inlet Juce Temp | BFS8: C | BFU8: Cold Settling/Soak Finish Time | BGG8: Volume | BGI8: 250 | BGJ8: kL | BGL8: Inlet Juce Temp | BGO8: C | BGQ8: Cold Settling/Soak Finish Time | BHC8: Volume | BHE8: 250 | BHF8: kL | BHH8: Inlet Juce Temp | BHK8: C | BHM8: Cold Settling/Soak Finish Time | BHY8: Volume | BIA8: 250 | BIB8: kL | BID8: Inlet Juce Temp | BIG8: C | BII8: Cold Settling/Soak Finish Time | BIU8: Volume | BIW8: 250 | BIX8: kL | BIZ8: Inlet Juce Temp | BJC8: C | BJE8: Cold Settling/Soak Finish Time | BJQ8: Volume | BJS8: 250 | BJT8: kL | BJV8: Inlet Juce Temp | BJY8: C | BKA8: Cold Settling/Soak Finish Time | BKM8: Volume | BKO8: 250 | BKP8: kL | BKR8: Inlet Juce Temp | BKU8: C | BKW8: Cold Settling/Soak Finish Time | BLI8: Volume | BLK8: 250 | BLL8: kL | BLN8: Inlet Juce Temp | BLQ8: C | BLS8: Cold Settling/Soak Finish Time | BME8: Volume | BMG8: 250 | BMH8: kL | BMJ8: Inlet Juce Temp | BMM8: C | BMO8: Cold Settling/Soak Finish Time | BNA8: Volume | BNC8: 250 | BND8: kL | BNF8: Inlet Juce Temp | BNI8: C | BNK8: Cold Settling/Soak Finish Time | BNW8: Volume | BNY8: 250 | BNZ8: kL | BOB8: Inlet Juce Temp | BOE8: C | BOG8: Cold Settling/Soak Finish Time | BOS8: Volume | BOU8: 267 | BOV8: kL | BOX8: Inlet Juce Temp | BPA8: C | BPC8: Cold Settling/Soak Finish Time | BPO8: Volume | BPQ8: 250 | BPR8: kL | BPT8: Inlet Juce Temp | BPW8: C | BPY8: Cold Settling/Soak Finish Time | BQK8: Volume | BQM8: 250 | BQN8: kL | BQP8: Inlet Juce Temp | BQS8: C | BQU8: Cold Settling/Soak Finish Time | BRG8: Volume | BRI8: 250 | BRJ8: kL | BRL8: Inlet Juce Temp | BRO8: C | BRQ8: Cold Settling/Soak Finish Time | BSC8: Volume | BSE8: 250 | BSF8: kL | BSH8: Inlet Juce Temp | BSK8: C | BSM8: Cold Settling/Soak Finish Time | BSY8: Volume | BTA8: 250 | BTB8: kL | BTD8: Inlet Juce Temp | BTG8: C | BTI8: Cold Settling/Soak Finish Time | BTU8: Volume | BTW8: 250 | BTX8: kL | BTZ8: Inlet Juce Temp | BUC8: C | BUE8: Cold Settling/Soak Finish Time | BUQ8: Volume | BUS8: 250 | BUT8: kL | BUV8: Inlet Juce Temp | BUY8: C | BVA8: Cold Settling/Soak Finish Time | BVM8: Volume | BVO8: 250 | BVP8: kL | BVR8: Inlet Juce Temp | BVU8: C | BVW8: Cold Settling/Soak Finish Time | BWI8: Volume | BWK8: 250 | BWL8: kL | BWN8: Inlet Juce Temp | BWQ8: C | BWS8: Cold Settling/Soak Finish Time | BXE8: Volume | BXG8: 250 | BXH8: kL | BXJ8: Inlet Juce Temp | BXM8: C | BXO8: Cold Settling/Soak Finish Time | BYA8: Volume | BYC8: 250 | BYD8: kL | BYF8: Inlet Juce Temp | BYI8: C | BYK8: Cold Settling/Soak Finish Time | BYW8: Volume | BYY8: 250 | BYZ8: kL | BZB8: Inlet Juce Temp | BZE8: C | BZG8: Cold Settling/Soak Finish Time | BZS8: Volume | BZU8: 250 | BZV8: kL | BZX8: Inlet Juce Temp | CAA8: C | CAC8: Cold Settling/Soak Finish Time | CAO8: Volume | CAQ8: 250 | CAR8: kL | CAT8: Inlet Juce Temp | CAW8: C | CAY8: Cold Settling/Soak Finish Time | CBK8: Volume | CBM8: 250 | CBN8: kL | CBP8: Inlet Juce Temp | CBS8: C | CBU8: Cold Settling/Soak Finish Time | CCG8: Volume | CCI8: 250 | CCJ8: kL | CCL8: Inlet Juce Temp | CCO8: C | CCQ8: Cold Settling/Soak Finish Time | CDC8: Volume | CDE8: 250 | CDF8: kL | CDH8: Inlet Juce Temp | CDK8: C | CDM8: Cold Settling/Soak Finish Time | CDY8: Volume | CEA8: 250 | CEB8: kL | CED8: Inlet Juce Temp | CEG8: C | CEI8: Cold Settling/Soak Finish Time | CEU8: Volume | CEW8: 250 | CEX8: kL | CEZ8: Inlet Juce Temp | CFC8: C | CFE8: Cold Settling/Soak Finish Time
A9: Initial Cell mass | D9: g/L | F9: Outlet Juice Temp | H9: 4 | I9: C | K9: Time Step | M9: 27 | W9: Initial Cell mass | Z9: g/L | AB9: Outlet Juice Temp | AD9: 4 | AE9: C | AG9: Time Step | AI9: 27 | AS9: Initial Cell mass | AV9: g/L | AX9: Outlet Juice Temp | AZ9: 4 | BA9: C | BC9: Time Step | BE9: 27 | BO9: Initial Cell mass | BR9: g/L | BT9: Outlet Juice Temp | BW9: C | BY9: Time Step | CA9: =(CA7-'Full Vintage Planner'!$C$8)*8+INT(CA8*8) -> -327272 | CK9: Initial Cell mass | CN9: g/L | CP9: Outlet Juice Temp | CS9: C | CU9: Time Step | CW9: =(CW7-'Full Vintage Planner'!$C$8)*8+INT(CW8*8) -> -327272 | DG9: Initial Cell mass | DJ9: g/L | DL9: Outlet Juice Temp | DO9: C | DQ9: Time Step | DS9: =(DS7-'Full Vintage Planner'!$C$8)*8+INT(DS8*8) -> -327272 | EC9: Initial Cell mass | EF9: g/L | EH9: Outlet Juice Temp | EK9: C | EM9: Time Step | EO9: =(EO7-'Full Vintage Planner'!$C$8)*8+INT(EO8*8) -> -327272 | EY9: Initial Cell mass | FB9: g/L | FD9: Outlet Juice Temp | FG9: C | FI9: Time Step | FK9: =(FK7-'Full Vintage Planner'!$C$8)*8+INT(FK8*8) -> -327272 | FU9: Initial Cell mass | FX9: g/L | FZ9: Outlet Juice Temp | GC9: C | GE9: Time Step | GG9: =(GG7-'Full Vintage Planner'!$C$8)*8+INT(GG8*8) -> -327272 | GQ9: Initial Cell mass | GT9: g/L | GV9: Outlet Juice Temp | GY9: C | HA9: Time Step | HC9: =(HC7-'Full Vintage Planner'!$C$8)*8+INT(HC8*8) -> -327272 | HM9: Initial Cell mass | HP9: g/L | HR9: Outlet Juice Temp | HU9: C | HW9: Time Step | HY9: =(HY7-'Full Vintage Planner'!$C$8)*8+INT(HY8*8) -> -327272 | II9: Initial Cell mass | IL9: g/L | IN9: Outlet Juice Temp | IQ9: C | IS9: Time Step | IU9: =(IU7-'Full Vintage Planner'!$C$8)*8+INT(IU8*8) -> -327272 | JE9: Initial Cell mass | JH9: g/L | JJ9: Outlet Juice Temp | JM9: C | JO9: Time Step | JQ9: =(JQ7-'Full Vintage Planner'!$C$8)*8+INT(JQ8*8) -> -327272 | KA9: Initial Cell mass | KD9: g/L | KF9: Outlet Juice Temp | KI9: C | KK9: Time Step | KM9: =(KM7-'Full Vintage Planner'!$C$8)*8+INT(KM8*8) -> -327272 | KW9: Initial Cell mass | KZ9: g/L | LB9: Outlet Juice Temp | LE9: C | LG9: Time Step | LI9: =(LI7-'Full Vintage Planner'!$C$8)*8+INT(LI8*8) -> -327272 | LS9: Initial Cell mass | LV9: g/L | LX9: Outlet Juice Temp | MA9: C | MC9: Time Step | ME9: =(ME7-'Full Vintage Planner'!$C$8)*8+INT(ME8*8) -> -327272 | MO9: Initial Cell mass | MR9: g/L | MT9: Outlet Juice Temp | MW9: C | MY9: Time Step | NA9: =(NA7-'Full Vintage Planner'!$C$8)*8+INT(NA8*8) -> -327272 | NK9: Initial Cell mass | NN9: g/L | NP9: Outlet Juice Temp | NS9: C | NU9: Time Step | NW9: =(NW7-'Full Vintage Planner'!$C$8)*8+INT(NW8*8) -> -327272 | OG9: Initial Cell mass | OJ9: g/L | OL9: Outlet Juice Temp | OO9: C | OQ9: Time Step | OS9: =(OS7-'Full Vintage Planner'!$C$8)*8+INT(OS8*8) -> -327272 | PC9: Initial Cell mass | PF9: g/L | PH9: Outlet Juice Temp | PK9: C | PM9: Time Step | PO9: =(PO7-'Full Vintage Planner'!$C$8)*8+INT(PO8*8) -> -327272 | PY9: Initial Cell mass | QB9: g/L | QD9: Outlet Juice Temp | QG9: C | QI9: Time Step | QK9: =(QK7-'Full Vintage Planner'!$C$8)*8+INT(QK8*8) -> -327272 | QU9: Initial Cell mass | QX9: g/L | QZ9: Outlet Juice Temp | RC9: C | RE9: Time Step | RG9: =(RG7-'Full Vintage Planner'!$C$8)*8+INT(RG8*8) -> -327272 | RQ9: Initial Cell mass | RT9: g/L | RV9: Outlet Juice Temp | RY9: C | SA9: Time Step | SC9: =(SC7-'Full Vintage Planner'!$C$8)*8+INT(SC8*8) -> -327272 | SM9: Initial Cell mass | SP9: g/L | SR9: Outlet Juice Temp | SU9: C | SW9: Time Step | SY9: =(SY7-'Full Vintage Planner'!$C$8)*8+INT(SY8*8) -> -327272 | TI9: Initial Cell mass | TL9: g/L | TN9: Outlet Juice Temp | TQ9: C | TS9: Time Step | TU9: =(TU7-'Full Vintage Planner'!$C$8)*8+INT(TU8*8) -> -327272 | UE9: Initial Cell mass | UH9: g/L | UJ9: Outlet Juice Temp | UM9: C | UO9: Time Step | UQ9: =(UQ7-'Full Vintage Planner'!$C$8)*8+INT(UQ8*8) -> -327272 | VA9: Initial Cell mass | VD9: g/L | VF9: Outlet Juice Temp | VI9: C | VK9: Time Step | VM9: =(VM7-'Full Vintage Planner'!$C$8)*8+INT(VM8*8) -> -327272 | VW9: Initial Cell mass | VZ9: g/L | WB9: Outlet Juice Temp | WE9: C | WG9: Time Step | WI9: =(WI7-'Full Vintage Planner'!$C$8)*8+INT(WI8*8) -> -327272 | WS9: Initial Cell mass | WV9: g/L | WX9: Outlet Juice Temp | XA9: C | XC9: Time Step | XE9: =(XE7-'Full Vintage Planner'!$C$8)*8+INT(XE8*8) -> -327272 | XO9: Initial Cell mass | XR9: g/L | XT9: Outlet Juice Temp | XW9: C | XY9: Time Step | YA9: =(YA7-'Full Vintage Planner'!$C$8)*8+INT(YA8*8) -> -327272 | YK9: Initial Cell mass | YN9: g/L | YP9: Outlet Juice Temp | YS9: C | YU9: Time Step | YW9: =(YW7-'Full Vintage Planner'!$C$8)*8+INT(YW8*8) -> -327272 | ZG9: Initial Cell mass | ZJ9: g/L | ZL9: Outlet Juice Temp | ZO9: C | ZQ9: Time Step | ZS9: =(ZS7-'Full Vintage Planner'!$C$8)*8+INT(ZS8*8) -> -327272 | AAC9: Initial Cell mass | AAF9: g/L | AAH9: Outlet Juice Temp | AAK9: C | AAM9: Time Step | AAO9: =(AAO7-'Full Vintage Planner'!$C$8)*8+INT(AAO8*8) -> -327272 | AAY9: Initial Cell mass | ABB9: g/L | ABD9: Outlet Juice Temp | ABG9: C | ABI9: Time Step | ABK9: =(ABK7-'Full Vintage Planner'!$C$8)*8+INT(ABK8*8) -> -327272 | ABU9: Initial Cell mass | ABX9: g/L | ABZ9: Outlet Juice Temp | ACC9: C | ACE9: Time Step | ACG9: =(ACG7-'Full Vintage Planner'!$C$8)*8+INT(ACG8*8) -> -327272 | ACQ9: Initial Cell mass | ACT9: g/L | ACV9: Outlet Juice Temp | ACY9: C | ADA9: Time Step | ADC9: =(ADC7-'Full Vintage Planner'!$C$8)*8+INT(ADC8*8) -> -327272 | ADM9: Initial Cell mass | ADP9: g/L | ADR9: Outlet Juice Temp | ADU9: C | ADW9: Time Step | ADY9: =(ADY7-'Full Vintage Planner'!$C$8)*8+INT(ADY8*8) -> -327272 | AEI9: Initial Cell mass | AEL9: g/L | AEN9: Outlet Juice Temp | AEQ9: C | AES9: Time Step | AEU9: =(AEU7-'Full Vintage Planner'!$C$8)*8+INT(AEU8*8) -> -327272 | AFE9: Initial Cell mass | AFH9: g/L | AFJ9: Outlet Juice Temp | AFM9: C | AFO9: Time Step | AFQ9: =(AFQ7-'Full Vintage Planner'!$C$8)*8+INT(AFQ8*8) -> -327272 | AGA9: Initial Cell mass | AGD9: g/L | AGF9: Outlet Juice Temp | AGI9: C | AGK9: Time Step | AGM9: =(AGM7-'Full Vintage Planner'!$C$8)*8+INT(AGM8*8) -> -327272 | AGW9: Initial Cell mass | AGZ9: g/L | AHB9: Outlet Juice Temp | AHE9: C | AHG9: Time Step | AHI9: =(AHI7-'Full Vintage Planner'!$C$8)*8+INT(AHI8*8) -> -327272 | AHS9: Initial Cell mass | AHV9: g/L | AHX9: Outlet Juice Temp | AIA9: C | AIC9: Time Step | AIE9: =(AIE7-'Full Vintage Planner'!$C$8)*8+INT(AIE8*8) -> -327272 | AIO9: Initial Cell mass | AIR9: g/L | AIT9: Outlet Juice Temp | AIW9: C | AIY9: Time Step | AJA9: =(AJA7-'Full Vintage Planner'!$C$8)*8+INT(AJA8*8) -> -327272 | AJK9: Initial Cell mass | AJN9: g/L | AJP9: Outlet Juice Temp | AJS9: C | AJU9: Time Step | AJW9: =(AJW7-'Full Vintage Planner'!$C$8)*8+INT(AJW8*8) -> -327272 | AKG9: Initial Cell mass | AKJ9: g/L | AKL9: Outlet Juice Temp | AKO9: C | AKQ9: Time Step | AKS9: =(AKS7-'Full Vintage Planner'!$C$8)*8+INT(AKS8*8) -> -327272 | ALC9: Initial Cell mass | ALF9: g/L | ALH9: Outlet Juice Temp | ALK9: C | ALM9: Time Step | ALO9: =(ALO7-'Full Vintage Planner'!$C$8)*8+INT(ALO8*8) -> -327272 | ALY9: Initial Cell mass | AMB9: g/L | AMD9: Outlet Juice Temp | AMG9: C | AMI9: Time Step | AMK9: =(AMK7-'Full Vintage Planner'!$C$8)*8+INT(AMK8*8) -> -327272 | AMU9: Initial Cell mass | AMX9: g/L | AMZ9: Outlet Juice Temp | ANC9: C | ANE9: Time Step | ANG9: =(ANG7-'Full Vintage Planner'!$C$8)*8+INT(ANG8*8) -> -327272 | ANQ9: Initial Cell mass | ANT9: g/L | ANV9: Outlet Juice Temp | ANY9: C | AOA9: Time Step | AOC9: =(AOC7-'Full Vintage Planner'!$C$8)*8+INT(AOC8*8) -> -327272 | AOM9: Initial Cell mass | AOP9: g/L | AOR9: Outlet Juice Temp | AOU9: C | AOW9: Time Step | AOY9: =(AOY7-'Full Vintage Planner'!$C$8)*8+INT(AOY8*8) -> -327272 | API9: Initial Cell mass | APL9: g/L | APN9: Outlet Juice Temp | APQ9: C | APS9: Time Step | APU9: =(APU7-'Full Vintage Planner'!$C$8)*8+INT(APU8*8) -> -327272 | AQE9: Initial Cell mass | AQH9: g/L | AQJ9: Outlet Juice Temp | AQM9: C | AQO9: Time Step | AQQ9: =(AQQ7-'Full Vintage Planner'!$C$8)*8+INT(AQQ8*8) -> -327272 | ARA9: Initial Cell mass | ARD9: g/L | ARF9: Outlet Juice Temp | ARI9: C | ARK9: Time Step | ARM9: =(ARM7-'Full Vintage Planner'!$C$8)*8+INT(ARM8*8) -> -327272 | ARW9: Initial Cell mass | ARZ9: g/L | ASB9: Outlet Juice Temp | ASE9: C | ASG9: Time Step | ASI9: =(ASI7-'Full Vintage Planner'!$C$8)*8+INT(ASI8*8) -> -327272 | ASS9: Initial Cell mass | ASV9: g/L | ASX9: Outlet Juice Temp | ATA9: C | ATC9: Time Step | ATE9: =(ATE7-'Full Vintage Planner'!$C$8)*8+INT(ATE8*8) -> -327272 | ATO9: Initial Cell mass | ATR9: g/L | ATT9: Outlet Juice Temp | ATW9: C | ATY9: Time Step | AUA9: =(AUA7-'Full Vintage Planner'!$C$8)*8+INT(AUA8*8) -> -327272 | AUK9: Initial Cell mass | AUN9: g/L | AUP9: Outlet Juice Temp | AUS9: C | AUU9: Time Step | AUW9: =(AUW7-'Full Vintage Planner'!$C$8)*8+INT(AUW8*8) -> -327272 | AVG9: Initial Cell mass | AVJ9: g/L | AVL9: Outlet Juice Temp | AVO9: C | AVQ9: Time Step | AVS9: =(AVS7-'Full Vintage Planner'!$C$8)*8+INT(AVS8*8) -> -327272 | AWC9: Initial Cell mass | AWF9: g/L | AWH9: Outlet Juice Temp | AWK9: C | AWM9: Time Step | AWO9: =(AWO7-'Full Vintage Planner'!$C$8)*8+INT(AWO8*8) -> -327272 | AWY9: Initial Cell mass | AXB9: g/L | AXD9: Outlet Juice Temp | AXG9: C | AXI9: Time Step | AXK9: =(AXK7-'Full Vintage Planner'!$C$8)*8+INT(AXK8*8) -> -327272 | AXU9: Initial Cell mass | AXX9: g/L | AXZ9: Outlet Juice Temp | AYC9: C | AYE9: Time Step | AYG9: =(AYG7-'Full Vintage Planner'!$C$8)*8+INT(AYG8*8) -> -327272 | AYQ9: Initial Cell mass | AYT9: g/L | AYV9: Outlet Juice Temp | AYY9: C | AZA9: Time Step | AZC9: =(AZC7-'Full Vintage Planner'!$C$8)*8+INT(AZC8*8) -> -327272 | AZM9: Initial Cell mass | AZP9: g/L | AZR9: Outlet Juice Temp | AZU9: C | AZW9: Time Step | AZY9: =(AZY7-'Full Vintage Planner'!$C$8)*8+INT(AZY8*8) -> -327272 | BAI9: Initial Cell mass | BAL9: g/L | BAN9: Outlet Juice Temp | BAQ9: C | BAS9: Time Step | BAU9: =(BAU7-'Full Vintage Planner'!$C$8)*8+INT(BAU8*8) -> -327272 | BBE9: Initial Cell mass | BBH9: g/L | BBJ9: Outlet Juice Temp | BBM9: C | BBO9: Time Step | BBQ9: =(BBQ7-'Full Vintage Planner'!$C$8)*8+INT(BBQ8*8) -> -327272 | BCA9: Initial Cell mass | BCD9: g/L | BCF9: Outlet Juice Temp | BCI9: C | BCK9: Time Step | BCM9: =(BCM7-'Full Vintage Planner'!$C$8)*8+INT(BCM8*8) -> -327272 | BCW9: Initial Cell mass | BCZ9: g/L | BDB9: Outlet Juice Temp | BDE9: C | BDG9: Time Step | BDI9: =(BDI7-'Full Vintage Planner'!$C$8)*8+INT(BDI8*8) -> -327272 | BDS9: Initial Cell mass | BDV9: g/L | BDX9: Outlet Juice Temp | BEA9: C | BEC9: Time Step | BEE9: =(BEE7-'Full Vintage Planner'!$C$8)*8+INT(BEE8*8) -> -327272 | BEO9: Initial Cell mass | BER9: g/L | BET9: Outlet Juice Temp | BEW9: C | BEY9: Time Step | BFA9: =(BFA7-'Full Vintage Planner'!$C$8)*8+INT(BFA8*8) -> -327272 | BFK9: Initial Cell mass | BFN9: g/L | BFP9: Outlet Juice Temp | BFS9: C | BFU9: Time Step | BFW9: =(BFW7-'Full Vintage Planner'!$C$8)*8+INT(BFW8*8) -> -327272 | BGG9: Initial Cell mass | BGJ9: g/L | BGL9: Outlet Juice Temp | BGO9: C | BGQ9: Time Step | BGS9: =(BGS7-'Full Vintage Planner'!$C$8)*8+INT(BGS8*8) -> -327272 | BHC9: Initial Cell mass | BHF9: g/L | BHH9: Outlet Juice Temp | BHK9: C | BHM9: Time Step | BHO9: =(BHO7-'Full Vintage Planner'!$C$8)*8+INT(BHO8*8) -> -327272 | BHY9: Initial Cell mass | BIB9: g/L | BID9: Outlet Juice Temp | BIG9: C | BII9: Time Step | BIK9: =(BIK7-'Full Vintage Planner'!$C$8)*8+INT(BIK8*8) -> -327272 | BIU9: Initial Cell mass | BIX9: g/L | BIZ9: Outlet Juice Temp | BJC9: C | BJE9: Time Step | BJG9: =(BJG7-'Full Vintage Planner'!$C$8)*8+INT(BJG8*8) -> -327272 | BJQ9: Initial Cell mass | BJT9: g/L | BJV9: Outlet Juice Temp | BJY9: C | BKA9: Time Step | BKC9: =(BKC7-'Full Vintage Planner'!$C$8)*8+INT(BKC8*8) -> -327272 | BKM9: Initial Cell mass | BKP9: g/L | BKR9: Outlet Juice Temp | BKU9: C | BKW9: Time Step | BKY9: =(BKY7-'Full Vintage Planner'!$C$8)*8+INT(BKY8*8) -> -327272 | BLI9: Initial Cell mass | BLL9: g/L | BLN9: Outlet Juice Temp | BLQ9: C | BLS9: Time Step | BLU9: =(BLU7-'Full Vintage Planner'!$C$8)*8+INT(BLU8*8) -> -327272 | BME9: Initial Cell mass | BMH9: g/L | BMJ9: Outlet Juice Temp | BMM9: C | BMO9: Time Step | BMQ9: =(BMQ7-'Full Vintage Planner'!$C$8)*8+INT(BMQ8*8) -> -327272 | BNA9: Initial Cell mass | BND9: g/L | BNF9: Outlet Juice Temp | BNI9: C | BNK9: Time Step | BNM9: =(BNM7-'Full Vintage Planner'!$C$8)*8+INT(BNM8*8) -> -327272 | BNW9: Initial Cell mass | BNZ9: g/L | BOB9: Outlet Juice Temp | BOE9: C | BOG9: Time Step | BOI9: =(BOI7-'Full Vintage Planner'!$C$8)*8+INT(BOI8*8) -> -327272 | BOS9: Initial Cell mass | BOV9: g/L | BOX9: Outlet Juice Temp | BPA9: C | BPC9: Time Step | BPE9: =(BPE7-'Full Vintage Planner'!$C$8)*8+INT(BPE8*8) -> -327272 | BPO9: Initial Cell mass | BPR9: g/L | BPT9: Outlet Juice Temp | BPW9: C | BPY9: Time Step | BQA9: =(BQA7-'Full Vintage Planner'!$C$8)*8+INT(BQA8*8) -> -327272 | BQK9: Initial Cell mass | BQN9: g/L | BQP9: Outlet Juice Temp | BQS9: C | BQU9: Time Step | BQW9: =(BQW7-'Full Vintage Planner'!$C$8)*8+INT(BQW8*8) -> -327272 | BRG9: Initial Cell mass | BRJ9: g/L | BRL9: Outlet Juice Temp | BRO9: C | BRQ9: Time Step | BRS9: =(BRS7-'Full Vintage Planner'!$C$8)*8+INT(BRS8*8) -> -327272 | BSC9: Initial Cell mass | BSF9: g/L | BSH9: Outlet Juice Temp | BSK9: C | BSM9: Time Step | BSO9: =(BSO7-'Full Vintage Planner'!$C$8)*8+INT(BSO8*8) -> -327272 | BSY9: Initial Cell mass | BTB9: g/L | BTD9: Outlet Juice Temp | BTG9: C | BTI9: Time Step | BTK9: =(BTK7-'Full Vintage Planner'!$C$8)*8+INT(BTK8*8) -> -327272 | BTU9: Initial Cell mass | BTX9: g/L | BTZ9: Outlet Juice Temp | BUC9: C | BUE9: Time Step | BUG9: =(BUG7-'Full Vintage Planner'!$C$8)*8+INT(BUG8*8) -> -327272 | BUQ9: Initial Cell mass | BUT9: g/L | BUV9: Outlet Juice Temp | BUY9: C | BVA9: Time Step | BVC9: =(BVC7-'Full Vintage Planner'!$C$8)*8+INT(BVC8*8) -> -327272 | BVM9: Initial Cell mass | BVP9: g/L | BVR9: Outlet Juice Temp | BVU9: C | BVW9: Time Step | BVY9: =(BVY7-'Full Vintage Planner'!$C$8)*8+INT(BVY8*8) -> -327272 | BWI9: Initial Cell mass | BWL9: g/L | BWN9: Outlet Juice Temp | BWQ9: C | BWS9: Time Step | BWU9: =(BWU7-'Full Vintage Planner'!$C$8)*8+INT(BWU8*8) -> -327272 | BXE9: Initial Cell mass | BXH9: g/L | BXJ9: Outlet Juice Temp | BXM9: C | BXO9: Time Step | BXQ9: =(BXQ7-'Full Vintage Planner'!$C$8)*8+INT(BXQ8*8) -> -327272 | BYA9: Initial Cell mass | BYD9: g/L | BYF9: Outlet Juice Temp | BYI9: C | BYK9: Time Step | BYM9: =(BYM7-'Full Vintage Planner'!$C$8)*8+INT(BYM8*8) -> -327272 | BYW9: Initial Cell mass | BYZ9: g/L | BZB9: Outlet Juice Temp | BZE9: C | BZG9: Time Step | BZI9: =(BZI7-'Full Vintage Planner'!$C$8)*8+INT(BZI8*8) -> -327272 | BZS9: Initial Cell mass | BZV9: g/L | BZX9: Outlet Juice Temp | CAA9: C | CAC9: Time Step | CAE9: =(CAE7-'Full Vintage Planner'!$C$8)*8+INT(CAE8*8) -> -327272 | CAO9: Initial Cell mass | CAR9: g/L | CAT9: Outlet Juice Temp | CAW9: C | CAY9: Time Step | CBA9: =(CBA7-'Full Vintage Planner'!$C$8)*8+INT(CBA8*8) -> -327272 | CBK9: Initial Cell mass | CBN9: g/L | CBP9: Outlet Juice Temp | CBS9: C | CBU9: Time Step | CBW9: =(CBW7-'Full Vintage Planner'!$C$8)*8+INT(CBW8*8) -> -327272 | CCG9: Initial Cell mass | CCJ9: g/L | CCL9: Outlet Juice Temp | CCO9: C | CCQ9: Time Step | CCS9: =(CCS7-'Full Vintage Planner'!$C$8)*8+INT(CCS8*8) -> -327272 | CDC9: Initial Cell mass | CDF9: g/L | CDH9: Outlet Juice Temp | CDK9: C | CDM9: Time Step | CDO9: =(CDO7-'Full Vintage Planner'!$C$8)*8+INT(CDO8*8) -> -327272 | CDY9: Initial Cell mass | CEB9: g/L | CED9: Outlet Juice Temp | CEG9: C | CEI9: Time Step | CEK9: =(CEK7-'Full Vintage Planner'!$C$8)*8+INT(CEK8*8) -> -327272 | CEU9: Initial Cell mass | CEX9: g/L | CEZ9: Outlet Juice Temp | CFC9: C | CFE9: Time Step | CFG9: =(CFG7-'Full Vintage Planner'!$C$8)*8+INT(CFG8*8) -> -327272
A10: Initial N | C10: 0.197 | D10: g/L | K10: Cold Settling/Soak Temperature | M10: 2 | N10: C | W10: Initial N | Y10: 0.25 | Z10: g/L | AG10: Cold Settling/Soak Temperature | AI10: 2 | AJ10: C | AS10: Initial N | AU10: 0.2 | AV10: g/L | BC10: Cold Settling/Soak Temperature | BE10: 2 | BF10: C | BO10: Initial N | BQ10: 0.13 | BR10: g/L | BY10: Cold Settling/Soak Temperature | CB10: C | CK10: Initial N | CM10: 0.2 | CN10: g/L | CU10: Cold Settling/Soak Temperature | CX10: C | DG10: Initial N | DI10: 0.14 | DJ10: g/L | DQ10: Cold Settling/Soak Temperature | DT10: C | EC10: Initial N | EE10: 0.13 | EF10: g/L | EM10: Cold Settling/Soak Temperature | EP10: C | EY10: Initial N | FA10: 0.18 | FB10: g/L | FI10: Cold Settling/Soak Temperature | FL10: C | FU10: Initial N | FW10: 0.18 | FX10: g/L | GE10: Cold Settling/Soak Temperature | GH10: C | GQ10: Initial N | GS10: 0.21 | GT10: g/L | HA10: Cold Settling/Soak Temperature | HD10: C | HM10: Initial N | HO10: 0.18 | HP10: g/L | HW10: Cold Settling/Soak Temperature | HZ10: C | II10: Initial N | IK10: 0.15 | IL10: g/L | IS10: Cold Settling/Soak Temperature | IV10: C | JE10: Initial N | JG10: 0.18 | JH10: g/L | JO10: Cold Settling/Soak Temperature | JR10: C | KA10: Initial N | KC10: 0.18 | KD10: g/L | KK10: Cold Settling/Soak Temperature | KN10: C | KW10: Initial N | KY10: 0.18 | KZ10: g/L | LG10: Cold Settling/Soak Temperature | LJ10: C | LS10: Initial N | LU10: 0.18 | LV10: g/L | MC10: Cold Settling/Soak Temperature | MF10: C | MO10: Initial N | MQ10: 0.18 | MR10: g/L | MY10: Cold Settling/Soak Temperature | NB10: C | NK10: Initial N | NM10: 0.18 | NN10: g/L | NU10: Cold Settling/Soak Temperature | NX10: C | OG10: Initial N | OI10: 0.18 | OJ10: g/L | OQ10: Cold Settling/Soak Temperature | OT10: C | PC10: Initial N | PE10: 0.18 | PF10: g/L | PM10: Cold Settling/Soak Temperature | PP10: C | PY10: Initial N | QA10: 0.197 | QB10: g/L | QI10: Cold Settling/Soak Temperature | QL10: C | QU10: Initial N | QW10: 0.25 | QX10: g/L | RE10: Cold Settling/Soak Temperature | RH10: C | RQ10: Initial N | RS10: 0.18 | RT10: g/L | SA10: Cold Settling/Soak Temperature | SD10: C | SM10: Initial N | SO10: 0.18 | SP10: g/L | SW10: Cold Settling/Soak Temperature | SZ10: C | TI10: Initial N | TK10: 0.2 | TL10: g/L | TS10: Cold Settling/Soak Temperature | TV10: C | UE10: Initial N | UG10: 0.14 | UH10: g/L | UO10: Cold Settling/Soak Temperature | UR10: C | VA10: Initial N | VC10: 0.13 | VD10: g/L | VK10: Cold Settling/Soak Temperature | VN10: C | VW10: Initial N | VY10: 0.18 | VZ10: g/L | WG10: Cold Settling/Soak Temperature | WJ10: C | WS10: Initial N | WU10: 0.18 | WV10: g/L | XC10: Cold Settling/Soak Temperature | XF10: C | XO10: Initial N | XQ10: 0.21 | XR10: g/L | XY10: Cold Settling/Soak Temperature | YB10: C | YK10: Initial N | YM10: 0.18 | YN10: g/L | YU10: Cold Settling/Soak Temperature | YX10: C | ZG10: Initial N | ZI10: 0.15 | ZJ10: g/L | ZQ10: Cold Settling/Soak Temperature | ZT10: C | AAC10: Initial N | AAE10: 0.18 | AAF10: g/L | AAM10: Cold Settling/Soak Temperature | AAP10: C | AAY10: Initial N | ABA10: 0.18 | ABB10: g/L | ABI10: Cold Settling/Soak Temperature | ABL10: C | ABU10: Initial N | ABW10: 0.18 | ABX10: g/L | ACE10: Cold Settling/Soak Temperature | ACH10: C | ACQ10: Initial N | ACS10: 0.18 | ACT10: g/L | ADA10: Cold Settling/Soak Temperature | ADD10: C | ADM10: Initial N | ADO10: 0.18 | ADP10: g/L | ADW10: Cold Settling/Soak Temperature | ADZ10: C | AEI10: Initial N | AEK10: 0.18 | AEL10: g/L | AES10: Cold Settling/Soak Temperature | AEV10: C | AFE10: Initial N | AFG10: 0.18 | AFH10: g/L | AFO10: Cold Settling/Soak Temperature | AFR10: C | AGA10: Initial N | AGC10: 0.18 | AGD10: g/L | AGK10: Cold Settling/Soak Temperature | AGN10: C | AGW10: Initial N | AGY10: 0.197 | AGZ10: g/L | AHG10: Cold Settling/Soak Temperature | AHJ10: C | AHS10: Initial N | AHU10: 0.25 | AHV10: g/L | AIC10: Cold Settling/Soak Temperature | AIF10: C | AIO10: Initial N | AIQ10: 0.18 | AIR10: g/L | AIY10: Cold Settling/Soak Temperature | AJB10: C | AJK10: Initial N | AJM10: 0.18 | AJN10: g/L | AJU10: Cold Settling/Soak Temperature | AJX10: C | AKG10: Initial N | AKI10: 0.2 | AKJ10: g/L | AKQ10: Cold Settling/Soak Temperature | AKT10: C | ALC10: Initial N | ALE10: 0.14 | ALF10: g/L | ALM10: Cold Settling/Soak Temperature | ALP10: C | ALY10: Initial N | AMA10: 0.13 | AMB10: g/L | AMI10: Cold Settling/Soak Temperature | AML10: C | AMU10: Initial N | AMW10: 0.18 | AMX10: g/L | ANE10: Cold Settling/Soak Temperature | ANH10: C | ANQ10: Initial N | ANS10: 0.18 | ANT10: g/L | AOA10: Cold Settling/Soak Temperature | AOD10: C | AOM10: Initial N | AOO10: 0.21 | AOP10: g/L | AOW10: Cold Settling/Soak Temperature | AOZ10: C | API10: Initial N | APK10: 0.18 | APL10: g/L | APS10: Cold Settling/Soak Temperature | APV10: C | AQE10: Initial N | AQG10: 0.15 | AQH10: g/L | AQO10: Cold Settling/Soak Temperature | AQR10: C | ARA10: Initial N | ARC10: 0.18 | ARD10: g/L | ARK10: Cold Settling/Soak Temperature | ARN10: C | ARW10: Initial N | ARY10: 0.18 | ARZ10: g/L | ASG10: Cold Settling/Soak Temperature | ASJ10: C | ASS10: Initial N | ASU10: 0.18 | ASV10: g/L | ATC10: Cold Settling/Soak Temperature | ATF10: C | ATO10: Initial N | ATQ10: 0.18 | ATR10: g/L | ATY10: Cold Settling/Soak Temperature | AUB10: C | AUK10: Initial N | AUM10: 0.18 | AUN10: g/L | AUU10: Cold Settling/Soak Temperature | AUX10: C | AVG10: Initial N | AVI10: 0.18 | AVJ10: g/L | AVQ10: Cold Settling/Soak Temperature | AVT10: C | AWC10: Initial N | AWE10: 0.18 | AWF10: g/L | AWM10: Cold Settling/Soak Temperature | AWP10: C | AWY10: Initial N | AXA10: 0.18 | AXB10: g/L | AXI10: Cold Settling/Soak Temperature | AXL10: C | AXU10: Initial N | AXW10: 0.197 | AXX10: g/L | AYE10: Cold Settling/Soak Temperature | AYH10: C | AYQ10: Initial N | AYS10: 0.25 | AYT10: g/L | AZA10: Cold Settling/Soak Temperature | AZD10: C | AZM10: Initial N | AZO10: 0.18 | AZP10: g/L | AZW10: Cold Settling/Soak Temperature | AZZ10: C | BAI10: Initial N | BAK10: 0.18 | BAL10: g/L | BAS10: Cold Settling/Soak Temperature | BAV10: C | BBE10: Initial N | BBG10: 0.2 | BBH10: g/L | BBO10: Cold Settling/Soak Temperature | BBR10: C | BCA10: Initial N | BCC10: 0.14 | BCD10: g/L | BCK10: Cold Settling/Soak Temperature | BCN10: C | BCW10: Initial N | BCY10: 0.13 | BCZ10: g/L | BDG10: Cold Settling/Soak Temperature | BDJ10: C | BDS10: Initial N | BDU10: 0.18 | BDV10: g/L | BEC10: Cold Settling/Soak Temperature | BEF10: C | BEO10: Initial N | BEQ10: 0.18 | BER10: g/L | BEY10: Cold Settling/Soak Temperature | BFB10: C | BFK10: Initial N | BFM10: 0.21 | BFN10: g/L | BFU10: Cold Settling/Soak Temperature | BFX10: C | BGG10: Initial N | BGI10: 0.18 | BGJ10: g/L | BGQ10: Cold Settling/Soak Temperature | BGT10: C | BHC10: Initial N | BHE10: 0.15 | BHF10: g/L | BHM10: Cold Settling/Soak Temperature | BHP10: C | BHY10: Initial N | BIA10: 0.18 | BIB10: g/L | BII10: Cold Settling/Soak Temperature | BIL10: C | BIU10: Initial N | BIW10: 0.18 | BIX10: g/L | BJE10: Cold Settling/Soak Temperature | BJH10: C | BJQ10: Initial N | BJS10: 0.18 | BJT10: g/L | BKA10: Cold Settling/Soak Temperature | BKD10: C | BKM10: Initial N | BKO10: 0.18 | BKP10: g/L | BKW10: Cold Settling/Soak Temperature | BKZ10: C | BLI10: Initial N | BLK10: 0.18 | BLL10: g/L | BLS10: Cold Settling/Soak Temperature | BLV10: C | BME10: Initial N | BMG10: 0.18 | BMH10: g/L | BMO10: Cold Settling/Soak Temperature | BMR10: C | BNA10: Initial N | BNC10: 0.18 | BND10: g/L | BNK10: Cold Settling/Soak Temperature | BNN10: C | BNW10: Initial N | BNY10: 0.18 | BNZ10: g/L | BOG10: Cold Settling/Soak Temperature | BOJ10: C | BOS10: Initial N | BOU10: 0.197 | BOV10: g/L | BPC10: Cold Settling/Soak Temperature | BPF10: C | BPO10: Initial N | BPQ10: 0.25 | BPR10: g/L | BPY10: Cold Settling/Soak Temperature | BQB10: C | BQK10: Initial N | BQM10: 0.18 | BQN10: g/L | BQU10: Cold Settling/Soak Temperature | BQX10: C | BRG10: Initial N | BRI10: 0.18 | BRJ10: g/L | BRQ10: Cold Settling/Soak Temperature | BRT10: C | BSC10: Initial N | BSE10: 0.2 | BSF10: g/L | BSM10: Cold Settling/Soak Temperature | BSP10: C | BSY10: Initial N | BTA10: 0.14 | BTB10: g/L | BTI10: Cold Settling/Soak Temperature | BTL10: C | BTU10: Initial N | BTW10: 0.13 | BTX10: g/L | BUE10: Cold Settling/Soak Temperature | BUH10: C | BUQ10: Initial N | BUS10: 0.18 | BUT10: g/L | BVA10: Cold Settling/Soak Temperature | BVD10: C | BVM10: Initial N | BVO10: 0.18 | BVP10: g/L | BVW10: Cold Settling/Soak Temperature | BVZ10: C | BWI10: Initial N | BWK10: 0.21 | BWL10: g/L | BWS10: Cold Settling/Soak Temperature | BWV10: C | BXE10: Initial N | BXG10: 0.18 | BXH10: g/L | BXO10: Cold Settling/Soak Temperature | BXR10: C | BYA10: Initial N | BYC10: 0.15 | BYD10: g/L | BYK10: Cold Settling/Soak Temperature | BYN10: C | BYW10: Initial N | BYY10: 0.18 | BYZ10: g/L | BZG10: Cold Settling/Soak Temperature | BZJ10: C | BZS10: Initial N | BZU10: 0.18 | BZV10: g/L | CAC10: Cold Settling/Soak Temperature | CAF10: C | CAO10: Initial N | CAQ10: 0.18 | CAR10: g/L | CAY10: Cold Settling/Soak Temperature | CBB10: C | CBK10: Initial N | CBM10: 0.18 | CBN10: g/L | CBU10: Cold Settling/Soak Temperature | CBX10: C | CCG10: Initial N | CCI10: 0.18 | CCJ10: g/L | CCQ10: Cold Settling/Soak Temperature | CCT10: C | CDC10: Initial N | CDE10: 0.18 | CDF10: g/L | CDM10: Cold Settling/Soak Temperature | CDP10: C | CDY10: Initial N | CEA10: 0.18 | CEB10: g/L | CEI10: Cold Settling/Soak Temperature | CEL10: C | CEU10: Initial N | CEW10: 0.18 | CEX10: g/L | CFE10: Cold Settling/Soak Temperature | CFH10: C
A11: Insulation U value | C11: 3 | D11: W/m2/C | W11: Insulation U value | Y11: 3 | Z11: W/m2/C | AS11: Insulation U value | AU11: 3 | AV11: W/m2/C | BO11: Insulation U value | BQ11: 3 | BR11: W/m2/C | CK11: Insulation U value | CM11: 3 | CN11: W/m2/C | DG11: Insulation U value | DI11: 3 | DJ11: W/m2/C | EC11: Insulation U value | EE11: 3 | EF11: W/m2/C | EY11: Insulation U value | FA11: 3 | FB11: W/m2/C | FU11: Insulation U value | FW11: 3 | FX11: W/m2/C | GQ11: Insulation U value | GS11: 3 | GT11: W/m2/C | HM11: Insulation U value | HO11: 3 | HP11: W/m2/C | II11: Insulation U value | IK11: 3 | IL11: W/m2/C | JE11: Insulation U value | JG11: 3 | JH11: W/m2/C | KA11: Insulation U value | KC11: 3 | KD11: W/m2/C | KW11: Insulation U value | KY11: 3 | KZ11: W/m2/C | LS11: Insulation U value | LU11: 3 | LV11: W/m2/C | MO11: Insulation U value | MQ11: 3 | MR11: W/m2/C | NK11: Insulation U value | NM11: 3 | NN11: W/m2/C | OG11: Insulation U value | OI11: 3 | OJ11: W/m2/C | PC11: Insulation U value | PE11: 3 | PF11: W/m2/C | PY11: Insulation U value | QA11: 3 | QB11: W/m2/C | QU11: Insulation U value | QW11: 3 | QX11: W/m2/C | RQ11: Insulation U value | RS11: 3 | RT11: W/m2/C | SM11: Insulation U value | SO11: 3 | SP11: W/m2/C | TI11: Insulation U value | TK11: 3 | TL11: W/m2/C | UE11: Insulation U value | UG11: 3 | UH11: W/m2/C | VA11: Insulation U value | VC11: 3 | VD11: W/m2/C | VW11: Insulation U value | VY11: 3 | VZ11: W/m2/C | WS11: Insulation U value | WU11: 3 | WV11: W/m2/C | XO11: Insulation U value | XQ11: 3 | XR11: W/m2/C | YK11: Insulation U value | YM11: 3 | YN11: W/m2/C | ZG11: Insulation U value | ZI11: 3 | ZJ11: W/m2/C | AAC11: Insulation U value | AAE11: 3 | AAF11: W/m2/C | AAY11: Insulation U value | ABA11: 3 | ABB11: W/m2/C | ABU11: Insulation U value | ABW11: 3 | ABX11: W/m2/C | ACQ11: Insulation U value | ACS11: 3 | ACT11: W/m2/C | ADM11: Insulation U value | ADO11: 3 | ADP11: W/m2/C | AEI11: Insulation U value | AEK11: 3 | AEL11: W/m2/C | AFE11: Insulation U value | AFG11: 3 | AFH11: W/m2/C | AGA11: Insulation U value | AGC11: 3 | AGD11: W/m2/C | AGW11: Insulation U value | AGY11: 3 | AGZ11: W/m2/C | AHS11: Insulation U value | AHU11: 3 | AHV11: W/m2/C | AIO11: Insulation U value | AIQ11: 3 | AIR11: W/m2/C | AJK11: Insulation U value | AJM11: 3 | AJN11: W/m2/C | AKG11: Insulation U value | AKI11: 3 | AKJ11: W/m2/C | ALC11: Insulation U value | ALE11: 3 | ALF11: W/m2/C | ALY11: Insulation U value | AMA11: 3 | AMB11: W/m2/C | AMU11: Insulation U value | AMW11: 3 | AMX11: W/m2/C | ANQ11: Insulation U value | ANS11: 3 | ANT11: W/m2/C | AOM11: Insulation U value | AOO11: 3 | AOP11: W/m2/C | API11: Insulation U value | APK11: 3 | APL11: W/m2/C | AQE11: Insulation U value | AQG11: 3 | AQH11: W/m2/C | ARA11: Insulation U value | ARC11: 3 | ARD11: W/m2/C | ARW11: Insulation U value | ARY11: 3 | ARZ11: W/m2/C | ASS11: Insulation U value | ASU11: 3 | ASV11: W/m2/C | ATO11: Insulation U value | ATQ11: 3 | ATR11: W/m2/C | AUK11: Insulation U value | AUM11: 3 | AUN11: W/m2/C | AVG11: Insulation U value | AVI11: 3 | AVJ11: W/m2/C | AWC11: Insulation U value | AWE11: 3 | AWF11: W/m2/C | AWY11: Insulation U value | AXA11: 3 | AXB11: W/m2/C | AXU11: Insulation U value | AXW11: 3 | AXX11: W/m2/C | AYQ11: Insulation U value | AYS11: 3 | AYT11: W/m2/C | AZM11: Insulation U value | AZO11: 3 | AZP11: W/m2/C | BAI11: Insulation U value | BAK11: 3 | BAL11: W/m2/C | BBE11: Insulation U value | BBG11: 3 | BBH11: W/m2/C | BCA11: Insulation U value | BCC11: 3 | BCD11: W/m2/C | BCW11: Insulation U value | BCY11: 3 | BCZ11: W/m2/C | BDS11: Insulation U value | BDU11: 3 | BDV11: W/m2/C | BEO11: Insulation U value | BEQ11: 3 | BER11: W/m2/C | BFK11: Insulation U value | BFM11: 3 | BFN11: W/m2/C | BGG11: Insulation U value | BGI11: 3 | BGJ11: W/m2/C | BHC11: Insulation U value | BHE11: 3 | BHF11: W/m2/C | BHY11: Insulation U value | BIA11: 3 | BIB11: W/m2/C | BIU11: Insulation U value | BIW11: 3 | BIX11: W/m2/C | BJQ11: Insulation U value | BJS11: 3 | BJT11: W/m2/C | BKM11: Insulation U value | BKO11: 3 | BKP11: W/m2/C | BLI11: Insulation U value | BLK11: 3 | BLL11: W/m2/C | BME11: Insulation U value | BMG11: 3 | BMH11: W/m2/C | BNA11: Insulation U value | BNC11: 3 | BND11: W/m2/C | BNW11: Insulation U value | BNY11: 3 | BNZ11: W/m2/C | BOS11: Insulation U value | BOU11: 3 | BOV11: W/m2/C | BPO11: Insulation U value | BPQ11: 3 | BPR11: W/m2/C | BQK11: Insulation U value | BQM11: 3 | BQN11: W/m2/C | BRG11: Insulation U value | BRI11: 3 | BRJ11: W/m2/C | BSC11: Insulation U value | BSE11: 3 | BSF11: W/m2/C | BSY11: Insulation U value | BTA11: 3 | BTB11: W/m2/C | BTU11: Insulation U value | BTW11: 3 | BTX11: W/m2/C | BUQ11: Insulation U value | BUS11: 3 | BUT11: W/m2/C | BVM11: Insulation U value | BVO11: 3 | BVP11: W/m2/C | BWI11: Insulation U value | BWK11: 3 | BWL11: W/m2/C | BXE11: Insulation U value | BXG11: 3 | BXH11: W/m2/C | BYA11: Insulation U value | BYC11: 3 | BYD11: W/m2/C | BYW11: Insulation U value | BYY11: 3 | BYZ11: W/m2/C | BZS11: Insulation U value | BZU11: 3 | BZV11: W/m2/C | CAO11: Insulation U value | CAQ11: 3 | CAR11: W/m2/C | CBK11: Insulation U value | CBM11: 3 | CBN11: W/m2/C | CCG11: Insulation U value | CCI11: 3 | CCJ11: W/m2/C | CDC11: Insulation U value | CDE11: 3 | CDF11: W/m2/C | CDY11: Insulation U value | CEA11: 3 | CEB11: W/m2/C | CEU11: Insulation U value | CEW11: 3 | CEX11: W/m2/C
A12: Desired ferment duration | C12: 8 | D12: days | W12: Desired ferment duration | Y12: 10 | Z12: days | AS12: Desired ferment duration | AU12: 10 | AV12: days | BO12: Desired ferment duration | BQ12: 7 | BR12: days | CK12: Desired ferment duration | CM12: 8 | CN12: days | DG12: Desired ferment duration | DI12: 8 | DJ12: days | EC12: Desired ferment duration | EE12: 11.5 | EF12: days | EY12: Desired ferment duration | FA12: 9 | FB12: days | FU12: Desired ferment duration | FW12: 8 | FX12: days | GQ12: Desired ferment duration | GS12: 8 | GT12: days | HM12: Desired ferment duration | HO12: 8 | HP12: days | II12: Desired ferment duration | IK12: 8 | IL12: days | JE12: Desired ferment duration | JG12: 10 | JH12: days | KA12: Desired ferment duration | KC12: 8 | KD12: days | KW12: Desired ferment duration | KY12: 8 | KZ12: days | LS12: Desired ferment duration | LU12: 8 | LV12: days | MO12: Desired ferment duration | MQ12: 8 | MR12: days | NK12: Desired ferment duration | NM12: 8 | NN12: days | OG12: Desired ferment duration | OI12: 8 | OJ12: days | PC12: Desired ferment duration | PE12: 5 | PF12: days | PY12: Desired ferment duration | QA12: 8 | QB12: days | QU12: Desired ferment duration | QW12: 8 | QX12: days | RQ12: Desired ferment duration | RS12: 10 | RT12: days | SM12: Desired ferment duration | SO12: 7 | SP12: days | TI12: Desired ferment duration | TK12: 8 | TL12: days | UE12: Desired ferment duration | UG12: 8 | UH12: days | VA12: Desired ferment duration | VC12: 8 | VD12: days | VW12: Desired ferment duration | VY12: 9 | VZ12: days | WS12: Desired ferment duration | WU12: 8 | WV12: days | XO12: Desired ferment duration | XQ12: 8 | XR12: days | YK12: Desired ferment duration | YM12: 8 | YN12: days | ZG12: Desired ferment duration | ZI12: 8 | ZJ12: days | AAC12: Desired ferment duration | AAE12: 10 | AAF12: days | AAY12: Desired ferment duration | ABA12: 8 | ABB12: days | ABU12: Desired ferment duration | ABW12: 8 | ABX12: days | ACQ12: Desired ferment duration | ACS12: 8 | ACT12: days | ADM12: Desired ferment duration | ADO12: 8 | ADP12: days | AEI12: Desired ferment duration | AEK12: 8 | AEL12: days | AFE12: Desired ferment duration | AFG12: 8 | AFH12: days | AGA12: Desired ferment duration | AGC12: 5 | AGD12: days | AGW12: Desired ferment duration | AGY12: 8 | AGZ12: days | AHS12: Desired ferment duration | AHU12: 8 | AHV12: days | AIO12: Desired ferment duration | AIQ12: 10 | AIR12: days | AJK12: Desired ferment duration | AJM12: 7 | AJN12: days | AKG12: Desired ferment duration | AKI12: 8 | AKJ12: days | ALC12: Desired ferment duration | ALE12: 8 | ALF12: days | ALY12: Desired ferment duration | AMA12: 8 | AMB12: days | AMU12: Desired ferment duration | AMW12: 9 | AMX12: days | ANQ12: Desired ferment duration | ANS12: 8 | ANT12: days | AOM12: Desired ferment duration | AOO12: 8 | AOP12: days | API12: Desired ferment duration | APK12: 8 | APL12: days | AQE12: Desired ferment duration | AQG12: 8 | AQH12: days | ARA12: Desired ferment duration | ARC12: 10 | ARD12: days | ARW12: Desired ferment duration | ARY12: 8 | ARZ12: days | ASS12: Desired ferment duration | ASU12: 8 | ASV12: days | ATO12: Desired ferment duration | ATQ12: 8 | ATR12: days | AUK12: Desired ferment duration | AUM12: 8 | AUN12: days | AVG12: Desired ferment duration | AVI12: 8 | AVJ12: days | AWC12: Desired ferment duration | AWE12: 8 | AWF12: days | AWY12: Desired ferment duration | AXA12: 5 | AXB12: days | AXU12: Desired ferment duration | AXW12: 8 | AXX12: days | AYQ12: Desired ferment duration | AYS12: 8 | AYT12: days | AZM12: Desired ferment duration | AZO12: 10 | AZP12: days | BAI12: Desired ferment duration | BAK12: 7 | BAL12: days | BBE12: Desired ferment duration | BBG12: 8 | BBH12: days | BCA12: Desired ferment duration | BCC12: 8 | BCD12: days | BCW12: Desired ferment duration | BCY12: 8 | BCZ12: days | BDS12: Desired ferment duration | BDU12: 9 | BDV12: days | BEO12: Desired ferment duration | BEQ12: 8 | BER12: days | BFK12: Desired ferment duration | BFM12: 8 | BFN12: days | BGG12: Desired ferment duration | BGI12: 8 | BGJ12: days | BHC12: Desired ferment duration | BHE12: 8 | BHF12: days | BHY12: Desired ferment duration | BIA12: 10 | BIB12: days | BIU12: Desired ferment duration | BIW12: 8 | BIX12: days | BJQ12: Desired ferment duration | BJS12: 8 | BJT12: days | BKM12: Desired ferment duration | BKO12: 8 | BKP12: days | BLI12: Desired ferment duration | BLK12: 8 | BLL12: days | BME12: Desired ferment duration | BMG12: 8 | BMH12: days | BNA12: Desired ferment duration | BNC12: 8 | BND12: days | BNW12: Desired ferment duration | BNY12: 5 | BNZ12: days | BOS12: Desired ferment duration | BOU12: 8 | BOV12: days | BPO12: Desired ferment duration | BPQ12: 8 | BPR12: days | BQK12: Desired ferment duration | BQM12: 10 | BQN12: days | BRG12: Desired ferment duration | BRI12: 7 | BRJ12: days | BSC12: Desired ferment duration | BSE12: 8 | BSF12: days | BSY12: Desired ferment duration | BTA12: 8 | BTB12: days | BTU12: Desired ferment duration | BTW12: 8 | BTX12: days | BUQ12: Desired ferment duration | BUS12: 9 | BUT12: days | BVM12: Desired ferment duration | BVO12: 8 | BVP12: days | BWI12: Desired ferment duration | BWK12: 8 | BWL12: days | BXE12: Desired ferment duration | BXG12: 8 | BXH12: days | BYA12: Desired ferment duration | BYC12: 8 | BYD12: days | BYW12: Desired ferment duration | BYY12: 10 | BYZ12: days | BZS12: Desired ferment duration | BZU12: 8 | BZV12: days | CAO12: Desired ferment duration | CAQ12: 8 | CAR12: days | CBK12: Desired ferment duration | CBM12: 8 | CBN12: days | CCG12: Desired ferment duration | CCI12: 8 | CCJ12: days | CDC12: Desired ferment duration | CDE12: 8 | CDF12: days | CDY12: Desired ferment duration | CEA12: 8 | CEB12: days | CEU12: Desired ferment duration | CEW12: 5 | CEX12: days
A14: Prediction score | C14: 9.319154591 | F14: Ex tank | H14: 123 | W14: Prediction score | Y14: 13.455939 | AB14: Ex tank | AD14: 123 | AS14: Prediction score | AU14: 30.95792808 | AX14: Ex tank | AZ14: 123 | BO14: Prediction score | BQ14: 10.80125419 | BT14: Ex tank | CK14: Prediction score | CM14: 9.157526291 | CP14: Ex tank | DG14: Prediction score | DI14: 16.58674614 | DL14: Ex tank | EC14: Prediction score | EE14: 60.89949388 | EH14: Ex tank | EY14: Prediction score | FA14: 7.082833809 | FD14: Ex tank | FU14: Prediction score | FW14: 24.41579626 | FZ14: Ex tank | GQ14: Prediction score | GS14: 13.2292277 | GV14: Ex tank | HM14: Prediction score | HO14: 9.139071308 | HR14: Ex tank | II14: Prediction score | IK14: 10.62903356 | IN14: Ex tank | JE14: Prediction score | JG14: 4.947326959 | JJ14: Ex tank | KA14: Prediction score | KC14: 3.606383167 | KF14: Ex tank | KW14: Prediction score | KY14: 9.948564847 | LB14: Ex tank | LS14: Prediction score | LU14: 13.02930903 | LX14: Ex tank | MO14: Prediction score | MQ14: 10.47505183 | MT14: Ex tank | NK14: Prediction score | NM14: 15.52731361 | NP14: Ex tank | OG14: Prediction score | OI14: 10.47505183 | OL14: Ex tank | PC14: Prediction score | PE14: 17.90238768 | PH14: Ex tank | PY14: Prediction score | QA14: 5.696780122 | QD14: Ex tank | QU14: Prediction score | QW14: 30.88634552 | QZ14: Ex tank | RQ14: Prediction score | RS14: 22.41053289 | RV14: Ex tank | SM14: Prediction score | SO14: 10.27042595 | SR14: Ex tank | TI14: Prediction score | TK14: 10.47505183 | TN14: Ex tank | UE14: Prediction score | UG14: 16.66052479 | UJ14: Ex tank | VA14: Prediction score | VC14: 19.4941398 | VF14: Ex tank | VW14: Prediction score | VY14: 7.031073293 | WB14: Ex tank | WS14: Prediction score | WU14: 24.43800549 | WX14: Ex tank | XO14: Prediction score | XQ14: 16.00828604 | XT14: Ex tank | YK14: Prediction score | YM14: 9.205308609 | YP14: Ex tank | ZG14: Prediction score | ZI14: 10.54756499 | ZL14: Ex tank | AAC14: Prediction score | AAE14: 4.951992537 | AAH14: Ex tank | AAY14: Prediction score | ABA14: 5.190613643 | ABD14: Ex tank | ABU14: Prediction score | ABW14: 10.68232989 | ABZ14: Ex tank | ACQ14: Prediction score | ACS14: 13.83585374 | ACV14: Ex tank | ADM14: Prediction score | ADO14: 10.47505183 | ADR14: Ex tank | AEI14: Prediction score | AEK14: 14.3951212 | AEN14: Ex tank | AFE14: Prediction score | AFG14: 10.47505183 | AFJ14: Ex tank | AGA14: Prediction score | AGC14: 16.3349326 | AGF14: Ex tank | AGW14: Prediction score | AGY14: 5.577608956 | AHB14: Ex tank | AHS14: Prediction score | AHU14: 30.80313865 | AHX14: Ex tank | AIO14: Prediction score | AIQ14: 22.62492472 | AIT14: Ex tank | AJK14: Prediction score | AJM14: 10.2852765 | AJP14: Ex tank | AKG14: Prediction score | AKI14: 10.47505183 | AKL14: Ex tank | ALC14: Prediction score | ALE14: 16.61876215 | ALH14: Ex tank | ALY14: Prediction score | AMA14: 19.4639854 | AMD14: Ex tank | AMU14: Prediction score | AMW14: 6.956433086 | AMZ14: Ex tank | ANQ14: Prediction score | ANS14: 24.4281558 | ANV14: Ex tank | AOM14: Prediction score | AOO14: 15.46585771 | AOR14: Ex tank | API14: Prediction score | APK14: 9.200025721 | APN14: Ex tank | AQE14: Prediction score | AQG14: 10.56265728 | AQJ14: Ex tank | ARA14: Prediction score | ARC14: 4.869666595 | ARF14: Ex tank | ARW14: Prediction score | ARY14: 6.350436343 | ASB14: Ex tank | ASS14: Prediction score | ASU14: 7.443769417 | ASX14: Ex tank | ATO14: Prediction score | ATQ14: 13.15016007 | ATT14: Ex tank | AUK14: Prediction score | AUM14: 10.47505183 | AUP14: Ex tank | AVG14: Prediction score | AVI14: 15.85613111 | AVL14: Ex tank | AWC14: Prediction score | AWE14: 10.47505183 | AWH14: Ex tank | AWY14: Prediction score | AXA14: 14.35673548 | AXD14: Ex tank | AXU14: Prediction score | AXW14: 6.430904092 | AXZ14: Ex tank | AYQ14: Prediction score | AYS14: 30.79365816 | AYV14: Ex tank | AZM14: Prediction score | AZO14: 22.55854656 | AZR14: Ex tank | BAI14: Prediction score | BAK14: 10.53299605 | BAN14: Ex tank | BBE14: Prediction score | BBG14: 10.47505183 | BBJ14: Ex tank | BCA14: Prediction score | BCC14: 16.49949903 | BCF14: Ex tank | BCW14: Prediction score | BCY14: 18.24456159 | BDB14: Ex tank | BDS14: Prediction score | BDU14: 6.92751096 | BDX14: Ex tank | BEO14: Prediction score | BEQ14: 24.41926573 | BET14: Ex tank | BFK14: Prediction score | BFM14: 13.50674439 | BFP14: Ex tank | BGG14: Prediction score | BGI14: 9.124359563 | BGL14: Ex tank | BHC14: Prediction score | BHE14: 10.57240647 | BHH14: Ex tank | BHY14: Prediction score | BIA14: 4.727313426 | BID14: Ex tank | BIU14: Prediction score | BIW14: 4.972603601 | BIZ14: Ex tank | BJQ14: Prediction score | BJS14: 7.933586601 | BJV14: Ex tank | BKM14: Prediction score | BKO14: 13.84698809 | BKR14: Ex tank | BLI14: Prediction score | BLK14: 10.47505183 | BLN14: Ex tank | BME14: Prediction score | BMG14: 14.61937954 | BMJ14: Ex tank | BNA14: Prediction score | BNC14: 10.47505183 | BNF14: Ex tank | BNW14: Prediction score | BNY14: 18.11230226 | BOB14: Ex tank | BOS14: Prediction score | BOU14: 5.98253639 | BOX14: Ex tank | BPO14: Prediction score | BPQ14: 30.81698881 | BPT14: Ex tank | BQK14: Prediction score | BQM14: 22.30622128 | BQP14: Ex tank | BRG14: Prediction score | BRI14: 10.54350778 | BRL14: Ex tank | BSC14: Prediction score | BSE14: 10.47505183 | BSH14: Ex tank | BSY14: Prediction score | BTA14: 16.58083526 | BTD14: Ex tank | BTU14: Prediction score | BTW14: 19.56028901 | BTZ14: Ex tank | BUQ14: Prediction score | BUS14: 6.939702058 | BUV14: Ex tank | BVM14: Prediction score | BVO14: 24.72781994 | BVR14: Ex tank | BWI14: Prediction score | BWK14: 16.9869315 | BWN14: Ex tank | BXE14: Prediction score | BXG14: 9.146831003 | BXJ14: Ex tank | BYA14: Prediction score | BYC14: 10.52782324 | BYF14: Ex tank | BYW14: Prediction score | BYY14: 5.512054055 | BZB14: Ex tank | BZS14: Prediction score | BZU14: 5.435235129 | BZX14: Ex tank | CAO14: Prediction score | CAQ14: 11.02397937 | CAT14: Ex tank | CBK14: Prediction score | CBM14: 13.91166597 | CBP14: Ex tank | CCG14: Prediction score | CCI14: 10.47505183 | CCL14: Ex tank | CDC14: Prediction score | CDE14: 16.68344574 | CDH14: Ex tank | CDY14: Prediction score | CEA14: 10.47505183 | CED14: Ex tank | CEU14: Prediction score | CEW14: 13.91966467 | CEZ14: Ex tank
A15: Refrigeration cost | C15: 1167.57748 | F15: Yeast type | H15: Yeast AWRI1234 | L15: Update Ferment 1 Prediction | W15: Refrigeration cost | Y15: 1123.147818 | AB15: Yeast type | AD15: Yeast AWRI1234 | AH15: Update Ferment 2 Prediction | AS15: Refrigeration cost | AU15: 1261.686695 | AX15: Yeast type | AZ15: Yeast AWRI1234 | BD15: Update Ferment 3 Prediction | BO15: Refrigeration cost | BQ15: 1314.370172 | BT15: Yeast type | BZ15: Update Ferment 4 Prediction | CK15: Refrigeration cost | CM15: 1049.726081 | CP15: Yeast type | CV15: Update Ferment 5 Prediction | DG15: Refrigeration cost | DI15: 977.181512 | DL15: Yeast type | DR15: Update Ferment 6 Prediction | EC15: Refrigeration cost | EE15: 1203.36748 | EH15: Yeast type | EN15: Update Ferment 7 Prediction | EY15: Refrigeration cost | FA15: 1199.438656 | FD15: Yeast type | FJ15: Update Ferment 8 Prediction | FU15: Refrigeration cost | FW15: 1175.555948 | FZ15: Yeast type | GF15: Update Ferment 9 Prediction | GQ15: Refrigeration cost | GS15: 1120.59207 | GV15: Yeast type | HB15: Update Ferment 10 Prediction | HM15: Refrigeration cost | HO15: 1308.198818 | HR15: Yeast type | HX15: Update Ferment 11 Prediction | II15: Refrigeration cost | IK15: 1508.00349 | IN15: Yeast type | IT15: Update Ferment 12 Prediction | JE15: Refrigeration cost | JG15: 1254.384353 | JJ15: Yeast type | JP15: Update Ferment 13 Prediction | KA15: Refrigeration cost | KC15: 1239.845576 | KF15: Yeast type | KL15: Update Ferment 14 Prediction | KW15: Refrigeration cost | KY15: 1221.641242 | LB15: Yeast type | LH15: Update Ferment 15 Prediction | LS15: Refrigeration cost | LU15: 1309.681183 | LX15: Yeast type | MD15: Update Ferment 16 Prediction | MO15: Refrigeration cost | MQ15: 56.71220464 | MT15: Yeast type | MZ15: Update Ferment 17 Prediction | NK15: Refrigeration cost | NM15: 1267.21117 | NP15: Yeast type | NV15: Update Ferment 18 Prediction | OG15: Refrigeration cost | OI15: 56.71220464 | OL15: Yeast type | OR15: Update Ferment 19 Prediction | PC15: Refrigeration cost | PE15: 1258.55316 | PH15: Yeast type | PN15: Update Ferment 20 Prediction | PY15: Refrigeration cost | QA15: 1367.90934 | QD15: Yeast type | QJ15: Update Ferment 21 Prediction | QU15: Refrigeration cost | QW15: 1411.581564 | QZ15: Yeast type | RF15: Update Ferment 22 Prediction | RQ15: Refrigeration cost | RS15: 1283.159349 | RV15: Yeast type | SB15: Update Ferment 23 Prediction | SM15: Refrigeration cost | SO15: 1158.145491 | SR15: Yeast type | SX15: Update Ferment 24 Prediction | TI15: Refrigeration cost | TK15: 56.71220464 | TN15: Yeast type | TT15: Update Ferment 25 Prediction | UE15: Refrigeration cost | UG15: 978.1879763 | UJ15: Yeast type | UP15: Update Ferment 26 Prediction | VA15: Refrigeration cost | VC15: 1203.050325 | VF15: Yeast type | VL15: Update Ferment 27 Prediction | VW15: Refrigeration cost | VY15: 1198.750317 | WB15: Yeast type | WH15: Update Ferment 28 Prediction | WS15: Refrigeration cost | WU15: 1175.71636 | WX15: Yeast type | XD15: Update Ferment 29 Prediction | XO15: Refrigeration cost | XQ15: 1120.715829 | XT15: Yeast type | XZ15: Update Ferment 30 Prediction | YK15: Refrigeration cost | YM15: 1305.741017 | YP15: Yeast type | YV15: Update Ferment 31 Prediction | ZG15: Refrigeration cost | ZI15: 1508.055406 | ZL15: Yeast type | ZR15: Update Ferment 32 Prediction | AAC15: Refrigeration cost | AAE15: 1254.004613 | AAH15: Yeast type | AAN15: Update Ferment 33 Prediction | AAY15: Refrigeration cost | ABA15: 1241.253132 | ABD15: Yeast type | ABJ15: Update Ferment 34 Prediction | ABU15: Refrigeration cost | ABW15: 1223.038372 | ABZ15: Yeast type | ACF15: Update Ferment 35 Prediction | ACQ15: Refrigeration cost | ACS15: 1309.767028 | ACV15: Yeast type | ADB15: Update Ferment 36 Prediction | ADM15: Refrigeration cost | ADO15: 56.71220464 | ADR15: Yeast type | ADX15: Update Ferment 37 Prediction | AEI15: Refrigeration cost | AEK15: 1270.591261 | AEN15: Yeast type | AET15: Update Ferment 38 Prediction | AFE15: Refrigeration cost | AFG15: 56.71220464 | AFJ15: Yeast type | AFP15: Update Ferment 39 Prediction | AGA15: Refrigeration cost | AGC15: 1258.635561 | AGF15: Yeast type | AGL15: Update Ferment 40 Prediction | AGW15: Refrigeration cost | AGY15: 1366.726228 | AHB15: Yeast type | AHH15: Update Ferment 41 Prediction | AHS15: Refrigeration cost | AHU15: 1410.954311 | AHX15: Yeast type | AID15: Update Ferment 42 Prediction | AIO15: Refrigeration cost | AIQ15: 1282.350185 | AIT15: Yeast type | AIZ15: Update Ferment 43 Prediction | AJK15: Refrigeration cost | AJM15: 1157.846493 | AJP15: Yeast type | AJV15: Update Ferment 44 Prediction | AKG15: Refrigeration cost | AKI15: 56.71220464 | AKL15: Yeast type | AKR15: Update Ferment 45 Prediction | ALC15: Refrigeration cost | ALE15: 977.5032904 | ALH15: Yeast type | ALN15: Update Ferment 46 Prediction | ALY15: Refrigeration cost | AMA15: 1203.006462 | AMD15: Yeast type | AMJ15: Update Ferment 47 Prediction | AMU15: Refrigeration cost | AMW15: 1199.359276 | AMZ15: Yeast type | ANF15: Update Ferment 48 Prediction | ANQ15: Refrigeration cost | ANS15: 1175.779952 | ANV15: Yeast type | AOB15: Update Ferment 49 Prediction | AOM15: Refrigeration cost | AOO15: 1122.194858 | AOR15: Yeast type | AOX15: Update Ferment 50 Prediction | API15: Refrigeration cost | APK15: 1305.996874 | APN15: Yeast type | APT15: Update Ferment 51 Prediction | AQE15: Refrigeration cost | AQG15: 1509.198839 | AQJ15: Yeast type | AQP15: Update Ferment 52 Prediction | ARA15: Refrigeration cost | ARC15: 1254.20407 | ARF15: Yeast type | ARL15: Update Ferment 53 Prediction | ARW15: Refrigeration cost | ARY15: 1241.732526 | ASB15: Yeast type | ASH15: Update Ferment 54 Prediction | ASS15: Refrigeration cost | ASU15: 1223.815374 | ASX15: Yeast type | ATD15: Update Ferment 55 Prediction | ATO15: Refrigeration cost | ATQ15: 1309.614326 | ATT15: Yeast type | ATZ15: Update Ferment 56 Prediction | AUK15: Refrigeration cost | AUM15: 56.71220464 | AUP15: Yeast type | AUV15: Update Ferment 57 Prediction | AVG15: Refrigeration cost | AVI15: 1269.70453 | AVL15: Yeast type | AVR15: Update Ferment 58 Prediction | AWC15: Refrigeration cost | AWE15: 56.71220464 | AWH15: Yeast type | AWN15: Update Ferment 59 Prediction | AWY15: Refrigeration cost | AXA15: 1259.153385 | AXD15: Yeast type | AXJ15: Update Ferment 60 Prediction | AXU15: Refrigeration cost | AXW15: 1366.578944 | AXZ15: Yeast type | AYF15: Update Ferment 61 Prediction | AYQ15: Refrigeration cost | AYS15: 1410.86972 | AYV15: Yeast type | AZB15: Update Ferment 62 Prediction | AZM15: Refrigeration cost | AZO15: 1282.393494 | AZR15: Yeast type | AZX15: Update Ferment 63 Prediction | BAI15: Refrigeration cost | BAK15: 1157.750909 | BAN15: Yeast type | BAT15: Update Ferment 64 Prediction | BBE15: Refrigeration cost | BBG15: 56.71220464 | BBJ15: Yeast type | BBP15: Update Ferment 65 Prediction | BCA15: Refrigeration cost | BCC15: 977.903226 | BCF15: Yeast type | BCL15: Update Ferment 66 Prediction | BCW15: Refrigeration cost | BCY15: 1196.661135 | BDB15: Yeast type | BDH15: Update Ferment 67 Prediction | BDS15: Refrigeration cost | BDU15: 1198.952675 | BDX15: Yeast type | BED15: Update Ferment 68 Prediction | BEO15: Refrigeration cost | BEQ15: 1175.708463 | BET15: Yeast type | BEZ15: Update Ferment 69 Prediction | BFK15: Refrigeration cost | BFM15: 1121.146535 | BFP15: Yeast type | BFV15: Update Ferment 70 Prediction | BGG15: Refrigeration cost | BGI15: 1308.451492 | BGL15: Yeast type | BGR15: Update Ferment 71 Prediction | BHC15: Refrigeration cost | BHE15: 1508.542063 | BHH15: Yeast type | BHN15: Update Ferment 72 Prediction | BHY15: Refrigeration cost | BIA15: 1254.706251 | BID15: Yeast type | BIJ15: Update Ferment 73 Prediction | BIU15: Refrigeration cost | BIW15: 1241.557267 | BIZ15: Yeast type | BJF15: Update Ferment 74 Prediction | BJQ15: Refrigeration cost | BJS15: 1223.796749 | BJV15: Yeast type | BKB15: Update Ferment 75 Prediction | BKM15: Refrigeration cost | BKO15: 1310.239805 | BKR15: Yeast type | BKX15: Update Ferment 76 Prediction | BLI15: Refrigeration cost | BLK15: 56.71220464 | BLN15: Yeast type | BLT15: Update Ferment 77 Prediction | BME15: Refrigeration cost | BMG15: 1267.804107 | BMJ15: Yeast type | BMP15: Update Ferment 78 Prediction | BNA15: Refrigeration cost | BNC15: 56.71220464 | BNF15: Yeast type | BNL15: Update Ferment 79 Prediction | BNW15: Refrigeration cost | BNY15: 1259.076656 | BOB15: Yeast type | BOH15: Update Ferment 80 Prediction | BOS15: Refrigeration cost | BOU15: 1367.540513 | BOX15: Yeast type | BPD15: Update Ferment 81 Prediction | BPO15: Refrigeration cost | BPQ15: 1410.378121 | BPT15: Yeast type | BPZ15: Update Ferment 82 Prediction | BQK15: Refrigeration cost | BQM15: 1282.404985 | BQP15: Yeast type | BQV15: Update Ferment 83 Prediction | BRG15: Refrigeration cost | BRI15: 1157.561957 | BRL15: Yeast type | BRR15: Update Ferment 84 Prediction | BSC15: Refrigeration cost | BSE15: 56.71220464 | BSH15: Yeast type | BSN15: Update Ferment 85 Prediction | BSY15: Refrigeration cost | BTA15: 977.7441696 | BTD15: Yeast type | BTJ15: Update Ferment 86 Prediction | BTU15: Refrigeration cost | BTW15: 1203.54997 | BTZ15: Yeast type | BUF15: Update Ferment 87 Prediction | BUQ15: Refrigeration cost | BUS15: 1198.343103 | BUV15: Yeast type | BVB15: Update Ferment 88 Prediction | BVM15: Refrigeration cost | BVO15: 1175.786119 | BVR15: Yeast type | BVX15: Update Ferment 89 Prediction | BWI15: Refrigeration cost | BWK15: 1122.073259 | BWN15: Yeast type | BWT15: Update Ferment 90 Prediction | BXE15: Refrigeration cost | BXG15: 1308.129594 | BXJ15: Yeast type | BXP15: Update Ferment 91 Prediction | BYA15: Refrigeration cost | BYC15: 1509.357555 | BYF15: Yeast type | BYL15: Update Ferment 92 Prediction | BYW15: Refrigeration cost | BYY15: 1254.152388 | BZB15: Yeast type | BZH15: Update Ferment 93 Prediction | BZS15: Refrigeration cost | BZU15: 1241.180004 | BZX15: Yeast type | CAD15: Update Ferment 94 Prediction | CAO15: Refrigeration cost | CAQ15: 1222.22527 | CAT15: Yeast type | CAZ15: Update Ferment 95 Prediction | CBK15: Refrigeration cost | CBM15: 1309.75706 | CBP15: Yeast type | CBV15: Update Ferment 96 Prediction | CCG15: Refrigeration cost | CCI15: 56.71220464 | CCL15: Yeast type | CCR15: Update Ferment 97 Prediction | CDC15: Refrigeration cost | CDE15: 1269.026758 | CDH15: Yeast type | CDN15: Update Ferment 98 Prediction | CDY15: Refrigeration cost | CEA15: 56.71220464 | CED15: Yeast type | CEJ15: Update Ferment 99 Prediction | CEU15: Refrigeration cost | CEW15: 1259.067478 | CEZ15: Yeast type | CFF15: Update Ferment 100 Prediction
... 18 more rows

Sheet Full Vintage Planner
B8: Start Date | C8: 2012-01-01
B9: Refrigeration capacity | C9: ='Refrigeration & Weather'!C24 -> 2500 | D9: kWr
I14: 1 | M14: 2 | Q14: 3 | U14: 4 | Y14: 5 | AC14: 6 | AG14: 7 | AK14: 8 | AO14: 9 | AS14: 10 | AW14: 11 | BA14: 12 | BE14: 13 | BI14: 14 | BM14: 15 | BQ14: 16 | BU14: 17 | BY14: 18 | CC14: 19 | CG14: 20 | CK14: 21 | CO14: 22 | CS14: 23 | CW14: 24 | DA14: 25 | DE14: 26 | DI14: 27 | DM14: 28 | DQ14: 29 | DU14: 30 | DY14: 31 | EC14: 32 | EG14: 33 | EK14: 34 | EO14: 35 | ES14: 36 | EW14: 37 | FA14: 38 | FE14: 39 | FI14: 40 | FM14: 41 | FQ14: 42 | FU14: 43 | FY14: 44 | GC14: 45 | GG14: 46 | GK14: 47 | GO14: 48 | GS14: 49 | GW14: 50 | HA14: 51 | HE14: 52 | HI14: 53 | HM14: 54 | HQ14: 55 | HU14: 56 | HY14: 57 | IC14: 58 | IG14: 59 | IK14: 60 | IO14: 61 | IS14: 62 | IW14: 63 | JA14: 64 | JE14: 65 | JI14: 66 | JM14: 67 | JQ14: 68 | JU14: 69 | JY14: 70 | KC14: 71 | KG14: 72 | KK14: 73 | KO14: 74 | KS14: 75 | KW14: 76 | LA14: 77 | LE14: 78 | LI14: 79 | LM14: 80 | LQ14: 81 | LU14: 82 | LY14: 83 | MC14: 84 | MG14: 85 | MK14: 86 | MO14: 87 | MS14: 88 | MW14: 89 | NA14: 90 | NE14: 91 | NI14: 92 | NM14: 93 | NQ14: 94 | NU14: 95 | NY14: 96 | OC14: 97 | OG14: 98 | OK14: 99 | OO14: 100
C15: Overall Tank Farm | I15: ="Fermenter "&I14 -> Fermenter 1 | M15: ="Fermenter "&M14 -> Fermenter 2 | Q15: ="Fermenter "&Q14 -> Fermenter 3 | U15: ="Fermenter "&U14 -> Fermenter 4 | Y15: ="Fermenter "&Y14 -> Fermenter 5 | AC15: ="Fermenter "&AC14 -> Fermenter 6 | AG15: ="Fermenter "&AG14 -> Fermenter 7 | AK15: ="Fermenter "&AK14 -> Fermenter 8 | AO15: ="Fermenter "&AO14 -> Fermenter 9 | AS15: ="Fermenter "&AS14 -> Fermenter 10 | AW15: ="Fermenter "&AW14 -> Fermenter 11 | BA15: ="Fermenter "&BA14 -> Fermenter 12 | BE15: ="Fermenter "&BE14 -> Fermenter 13 | BI15: ="Fermenter "&BI14 -> Fermenter 14 | BM15: ="Fermenter "&BM14 -> Fermenter 15 | BQ15: ="Fermenter "&BQ14 -> Fermenter 16 | BU15: ="Fermenter "&BU14 -> Fermenter 17 | BY15: ="Fermenter "&BY14 -> Fermenter 18 | CC15: ="Fermenter "&CC14 -> Fermenter 19 | CG15: ="Fermenter "&CG14 -> Fermenter 20 | CK15: ="Fermenter "&CK14 -> Fermenter 21 | CO15: ="Fermenter "&CO14 -> Fermenter 22 | CS15: ="Fermenter "&CS14 -> Fermenter 23 | CW15: ="Fermenter "&CW14 -> Fermenter 24 | DA15: ="Fermenter "&DA14 -> Fermenter 25 | DE15: ="Fermenter "&DE14 -> Fermenter 26 | DI15: ="Fermenter "&DI14 -> Fermenter 27 | DM15: ="Fermenter "&DM14 -> Fermenter 28 | DQ15: ="Fermenter "&DQ14 -> Fermenter 29 | DU15: ="Fermenter "&DU14 -> Fermenter 30 | DY15: ="Fermenter "&DY14 -> Fermenter 31 | EC15: ="Fermenter "&EC14 -> Fermenter 32 | EG15: ="Fermenter "&EG14 -> Fermenter 33 | EK15: ="Fermenter "&EK14 -> Fermenter 34 | EO15: ="Fermenter "&EO14 -> Fermenter 35 | ES15: ="Fermenter "&ES14 -> Fermenter 36 | EW15: ="Fermenter "&EW14 -> Fermenter 37 | FA15: ="Fermenter "&FA14 -> Fermenter 38 | FE15: ="Fermenter "&FE14 -> Fermenter 39 | FI15: ="Fermenter "&FI14 -> Fermenter 40 | FM15: ="Fermenter "&FM14 -> Fermenter 41 | FQ15: ="Fermenter "&FQ14 -> Fermenter 42 | FU15: ="Fermenter "&FU14 -> Fermenter 43 | FY15: ="Fermenter "&FY14 -> Fermenter 44 | GC15: ="Fermenter "&GC14 -> Fermenter 45 | GG15: ="Fermenter "&GG14 -> Fermenter 46 | GK15: ="Fermenter "&GK14 -> Fermenter 47 | GO15: ="Fermenter "&GO14 -> Fermenter 48 | GS15: ="Fermenter "&GS14 -> Fermenter 49 | GW15: ="Fermenter "&GW14 -> Fermenter 50 | HA15: ="Fermenter "&HA14 -> Fermenter 51 | HE15: ="Fermenter "&HE14 -> Fermenter 52 | HI15: ="Fermenter "&HI14 -> Fermenter 53 | HM15: ="Fermenter "&HM14 -> Fermenter 54 | HQ15: ="Fermenter "&HQ14 -> Fermenter 55 | HU15: ="Fermenter "&HU14 -> Fermenter 56 | HY15: ="Fermenter "&HY14 -> Fermenter 57 | IC15: ="Fermenter "&IC14 -> Fermenter 58 | IG15: ="Fermenter "&IG14 -> Fermenter 59 | IK15: ="Fermenter "&IK14 -> Fermenter 60 | IO15: ="Fermenter "&IO14 -> Fermenter 61 | IS15: ="Fermenter "&IS14 -> Fermenter 62 | IW15: ="Fermenter "&IW14 -> Fermenter 63 | JA15: ="Fermenter "&JA14 -> Fermenter 64 | JE15: ="Fermenter "&JE14 -> Fermenter 65 | JI15: ="Fermenter "&JI14 -> Fermenter 66 | JM15: ="Fermenter "&JM14 -> Fermenter 67 | JQ15: ="Fermenter "&JQ14 -> Fermenter 68 | JU15: ="Fermenter "&JU14 -> Fermenter 69 | JY15: ="Fermenter "&JY14 -> Fermenter 70 | KC15: ="Fermenter "&KC14 -> Fermenter 71 | KG15: ="Fermenter "&KG14 -> Fermenter 72 | KK15: ="Fermenter "&KK14 -> Fermenter 73 | KO15: ="Fermenter "&KO14 -> Fermenter 74 | KS15: ="Fermenter "&KS14 -> Fermenter 75 | KW15: ="Fermenter "&KW14 -> Fermenter 76 | LA15: ="Fermenter "&LA14 -> Fermenter 77 | LE15: ="Fermenter "&LE14 -> Fermenter 78 | LI15: ="Fermenter "&LI14 -> Fermenter 79 | LM15: ="Fermenter "&LM14 -> Fermenter 80 | LQ15: ="Fermenter "&LQ14 -> Fermenter 81 | LU15: ="Fermenter "&LU14 -> Fermenter 82 | LY15: ="Fermenter "&LY14 -> Fermenter 83 | MC15: ="Fermenter "&MC14 -> Fermenter 84 | MG15: ="Fermenter "&MG14 -> Fermenter 85 | MK15: ="Fermenter "&MK14 -> Fermenter 86 | MO15: ="Fermenter "&MO14 -> Fermenter 87 | MS15: ="Fermenter "&MS14 -> Fermenter 88 | MW15: ="Fermenter "&MW14 -> Fermenter 89 | NA15: ="Fermenter "&NA14 -> Fermenter 90 | NE15: ="Fermenter "&NE14 -> Fermenter 91 | NI15: ="Fermenter "&NI14 -> Fermenter 92 | NM15: ="Fermenter "&NM14 -> Fermenter 93 | NQ15: ="Fermenter "&NQ14 -> Fermenter 94 | NU15: ="Fermenter "&NU14 -> Fermenter 95 | NY15: ="Fermenter "&NY14 -> Fermenter 96 | OC15: ="Fermenter "&OC14 -> Fermenter 97 | OG15: ="Fermenter "&OG14 -> Fermenter 98 | OK15: ="Fermenter "&OK14 -> Fermenter 99 | OO15: ="Fermenter "&OO14 -> Fermenter 100
A16: Time Step | B16: Date/Time | C16: Ferment Refrigeration | D16: Must Chill | E16: Cold Settle | F16: Total Refrigeratino | G16: Refrigeration (kWe) | H16: Refrigeration ($) | I16: Baume | J16: Refrigeration | K16: Must Chill | L16: Cold Settle | M16: Baume | N16: Refrigeration | O16: Must Chill | P16: Cold Settle | Q16: Baume | R16: Refrigeration | S16: Must Chill | T16: Cold Settle | U16: Baume | V16: Refrigeration | W16: Must Chill | X16: Cold Settle | Y16: Baume | Z16: Refrigeration | AA16: Must Chill | AB16: Cold Settle | AC16: Baume | AD16: Refrigeration | AE16: Must Chill | AF16: Cold Settle | AG16: Baume | AH16: Refrigeration | AI16: Must Chill | AJ16: Cold Settle | AK16: Baume | AL16: Refrigeration | AM16: Must Chill | AN16: Cold Settle | AO16: Baume | AP16: Refrigeration | AQ16: Must Chill | AR16: Cold Settle | AS16: Baume | AT16: Refrigeration | AU16: Must Chill | AV16: Cold Settle | AW16: Baume | AX16: Refrigeration | AY16: Must Chill | AZ16: Cold Settle | BA16: Baume | BB16: Refrigeration | BC16: Must Chill | BD16: Cold Settle | BE16: Baume | BF16: Refrigeration | BG16: Must Chill | BH16: Cold Settle | BI16: Baume | BJ16: Refrigeration | BK16: Must Chill | BL16: Cold Settle | BM16: Baume | BN16: Refrigeration | BO16: Must Chill | BP16: Cold Settle | BQ16: Baume | BR16: Refrigeration | BS16: Must Chill | BT16: Cold Settle | BU16: Baume | BV16: Refrigeration | BW16: Must Chill | BX16: Cold Settle | BY16: Baume | BZ16: Refrigeration | CA16: Must Chill | CB16: Cold Settle | CC16: Baume | CD16: Refrigeration | CE16: Must Chill | CF16: Cold Settle | CG16: Baume | CH16: Refrigeration | CI16: Must Chill | CJ16: Cold Settle | CK16: Baume | CL16: Refrigeration | CM16: Must Chill | CN16: Cold Settle | CO16: Baume | CP16: Refrigeration | CQ16: Must Chill | CR16: Cold Settle | CS16: Baume | CT16: Refrigeration | CU16: Must Chill | CV16: Cold Settle | CW16: Baume | CX16: Refrigeration | CY16: Must Chill | CZ16: Cold Settle | DA16: Baume | DB16: Refrigeration | DC16: Must Chill | DD16: Cold Settle | DE16: Baume | DF16: Refrigeration | DG16: Must Chill | DH16: Cold Settle | DI16: Baume | DJ16: Refrigeration | DK16: Must Chill | DL16: Cold Settle | DM16: Baume | DN16: Refrigeration | DO16: Must Chill | DP16: Cold Settle | DQ16: Baume | DR16: Refrigeration | DS16: Must Chill | DT16: Cold Settle | DU16: Baume | DV16: Refrigeration | DW16: Must Chill | DX16: Cold Settle | DY16: Baume | DZ16: Refrigeration | EA16: Must Chill | EB16: Cold Settle | EC16: Baume | ED16: Refrigeration | EE16: Must Chill | EF16: Cold Settle | EG16: Baume | EH16: Refrigeration | EI16: Must Chill | EJ16: Cold Settle | EK16: Baume | EL16: Refrigeration | EM16: Must Chill | EN16: Cold Settle | EO16: Baume | EP16: Refrigeration | EQ16: Must Chill | ER16: Cold Settle | ES16: Baume | ET16: Refrigeration | EU16: Must Chill | EV16: Cold Settle | EW16: Baume | EX16: Refrigeration | EY16: Must Chill | EZ16: Cold Settle | FA16: Baume | FB16: Refrigeration | FC16: Must Chill | FD16: Cold Settle | FE16: Baume | FF16: Refrigeration | FG16: Must Chill | FH16: Cold Settle | FI16: Baume | FJ16: Refrigeration | FK16: Must Chill | FL16: Cold Settle | FM16: Baume | FN16: Refrigeration | FO16: Must Chill | FP16: Cold Settle | FQ16: Baume | FR16: Refrigeration | FS16: Must Chill | FT16: Cold Settle | FU16: Baume | FV16: Refrigeration | FW16: Must Chill | FX16: Cold Settle | FY16: Baume | FZ16: Refrigeration | GA16: Must Chill | GB16: Cold Settle | GC16: Baume | GD16: Refrigeration | GE16: Must Chill | GF16: Cold Settle | GG16: Baume | GH16: Refrigeration | GI16: Must Chill | GJ16: Cold Settle | GK16: Baume | GL16: Refrigeration | GM16: Must Chill | GN16: Cold Settle | GO16: Baume | GP16: Refrigeration | GQ16: Must Chill | GR16: Cold Settle | GS16: Baume | GT16: Refrigeration | GU16: Must Chill | GV16: Cold Settle | GW16: Baume | GX16: Refrigeration | GY16: Must Chill | GZ16: Cold Settle | HA16: Baume | HB16: Refrigeration | HC16: Must Chill | HD16: Cold Settle | HE16: Baume | HF16: Refrigeration | HG16: Must Chill | HH16: Cold Settle | HI16: Baume | HJ16: Refrigeration | HK16: Must Chill | HL16: Cold Settle | HM16: Baume | HN16: Refrigeration | HO16: Must Chill | HP16: Cold Settle | HQ16: Baume | HR16: Refrigeration | HS16: Must Chill | HT16: Cold Settle | HU16: Baume | HV16: Refrigeration | HW16: Must Chill | HX16: Cold Settle | HY16: Baume | HZ16: Refrigeration | IA16: Must Chill | IB16: Cold Settle | IC16: Baume | ID16: Refrigeration | IE16: Must Chill | IF16: Cold Settle | IG16: Baume | IH16: Refrigeration | II16: Must Chill | IJ16: Cold Settle | IK16: Baume | IL16: Refrigeration | IM16: Must Chill | IN16: Cold Settle | IO16: Baume | IP16: Refrigeration | IQ16: Must Chill | IR16: Cold Settle | IS16: Baume | IT16: Refrigeration | IU16: Must Chill | IV16: Cold Settle | IW16: Baume | IX16: Refrigeration | IY16: Must Chill | IZ16: Cold Settle | JA16: Baume | JB16: Refrigeration | JC16: Must Chill | JD16: Cold Settle | JE16: Baume | JF16: Refrigeration | JG16: Must Chill | JH16: Cold Settle | JI16: Baume | JJ16: Refrigeration | JK16: Must Chill | JL16: Cold Settle | JM16: Baume | JN16: Refrigeration | JO16: Must Chill | JP16: Cold Settle | JQ16: Baume | JR16: Refrigeration | JS16: Must Chill | JT16: Cold Settle | JU16: Baume | JV16: Refrigeration | JW16: Must Chill | JX16: Cold Settle | JY16: Baume | JZ16: Refrigeration | KA16: Must Chill | KB16: Cold Settle | KC16: Baume | KD16: Refrigeration | KE16: Must Chill | KF16: Cold Settle | KG16: Baume | KH16: Refrigeration | KI16: Must Chill | KJ16: Cold Settle | KK16: Baume | KL16: Refrigeration | KM16: Must Chill | KN16: Cold Settle | KO16: Baume | KP16: Refrigeration | KQ16: Must Chill | KR16: Cold Settle | KS16: Baume | KT16: Refrigeration | KU16: Must Chill | KV16: Cold Settle | KW16: Baume | KX16: Refrigeration | KY16: Must Chill | KZ16: Cold Settle | LA16: Baume | LB16: Refrigeration | LC16: Must Chill | LD16: Cold Settle | LE16: Baume | LF16: Refrigeration | LG16: Must Chill | LH16: Cold Settle | LI16: Baume | LJ16: Refrigeration | LK16: Must Chill | LL16: Cold Settle | LM16: Baume | LN16: Refrigeration | LO16: Must Chill | LP16: Cold Settle | LQ16: Baume | LR16: Refrigeration | LS16: Must Chill | LT16: Cold Settle | LU16: Baume | LV16: Refrigeration | LW16: Must Chill | LX16: Cold Settle | LY16: Baume | LZ16: Refrigeration | MA16: Must Chill | MB16: Cold Settle | MC16: Baume | MD16: Refrigeration | ME16: Must Chill | MF16: Cold Settle | MG16: Baume | MH16: Refrigeration | MI16: Must Chill | MJ16: Cold Settle | MK16: Baume | ML16: Refrigeration | MM16: Must Chill | MN16: Cold Settle | MO16: Baume | MP16: Refrigeration | MQ16: Must Chill | MR16: Cold Settle | MS16: Baume | MT16: Refrigeration | MU16: Must Chill | MV16: Cold Settle | MW16: Baume | MX16: Refrigeration | MY16: Must Chill | MZ16: Cold Settle | NA16: Baume | NB16: Refrigeration | NC16: Must Chill | ND16: Cold Settle | NE16: Baume | NF16: Refrigeration | NG16: Must Chill | NH16: Cold Settle | NI16: Baume | NJ16: Refrigeration | NK16: Must Chill | NL16: Cold Settle | NM16: Baume | NN16: Refrigeration | NO16: Must Chill | NP16: Cold Settle | NQ16: Baume | NR16: Refrigeration | NS16: Must Chill | NT16: Cold Settle | NU16: Baume | NV16: Refrigeration | NW16: Must Chill | NX16: Cold Settle | NY16: Baume | NZ16: Refrigeration | OA16: Must Chill | OB16: Cold Settle | OC16: Baume | OD16: Refrigeration | OE16: Must Chill | OF16: Cold Settle | OG16: Baume | OH16: Refrigeration | OI16: Must Chill | OJ16: Cold Settle | OK16: Baume | OL16: Refrigeration | OM16: Must Chill | ON16: Cold Settle | OO16: Baume | OP16: Refrigeration | OQ16: Must Chill | OR16: Cold Settle
A17: 0 | B17: =C8+0/8 -> 2012-01-01 | C17: =J17+N17+R17+V17+Z17+AD17+AH17+AL17+AP17+AT17+AX17+BB17+BF17+BJ17+BN17+BR17+BV17+BZ17+CD17+CH17+CL17+CP17+CT17+CX17+DB17+DF17+DJ17+DN17+DR17+DV17+DZ17+ED17+EH17+EL17+EP17+ET17+EX17+FB17+FF17+FJ17+FN17+FR17+FV17+FZ17+GD17+GH17+GL17+GP17+GT17+GX17+HB17+HF17+HJ17+HN17+HR17+HV17+HZ17+ID17+IH17+IL17+IP17+IT17+IX17+JB17+JF17+JJ17+JN17+JR17+JV17+JZ17+KD17+KH17+KL17+KP17+KT17+KX17+LB17+LF17+LJ17+LN17+LR17+LV17+LZ17+MD17+MH17+ML17+MP17+MT17+MX17+NB17+NF17+NJ17+NN17+NR17+NV17+NZ17+OD17+OH17+OL17+OP17 -> 0 | D17: =K17+O17+S17+W17+AA17+AE17+AI17+AM17+AQ17+AU17+AY17+BC17+BG17+BK17+BO17+BS17+BW17+CA17+CE17+CI17+CM17+CQ17+CU17+CY17+DC17+DG17+DK17+DO17+DS17+DW17+EA17+EE17+EI17+EM17+EQ17+EU17+EY17+FC17+FG17+FK17+FO17+FS17+FW17+GA17+GE17+GI17+GM17+GQ17+GU17+GY17+HC17+HG17+HK17+HO17+HS17+HW17+IA17+IE17+II17+IM17+IQ17+IU17+IY17+JC17+JG17+JK17+JO17+JS17+JW17+KA17+KE17+KI17+KM17+KQ17+KU17+KY17+LC17+LG17+LK17+LO17+LS17+LW17+MA17+ME17+MI17+MM17+MQ17+MU17+MY17+NC17+NG17+NK17+NO17+NS17+NW17+OA17+OE17+OI17+OM17+OQ17 -> 0 | E17: =L17+P17+T17+X17+AB17+AF17+AJ17+AN17+AR17+AV17+AZ17+BD17+BH17+BL17+BP17+BT17+BX17+CB17+CF17+CJ17+CN17+CR17+CV17+CZ17+DD17+DH17+DL17+DP17+DT17+DX17+EB17+EF17+EJ17+EN17+ER17+EV17+EZ17+FD17+FH17+FL17+FP17+FT17+FX17+GB17+GF17+GJ17+GN17+GR17+GV17+GZ17+HD17+HH17+HL17+HP17+HT17+HX17+IB17+IF17+IJ17+IN17+IR17+IV17+IZ17+JD17+JH17+JL17+JP17+JT17+JX17+KB17+KF17+KJ17+KN17+KR17+KV17+KZ17+LD17+LH17+LL17+LP17+LT17+LX17+MB17+MF17+MJ17+MN17+MR17+MV17+MZ17+ND17+NH17+NL17+NP17+NT17+NX17+OB17+OF17+OJ17+ON17+OR17 -> 0 | F17: =SUM(C17:E17) -> 0 | G17: =F17/'Refrigeration & Weather'!$C$22 -> 0 | H17: =G17*3*'Refrigeration & Weather'!$C$23 -> 0
A18: 1 | B18: =B17+1/8 -> 2012-01-01T03:00:00 | C18: 0 | D18: =K18+O18+S18+W18+AA18+AE18+AI18+AM18+AQ18+AU18+AY18+BC18+BG18+BK18+BO18+BS18+BW18+CA18+CE18+CI18+CM18+CQ18+CU18+CY18+DC18+DG18+DK18+DO18+DS18+DW18+EA18+EE18+EI18+EM18+EQ18+EU18+EY18+FC18+FG18+FK18+FO18+FS18+FW18+GA18+GE18+GI18+GM18+GQ18+GU18+GY18+HC18+HG18+HK18+HO18+HS18+HW18+IA18+IE18+II18+IM18+IQ18+IU18+IY18+JC18+JG18+JK18+JO18+JS18+JW18+KA18+KE18+KI18+KM18+KQ18+KU18+KY18+LC18+LG18+LK18+LO18+LS18+LW18+MA18+ME18+MI18+MM18+MQ18+MU18+MY18+NC18+NG18+NK18+NO18+NS18+NW18+OA18+OE18+OI18+OM18+OQ18 -> 0 | E18: =L18+P18+T18+X18+AB18+AF18+AJ18+AN18+AR18+AV18+AZ18+BD18+BH18+BL18+BP18+BT18+BX18+CB18+CF18+CJ18+CN18+CR18+CV18+CZ18+DD18+DH18+DL18+DP18+DT18+DX18+EB18+EF18+EJ18+EN18+ER18+EV18+EZ18+FD18+FH18+FL18+FP18+FT18+FX18+GB18+GF18+GJ18+GN18+GR18+GV18+GZ18+HD18+HH18+HL18+HP18+HT18+HX18+IB18+IF18+IJ18+IN18+IR18+IV18+IZ18+JD18+JH18+JL18+JP18+JT18+JX18+KB18+KF18+KJ18+KN18+KR18+KV18+KZ18+LD18+LH18+LL18+LP18+LT18+LX18+MB18+MF18+MJ18+MN18+MR18+MV18+MZ18+ND18+NH18+NL18+NP18+NT18+NX18+OB18+OF18+OJ18+ON18+OR18 -> 0 | F18: =SUM(C18:E18) -> 0 | G18: =F18/'Refrigeration & Weather'!$C$22 -> 0 | H18: =G18*3*'Refrigeration & Weather'!$C$23 -> 0
A19: 2 | B19: =B18+1/8 -> 2012-01-01T06:00:00 | C19: 0 | D19: 0 | E19: 0 | F19: 0 | G19: =F19/'Refrigeration & Weather'!$C$22 -> 0 | H19: =G19*3*'Refrigeration & Weather'!$C$23 -> 0
A20: 3 | B20: =B19+1/8 -> 2012-01-01T09:00:00 | C20: 0 | D20: 1229.411765 | E20: 0 | F20: 1229.411765 | G20: =F20/'Refrigeration & Weather'!$C$22 -> 552.5446134 | H20: =G20*3*'Refrigeration & Weather'!$C$23 -> 414.40846 | K20: 409.8039216 | O20: 409.8039216 | S20: 409.8039216
A21: 4 | B21: 2012-01-01T12:00:00 | C21: 0 | D21: 1229.411765 | E21: 0 | F21: 1229.411765 | G21: =F21/'Refrigeration & Weather'!$C$22 -> 552.5446134 | H21: =G21*3*'Refrigeration & Weather'!$C$23 -> 414.40846 | K21: 409.8039216 | O21: 409.8039216 | S21: 409.8039216
A22: 5 | B22: 2012-01-01T15:00:00 | C22: 0 | D22: 1229.411765 | E22: 0 | F22: 1229.411765 | G22: =F22/'Refrigeration & Weather'!$C$22 -> 552.5446134 | H22: =G22*3*'Refrigeration & Weather'!$C$23 -> 414.40846 | K22: 409.8039216 | O22: 409.8039216 | S22: 409.8039216
A23: 6 | B23: 2012-01-01T18:00:00 | C23: 0 | D23: 1229.411765 | E23: 0 | F23: 1229.411765 | G23: =F23/'Refrigeration & Weather'!$C$22 -> 552.5446134 | H23: =G23*3*'Refrigeration & Weather'!$C$23 -> 414.40846 | K23: 409.8039216 | O23: 409.8039216 | S23: 409.8039216
A24: 7 | B24: 2012-01-01T21:00:00 | C24: 0 | D24: 0 | E24: 0 | F24: 0 | G24: =F24/'Refrigeration & Weather'!$C$22 -> 0 | H24: =G24*3*'Refrigeration & Weather'!$C$23 -> 0
A25: 8 | B25: 2012-01-02 | C25: 0 | D25: 0 | E25: 0 | F25: 0 | G25: =F25/'Refrigeration & Weather'!$C$22 -> 0 | H25: =G25*3*'Refrigeration & Weather'!$C$23 -> 0
A26: 9 | B26: 2012-01-02T03:00:00 | C26: 0 | D26: 0 | E26: 0 | F26: 0 | G26: =F26/'Refrigeration & Weather'!$C$22 -> 0 | H26: =G26*3*'Refrigeration & Weather'!$C$23 -> 0
A27: 10 | B27: 2012-01-02T06:00:00 | C27: 0 | D27: 0 | E27: 0 | F27: 0 | G27: =F27/'Refrigeration & Weather'!$C$22 -> 0 | H27: =G27*3*'Refrigeration & Weather'!$C$23 -> 0
A28: 11 | B28: 2012-01-02T09:00:00 | C28: 0 | D28: 0 | E28: 47.19575447 | F28: 47.19575447 | G28: =F28/'Refrigeration & Weather'!$C$22 -> 21.21157504 | H28: =G28*3*'Refrigeration & Weather'!$C$23 -> 15.90868128 | L28: 16.19521597 | P28: 15.50026925 | T28: 15.50026925
A29: 12 | B29: 2012-01-02T12:00:00 | C29: 0 | D29: 0 | E29: 47.19575447 | F29: 47.19575447 | G29: =F29/'Refrigeration & Weather'!$C$22 -> 21.21157504 | H29: =G29*3*'Refrigeration & Weather'!$C$23 -> 15.90868128 | L29: 16.19521597 | P29: 15.50026925 | T29: 15.50026925
A30: 13 | B30: 2012-01-02T15:00:00 | C30: 0 | D30: 0 | E30: 47.19575447 | F30: 47.19575447 | G30: =F30/'Refrigeration & Weather'!$C$22 -> 21.21157504 | H30: =G30*3*'Refrigeration & Weather'!$C$23 -> 15.90868128 | L30: 16.19521597 | P30: 15.50026925 | T30: 15.50026925
A31: 14 | B31: 2012-01-02T18:00:00 | C31: 0 | D31: 0 | E31: 47.19575447 | F31: 47.19575447 | G31: =F31/'Refrigeration & Weather'!$C$22 -> 21.21157504 | H31: =G31*3*'Refrigeration & Weather'!$C$23 -> 15.90868128 | L31: 16.19521597 | P31: 15.50026925 | T31: 15.50026925
A32: 15 | B32: 2012-01-02T21:00:00 | C32: 0 | D32: 0 | E32: 47.19575447 | F32: 47.19575447 | G32: =F32/'Refrigeration & Weather'!$C$22 -> 21.21157504 | H32: =G32*3*'Refrigeration & Weather'!$C$23 -> 15.90868128 | L32: 16.19521597 | P32: 15.50026925 | T32: 15.50026925
A33: 16 | B33: 2012-01-03 | C33: 0 | D33: 0 | E33: 47.19575447 | F33: 47.19575447 | G33: =F33/'Refrigeration & Weather'!$C$22 -> 21.21157504 | H33: =G33*3*'Refrigeration & Weather'!$C$23 -> 15.90868128 | L33: 16.19521597 | P33: 15.50026925 | T33: 15.50026925
A34: 17 | B34: 2012-01-03T03:00:00 | C34: 0 | D34: 0 | E34: 47.19575447 | F34: 47.19575447 | G34: =F34/'Refrigeration & Weather'!$C$22 -> 21.21157504 | H34: =G34*3*'Refrigeration & Weather'!$C$23 -> 15.90868128 | L34: 16.19521597 | P34: 15.50026925 | T34: 15.50026925
A35: 18 | B35: 2012-01-03T06:00:00 | C35: 0 | D35: 0 | E35: 47.19575447 | F35: 47.19575447 | G35: =F35/'Refrigeration & Weather'!$C$22 -> 21.21157504 | H35: =G35*3*'Refrigeration & Weather'!$C$23 -> 15.90868128 | L35: 16.19521597 | P35: 15.50026925 | T35: 15.50026925
A36: 19 | B36: 2012-01-03T09:00:00 | C36: 0 | D36: 0 | E36: 47.19575447 | F36: 47.19575447 | G36: =F36/'Refrigeration & Weather'!$C$22 -> 21.21157504 | H36: =G36*3*'Refrigeration & Weather'!$C$23 -> 15.90868128 | L36: 16.19521597 | P36: 15.50026925 | T36: 15.50026925
A37: 20 | B37: 2012-01-03T12:00:00 | C37: 0 | D37: 0 | E37: 47.19575447 | F37: 47.19575447 | G37: =F37/'Refrigeration & Weather'!$C$22 -> 21.21157504 | H37: =G37*3*'Refrigeration & Weather'!$C$23 -> 15.90868128 | L37: 16.19521597 | P37: 15.50026925 | T37: 15.50026925
A38: 21 | B38: 2012-01-03T15:00:00 | C38: 0 | D38: 0 | E38: 47.19575447 | F38: 47.19575447 | G38: =F38/'Refrigeration & Weather'!$C$22 -> 21.21157504 | H38: =G38*3*'Refrigeration & Weather'!$C$23 -> 15.90868128 | L38: 16.19521597 | P38: 15.50026925 | T38: 15.50026925
A39: 22 | B39: 2012-01-03T18:00:00 | C39: 0 | D39: 0 | E39: 47.19575447 | F39: 47.19575447 | G39: =F39/'Refrigeration & Weather'!$C$22 -> 21.21157504 | H39: =G39*3*'Refrigeration & Weather'!$C$23 -> 15.90868128 | L39: 16.19521597 | P39: 15.50026925 | T39: 15.50026925
A40: 23 | B40: 2012-01-03T21:00:00 | C40: 0 | D40: 0 | E40: 47.19575447 | F40: 47.19575447 | G40: =F40/'Refrigeration & Weather'!$C$22 -> 21.21157504 | H40: =G40*3*'Refrigeration & Weather'!$C$23 -> 15.90868128 | L40: 16.19521597 | P40: 15.50026925 | T40: 15.50026925
A41: 24 | B41: 2012-01-04 | C41: 0 | D41: 0 | E41: 47.19575447 | F41: 47.19575447 | G41: =F41/'Refrigeration & Weather'!$C$22 -> 21.21157504 | H41: =G41*3*'Refrigeration & Weather'!$C$23 -> 15.90868128 | L41: 16.19521597 | P41: 15.50026925 | T41: 15.50026925
A42: 25 | B42: 2012-01-04T03:00:00 | C42: 0 | D42: 0 | E42: 47.19575447 | F42: 47.19575447 | G42: =F42/'Refrigeration & Weather'!$C$22 -> 21.21157504 | H42: =G42*3*'Refrigeration & Weather'!$C$23 -> 15.90868128 | L42: 16.19521597 | P42: 15.50026925 | T42: 15.50026925
A43: 26 | B43: 2012-01-04T06:00:00 | C43: 0 | D43: 0 | E43: 47.19575447 | F43: 47.19575447 | G43: =F43/'Refrigeration & Weather'!$C$22 -> 21.21157504 | H43: =G43*3*'Refrigeration & Weather'!$C$23 -> 15.90868128 | L43: 16.19521597 | P43: 15.50026925 | T43: 15.50026925
A44: 27 | B44: 2012-01-04T09:00:00 | C44: 0 | D44: 0 | E44: 47.19575447 | F44: 47.19575447 | G44: =F44/'Refrigeration & Weather'!$C$22 -> 21.21157504 | H44: =G44*3*'Refrigeration & Weather'!$C$23 -> 15.90868128 | L44: 16.19521597 | P44: 15.50026925 | T44: 15.50026925
A45: 28 | B45: 2012-01-04T12:00:00 | C45: 16.45473844 | D45: 0 | E45: 0 | F45: 16.45473844 | G45: =F45/'Refrigeration & Weather'!$C$22 -> 7.395388065 | H45: =G45*3*'Refrigeration & Weather'!$C$23 -> 5.546541049 | I45: 10.1 | J45: 2.892002852 | M45: 11.46666667 | N45: 0.5535810446 | Q45: 12.13333333 | R45: 7.19655358 | U45: 13.13333333 | V45: 5.812600968
A46: 29 | B46: 2012-01-04T15:00:00 | C46: 29.47446968 | D46: 0 | E46: 0 | F46: 29.47446968 | G46: =F46/'Refrigeration & Weather'!$C$22 -> 13.24695266 | H46: =G46*3*'Refrigeration & Weather'!$C$23 -> 9.935214498 | I46: 10.03526053 | J46: 7.919476096 | M46: 11.36215543 | N46: 11.11054656 | Q46: 12.10016206 | R46: 4.868688706 | U46: 13.06517345 | V46: 5.575758317
A47: 30 | B47: 2012-01-04T18:00:00 | C47: 30.46055766 | D47: 0 | E47: 0 | F47: 30.46055766 | G47: =F47/'Refrigeration & Weather'!$C$22 -> 13.69013827 | H47: =G47*3*'Refrigeration & Weather'!$C$23 -> 10.2676037 | I47: 9.97913956 | J47: 6.984526176 | M47: 11.25899701 | N47: 8.043797683 | Q47: 12.08658503 | R47: 6.264142085 | U47: 13.00353696 | V47: 9.168091715
A48: 31 | B48: 2012-01-04T21:00:00 | C48: 53.9111828 | D48: 0 | E48: 0 | F48: 53.9111828 | G48: =F48/'Refrigeration & Weather'!$C$22 -> 24.22974508 | H48: =G48*3*'Refrigeration & Weather'!$C$23 -> 18.17230881 | I48: 9.869199049 | J48: 13.49778148 | M48: 11.05649624 | N48: 22.44147193 | Q48: 12.06551374 | R48: 4.425704826 | U48: 12.87374415 | V48: 13.54622456
A49: 32 | B49: 2012-01-05 | C49: 98.08139935 | D49: 0 | E49: 0 | F49: 98.08139935 | G49: =F49/'Refrigeration & Weather'!$C$22 -> 44.0815278 | H49: =G49*3*'Refrigeration & Weather'!$C$23 -> 33.06114585 | I49: 9.588904546 | J49: 28.50717099 | M49: 10.63631917 | N49: 37.75131516 | Q49: 12.03268116 | R49: 7.312321584 | U49: 12.62316209 | V49: 24.51059163
A50: 33 | B50: 2012-01-05T03:00:00 | C50: 117.5934521 | D50: 0 | E50: 0 | F50: 117.5934521 | G50: =F50/'Refrigeration & Weather'!$C$22 -> 52.85098969 | H50: =G50*3*'Refrigeration & Weather'!$C$23 -> 39.63824227 | I50: 8.986578512 | J50: 51.19753239 | M50: 10.26193142 | N50: 26.38036084 | Q50: 11.97971298 | R50: 6.506118516 | U50: 12.20055584 | V50: 33.50944031
A51: 34 | B51: 2012-01-05T06:00:00 | C51: 130.8909884 | D51: 0 | E51: 0 | F51: 130.8909884 | G51: =F51/'Refrigeration & Weather'!$C$22 -> 58.82741052 | H51: =G51*3*'Refrigeration & Weather'!$C$23 -> 44.12055789 | I51: 8.297679349 | J51: 48.8865533 | M51: 9.986883725 | N51: 22.74984826 | Q51: 11.88947103 | R51: 11.45738265 | U51: 11.55623035 | V51: 47.79720419
A52: 35 | B52: 2012-01-05T09:00:00 | C52: 154.3129497 | D52: 0 | E52: 0 | F52: 154.3129497 | G52: =F52/'Refrigeration & Weather'!$C$22 -> 69.35413471 | H52: =G52*3*'Refrigeration & Weather'!$C$23 -> 52.01560103 | I52: 7.597414544 | J52: 50.30640054 | M52: 9.332176747 | N52: 48.94988018 | Q52: 11.72304713 | R52: 14.98899032 | U52: 10.90343238 | V52: 40.06767868
A53: 36 | B53: 2012-01-05T12:00:00 | C53: 178.1156484 | D53: 0 | E53: 0 | F53: 178.1156484 | G53: =F53/'Refrigeration & Weather'!$C$22 -> 80.0519768 | H53: =G53*3*'Refrigeration & Weather'!$C$23 -> 60.0389826 | I53: 6.82003925 | J53: 57.30145863 | M53: 8.563417938 | N53: 49.44944824 | Q53: 11.38217086 | R53: 31.43663308 | U53: 10.33739863 | V53: 39.92810842
A54: 37 | B54: 2012-01-05T15:00:00 | C54: 173.6134034 | D54: 0 | E54: 0 | F54: 173.6134034 | G54: =F54/'Refrigeration & Weather'!$C$22 -> 78.0284959 | H54: =G54*3*'Refrigeration & Weather'!$C$23 -> 58.52137193 | I54: 6.070153894 | J54: 48.80693314 | M54: 7.831128334 | N54: 47.05201314 | Q54: 10.85310131 | R54: 36.33234408 | U54: 9.714638507 | V54: 41.42211302
A55: 38 | B55: 2012-01-05T18:00:00 | C55: 163.1190829 | D55: 0 | E55: 0 | F55: 163.1190829 | G55: =F55/'Refrigeration & Weather'!$C$22 -> 73.31194738 | H55: =G55*3*'Refrigeration & Weather'!$C$23 -> 54.98396053 | I55: 5.467511022 | J55: 42.76833265 | M55: 7.238570882 | N55: 36.07163363 | Q55: 10.34557847 | R55: 35.64847538 | U55: 9.016163973 | V55: 48.63064126
A56: 39 | B56: 2012-01-05T21:00:00 | C56: 172.6777482 | D56: 0 | E56: 0 | F56: 172.6777482 | G56: =F56/'Refrigeration & Weather'!$C$22 -> 77.60797672 | H56: =G56*3*'Refrigeration & Weather'!$C$23 -> 58.20598254 | I56: 4.784844179 | J56: 50.98655883 | M56: 6.591024717 | N56: 47.23437494 | Q56: 9.840414883 | R56: 33.8457093 | U56: 8.348949671 | V56: 40.61110513
A57: 40 | B57: 2012-01-06 | C57: 165.2799322 | D57: 0 | E57: 0 | F57: 165.2799322 | G57: =F57/'Refrigeration & Weather'!$C$22 -> 74.28311559 | H57: =G57*3*'Refrigeration & Weather'!$C$23 -> 55.71233669 | I57: 4.057239057 | J57: 48.70380444 | M57: 5.919625404 | N57: 39.13222961 | Q57: 9.329041623 | R57: 35.72252747 | U57: 7.756116536 | V57: 41.72137067
A58: 41 | B58: 2012-01-06T03:00:00 | C58: 167.0451405 | D58: 0 | E58: 0 | F58: 167.0451405 | G58: =F58/'Refrigeration & Weather'!$C$22 -> 75.07646763 | H58: =G58*3*'Refrigeration & Weather'!$C$23 -> 56.30735072 | I58: 3.33662958 | J58: 50.96569756 | M58: 5.274903893 | N58: 45.17497997 | Q58: 8.803010972 | R58: 35.18140696 | U58: 7.18818186 | V58: 35.72305598
A59: 42 | B59: 2012-01-06T06:00:00 | C59: 166.8166293 | D59: 0 | E59: 0 | F59: 166.8166293 | G59: =F59/'Refrigeration & Weather'!$C$22 -> 74.97376596 | H59: =G59*3*'Refrigeration & Weather'!$C$23 -> 56.23032447 | I59: 2.56877684 | J59: 51.7947977 | M59: 4.597980313 | N59: 40.08865788 | Q59: 8.267766208 | R59: 36.37781229 | U59: 6.651173536 | V59: 38.55536139
A60: 43 | B60: 2012-01-06T09:00:00 | C60: 172.4481442 | D60: 0 | E60: 0 | F60: 172.4481442 | G60: =F60/'Refrigeration & Weather'!$C$22 -> 77.50478393 | H60: =G60*3*'Refrigeration & Weather'!$C$23 -> 58.12858795 | I60: 1.782130767 | J60: 52.54338866 | M60: 3.893158349 | N60: 47.57756496 | Q60: 7.739503622 | R60: 34.74563923 | U60: 6.073997196 | V60: 37.58155139
A61: 44 | B61: 2012-01-06T12:00:00 | C61: 168.2483932 | D61: 0 | E61: 0 | F61: 168.2483932 | G61: =F61/'Refrigeration & Weather'!$C$22 -> 75.61725536 | H61: =G61*3*'Refrigeration & Weather'!$C$23 -> 56.71294152 | I61: 1.020690819 | J61: 48.59710359 | M61: 3.176378558 | N61: 40.69741276 | Q61: 7.193623239 | R61: 37.16148064 | U61: 5.511371774 | V61: 41.79239619
A62: 45 | B62: 2012-01-06T15:00:00 | C62: 142.5035973 | D62: 0 | E62: 0 | F62: 142.5035973 | G62: =F62/'Refrigeration & Weather'!$C$22 -> 64.04656058 | H62: =G62*3*'Refrigeration & Weather'!$C$23 -> 48.03492044 | I62: 0.2920831201 | J62: 46.52905153 | M62: 2.468616539 | N62: 45.74286201 | Q62: 6.66727803 | R62: 33.31656637 | U62: 5.246196438 | V62: 16.91511738
A63: 46 | B63: 2012-01-06T18:00:00 | C63: 130.929551 | D63: 0 | E63: 0 | F63: 130.929551 | G63: =F63/'Refrigeration & Weather'!$C$22 -> 58.84474203 | H63: =G63*3*'Refrigeration & Weather'!$C$23 -> 44.13355652 | I63: -0.3394397482 | J63: 36.59217656 | M63: 1.794281752 | N63: 35.98911361 | Q63: 6.138103807 | R63: 36.41285327 | U63: 5.045991532 | V63: 21.93540758
A64: 47 | B64: 2012-01-06T21:00:00 | C64: 144.5405913 | D64: 0 | E64: 0 | F64: 144.5405913 | G64: =F64/'Refrigeration & Weather'!$C$22 -> 64.9620635 | H64: =G64*3*'Refrigeration & Weather'!$C$23 -> 48.72154762 | I64: -0.8246141491 | J64: 28.43462713 | M64: 1.178036847 | N64: 38.15335768 | Q64: 5.597585521 | R64: 33.66579819 | U64: 4.407954235 | V64: 44.28680828
A65: 48 | B65: 2012-01-07 | C65: 125.4474336 | D65: 0 | E65: 0 | F65: 125.4474336 | G65: =F65/'Refrigeration & Weather'!$C$22 -> 56.38086904 | H65: =G65*3*'Refrigeration & Weather'!$C$23 -> 42.28565178 | I65: -1.158121608 | J65: 17.39172486 | M65: 0.6522519815 | N65: 25.14067121 | Q65: 5.057931728 | R65: 36.95990557 | U65: 3.68680539 | V65: 45.95513196
A66: 49 | B66: 2012-01-07T03:00:00 | C66: 109.1112843 | D66: 0 | E66: 0 | F66: 109.1112843 | G66: =F66/'Refrigeration & Weather'!$C$22 -> 49.03877946 | H66: =G66*3*'Refrigeration & Weather'!$C$23 -> 36.77908459 | I66: -1.385470031 | J66: 13.85845324 | M66: 0.2523467271 | N66: 24.0069509 | Q66: 4.590329961 | R66: 27.93252133 | U66: 2.9803359 | V66: 43.31335882
A67: 50 | B67: 2012-01-07T06:00:00 | C67: 87.54737532 | D67: 0 | E67: 0 | F67: 87.54737532 | G67: =F67/'Refrigeration & Weather'!$C$22 -> 39.34713498 | H67: =G67*3*'Refrigeration & Weather'!$C$23 -> 29.51035123 | I67: -1.542957719 | J67: 7.72071418 | M67: -0.03648620182 | N67: 11.53502867 | Q67: 4.255270887 | R67: 24.19070939 | U67: 2.276243187 | V67: 44.10092308
A68: 51 | B68: 2012-01-07T09:00:00 | C68: 84.58143034 | D68: 0 | E68: 0 | F68: 84.58143034 | G68: =F68/'Refrigeration & Weather'!$C$22 -> 38.01412599 | H68: =G68*3*'Refrigeration & Weather'!$C$23 -> 28.5105945 | I68: -1.654708239 | J68: 7.522677037 | M68: -0.2751567799 | N68: 15.67900974 | Q68: 3.951180263 | R68: 21.33973775 | U68: 1.598160101 | V68: 40.04000581
A69: 52 | B69: 2012-01-07T12:00:00 | C69: 69.29697341 | D69: 0 | E69: 0 | F69: 69.29697341 | G69: =F69/'Refrigeration & Weather'!$C$22 -> 31.14470715 | H69: =G69*3*'Refrigeration & Weather'!$C$23 -> 23.35853036 | I69: -1.736130597 | J69: 3.530597114 | M69: -0.4689359888 | N69: 5.698375022 | Q69: 3.642489396 | R69: 23.21309131 | U69: 0.9806206279 | V69: 36.85490997
A70: 53 | B70: 2012-01-07T15:00:00 | C70: 63.03390487 | D70: 0 | E70: 0 | F70: 63.03390487 | G70: =F70/'Refrigeration & Weather'!$C$22 -> 28.32984488 | H70: =G70*3*'Refrigeration & Weather'!$C$23 -> 21.24738366 | I70: -1.797009303 | J70: 4.696189028 | M70: -0.6047114376 | N70: 9.563500239 | Q70: 3.333366881 | R70: 21.06706887 | U70: 0.4761083289 | V70: 27.70714673
A71: 54 | B71: 2012-01-07T18:00:00 | C71: 49.61595924 | D71: 0 | E71: 0 | F71: 49.61595924 | G71: =F71/'Refrigeration & Weather'!$C$22 -> 22.29930752 | H71: =G71*3*'Refrigeration & Weather'!$C$23 -> 16.72448064 | I71: -1.843627755 | J71: 1.577669866 | M71: -0.7080635883 | N71: 1.247317993 | Q71: 3.012766316 | R71: 23.09015622 | U71: 0.07935412302 | V71: 23.70081516
A72: 55 | B72: 2012-01-07T21:00:00 | C72: 49.48098094 | D72: 0 | E72: 0 | F72: 49.48098094 | G72: =F72/'Refrigeration & Weather'!$C$22 -> 22.23864312 | H72: =G72*3*'Refrigeration & Weather'!$C$23 -> 16.67898234 | I72: -1.880100619 | J72: 3.313061589 | M72: -0.788858357 | N72: 6.683534785 | Q72: 2.658511684 | R72: 23.20638751 | U72: -0.2248981859 | V72: 16.27799706
A73: 56 | B73: 2012-01-08 | C73: 40.4054962 | D73: 0 | E73: 0 | F73: 40.4054962 | G73: =F73/'Refrigeration & Weather'!$C$22 -> 18.15977357 | H73: =G73*3*'Refrigeration & Weather'!$C$23 -> 13.61983018 | I73: -1.909184393 | J73: 0.5745717284 | M73: -0.8531307828 | N73: -0.8504715186 | Q73: 2.260343069 | R73: 26.31380597 | U73: -0.4543477085 | V73: 14.36759002
A74: 57 | B74: 2012-01-08T03:00:00 | C74: 39.35287845 | D74: 0 | E74: 0 | F74: 39.35287845 | G74: =F74/'Refrigeration & Weather'!$C$22 -> 17.68668694 | H74: =G74*3*'Refrigeration & Weather'!$C$23 -> 13.26501521 | I74: -1.932769233 | J74: 2.56940026 | M74: -0.9050718709 | N74: 5.122852355 | Q74: 1.876647828 | R74: 22.63797191 | U74: -0.6261309537 | V74: 9.022653923
A75: 58 | B75: 2012-01-08T06:00:00 | C75: 29.38627797 | D75: 0 | E75: 0 | F75: 29.38627797 | G75: =F75/'Refrigeration & Weather'!$C$22 -> 13.20731594 | H75: =G75*3*'Refrigeration & Weather'!$C$23 -> 9.905486956 | I75: -1.952180724 | J75: 0.01209496504 | M75: -0.9476509311 | N75: -2.031852414 | Q75: 1.525465857 | R75: 22.48138064 | U75: -0.7549102928 | V75: 8.924654775
A76: 59 | B76: 2012-01-08T09:00:00 | C76: 29.10663352 | D76: 0 | E76: 0 | F76: 29.10663352 | G76: =F76/'Refrigeration & Weather'!$C$22 -> 13.08163304 | H76: =G76*3*'Refrigeration & Weather'!$C$23 -> 9.811224783 | I76: -1.968368325 | J76: 2.136199556 | M76: -0.9830073117 | N76: 4.213924115 | Q76: 1.217972555 | R76: 17.73179866 | U76: -0.8522084935 | V76: 5.024711187
A77: 60 | B77: 2012-01-08T12:00:00 | C77: 20.29607809 | D77: 0 | E77: 0 | F77: 20.29607809 | G77: =F77/'Refrigeration & Weather'!$C$22 -> 9.12183285 | H77: =G77*3*'Refrigeration & Weather'!$C$23 -> 6.841374637 | I77: -1.982025477 | J77: -0.3270185374 | M77: -1.012707927 | N77: -2.741815455 | Q77: 0.9568419949 | R77: 17.35198728 | U77: -0.9266048067 | V77: 6.0129248
A78: 61 | B78: 2012-01-08T15:00:00 | C78: 20.85094048 | D78: 0 | E78: 0 | F78: 20.85094048 | G78: =F78/'Refrigeration & Weather'!$C$22 -> 9.371209205 | H78: =G78*3*'Refrigeration & Weather'!$C$23 -> 7.028406904 | I78: -1.993667751 | J78: 1.866820088 | M78: -1.037918657 | N78: 3.651592256 | Q78: 0.7474637141 | R78: 12.43061162 | U78: -0.9842965315 | V78: 2.901916519
A79: 62 | B79: 2012-01-08T18:00:00 | C79: 13.6143678 | D79: 0 | E79: 0 | F79: 13.6143678 | G79: =F79/'Refrigeration & Weather'!$C$22 -> 6.118816988 | H79: =G79*3*'Refrigeration & Weather'!$C$23 -> 4.589112741 | I79: -2.003684776 | J79: -0.5438477511 | M79: -1.05951998 | N79: -3.192943186 | Q79: 0.5762586806 | R79: 12.89729828 | U79: -1.029701311 | V79: 4.453860455
A80: 63 | B80: 2012-01-08T21:00:00 | C80: 16.31506219 | D80: 0 | E80: 0 | F80: 16.31506219 | G80: =F80/'Refrigeration & Weather'!$C$22 -> 7.332612222 | H80: =G80*3*'Refrigeration & Weather'!$C$23 -> 5.499459167 | I80: -2.012375413 | J80: 1.690196276 | M80: -1.078186144 | N80: 3.28541897 | Q80: 0.4249907273 | R80: 9.595389427 | U80: -1.065962157 | V80: 1.744057522
A81: 64 | B81: 2012-01-09 | C81: =J81+N81+R81+V81+Z81+AD81+AH81+AL81+AP81+AT81+AX81+BB81+BF81+BJ81+BN81+BR81+BV81+BZ81+CD81+CH81+CL81+CP81+CT81+CX81+DB81+DF81+DJ81+DN81+DR81+DV81+DZ81+ED81+EH81+EL81+EP81+ET81+EX81+FB81+FF81+FJ81+FN81+FR81+FV81+FZ81+GD81+GH81+GL81+GP81+GT81+GX81+HB81+HF81+HJ81+HN81+HR81+HV81+HZ81+ID81+IH81+IL81+IP81+IT81+IX81+JB81+JF81+JJ81+JN81+JR81+JV81+JZ81+KD81+KH81+KL81+KP81+KT81+KX81+LB81+LF81+LJ81+LN81+LR81+LV81+LZ81+MD81+MH81+ML81+MP81+MT81+MX81+NB81+NF81+NJ81+NN81+NR81+NV81+NZ81+OD81+OH81+OL81+OP81 -> 10.25866999 | D81: 0 | E81: 0 | F81: 10.25866999 | G81: =F81/'Refrigeration & Weather'!$C$22 -> 4.610638197 | H81: =G81*3*'Refrigeration & Weather'!$C$23 -> 3.457978647 | I81: -2.019972027 | J81: -0.6892830549 | M81: -1.094440184 | N81: -3.493358892 | Q81: 0.2902108941 | R81: 10.85864988 | U81: -1.095326933 | V81: 3.582662058
A82: 65 | B82: 2012-01-09T03:00:00 | C82: 13.49069009 | D82: =K82+O82+S82+W82+AA82+AE82+AI82+AM82+AQ82+AU82+AY82+BC82+BG82+BK82+BO82+BS82+BW82+CA82+CE82+CI82+CM82+CQ82+CU82+CY82+DC82+DG82+DK82+DO82+DS82+DW82+EA82+EE82+EI82+EM82+EQ82+EU82+EY82+FC82+FG82+FK82+FO82+FS82+FW82+GA82+GE82+GI82+GM82+GQ82+GU82+GY82+HC82+HG82+HK82+HO82+HS82+HW82+IA82+IE82+II82+IM82+IQ82+IU82+IY82+JC82+JG82+JK82+JO82+JS82+JW82+KA82+KE82+KI82+KM82+KQ82+KU82+KY82+LC82+LG82+LK82+LO82+LS82+LW82+MA82+ME82+MI82+MM82+MQ82+MU82+MY82+NC82+NG82+NK82+NO82+NS82+NW82+OA82+OE82+OI82+OM82+OQ82 -> 0 | E82: =L82+P82+T82+X82+AB82+AF82+AJ82+AN82+AR82+AV82+AZ82+BD82+BH82+BL82+BP82+BT82+BX82+CB82+CF82+CJ82+CN82+CR82+CV82+CZ82+DD82+DH82+DL82+DP82+DT82+DX82+EB82+EF82+EJ82+EN82+ER82+EV82+EZ82+FD82+FH82+FL82+FP82+FT82+FX82+GB82+GF82+GJ82+GN82+GR82+GV82+GZ82+HD82+HH82+HL82+HP82+HT82+HX82+IB82+IF82+IJ82+IN82+IR82+IV82+IZ82+JD82+JH82+JL82+JP82+JT82+JX82+KB82+KF82+KJ82+KN82+KR82+KV82+KZ82+LD82+LH82+LL82+LP82+LT82+LX82+MB82+MF82+MJ82+MN82+MR82+MV82+MZ82+ND82+NH82+NL82+NP82+NT82+NX82+OB82+OF82+OJ82+ON82+OR82 -> 0 | F82: =SUM(C82:E82) -> 13.49069009 | G82: =F82/'Refrigeration & Weather'!$C$22 -> 6.063231501 | H82: =G82*3*'Refrigeration & Weather'!$C$23 -> 4.547423626 | I82: -2.026657539 | J82: 1.569261985 | M82: -1.108692721 | N82: 3.036524292 | Q82: 0.1699624504 | R82: 7.805439148 | U82: -1.119418536 | V82: 1.079464664
A83: 66 | B83: 2012-01-09T06:00:00 | C83: 7.857172272 | D83: 0 | E83: 0 | F83: 7.857172272 | G83: =F83/'Refrigeration & Weather'!$C$22 -> 3.531313381 | H83: =G83*3*'Refrigeration & Weather'!$C$23 -> 2.648485035 | I83: -2.032577588 | J83: -0.7907464586 | M83: -1.121269712 | N83: -3.701430114 | Q83: 0.06252246892 | R83: 9.280677914 | U83: -1.139422439 | V83: 3.06867093
A84: 67 | B84: =B83+1/8 -> 2012-01-09T09:00:00 | C84: 11.43689944 | D84: 0 | E84: 0 | F84: 11.43689944 | G84: =F84/'Refrigeration & Weather'!$C$22 -> 5.140179525 | H84: =G84*3*'Refrigeration & Weather'!$C$23 -> 3.855134643 | I84: -2.037849343 | J84: 1.483436625 | M84: -1.132432578 | N84: 2.861138703 | Q84: -0.03363861211 | R84: 6.415683436 | U84: -1.156215679 | V84: 0.676640679
A85: 68 | B85: 2012-01-09T12:00:00 | C85: 6.091955414 | D85: 0 | E85: 0 | F85: 6.091955414 | G85: =F85/'Refrigeration & Weather'!$C$22 -> 2.737957489 | H85: =G85*3*'Refrigeration & Weather'!$C$23 -> 2.053468117 | I85: -2.042567977 | J85: -0.863889423 | M85: -1.142392982 | N85: -3.850392203 | Q85: -0.1198714136 | R85: 8.05726086 | U85: -1.170455583 | V85: 2.748976179
A86: 69 | B86: 2012-01-09T15:00:00 | C86: 9.912909428 | D86: 0 | E86: 0 | F86: 9.912909428 | G86: =F86/'Refrigeration & Weather'!$C$22 -> 4.455240192 | H86: =G86*3*'Refrigeration & Weather'!$C$23 -> 3.341430144 | I86: -2.046811476 | J86: 1.420671556 | M86: -1.151323814 | N86: 2.733729393 | Q86: -0.1973632864 | R86: 5.338595968 | U86: -1.182641151 | V86: 0.4199125115
A87: 70 | B87: 2012-01-09T18:00:00 | C87: 4.770831354 | D87: 0 | E87: 0 | F87: 4.770831354 | G87: =F87/'Refrigeration & Weather'!$C$22 -> 2.144193867 | H87: =G87*3*'Refrigeration & Weather'!$C$23 -> 1.6081454 | I87: -2.050644271 | J87: -0.9180918437 | M87: -1.159367455 | N87: -3.960075301 | Q87: -0.2671546527 | R87: 7.108459699 | U87: -1.193155883 | V87: 2.540538799
A88: 71 | B88: 2012-01-09T21:00:00 | C88: 8.763270881 | D88: 0 | E88: 0 | F88: 8.763270881 | G88: =F88/'Refrigeration & Weather'!$C$22 -> 3.93854871 | H88: =G88*3*'Refrigeration & Weather'!$C$23 -> 2.953911533 | I88: -2.054119995 | J88: 1.373588321 | M88: -1.166642054 | N88: 2.638738051 | Q88: -0.3301551331 | R88: 4.501992323 | U88: -1.202297996 | V88: 0.2489521851
A89: 72 | B89: 2012-01-10 | C89: 3.766806559 | D89: 0 | E89: 0 | F89: 3.766806559 | G89: =F89/'Refrigeration & Weather'!$C$22 -> 1.692946768 | H89: =G89*3*'Refrigeration & Weather'!$C$23 -> 1.269710076 | I89: -2.057283606 | J89: -0.9592138513 | M89: -1.173246349 | N89: -4.042802282 | Q89: -0.3871588711 | R89: 6.369831836 | U89: -1.210301963 | V89: 2.398990857
A90: 73 | B90: 2012-01-10T03:00:00 | C90: 7.883392579 | D90: 0 | E90: 0 | F90: 7.883392579 | G90: =F90/'Refrigeration & Weather'!$C$22 -> 3.543097788 | H90: =G90*3*'Refrigeration & Weather'!$C$23 -> 2.657323341 | I90: -2.060173038 | J90: 1.337490982 | M90: -1.179263402 | N90: 2.566317754 | Q90: -0.438858709 | R90: 3.848852256 | U90: -1.217354072 | V90: 0.1307315871
A91: 74 | B91: 2012-01-10T06:00:00 | C91: 2.993166659 | D91: 0 | E91: 0 | F91: 2.993166659 | G91: =F91/'Refrigeration & Weather'!$C$22 -> 1.345243442 | H91: =G91*3*'Refrigeration & Weather'!$C$23 -> 1.008932582 | I91: -2.062820492 | J91: -0.9910498115 | M91: -1.184763523 | N91: -4.106506847 | Q91: -0.4858590449 | R91: 5.791268588 | U91: -1.223603768 | V91: 2.29945473
A92: 75 | B92: 2012-01-10T09:00:00 | C92: 7.200983609 | D92: 0 | E92: 0 | F92: 7.200983609 | G92: =F92/'Refrigeration & Weather'!$C$22 -> 3.236397128 | H92: =G92*3*'Refrigeration & Weather'!$C$23 -> 2.427297846 | I92: -2.065253458 | J92: 1.309289874 | M92: -1.189806567 | N92: 2.510026715 | Q92: -0.5286873237 | R92: 3.335367349 | U92: -1.229172041 | V92: 0.04629967128
A93: 76 | B93: 2012-01-10T12:00:00 | C93: 2.389361291 | D93: 0 | E93: 0 | F93: 2.389361291 | G93: =F93/'Refrigeration & Weather'!$C$22 -> 1.073870243 | H93: =G93*3*'Refrigeration & Weather'!$C$23 -> 0.8054026823 | I93: -2.067495532 | J93: -1.016133779 | M93: -1.19444377 | N93: -4.156457405 | Q93: -0.5678041931 | R93: 5.33461412 | U93: -1.234157677 | V93: 2.227338355
A94: 77 | B94: 2012-01-10T15:00:00 | C94: 6.665118515 | D94: 0 | E94: 0 | F94: 6.665118515 | G94: =F94/'Refrigeration & Weather'!$C$22 -> 2.995558883 | H94: =G94*3*'Refrigeration & Weather'!$C$23 -> 2.246669162 | I94: -2.069567064 | J94: 1.286892568 | M94: -1.19871921 | N94: 2.465526826 | Q94: -0.6036124068 | R94: 2.928393022 | U94: -1.238641976 | V94: -0.01569390093
A95: 78 | B95: 2012-01-10T18:00:00 | C95: 1.912401348 | D95: 0 | E95: 0 | F95: 1.912401348 | G95: =F95/'Refrigeration & Weather'!$C$22 -> 0.8595062238 | H95: =G95*3*'Refrigeration & Weather'!$C$23 -> 0.6446296678 | I95: -2.07148569 | J95: -1.036204475 | M95: -1.202670993 | N95: -4.196248884 | Q95: -0.63646458 | R95: 4.971126702 | U95: -1.242692346 | V95: 2.173728005
A96: 79 | B96: 2012-01-10T21:00:00 | C96: 6.239383854 | D96: 0 | E96: 0 | F96: 6.239383854 | G96: =F96/'Refrigeration & Weather'!$C$22 -> 2.804217462 | H96: =G96*3*'Refrigeration & Weather'!$C$23 -> 2.103163097 | I96: -2.073266763 | J96: 1.268845664 | M96: -1.206332204 | N96: 2.429821108 | Q96: -0.6666699146 | R96: 2.603029798 | U96: -1.246365066 | V96: -0.06231271739
A97: 80 | B97: 2012-01-11 | C97: 1.531344189 | D97: 0 | E97: 0 | F97: 1.531344189 | G97: =F97/'Refrigeration & Weather'!$C$22 -> 0.6882445793 | H97: =G97*3*'Refrigeration & Weather'!$C$23 -> 0.5161834344 | I97: -2.074923699 | J97: -1.052483599 | M97: -1.209731699 | N97: -4.22839392 | Q97: -0.694500012 | R97: 4.679243168 | U97: -1.24970743 | V97: 2.13297854
A98: 81 | B98: 2012-01-11T03:00:00 | C98: 5.897405172 | D98: 0 | E98: 0 | F98: 5.897405172 | G98: =F98/'Refrigeration & Weather'!$C$22 -> 2.650519178 | H98: =G98*3*'Refrigeration & Weather'!$C$23 -> 1.987889384 | I98: -2.076468272 | J98: 1.254116815 | M98: -1.212894738 | N98: 2.400791739 | Q98: -0.7201938865 | R98: 2.340601054 | U98: -1.252759425 | V98: -0.09810443619
A99: 82 | B99: 2012-01-11T06:00:00 | C99: 1.223642485 | D99: 0 | E99: 0 | F99: 1.223642485 | G99: =F99/'Refrigeration & Weather'!$C$22 -> 0.5499516785 | H99: =G99*3*'Refrigeration & Weather'!$C$23 -> 0.4124637589 | I99: -2.077910852 | J99: -1.065847826 | M99: -1.215843526 | N99: -4.254686564 | Q99: -0.7439622825 | R99: 4.442778042 | U99: -1.255555052 | V99: 2.101398832
A100: 83 | B100: 2012-01-11T09:00:00 | C100: 5.619851288 | D100: 0 | E100: 0 | F100: 5.619851288 | G100: =F100/'Refrigeration & Weather'!$C$22 -> 2.52577586 | H100: =G100*3*'Refrigeration & Weather'!$C$23 -> 1.894331895 | I100: -2.079260602 | J100: 1.241958047 | M100: -1.218597644 | N100: 2.376911697 | Q100: -0.7659913897 | R100: 2.127067749 | U100: -1.258123379 | V100: -0.1260862062
A101: 84 | B101: 2012-01-11T12:00:00 | C101: 0.9726756555 | D101: 0 | E101: 0 | F101: 0.9726756555 | G101: =F101/'Refrigeration & Weather'!$C$22 -> 0.437157598 | H101: =G101*3*'Refrigeration & Weather'!$C$23 -> 0.3278681985 | I101: -2.080525649 | J101: -1.076938154 | M101: -1.221174426 | N101: -4.27643242 | Q101: -0.7864460403 | R101: 4.249540034 | U101: -1.260489383 | V101: 2.076506196
A102: 85 | B102: 2012-01-11T15:00:00 | C102: 5.392392573 | D102: 0 | E102: 0 | F102: 5.392392573 | G102: =F102/'Refrigeration & Weather'!$C$22 -> 2.423547224 | H102: =G102*3*'Refrigeration & Weather'!$C$23 -> 1.817660418 | I102: -2.081713224 | J102: 1.231817731 | M102: -1.22358926 | N102: 2.357059909 | Q102: -0.8054724602 | R102: 1.951828699 | U102: -1.262674628 | V102: -0.1483137666
A103: 86 | B103: 2012-01-11T18:00:00 | C103: 0.7660556437 | D103: 0 | E103: 0 | F103: 0.7660556437 | G103: =F103/'Refrigeration & Weather'!$C$22 -> 0.3442946713 | H103: =G103*3*'Refrigeration & Weather'!$C$23 -> 0.2582210035 | I103: -2.082829775 | J103: -1.086231201 | M103: -1.225855853 | N103: -4.294598024 | Q103: -0.8232006386 | R103: 4.090296544 | U103: -1.264697815 | V103: 2.056588324
A104: 87 | B104: 2012-01-11T21:00:00 | C104: 5.204290852 | D104: 0 | E104: 0 | F104: 5.204290852 | G104: =F104/'Refrigeration & Weather'!$C$22 -> 2.339007124 | H104: =G104*3*'Refrigeration & Weather'!$C$23 -> 1.754255343 | I104: -2.083881076 | J104: 1.223282501 | M104: -1.227986449 | N104: 2.340399858 | Q104: -0.8397463706 | R104: 1.806829843 | U104: -1.26657523 | V104: -0.1662213498
A105: 88 | B105: 2012-01-12 | C105: 0.5944499881 | D105: 0 | E105: 0 | F105: 0.5944499881 | G105: =F105/'Refrigeration & Weather'!$C$22 -> 0.267168534 | H105: =G105*3*'Refrigeration & Weather'!$C$23 -> 0.2003764005 | I105: -2.084872304 | J105: -1.094086764 | M105: -1.229992013 | N105: -4.30991002 | Q105: -0.8552130192 | R105: 3.958009228 | U105: -1.268321116 | V105: 2.040437544
A106: 89 | B106: 2012-01-12T03:00:00 | C106: 0 | D106: 0 | E106: 0 | F106: 0 | G106: =F106/'Refrigeration & Weather'!$C$22 -> 0 | H106: =G106*3*'Refrigeration & Weather'!$C$23 -> 0
A107: 90 | B107: 2012-01-12T06:00:00 | C107: 0 | D107: 0 | E107: 0 | F107: 0 | G107: =F107/'Refrigeration & Weather'!$C$22 -> 0 | H107: =G107*3*'Refrigeration & Weather'!$C$23 -> 0
A108: 91 | B108: 2012-01-12T09:00:00 | C108: 0 | D108: 0 | E108: 0 | F108: 0 | G108: =F108/'Refrigeration & Weather'!$C$22 -> 0 | H108: =G108*3*'Refrigeration & Weather'!$C$23 -> 0
A109: 92 | B109: 2012-01-12T12:00:00 | C109: 0 | D109: 0 | E109: 0 | F109: 0 | G109: =F109/'Refrigeration & Weather'!$C$22 -> 0 | H109: =G109*3*'Refrigeration & Weather'!$C$23 -> 0
A110: 93 | B110: 2012-01-12T15:00:00 | C110: 0 | D110: 0 | E110: 0 | F110: 0 | G110: =F110/'Refrigeration & Weather'!$C$22 -> 0 | H110: =G110*3*'Refrigeration & Weather'!$C$23 -> 0
A111: 94 | B111: 2012-01-12T18:00:00 | C111: 0 | D111: 0 | E111: 0 | F111: 0 | G111: =F111/'Refrigeration & Weather'!$C$22 -> 0 | H111: =G111*3*'Refrigeration & Weather'!$C$23 -> 0
A112: 95 | B112: 2012-01-12T21:00:00 | C112: 0 | D112: 0 | E112: 0 | F112: 0 | G112: =F112/'Refrigeration & Weather'!$C$22 -> 0 | H112: =G112*3*'Refrigeration & Weather'!$C$23 -> 0
A113: 96 | B113: 2012-01-13 | C113: 0 | D113: 0 | E113: 0 | F113: 0 | G113: =F113/'Refrigeration & Weather'!$C$22 -> 0 | H113: =G113*3*'Refrigeration & Weather'!$C$23 -> 0
A114: 97 | B114: 2012-01-13T03:00:00 | C114: 0 | D114: 0 | E114: 0 | F114: 0 | G114: =F114/'Refrigeration & Weather'!$C$22 -> 0 | H114: =G114*3*'Refrigeration & Weather'!$C$23 -> 0
A115: 98 | B115: 2012-01-13T06:00:00 | C115: 0 | D115: 0 | E115: 0 | F115: 0 | G115: =F115/'Refrigeration & Weather'!$C$22 -> 0 | H115: =G115*3*'Refrigeration & Weather'!$C$23 -> 0
A116: 99 | B116: 2012-01-13T09:00:00 | C116: 0 | D116: 0 | E116: 0 | F116: 0 | G116: =F116/'Refrigeration & Weather'!$C$22 -> 0 | H116: =G116*3*'Refrigeration & Weather'!$C$23 -> 0
A117: 100 | B117: 2012-01-13T12:00:00 | C117: 0 | D117: 0 | E117: 0 | F117: 0 | G117: =F117/'Refrigeration & Weather'!$C$22 -> 0 | H117: =G117*3*'Refrigeration & Weather'!$C$23 -> 0
A118: 101 | B118: 2012-01-13T15:00:00 | C118: 0 | D118: 0 | E118: 0 | F118: 0 | G118: =F118/'Refrigeration & Weather'!$C$22 -> 0 | H118: =G118*3*'Refrigeration & Weather'!$C$23 -> 0
A119: 102 | B119: 2012-01-13T18:00:00 | C119: 0 | D119: 0 | E119: 0 | F119: 0 | G119: =F119/'Refrigeration & Weather'!$C$22 -> 0 | H119: =G119*3*'Refrigeration & Weather'!$C$23 -> 0
A120: 103 | B120: 2012-01-13T21:00:00 | C120: 0 | D120: 0 | E120: 0 | F120: 0 | G120: =F120/'Refrigeration & Weather'!$C$22 -> 0 | H120: =G120*3*'Refrigeration & Weather'!$C$23 -> 0
A121: 104 | B121: 2012-01-14 | C121: 0 | D121: 0 | E121: 0 | F121: 0 | G121: =F121/'Refrigeration & Weather'!$C$22 -> 0 | H121: =G121*3*'Refrigeration & Weather'!$C$23 -> 0
A122: 105 | B122: 2012-01-14T03:00:00 | C122: 0 | D122: 0 | E122: 0 | F122: 0 | G122: =F122/'Refrigeration & Weather'!$C$22 -> 0 | H122: =G122*3*'Refrigeration & Weather'!$C$23 -> 0
A123: 106 | B123: 2012-01-14T06:00:00 | C123: 0 | D123: 0 | E123: 0 | F123: 0 | G123: =F123/'Refrigeration & Weather'!$C$22 -> 0 | H123: =G123*3*'Refrigeration & Weather'!$C$23 -> 0
A124: 107 | B124: 2012-01-14T09:00:00 | C124: 0 | D124: 0 | E124: 0 | F124: 0 | G124: =F124/'Refrigeration & Weather'!$C$22 -> 0 | H124: =G124*3*'Refrigeration & Weather'!$C$23 -> 0
A125: 108 | B125: 2012-01-14T12:00:00 | C125: 0 | D125: 0 | E125: 0 | F125: 0 | G125: =F125/'Refrigeration & Weather'!$C$22 -> 0 | H125: =G125*3*'Refrigeration & Weather'!$C$23 -> 0
A126: 109 | B126: 2012-01-14T15:00:00 | C126: 0 | D126: 0 | E126: 0 | F126: 0 | G126: =F126/'Refrigeration & Weather'!$C$22 -> 0 | H126: =G126*3*'Refrigeration & Weather'!$C$23 -> 0
A127: 110 | B127: 2012-01-14T18:00:00 | C127: 0 | D127: 0 | E127: 0 | F127: 0 | G127: =F127/'Refrigeration & Weather'!$C$22 -> 0 | H127: =G127*3*'Refrigeration & Weather'!$C$23 -> 0
A128: 111 | B128: 2012-01-14T21:00:00 | C128: 0 | D128: 0 | E128: 0 | F128: 0 | G128: =F128/'Refrigeration & Weather'!$C$22 -> 0 | H128: =G128*3*'Refrigeration & Weather'!$C$23 -> 0
A129: 112 | B129: 2012-01-15 | C129: 0 | D129: 0 | E129: 0 | F129: 0 | G129: =F129/'Refrigeration & Weather'!$C$22 -> 0 | H129: =G129*3*'Refrigeration & Weather'!$C$23 -> 0
A130: 113 | B130: 2012-01-15T03:00:00 | C130: 0 | D130: 0 | E130: 0 | F130: 0 | G130: =F130/'Refrigeration & Weather'!$C$22 -> 0 | H130: =G130*3*'Refrigeration & Weather'!$C$23 -> 0
A131: 114 | B131: 2012-01-15T06:00:00 | C131: 0 | D131: 0 | E131: 0 | F131: 0 | G131: =F131/'Refrigeration & Weather'!$C$22 -> 0 | H131: =G131*3*'Refrigeration & Weather'!$C$23 -> 0
A132: 115 | B132: 2012-01-15T09:00:00 | C132: 0 | D132: 0 | E132: 0 | F132: 0 | G132: =F132/'Refrigeration & Weather'!$C$22 -> 0 | H132: =G132*3*'Refrigeration & Weather'!$C$23 -> 0
A133: 116 | B133: 2012-01-15T12:00:00 | C133: 0 | D133: 0 | E133: 0 | F133: 0 | G133: =F133/'Refrigeration & Weather'!$C$22 -> 0 | H133: =G133*3*'Refrigeration & Weather'!$C$23 -> 0
A134: 117 | B134: 2012-01-15T15:00:00 | C134: 0 | D134: 0 | E134: 0 | F134: 0 | G134: =F134/'Refrigeration & Weather'!$C$22 -> 0 | H134: =G134*3*'Refrigeration & Weather'!$C$23 -> 0
A135: 118 | B135: 2012-01-15T18:00:00 | C135: 0 | D135: 0 | E135: 0 | F135: 0 | G135: =F135/'Refrigeration & Weather'!$C$22 -> 0 | H135: =G135*3*'Refrigeration & Weather'!$C$23 -> 0
A136: 119 | B136: 2012-01-15T21:00:00 | C136: 0 | D136: 0 | E136: 0 | F136: 0 | G136: =F136/'Refrigeration & Weather'!$C$22 -> 0 | H136: =G136*3*'Refrigeration & Weather'!$C$23 -> 0
A137: 120 | B137: 2012-01-16 | C137: 0 | D137: 0 | E137: 0 | F137: 0 | G137: =F137/'Refrigeration & Weather'!$C$22 -> 0 | H137: =G137*3*'Refrigeration & Weather'!$C$23 -> 0
A138: 121 | B138: 2012-01-16T03:00:00 | C138: 0 | D138: 0 | E138: 0 | F138: 0 | G138: =F138/'Refrigeration & Weather'!$C$22 -> 0 | H138: =G138*3*'Refrigeration & Weather'!$C$23 -> 0
A139: 122 | B139: 2012-01-16T06:00:00 | C139: 0 | D139: 0 | E139: 0 | F139: 0 | G139: =F139/'Refrigeration & Weather'!$C$22 -> 0 | H139: =G139*3*'Refrigeration & Weather'!$C$23 -> 0
A140: 123 | B140: 2012-01-16T09:00:00 | C140: 0 | D140: 0 | E140: 0 | F140: 0 | G140: =F140/'Refrigeration & Weather'!$C$22 -> 0 | H140: =G140*3*'Refrigeration & Weather'!$C$23 -> 0
A141: 124 | B141: 2012-01-16T12:00:00 | C141: 0 | D141: 0 | E141: 0 | F141: 0 | G141: =F141/'Refrigeration & Weather'!$C$22 -> 0 | H141: =G141*3*'Refrigeration & Weather'!$C$23 -> 0
A142: 125 | B142: 2012-01-16T15:00:00 | C142: 0 | D142: 0 | E142: 0 | F142: 0 | G142: =F142/'Refrigeration & Weather'!$C$22 -> 0 | H142: =G142*3*'Refrigeration & Weather'!$C$23 -> 0
A143: 126 | B143: 2012-01-16T18:00:00 | C143: 0 | D143: 0 | E143: 0 | F143: 0 | G143: =F143/'Refrigeration & Weather'!$C$22 -> 0 | H143: =G143*3*'Refrigeration & Weather'!$C$23 -> 0
A144: 127 | B144: 2012-01-16T21:00:00 | C144: 0 | D144: 0 | E144: 0 | F144: 0 | G144: =F144/'Refrigeration & Weather'!$C$22 -> 0 | H144: =G144*3*'Refrigeration & Weather'!$C$23 -> 0
A145: 128 | B145: 2012-01-17 | C145: =J145+N145+R145+V145+Z145+AD145+AH145+AL145+AP145+AT145+AX145+BB145+BF145+BJ145+BN145+BR145+BV145+BZ145+CD145+CH145+CL145+CP145+CT145+CX145+DB145+DF145+DJ145+DN145+DR145+DV145+DZ145+ED145+EH145+EL145+EP145+ET145+EX145+FB145+FF145+FJ145+FN145+FR145+FV145+FZ145+GD145+GH145+GL145+GP145+GT145+GX145+HB145+HF145+HJ145+HN145+HR145+HV145+HZ145+ID145+IH145+IL145+IP145+IT145+IX145+JB145+JF145+JJ145+JN145+JR145+JV145+JZ145+KD145+KH145+KL145+KP145+KT145+KX145+LB145+LF145+LJ145+LN145+LR145+LV145+LZ145+MD145+MH145+ML145+MP145+MT145+MX145+NB145+NF145+NJ145+NN145+NR145+NV145+NZ145+OD145+OH145+OL145+OP145 -> 0 | D145: 0 | E145: 0 | F145: 0 | G145: =F145/'Refrigeration & Weather'!$C$22 -> 0 | H145: =G145*3*'Refrigeration & Weather'!$C$23 -> 0
A146: 129 | B146: 2012-01-17T03:00:00 | C146: 0 | D146: =K146+O146+S146+W146+AA146+AE146+AI146+AM146+AQ146+AU146+AY146+BC146+BG146+BK146+BO146+BS146+BW146+CA146+CE146+CI146+CM146+CQ146+CU146+CY146+DC146+DG146+DK146+DO146+DS146+DW146+EA146+EE146+EI146+EM146+EQ146+EU146+EY146+FC146+FG146+FK146+FO146+FS146+FW146+GA146+GE146+GI146+GM146+GQ146+GU146+GY146+HC146+HG146+HK146+HO146+HS146+HW146+IA146+IE146+II146+IM146+IQ146+IU146+IY146+JC146+JG146+JK146+JO146+JS146+JW146+KA146+KE146+KI146+KM146+KQ146+KU146+KY146+LC146+LG146+LK146+LO146+LS146+LW146+MA146+ME146+MI146+MM146+MQ146+MU146+MY146+NC146+NG146+NK146+NO146+NS146+NW146+OA146+OE146+OI146+OM146+OQ146 -> 0 | E146: =L146+P146+T146+X146+AB146+AF146+AJ146+AN146+AR146+AV146+AZ146+BD146+BH146+BL146+BP146+BT146+BX146+CB146+CF146+CJ146+CN146+CR146+CV146+CZ146+DD146+DH146+DL146+DP146+DT146+DX146+EB146+EF146+EJ146+EN146+ER146+EV146+EZ146+FD146+FH146+FL146+FP146+FT146+FX146+GB146+GF146+GJ146+GN146+GR146+GV146+GZ146+HD146+HH146+HL146+HP146+HT146+HX146+IB146+IF146+IJ146+IN146+IR146+IV146+IZ146+JD146+JH146+JL146+JP146+JT146+JX146+KB146+KF146+KJ146+KN146+KR146+KV146+KZ146+LD146+LH146+LL146+LP146+LT146+LX146+MB146+MF146+MJ146+MN146+MR146+MV146+MZ146+ND146+NH146+NL146+NP146+NT146+NX146+OB146+OF146+OJ146+ON146+OR146 -> 0 | F146: =SUM(C146:E146) -> 0 | G146: =F146/'Refrigeration & Weather'!$C$22 -> 0 | H146: =G146*3*'Refrigeration & Weather'!$C$23 -> 0
A147: 130 | B147: 2012-01-17T06:00:00 | C147: 0 | D147: 0 | E147: 0 | F147: 0 | G147: =F147/'Refrigeration & Weather'!$C$22 -> 0 | H147: =G147*3*'Refrigeration & Weather'!$C$23 -> 0
A148: 131 | B148: =B147+1/8 -> 2012-01-17T09:00:00 | C148: 0 | D148: 0 | E148: 0 | F148: 0 | G148: =F148/'Refrigeration & Weather'!$C$22 -> 0 | H148: =G148*3*'Refrigeration & Weather'!$C$23 -> 0
A149: 132 | B149: 2012-01-17T12:00:00 | C149: 0 | D149: 0 | E149: 0 | F149: 0 | G149: =F149/'Refrigeration & Weather'!$C$22 -> 0 | H149: =G149*3*'Refrigeration & Weather'!$C$23 -> 0
A150: 133 | B150: 2012-01-17T15:00:00 | C150: 0 | D150: 0 | E150: 0 | F150: 0 | G150: =F150/'Refrigeration & Weather'!$C$22 -> 0 | H150: =G150*3*'Refrigeration & Weather'!$C$23 -> 0
A151: 134 | B151: 2012-01-17T18:00:00 | C151: 0 | D151: 0 | E151: 0 | F151: 0 | G151: =F151/'Refrigeration & Weather'!$C$22 -> 0 | H151: =G151*3*'Refrigeration & Weather'!$C$23 -> 0
A152: 135 | B152: 2012-01-17T21:00:00 | C152: 0 | D152: 0 | E152: 0 | F152: 0 | G152: =F152/'Refrigeration & Weather'!$C$22 -> 0 | H152: =G152*3*'Refrigeration & Weather'!$C$23 -> 0
A153: 136 | B153: 2012-01-18 | C153: 0 | D153: 0 | E153: 0 | F153: 0 | G153: =F153/'Refrigeration & Weather'!$C$22 -> 0 | H153: =G153*3*'Refrigeration & Weather'!$C$23 -> 0
A154: 137 | B154: 2012-01-18T03:00:00 | C154: 0 | D154: 0 | E154: 0 | F154: 0 | G154: =F154/'Refrigeration & Weather'!$C$22 -> 0 | H154: =G154*3*'Refrigeration & Weather'!$C$23 -> 0
A155: 138 | B155: 2012-01-18T06:00:00 | C155: 0 | D155: 0 | E155: 0 | F155: 0 | G155: =F155/'Refrigeration & Weather'!$C$22 -> 0 | H155: =G155*3*'Refrigeration & Weather'!$C$23 -> 0
A156: 139 | B156: 2012-01-18T09:00:00 | C156: 0 | D156: 0 | E156: 0 | F156: 0 | G156: =F156/'Refrigeration & Weather'!$C$22 -> 0 | H156: =G156*3*'Refrigeration & Weather'!$C$23 -> 0
A157: 140 | B157: 2012-01-18T12:00:00 | C157: 0 | D157: 0 | E157: 0 | F157: 0 | G157: =F157/'Refrigeration & Weather'!$C$22 -> 0 | H157: =G157*3*'Refrigeration & Weather'!$C$23 -> 0
A158: 141 | B158: 2012-01-18T15:00:00 | C158: 0 | D158: 0 | E158: 0 | F158: 0 | G158: =F158/'Refrigeration & Weather'!$C$22 -> 0 | H158: =G158*3*'Refrigeration & Weather'!$C$23 -> 0
A159: 142 | B159: 2012-01-18T18:00:00 | C159: 0 | D159: 0 | E159: 0 | F159: 0 | G159: =F159/'Refrigeration & Weather'!$C$22 -> 0 | H159: =G159*3*'Refrigeration & Weather'!$C$23 -> 0
A160: 143 | B160: 2012-01-18T21:00:00 | C160: 0 | D160: 0 | E160: 0 | F160: 0 | G160: =F160/'Refrigeration & Weather'!$C$22 -> 0 | H160: =G160*3*'Refrigeration & Weather'!$C$23 -> 0
A161: 144 | B161: 2012-01-19 | C161: 0 | D161: 0 | E161: 0 | F161: 0 | G161: =F161/'Refrigeration & Weather'!$C$22 -> 0 | H161: =G161*3*'Refrigeration & Weather'!$C$23 -> 0
A162: 145 | B162: 2012-01-19T03:00:00 | C162: 0 | D162: 0 | E162: 0 | F162: 0 | G162: =F162/'Refrigeration & Weather'!$C$22 -> 0 | H162: =G162*3*'Refrigeration & Weather'!$C$23 -> 0
A163: 146 | B163: 2012-01-19T06:00:00 | C163: 0 | D163: 0 | E163: 0 | F163: 0 | G163: =F163/'Refrigeration & Weather'!$C$22 -> 0 | H163: =G163*3*'Refrigeration & Weather'!$C$23 -> 0
A164: 147 | B164: 2012-01-19T09:00:00 | C164: 0 | D164: 0 | E164: 0 | F164: 0 | G164: =F164/'Refrigeration & Weather'!$C$22 -> 0 | H164: =G164*3*'Refrigeration & Weather'!$C$23 -> 0
A165: 148 | B165: 2012-01-19T12:00:00 | C165: 0 | D165: 0 | E165: 0 | F165: 0 | G165: =F165/'Refrigeration & Weather'!$C$22 -> 0 | H165: =G165*3*'Refrigeration & Weather'!$C$23 -> 0
A166: 149 | B166: 2012-01-19T15:00:00 | C166: 0 | D166: 0 | E166: 0 | F166: 0 | G166: =F166/'Refrigeration & Weather'!$C$22 -> 0 | H166: =G166*3*'Refrigeration & Weather'!$C$23 -> 0
A167: 150 | B167: 2012-01-19T18:00:00 | C167: 0 | D167: 0 | E167: 0 | F167: 0 | G167: =F167/'Refrigeration & Weather'!$C$22 -> 0 | H167: =G167*3*'Refrigeration & Weather'!$C$23 -> 0
A168: 151 | B168: 2012-01-19T21:00:00 | C168: 0 | D168: 0 | E168: 0 | F168: 0 | G168: =F168/'Refrigeration & Weather'!$C$22 -> 0 | H168: =G168*3*'Refrigeration & Weather'!$C$23 -> 0
A169: 152 | B169: 2012-01-20 | C169: 0 | D169: 0 | E169: 0 | F169: 0 | G169: =F169/'Refrigeration & Weather'!$C$22 -> 0 | H169: =G169*3*'Refrigeration & Weather'!$C$23 -> 0
A170: 153 | B170: 2012-01-20T03:00:00 | C170: 0 | D170: 0 | E170: 0 | F170: 0 | G170: =F170/'Refrigeration & Weather'!$C$22 -> 0 | H170: =G170*3*'Refrigeration & Weather'!$C$23 -> 0
A171: 154 | B171: 2012-01-20T06:00:00 | C171: 0 | D171: 0 | E171: 0 | F171: 0 | G171: =F171/'Refrigeration & Weather'!$C$22 -> 0 | H171: =G171*3*'Refrigeration & Weather'!$C$23 -> 0
A172: 155 | B172: 2012-01-20T09:00:00 | C172: 0 | D172: 0 | E172: 0 | F172: 0 | G172: =F172/'Refrigeration & Weather'!$C$22 -> 0 | H172: =G172*3*'Refrigeration & Weather'!$C$23 -> 0
A173: 156 | B173: 2012-01-20T12:00:00 | C173: 0 | D173: 0 | E173: 0 | F173: 0 | G173: =F173/'Refrigeration & Weather'!$C$22 -> 0 | H173: =G173*3*'Refrigeration & Weather'!$C$23 -> 0
A174: 157 | B174: 2012-01-20T15:00:00 | C174: 0 | D174: 0 | E174: 0 | F174: 0 | G174: =F174/'Refrigeration & Weather'!$C$22 -> 0 | H174: =G174*3*'Refrigeration & Weather'!$C$23 -> 0
A175: 158 | B175: 2012-01-20T18:00:00 | C175: 0 | D175: 0 | E175: 0 | F175: 0 | G175: =F175/'Refrigeration & Weather'!$C$22 -> 0 | H175: =G175*3*'Refrigeration & Weather'!$C$23 -> 0
A176: 159 | B176: 2012-01-20T21:00:00 | C176: 0 | D176: 0 | E176: 0 | F176: 0 | G176: =F176/'Refrigeration & Weather'!$C$22 -> 0 | H176: =G176*3*'Refrigeration & Weather'!$C$23 -> 0
A177: 160 | B177: 2012-01-21 | C177: 0 | D177: 0 | E177: 0 | F177: 0 | G177: =F177/'Refrigeration & Weather'!$C$22 -> 0 | H177: =G177*3*'Refrigeration & Weather'!$C$23 -> 0
A178: 161 | B178: 2012-01-21T03:00:00 | C178: 0 | D178: 0 | E178: 0 | F178: 0 | G178: =F178/'Refrigeration & Weather'!$C$22 -> 0 | H178: =G178*3*'Refrigeration & Weather'!$C$23 -> 0
A179: 162 | B179: 2012-01-21T06:00:00 | C179: 0 | D179: 0 | E179: 0 | F179: 0 | G179: =F179/'Refrigeration & Weather'!$C$22 -> 0 | H179: =G179*3*'Refrigeration & Weather'!$C$23 -> 0
A180: 163 | B180: 2012-01-21T09:00:00 | C180: 0 | D180: 0 | E180: 0 | F180: 0 | G180: =F180/'Refrigeration & Weather'!$C$22 -> 0 | H180: =G180*3*'Refrigeration & Weather'!$C$23 -> 0
A181: 164 | B181: 2012-01-21T12:00:00 | C181: 0 | D181: 0 | E181: 0 | F181: 0 | G181: =F181/'Refrigeration & Weather'!$C$22 -> 0 | H181: =G181*3*'Refrigeration & Weather'!$C$23 -> 0
A182: 165 | B182: 2012-01-21T15:00:00 | C182: 0 | D182: 0 | E182: 0 | F182: 0 | G182: =F182/'Refrigeration & Weather'!$C$22 -> 0 | H182: =G182*3*'Refrigeration & Weather'!$C$23 -> 0
A183: 166 | B183: 2012-01-21T18:00:00 | C183: 0 | D183: 0 | E183: 0 | F183: 0 | G183: =F183/'Refrigeration & Weather'!$C$22 -> 0 | H183: =G183*3*'Refrigeration & Weather'!$C$23 -> 0
A184: 167 | B184: 2012-01-21T21:00:00 | C184: 0 | D184: 0 | E184: 0 | F184: 0 | G184: =F184/'Refrigeration & Weather'!$C$22 -> 0 | H184: =G184*3*'Refrigeration & Weather'!$C$23 -> 0
A185: 168 | B185: 2012-01-22 | C185: 0 | D185: 0 | E185: 0 | F185: 0 | G185: =F185/'Refrigeration & Weather'!$C$22 -> 0 | H185: =G185*3*'Refrigeration & Weather'!$C$23 -> 0
A186: 169 | B186: 2012-01-22T03:00:00 | C186: 0 | D186: 0 | E186: 0 | F186: 0 | G186: =F186/'Refrigeration & Weather'!$C$22 -> 0 | H186: =G186*3*'Refrigeration & Weather'!$C$23 -> 0
A187: 170 | B187: 2012-01-22T06:00:00 | C187: 0 | D187: 0 | E187: 0 | F187: 0 | G187: =F187/'Refrigeration & Weather'!$C$22 -> 0 | H187: =G187*3*'Refrigeration & Weather'!$C$23 -> 0
A188: 171 | B188: 2012-01-22T09:00:00 | C188: 0 | D188: 0 | E188: 0 | F188: 0 | G188: =F188/'Refrigeration & Weather'!$C$22 -> 0 | H188: =G188*3*'Refrigeration & Weather'!$C$23 -> 0
A189: 172 | B189: 2012-01-22T12:00:00 | C189: 0 | D189: 0 | E189: 0 | F189: 0 | G189: =F189/'Refrigeration & Weather'!$C$22 -> 0 | H189: =G189*3*'Refrigeration & Weather'!$C$23 -> 0
A190: 173 | B190: 2012-01-22T15:00:00 | C190: 0 | D190: 0 | E190: 0 | F190: 0 | G190: =F190/'Refrigeration & Weather'!$C$22 -> 0 | H190: =G190*3*'Refrigeration & Weather'!$C$23 -> 0
A191: 174 | B191: 2012-01-22T18:00:00 | C191: 0 | D191: 0 | E191: 0 | F191: 0 | G191: =F191/'Refrigeration & Weather'!$C$22 -> 0 | H191: =G191*3*'Refrigeration & Weather'!$C$23 -> 0
A192: 175 | B192: 2012-01-22T21:00:00 | C192: 0 | D192: 0 | E192: 0 | F192: 0 | G192: =F192/'Refrigeration & Weather'!$C$22 -> 0 | H192: =G192*3*'Refrigeration & Weather'!$C$23 -> 0
A193: 176 | B193: 2012-01-23 | C193: 0 | D193: 0 | E193: 0 | F193: 0 | G193: =F193/'Refrigeration & Weather'!$C$22 -> 0 | H193: =G193*3*'Refrigeration & Weather'!$C$23 -> 0
A194: 177 | B194: 2012-01-23T03:00:00 | C194: 0 | D194: 0 | E194: 0 | F194: 0 | G194: =F194/'Refrigeration & Weather'!$C$22 -> 0 | H194: =G194*3*'Refrigeration & Weather'!$C$23 -> 0
A195: 178 | B195: 2012-01-23T06:00:00 | C195: 0 | D195: 0 | E195: 0 | F195: 0 | G195: =F195/'Refrigeration & Weather'!$C$22 -> 0 | H195: =G195*3*'Refrigeration & Weather'!$C$23 -> 0
A196: 179 | B196: 2012-01-23T09:00:00 | C196: 0 | D196: 0 | E196: 0 | F196: 0 | G196: =F196/'Refrigeration & Weather'!$C$22 -> 0 | H196: =G196*3*'Refrigeration & Weather'!$C$23 -> 0
A197: 180 | B197: 2012-01-23T12:00:00 | C197: 0 | D197: 0 | E197: 0 | F197: 0 | G197: =F197/'Refrigeration & Weather'!$C$22 -> 0 | H197: =G197*3*'Refrigeration & Weather'!$C$23 -> 0
A198: 181 | B198: 2012-01-23T15:00:00 | C198: 0 | D198: 0 | E198: 0 | F198: 0 | G198: =F198/'Refrigeration & Weather'!$C$22 -> 0 | H198: =G198*3*'Refrigeration & Weather'!$C$23 -> 0
A199: 182 | B199: 2012-01-23T18:00:00 | C199: 0 | D199: 0 | E199: 0 | F199: 0 | G199: =F199/'Refrigeration & Weather'!$C$22 -> 0 | H199: =G199*3*'Refrigeration & Weather'!$C$23 -> 0
A200: 183 | B200: 2012-01-23T21:00:00 | C200: 0 | D200: 0 | E200: 0 | F200: 0 | G200: =F200/'Refrigeration & Weather'!$C$22 -> 0 | H200: =G200*3*'Refrigeration & Weather'!$C$23 -> 0
A201: 184 | B201: 2012-01-24 | C201: 0 | D201: 0 | E201: 0 | F201: 0 | G201: =F201/'Refrigeration & Weather'!$C$22 -> 0 | H201: =G201*3*'Refrigeration & Weather'!$C$23 -> 0
A202: 185 | B202: 2012-01-24T03:00:00 | C202: 0 | D202: 0 | E202: 0 | F202: 0 | G202: =F202/'Refrigeration & Weather'!$C$22 -> 0 | H202: =G202*3*'Refrigeration & Weather'!$C$23 -> 0
A203: 186 | B203: 2012-01-24T06:00:00 | C203: 0 | D203: 0 | E203: 0 | F203: 0 | G203: =F203/'Refrigeration & Weather'!$C$22 -> 0 | H203: =G203*3*'Refrigeration & Weather'!$C$23 -> 0
A204: 187 | B204: 2012-01-24T09:00:00 | C204: 0 | D204: 0 | E204: 0 | F204: 0 | G204: =F204/'Refrigeration & Weather'!$C$22 -> 0 | H204: =G204*3*'Refrigeration & Weather'!$C$23 -> 0
A205: 188 | B205: 2012-01-24T12:00:00 | C205: 0 | D205: 0 | E205: 0 | F205: 0 | G205: =F205/'Refrigeration & Weather'!$C$22 -> 0 | H205: =G205*3*'Refrigeration & Weather'!$C$23 -> 0
A206: 189 | B206: 2012-01-24T15:00:00 | C206: 0 | D206: 0 | E206: 0 | F206: 0 | G206: =F206/'Refrigeration & Weather'!$C$22 -> 0 | H206: =G206*3*'Refrigeration & Weather'!$C$23 -> 0
A207: 190 | B207: 2012-01-24T18:00:00 | C207: 0 | D207: 0 | E207: 0 | F207: 0 | G207: =F207/'Refrigeration & Weather'!$C$22 -> 0 | H207: =G207*3*'Refrigeration & Weather'!$C$23 -> 0
A208: 191 | B208: 2012-01-24T21:00:00 | C208: 0 | D208: 0 | E208: 0 | F208: 0 | G208: =F208/'Refrigeration & Weather'!$C$22 -> 0 | H208: =G208*3*'Refrigeration & Weather'!$C$23 -> 0
A209: 192 | B209: 2012-01-25 | C209: =J209+N209+R209+V209+Z209+AD209+AH209+AL209+AP209+AT209+AX209+BB209+BF209+BJ209+BN209+BR209+BV209+BZ209+CD209+CH209+CL209+CP209+CT209+CX209+DB209+DF209+DJ209+DN209+DR209+DV209+DZ209+ED209+EH209+EL209+EP209+ET209+EX209+FB209+FF209+FJ209+FN209+FR209+FV209+FZ209+GD209+GH209+GL209+GP209+GT209+GX209+HB209+HF209+HJ209+HN209+HR209+HV209+HZ209+ID209+IH209+IL209+IP209+IT209+IX209+JB209+JF209+JJ209+JN209+JR209+JV209+JZ209+KD209+KH209+KL209+KP209+KT209+KX209+LB209+LF209+LJ209+LN209+LR209+LV209+LZ209+MD209+MH209+ML209+MP209+MT209+MX209+NB209+NF209+NJ209+NN209+NR209+NV209+NZ209+OD209+OH209+OL209+OP209 -> 0 | D209: 0 | E209: 0 | F209: 0 | G209: =F209/'Refrigeration & Weather'!$C$22 -> 0 | H209: =G209*3*'Refrigeration & Weather'!$C$23 -> 0
A210: 193 | B210: 2012-01-25T03:00:00 | C210: 0 | D210: =K210+O210+S210+W210+AA210+AE210+AI210+AM210+AQ210+AU210+AY210+BC210+BG210+BK210+BO210+BS210+BW210+CA210+CE210+CI210+CM210+CQ210+CU210+CY210+DC210+DG210+DK210+DO210+DS210+DW210+EA210+EE210+EI210+EM210+EQ210+EU210+EY210+FC210+FG210+FK210+FO210+FS210+FW210+GA210+GE210+GI210+GM210+GQ210+GU210+GY210+HC210+HG210+HK210+HO210+HS210+HW210+IA210+IE210+II210+IM210+IQ210+IU210+IY210+JC210+JG210+JK210+JO210+JS210+JW210+KA210+KE210+KI210+KM210+KQ210+KU210+KY210+LC210+LG210+LK210+LO210+LS210+LW210+MA210+ME210+MI210+MM210+MQ210+MU210+MY210+NC210+NG210+NK210+NO210+NS210+NW210+OA210+OE210+OI210+OM210+OQ210 -> 0 | E210: =L210+P210+T210+X210+AB210+AF210+AJ210+AN210+AR210+AV210+AZ210+BD210+BH210+BL210+BP210+BT210+BX210+CB210+CF210+CJ210+CN210+CR210+CV210+CZ210+DD210+DH210+DL210+DP210+DT210+DX210+EB210+EF210+EJ210+EN210+ER210+EV210+EZ210+FD210+FH210+FL210+FP210+FT210+FX210+GB210+GF210+GJ210+GN210+GR210+GV210+GZ210+HD210+HH210+HL210+HP210+HT210+HX210+IB210+IF210+IJ210+IN210+IR210+IV210+IZ210+JD210+JH210+JL210+JP210+JT210+JX210+KB210+KF210+KJ210+KN210+KR210+KV210+KZ210+LD210+LH210+LL210+LP210+LT210+LX210+MB210+MF210+MJ210+MN210+MR210+MV210+MZ210+ND210+NH210+NL210+NP210+NT210+NX210+OB210+OF210+OJ210+ON210+OR210 -> 0 | F210: =SUM(C210:E210) -> 0 | G210: =F210/'Refrigeration & Weather'!$C$22 -> 0 | H210: =G210*3*'Refrigeration & Weather'!$C$23 -> 0
A211: 194 | B211: 2012-01-25T06:00:00 | C211: 0 | D211: 0 | E211: 0 | F211: 0 | G211: =F211/'Refrigeration & Weather'!$C$22 -> 0 | H211: =G211*3*'Refrigeration & Weather'!$C$23 -> 0
... 351 more rows

Sheet Refrigeration & Weather
F2: Peak Refrigeration demand in coming week
F3: Today | G3: 2012-02-02
F4: Time Step | G4: =(G3-'Full Vintage Planner'!C8)*8 -> 256
B6: Weather forecast | F6: Day | G6: Demand (kWe) | H6: Plant Capacity (kWe)
B7: Day | C7: Low | D7: High | F7: 0 | G7: =LOOKUP($G$4+F7*8,'Full Vintage Planner'!A17:A985,'Full Vintage Planner'!G17:G985) -> 180.4875915 | H7: =C25 -> 1123.595506
B8: 0 | C8: 16 | D8: 28 | F8: 0.5 | G8: =LOOKUP($G$4+F8*8,'Full Vintage Planner'!A18:A986,'Full Vintage Planner'!G18:G986) -> 228.5478038 | H8: =H7 -> 1123.595506
B9: 1 | C9: 18 | D9: 32 | F9: 1 | G9: =LOOKUP($G$4+F9*8,'Full Vintage Planner'!A19:A987,'Full Vintage Planner'!G19:G987) -> 376.5060391 | H9: 1123.595506
B10: 2 | C10: 17 | D10: 31 | F10: 1.5 | G10: =LOOKUP($G$4+F10*8,'Full Vintage Planner'!A20:A988,'Full Vintage Planner'!G20:G988) -> 328.6465554 | H10: 1123.595506
B11: 3 | C11: 22 | D11: 30 | F11: 2 | G11: =LOOKUP($G$4+F11*8,'Full Vintage Planner'!A21:A989,'Full Vintage Planner'!G21:G989) -> 858.9451485 | H11: 1123.595506
B12: 4 | C12: 20 | D12: 26 | F12: 2.5 | G12: =LOOKUP($G$4+F12*8,'Full Vintage Planner'!A22:A990,'Full Vintage Planner'!G22:G990) -> 1165.370586 | H12: 1123.595506
B13: 5 | C13: 16 | D13: 27 | F13: 3 | G13: =LOOKUP($G$4+F13*8,'Full Vintage Planner'!A23:A991,'Full Vintage Planner'!G23:G991) -> 1130.663015 | H13: 1123.595506
B14: 6 | C14: 24 | D14: 35 | F14: 3.5 | G14: =LOOKUP($G$4+F14*8,'Full Vintage Planner'!A24:A992,'Full Vintage Planner'!G24:G992) -> 957.1681485 | H14: 1123.595506
B15: 7 | C15: 18 | D15: 38 | F15: 4 | G15: =LOOKUP($G$4+F15*8,'Full Vintage Planner'!A25:A993,'Full Vintage Planner'!G25:G993) -> 762.4341397 | H15: 1123.595506
B16: 8 | C16: 17 | D16: 39 | F16: 4.5 | G16: =LOOKUP($G$4+F16*8,'Full Vintage Planner'!A26:A994,'Full Vintage Planner'!G26:G994) -> 587.985108 | H16: 1123.595506
B17: 9 | C17: 18 | D17: 31 | F17: 5 | G17: =LOOKUP($G$4+F17*8,'Full Vintage Planner'!A27:A995,'Full Vintage Planner'!G27:G995) -> 510.7259688 | H17: 1123.595506
B18: 10 | C18: 22 | D18: 32 | F18: 5.5 | G18: =LOOKUP($G$4+F18*8,'Full Vintage Planner'!A28:A996,'Full Vintage Planner'!G28:G996) -> 312.1951406 | H18: 1123.595506
F19: 6 | G19: =LOOKUP($G$4+F19*8,'Full Vintage Planner'!A29:A997,'Full Vintage Planner'!G29:G997) -> 154.2558682 | H19: 1123.595506
B20: Refrigeration Plant Specs | F20: 6.5 | G20: =LOOKUP($G$4+F20*8,'Full Vintage Planner'!A30:A998,'Full Vintage Planner'!G30:G998) -> 84.16709984 | H20: 1123.595506
B21: Brine Temperature | C21: -5 | F21: 7 | G21: =LOOKUP($G$4+F21*8,'Full Vintage Planner'!A31:A999,'Full Vintage Planner'!G31:G999) -> 61.38980465 | H21: 1123.595506
B22: COP | C22: =C36*C21+C37 -> 2.225 | F22: 7.5 | G22: =LOOKUP($G$4+F22*8,'Full Vintage Planner'!A32:A1000,'Full Vintage Planner'!G32:G1000) -> 50.66701606 | H22: 1123.595506
B23: $/kWh | C23: 0.25 | F23: 8 | G23: =LOOKUP($G$4+F23*8,'Full Vintage Planner'!A33:A1001,'Full Vintage Planner'!G33:G1001) -> 49.86240132 | H23: 1123.595506
B24: Refrigeration capacity | C24: 2500 | D24: kWr | F24: 8.5 | G24: =LOOKUP($G$4+F24*8,'Full Vintage Planner'!A34:A1002,'Full Vintage Planner'!G34:G1002) -> 28.22975162 | H24: 1123.595506
B25: Refrigeration capacity | C25: =C24/C22 -> 1123.595506 | D25: kWe | F25: 9 | G25: =LOOKUP($G$4+F25*8,'Full Vintage Planner'!A35:A1003,'Full Vintage Planner'!G35:G1003) -> 25.43000559 | H25: 1123.595506
F26: 9.5 | G26: =LOOKUP($G$4+F26*8,'Full Vintage Planner'!A36:A1004,'Full Vintage Planner'!G36:G1004) -> 0.7559262315 | H26: 1123.595506
B27: Must chiller efficiency | C27: 0.85 | F27: 10 | G27: =LOOKUP($G$4+F27*8,'Full Vintage Planner'!A37:A1005,'Full Vintage Planner'!G37:G1005) -> 6.145867103 | H27: 1123.595506
B31: Refrigeration COP Calculation
B32: Temp | C32: COP
B33: -8 | C33: 2.05
B34: 4 | C34: 2.75
B36: slope | C36: =SLOPE(C33:C34,B33:B34) -> 0.05833333333
B37: intercept | C37: =INTERCEPT(C33:C34,B33:B34) -> 2.516666667

Sheet What-if Analysis
E2: = user adjustable field | Z2: Weather forecast
Z3: Day
B4: Ferment start time | D4: 07:00:00 | H4: Cool Climate | I4: 1 | J4: (1=Yes, 0=No) | Z4: 0 | AA4: 16 | AB4: 28
B5: Volume | D5: 250 | E5: kL | H5: Warm Climate | I5: 0 | J5: (1=Yes, 0=No) | Z5: 1 | AA5: 18 | AB5: 32
B6: Initial Cell mass | E6: g/L | H6: Wild Ferment | I6: 0 | J6: (1=Yes, 0=No) | Z6: 2 | AA6: 17 | AB6: 31
B7: Initial N | D7: 0.2 | E7: g/L | Z7: 3 | AA7: 22 | AB7: 30
B8: Desired ferment time | D8: 8 | E8: days | N8: Refrigeration COP | Q8: 2.225 | Z8: 4 | AA8: 20 | AB8: 26
B9: Prediction score | D9: 9.157526291 | N9: Electricity Cost ($/kWe) | Q9: 0.25 | Z9: 5 | AA9: 16 | AB9: 27
B10: Refrigeration cost | D10: 1049.726081 | N10: Overall Tank U value (W/m2/C) | Q10: 3 | Z10: 6 | AA10: 24 | AB10: 35
Z11: 7 | AA11: 18 | AB11: 38
B12: Commercial Ferment | M12: Simulation model | Z12: 8 | AA12: 17 | AB12: 39
B13: Day | C13: Baume – actual | D13: Temp C | E13: DAP addition | F13: Mixing (0 to 3) | G13: Nutrient Addition | H13: Pump over | I13: Aeration | J13: Yeast Innoc. | L13: dBe/dt | M13: Baume – Model | N13: Required Refrigeration (kWr) | O13: Active Cell Mass | P13: Ethanol | Q13: Nitrogen | R13: Corrected Temperature | S13: Low range | T13: High range | Z13: 9 | AA13: 18 | AB13: 31
B14: 0 | C14: 9.1 | D14: 16.3 | L14: 7.19655358 | M14: 8.666666667 | N14: -0.1660743134 | O14: 0.3698824424 | P14: 0 | Q14: 0.2 | R14: 16.3 | S14: 8.666666667 | T14: 8.666666667 | Z14: 10 | AA14: 22 | AB14: 32
B15: 0.5 | C15: 8.8 | D15: 17.9 | L15: 4.597067213 | M15: 8.51342644 | N15: 13.25166216 | O15: 1.104698883 | P15: 1.32535763 | Q15: 0.1480928827 | R15: 16.7 | S15: 8.51342644 | T15: 8.51342644 | Z15: 11 | AA15: 15 | AB15: 30
B16: 1 | C16: 8.1 | D16: 18 | L16: 5.884298529 | M16: 8.241972003 | N16: 23.79960978 | O16: 2.092858168 | P16: 3.674424189 | Q16: 0.06624787927 | R16: 17.92 | S16: 8.241972003 | T16: 8.241972003 | Z16: 12 | AA16: 15 | AB16: 30
B17: 1.5 | C17: 7.2 | D17: 18 | L17: 3.793874728 | M17: 7.416672748 | N17: 72.05939637 | O17: 3.137981752 | P17: 10.83510755 | Q17: 0.008987996073 | R17: 18 | S17: 7.416672748 | T17: 7.416672748 | Z17: 13 | AA17: 15 | AB17: 30
B18: 2 | C18: 6 | D18: 18 | L18: 6.257093683 | M18: 5.993277652 | N18: 105.7113225 | O18: 4.739174779 | P18: 23.23550934 | Q18: 0 | R18: 18 | S18: 5.993277652 | T18: 5.993277652 | Z18: 14 | AA18: 15 | AB18: 30
B19: 2.5 | D19: 18 | L19: 4.958167655 | M19: 3.978000903 | N19: 123.2678543 | O19: 4.728124797 | P19: 40.9348887 | Q19: 0 | R19: 18 | S19: 3.720063958 | T19: 4.235937848 | Z19: 15 | AA19: 15 | AB19: 30
B20: 3 | D20: 18 | L20: 6.833186434 | M20: 2.339203496 | N20: 90.42321535 | O20: 4.710948993 | P20: 55.41594576 | Q20: 0 | R20: 18 | S20: 2.041363566 | T20: 2.637043425 | Z20: 16 | AA20: 15 | AB20: 30
B21: 3.5 | D21: 18 | L21: 8.253082762 | M21: 1.168186434 | N21: 66.65668501 | O21: 4.689109933 | P21: 65.81919883 | Q21: 0 | R21: 18 | S21: 0.8258092886 | T21: 1.51056358 | Z21: 17 | AA21: 15 | AB21: 30
B22: 4 | D22: 17.7 | L22: 15.5330905 | M22: 0.3852375381 | N22: 41.18361845 | O22: 4.664080745 | P22: 72.80037291 | Q22: 0 | R22: 17.94 | S22: -0.004726468326 | T22: 0.7752015445 | Z22: 18 | AA22: 15 | AB22: 30
B23: 4.5 | D23: 18 | L23: 23.35644992 | M23: -0.112875937 | N23: 28.51771568 | O23: 4.637485711 | P23: 77.24473667 | Q23: 0 | R23: 17.76 | S23: -0.5524872119 | T23: 0.3267353379 | Z23: 19 | AA23: 15 | AB23: 30
B24: 5 | D24: 18 | L24: 33.22317839 | M24: -0.4328776811 | N24: 15.48017387 | O24: 4.609703426 | P24: 80.0963404 | Q24: 0 | R24: 18 | S24: -0.9235716285 | T24: 0.05781626629 | Z24: 20 | AA24: 15 | AB24: 30
B25: 5.5 | D25: 17.9 | L25: 40.90139776 | M25: -0.6482871532 | N25: 15.82321884 | O25: 4.580738012 | P25: 82.01311249 | Q25: 0 | R25: 17.98 | S25: -1.191094078 | T25: -0.1054802287 | Z25: 21 | AA25: 15 | AB25: 30
B26: 6 | D26: 17.9 | L26: 38.73580734 | M26: -0.7937054168 | N26: 10.97309398 | O26: 4.551530457 | P26: 83.30371148 | Q26: 0 | R26: 17.9 | S26: -1.389385276 | T26: -0.1054802287 | Z26: 22 | AA26: 15 | AB26: 30
B27: 6.5 | L27: 43.15398967 | M27: -0.8950154752 | N27: 12.97381104 | O27: 4.522278574 | P27: 84.20042957 | Q27: 0 | R27: 17.9 | S27: -1.544142552 | T27: -0.1054802287 | V27: Model Parameters | Z27: 23 | AA27: 15 | AB27: 30
B28: 7 | L28: 39.45818193 | M28: -0.9685738447 | N28: 4.020143333 | O28: 4.492939135 | P28: 84.85003427 | Q28: 0 | R28: 17.9 | S28: -1.671591455 | T28: -0.1054802287 | V28: fPos(1) | W28: 82.71023345 | Y28: mumaxcor | Z28: 24 | AA28: 15 | AB28: 30
B29: 7.5 | L29: 41.12476729 | M29: -1.023619589 | N29: 11.80099222 | O29: 4.463589504 | P29: 85.33518622 | Q29: 0 | R29: 17.9 | S29: -1.780876408 | T29: -0.1054802287 | V29: fPos(2) | W29: 70.01334836 | Y29: betamaxcorr | Z29: 25 | AA29: 15 | AB29: 30
B30: 8 | L30: 42.9534676 | M30: -1.065882884 | N30: 1.825931478 | O30: 4.434281401 | P30: 85.70703386 | Q30: 0 | R30: 17.9 | S30: -1.877657697 | T30: -0.1054802287 | V30: fPos(3) | W30: 0.1999766075 | Y30: mixingcoeff | Z30: 26 | AA30: 15 | AB30: 30
B31: 8.5 | L31: 42.88267678 | M31: -1.099063296 | N31: 11.19491578 | O31: 4.405050431 | P31: 85.99852801 | Q31: 0 | R31: 17.9 | S31: -1.965582272 | T31: -0.1054802287 | V31: fPos(4) | W31: 78.8124895 | Y31: Ks | Z31: 27 | AA31: 15 | AB31: 30
B32: 9 | L32: 42.74936414 | M32: -1.12562155 | N32: 1.537930352 | O32: 4.375921716 | P32: 86.23154038 | Q32: 0 | R32: 17.9 | S32: -2 | T32: -0.1054802287 | V32: fPos(5) | W32: 0.3698824424 | Y32: initialcellcount | Z32: 28 | AA32: 15 | AB32: 30
B33: 9.5 | L33: 43.70293798 | M33: -1.147239952 | N33: 7.469603211 | O33: 4.346913353 | P33: 86.42099563 | Q33: 0 | R33: 17.9 | S33: -2 | T33: -0.1054802287 | V33: fPos(6) | W33: 3.198797537 | Y33: kdcorr | Z33: 29 | AA33: 15 | AB33: 30
B34: 10 | L34: 47.09051076 | M34: -1.16509786 | N34: 3.277939837 | O34: 4.318038602 | P34: 86.57733852 | Q34: 0 | R34: 17.9 | S34: -2 | T34: -0.1054802287 | Z34: 30 | AA34: 15 | AB34: 30
B35: 10.5 | L35: 36.54444334 | M35: -1.180041023 | N35: 6.77093887 | O35: 4.289307316 | P35: 86.70804766 | Q35: 0 | R35: 17.9 | S35: -2 | T35: -0.1054802287
B36: 11 | L36: 31.44190959 | M36: -1.192688478 | N36: -0.8850291096 | O36: 4.260726885 | P36: 86.81858932 | Q36: 0 | R36: 17.9 | S36: -2 | T36: -0.1054802287 | V36: Estimated Ferment Completion
B37: 11.5 | L37: 28.88828315 | M37: -1.20350174 | N37: 5.655727697 | O37: 4.232302895 | P37: 86.91303368 | Q37: 0 | R37: 17.9 | S37: -2 | T37: -0.1054802287 | V37: Model | W37: 4.5
B38: 12 | L38: 26.83026429 | M38: -1.212830645 | N38: -1.070354701 | O38: 4.204039576 | P38: 86.99446247 | Q38: 0 | R38: 17.9 | S38: -2 | T38: -0.1054802287 | V38: Low range | W38: 4
B39: 12.5 | L39: 27.88942701 | M39: -1.220944374 | N39: 5.504291318 | O39: 4.175940131 | P39: 87.06524451 | Q39: 0 | R39: 17.9 | S39: -2 | T39: -0.1054802287 | V39: High range | W39: 5.5
B40: 13 | L40: 25.28969443 | M40: -1.228052885 | N40: -1.195418711 | O40: 4.14800697 | P40: 87.12722569 | Q40: 0 | R40: 17.9 | S40: -2 | T40: -0.1054802287
B41: 13.5 | L41: 27.81498123 | M41: -1.234321971 | N41: 5.400009774 | O41: 4.120241881 | P41: 87.1818624 | Q41: 0 | R41: 17.9 | S41: -2 | T41: -0.1054802287 | V41: Fermenter Status
B42: 14 | L42: 29.64050345 | M42: -1.239884036 | N42: -1.283134266 | O42: 4.092646165 | P42: 87.2303168 | Q42: 0 | R42: 17.9 | S42: -2 | T42: -0.1054802287 | V42: =IF(ABS(W37-D8)<2.1,"Good",IF(ABS(W38-D8)<2.1,"Low range on spec",IF(ABS(W39-D8)<2.1,"High range on spec",IF(D8<W38,"Warning - Sluggish Ferment","Warning - Rapid ferment")))) -> Warning - Rapid ferment
B43: 14.5 | L43: 24.49765956 | M43: -1.244845908 | N43: 5.325638038 | O43: 4.065220731 | P43: 87.27352589 | Q43: 0 | R43: 17.9 | S43: -2 | T43: -0.1054802287
B44: 15 | L44: 22.7527064 | M44: -1.249294597 | N44: -1.34665411 | O44: 4.037966172 | P44: 87.31225235 | Q44: 0 | R44: 17.9 | S44: -2 | T44: -0.1054802287
B45: 15.5 | L45: 16.65788272 | M45: -1.25330159 | N45: 5.271021612 | O45: 4.010882827 | P45: 87.34712243 | Q45: 0 | R45: 17.9 | S45: -2 | T45: -0.1054802287
B46: 16 | L46: 15.3669474 | M46: -1.256926093 | N46: -1.393906179 | O46: 3.983970824 | P46: 87.37865445 | Q46: 0 | R46: 17.9 | S46: -2 | T46: -0.1054802287
B47: 16.5 | L47: 10.12241254 | M47: -1.260217502 | N47: 5.229906776 | O47: 3.95723012 | P47: 87.40728068 | Q47: 0 | R47: 17.9 | S47: -2 | T47: -0.1054802287
B48: 17 | L48: 10.41023314 | M48: -1.263217315 | N48: -1.429870728 | O48: 3.930660526 | P48: 87.43336407 | Q48: 0 | R48: 17.9 | S48: -2 | T48: -0.1054802287
B49: 17.5 | L49: 6.956052491 | M49: -1.265960617 | N49: 5.198292303 | O49: 3.904261737 | P49: 87.45721134 | Q49: 0 | R49: 17.9 | S49: -2 | T49: -0.1054802287
B50: 18 | L50: 8.16361885 | M50: -1.268477247 | N50: -1.457788827 | O50: 3.878033345 | P50: 87.47908326 | Q50: 0 | R50: 17.9 | S50: -2 | T50: -0.1054802287
B51: 18.5 | L51: 5.127594565 | M51: -1.270792727 | N51: 5.1735328 | O51: 3.85197486 | P51: 87.49920275 | Q51: 0 | R51: 17.9 | S51: -2 | T51: -0.1054802287
B52: 19 | L52: 6.671200041 | M52: -1.272928995 | N52: -1.479835056 | O52: 3.826085719 | P52: 87.5177614 | Q52: 0 | R52: 17.9 | S52: -2 | T52: -0.1054802287
B53: 19.5 | L53: 3.908418247 | M53: -1.274905005 | N53: 5.153828812 | O53: 3.8003653 | P53: 87.53492464 | Q53: 0 | R53: 17.9 | S53: -2 | T53: -0.1054802287
B54: 20 | L54: 5.672822764 | M54: -1.276737205 | N54: -1.497507734 | O54: 3.774812931 | P54: 87.55083601 | Q54: 0 | R54: 17.9 | S54: -2 | T54: -0.1054802287
B55: 20.5 | L55: 3.087858674 | M55: -1.278439932 | N55: 5.137925467 | O55: 3.749427894 | P55: 87.56562058 | Q55: 0 | R55: 17.9 | S55: -2 | T55: -0.1054802287
B56: 21 | L56: 4.99536064 | M56: -1.280025732 | N56: -1.51186361 | O56: 3.724209437 | P56: 87.57938776 | Q56: 0 | R56: 17.9 | S56: -2 | T56: -0.1054802287
B57: 21.5 | L57: 2.525696101 | M57: -1.281505627 | N57: 5.124928257 | O57: 3.699156773 | P57: 87.59223365 | Q57: 0 | R57: 17.9 | S57: -2 | T57: -0.1054802287
B58: 22 | L58: 4.526348635 | M58: -1.282889335 | N58: -1.523663551 | O58: 3.674269091 | P58: 87.60424294 | Q58: 0 | R58: 17.9 | S58: -2 | T58: -0.1054802287
B59: 22.5 | L59: 2.132218549 | M59: -1.284185453 | N59: 5.114187014 | O59: 3.649545556 | P59: 87.61549057 | Q59: 0 | R59: 17.9 | S59: -2 | T59: -0.1054802287
B60: 23 | L60: 4.194389529 | M60: -1.285401612 | N60: -1.533465556 | O60: 3.624985313 | P60: 87.626043 | Q60: 0 | R60: 17.9 | S60: -2 | T60: -0.1054802287
B61: 23.5 | L61: 1.850604787 | M61: -1.286544607 | N61: 5.105220867 | O61: 3.600587492 | P61: 87.63595943 | Q61: 0 | R61: 17.9 | S61: -2 | T61: -0.1054802287
B62: 24 | L62: 3.954187262 | M62: -1.287620503 | N62: -1.541685644 | O62: 3.576351208 | P62: 87.64529268 | Q62: 0 | R62: 17.9 | S62: -2 | T62: -0.1054802287
B63: 24.5 | L63: 1.644643469 | M63: -1.288634734 | N63: 5.097668562 | O63: 3.552275565 | P63: 87.65409004 | Q63: 0 | R63: 17.9 | S63: -2 | T63: -0.1054802287
B64: 25 | L64: 3.776686746 | M64: -1.289592176 | N64: -1.548638623 | O64: 3.528359655 | P64: 87.66239398 | Q64: 0 | R64: 17.9 | S64: -2 | T64: -0.1054802287
B65: 25.5 | L65: 1.490922719 | M65: -1.290497221 | N65: 5.091254846 | O65: 3.504602564 | P65: 87.67024271 | Q65: 0 | R65: 17.9 | S65: -2 | T65: -0.1054802287
B66: 26 | L66: 3.642936468 | M66: -1.291353828 | N66: -1.554565934 | O66: 3.481003372 | P66: 87.6776707 | Q66: 0 | R66: 17.9 | S66: -2 | T66: -0.1054802287
B67: 26.5 | L67: 1.374027706 | M67: -1.292165582 | N67: 5.085767288 | O67: 3.457561152 | P67: 87.68470911 | Q67: 0 | R67: 17.9 | S67: -2 | T67: -0.1054802287
B68: 27 | L68: 3.540336512 | M68: -1.292935728 | N68: -1.559655029 | O68: 3.434274973 | P68: 87.69138619 | Q68: 0 | R68: 17.9 | S68: -2 | T68: -0.1054802287
B69: 27.5 | L69: 1.283608377 | M69: -1.293667217 | N69: 5.081040017 | O69: 3.411143901 | P69: 87.6977276 | Q69: 0 | R69: 17.9 | S69: -2 | T69: -0.1054802287
B70: 28 | L70: 3.460343087 | M70: -1.294362732 | N70: -1.564053073 | O70: 3.388167001 | P70: 87.70375668 | Q70: 0 | R70: 17.9 | S70: -2 | T70: -0.1054802287
B71: 28.5 | L71: 1.212577752 | M71: -1.295024723 | N71: 5.076942127 | O71: 3.365343334 | P71: 87.70949472 | Q71: 0 | R71: 17.9 | S71: -2 | T71: -0.1054802287
B72: 29 | L72: 3.397049684 | M72: -1.295655425 | N72: -1.567876798 | O72: 3.342671962 | P72: 87.71496117 | Q72: 0 | R72: 17.9 | S72: -2 | T72: -0.1054802287
B73: 29.5 | L73: 1.155990362 | M73: -1.296256887 | N73: 5.073369284 | O73: 3.320151948 | P73: 87.72017382 | Q73: 0 | R73: 17.9 | S73: -2 | T73: -0.1054802287
B74: 30 | L74: 3.346296876 | M74: -1.296830985 | N74: -1.571219665 | O74: 3.297782351 | P74: 87.72514899 | Q74: 0 | R74: 17.9 | S74: -2 | T74: -0.1054802287
L76: =MIN(L14:L74) -> 1.155990362 | N76: =MAX(N14:N74) -> 123.2678543 | O76: =MAX(O14:O74) -> 4.739174779

Sheet Ferment Archive
A1: Ferment | B1: 1 | W1: Ferment | X1: 2 | AS1: Ferment | AT1: 3 | BO1: Ferment | BP1: 4 | CK1: Ferment | CL1: 5 | DG1: Ferment | DH1: 6 | EC1: Ferment | ED1: 7 | EY1: Ferment | EZ1: 8 | FU1: Ferment | FV1: 9 | GQ1: Ferment | GR1: 10 | HM1: Ferment | HN1: 11 | II1: Ferment | IJ1: 12 | JE1: Ferment | JF1: 13 | KA1: Ferment | KB1: 14 | KW1: Ferment | KX1: 15 | LS1: Ferment | LT1: 16 | MO1: Ferment | MP1: 17 | NK1: Ferment | NL1: 18 | OG1: Ferment | OH1: 19 | PC1: Ferment | PD1: 20 | PY1: Ferment | PZ1: 21 | QU1: Ferment | QV1: 22 | RQ1: Ferment | RR1: 23 | SM1: Ferment | SN1: 24 | TI1: Ferment | TJ1: 25 | UE1: Ferment | UF1: 26 | VA1: Ferment | VB1: 27 | VW1: Ferment | VX1: 28 | WS1: Ferment | WT1: 29 | XO1: Ferment | XP1: 30 | YK1: Ferment | YL1: 31 | ZG1: Ferment | ZH1: 32 | AAC1: Ferment | AAD1: 33 | AAY1: Ferment | AAZ1: 34 | ABU1: Ferment | ABV1: 35 | ACQ1: Ferment | ACR1: 36 | ADM1: Ferment | ADN1: 37 | AEI1: Ferment | AEJ1: 38 | AFE1: Ferment | AFF1: 39 | AGA1: Ferment | AGB1: 40 | AGW1: Ferment | AGX1: 41 | AHS1: Ferment | AHT1: 42 | AIO1: Ferment | AIP1: 43 | AJK1: Ferment | AJL1: 44 | AKG1: Ferment | AKH1: 45 | ALC1: Ferment | ALD1: 46 | ALY1: Ferment | ALZ1: 47 | AMU1: Ferment | AMV1: 48 | ANQ1: Ferment | ANR1: 49 | AOM1: Ferment | AON1: 50 | API1: Ferment | APJ1: 51 | AQE1: Ferment | AQF1: 52 | ARA1: Ferment | ARB1: 53 | ARW1: Ferment | ARX1: 54 | ASS1: Ferment | AST1: 55 | ATO1: Ferment | ATP1: 56 | AUK1: Ferment | AUL1: 57 | AVG1: Ferment | AVH1: 58 | AWC1: Ferment | AWD1: 59 | AWY1: Ferment | AWZ1: 60 | AXU1: Ferment | AXV1: 61 | AYQ1: Ferment | AYR1: 62 | AZM1: Ferment | AZN1: 63 | BAI1: Ferment | BAJ1: 64 | BBE1: Ferment | BBF1: 65 | BCA1: Ferment | BCB1: 66 | BCW1: Ferment | BCX1: 67 | BDS1: Ferment | BDT1: 68 | BEO1: Ferment | BEP1: 69 | BFK1: Ferment | BFL1: 70 | BGG1: Ferment | BGH1: 71 | BHC1: Ferment | BHD1: 72 | BHY1: Ferment | BHZ1: 73 | BIU1: Ferment | BIV1: 74 | BJQ1: Ferment | BJR1: 75 | BKM1: Ferment | BKN1: 76 | BLI1: Ferment | BLJ1: 77 | BME1: Ferment | BMF1: 78 | BNA1: Ferment | BNB1: 79 | BNW1: Ferment | BNX1: 80 | BOS1: Ferment | BOT1: 81 | BPO1: Ferment | BPP1: 82 | BQK1: Ferment | BQL1: 83 | BRG1: Ferment | BRH1: 84 | BSC1: Ferment | BSD1: 85 | BSY1: Ferment | BSZ1: 86 | BTU1: Ferment | BTV1: 87 | BUQ1: Ferment | BUR1: 88 | BVM1: Ferment | BVN1: 89 | BWI1: Ferment | BWJ1: 90 | BXE1: Ferment | BXF1: 91 | BYA1: Ferment | BYB1: 92 | BYW1: Ferment | BYX1: 93 | BZS1: Ferment | BZT1: 94 | CAO1: Ferment | CAP1: 95 | CBK1: Ferment | CBL1: 96 | CCG1: Ferment | CCH1: 97 | CDC1: Ferment | CDD1: 98 | CDY1: Ferment | CDZ1: 99 | CEU1: Ferment | CEV1: 100
A2: Number of ferments achived: | D2: 0 | W2: Number of ferments achived: | Z2: 0 | AS2: Number of ferments achived: | AV2: 0 | BO2: Number of ferments achived: | BR2: 0 | CK2: Number of ferments achived: | CN2: 0 | DG2: Number of ferments achived: | DJ2: 0 | EC2: Number of ferments achived: | EF2: 0 | EY2: Number of ferments achived: | FB2: 0 | FU2: Number of ferments achived: | FX2: 0 | GQ2: Number of ferments achived: | GT2: 0 | HM2: Number of ferments achived: | HP2: 0 | II2: Number of ferments achived: | IL2: 0 | JE2: Number of ferments achived: | JH2: 0 | KA2: Number of ferments achived: | KD2: 0 | KW2: Number of ferments achived: | KZ2: 0 | LS2: Number of ferments achived: | LV2: 0 | MO2: Number of ferments achived: | MR2: 0 | NK2: Number of ferments achived: | NN2: 0 | OG2: Number of ferments achived: | OJ2: 0 | PC2: Number of ferments achived: | PF2: 0 | PY2: Number of ferments achived: | QB2: 0 | QU2: Number of ferments achived: | QX2: 0 | RQ2: Number of ferments achived: | RT2: 0 | SM2: Number of ferments achived: | SP2: 0 | TI2: Number of ferments achived: | TL2: 0 | UE2: Number of ferments achived: | UH2: 0 | VA2: Number of ferments achived: | VD2: 0 | VW2: Number of ferments achived: | VZ2: 0 | WS2: Number of ferments achived: | WV2: 0 | XO2: Number of ferments achived: | XR2: 0 | YK2: Number of ferments achived: | YN2: 0 | ZG2: Number of ferments achived: | ZJ2: 0 | AAC2: Number of ferments achived: | AAF2: 0 | AAY2: Number of ferments achived: | ABB2: 0 | ABU2: Number of ferments achived: | ABX2: 0 | ACQ2: Number of ferments achived: | ACT2: 0 | ADD2: 1 | ADM2: Number of ferments achived: | ADP2: 0 | AEI2: Number of ferments achived: | AEL2: 0 | AFE2: Number of ferments achived: | AFH2: 0 | AGA2: Number of ferments achived: | AGD2: 0 | AGW2: Number of ferments achived: | AGZ2: 0 | AHQ2: 1 | AHS2: Number of ferments achived: | AHV2: 0 | AIO2: Number of ferments achived: | AIR2: 0 | AJK2: Number of ferments achived: | AJN2: 0 | AKG2: Number of ferments achived: | AKJ2: 0 | ALC2: Number of ferments achived: | ALF2: 0 | ALY2: Number of ferments achived: | AMB2: 0 | AMU2: Number of ferments achived: | AMX2: 0 | ANQ2: Number of ferments achived: | ANT2: 0 | AOM2: Number of ferments achived: | AOP2: 0 | API2: Number of ferments achived: | APL2: 0 | AQE2: Number of ferments achived: | AQH2: 0 | ARA2: Number of ferments achived: | ARD2: 0 | ARW2: Number of ferments achived: | ARZ2: 0 | ASS2: Number of ferments achived: | ASV2: 0 | ATO2: Number of ferments achived: | ATR2: 0 | AUK2: Number of ferments achived: | AUN2: 0 | AVG2: Number of ferments achived: | AVJ2: 0 | AWC2: Number of ferments achived: | AWF2: 0 | AWY2: Number of ferments achived: | AXB2: 0 | AXU2: Number of ferments achived: | AXX2: 0 | AYQ2: Number of ferments achived: | AYT2: 0 | AZM2: Number of ferments achived: | AZP2: 0 | BAI2: Number of ferments achived: | BAL2: 0 | BBE2: Number of ferments achived: | BBH2: 0 | BCA2: Number of ferments achived: | BCD2: 0 | BCW2: Number of ferments achived: | BCZ2: 0 | BDS2: Number of ferments achived: | BDV2: 0 | BEO2: Number of ferments achived: | BER2: 0 | BFK2: Number of ferments achived: | BFN2: 0 | BGG2: Number of ferments achived: | BGJ2: 0 | BHC2: Number of ferments achived: | BHF2: 0 | BHY2: Number of ferments achived: | BIB2: 0 | BIU2: Number of ferments achived: | BIX2: 0 | BJQ2: Number of ferments achived: | BJT2: 0 | BKM2: Number of ferments achived: | BKP2: 0 | BLI2: Number of ferments achived: | BLL2: 0 | BME2: Number of ferments achived: | BMH2: 0 | BNA2: Number of ferments achived: | BND2: 0 | BNW2: Number of ferments achived: | BNZ2: 0 | BOS2: Number of ferments achived: | BOV2: 0 | BPO2: Number of ferments achived: | BPR2: 0 | BQK2: Number of ferments achived: | BQN2: 0 | BRG2: Number of ferments achived: | BRJ2: 0 | BSC2: Number of ferments achived: | BSF2: 0 | BSY2: Number of ferments achived: | BTB2: 0 | BTU2: Number of ferments achived: | BTX2: 0 | BUQ2: Number of ferments achived: | BUT2: 0 | BVM2: Number of ferments achived: | BVP2: 0 | BWI2: Number of ferments achived: | BWL2: 0 | BXE2: Number of ferments achived: | BXH2: 0 | BYA2: Number of ferments achived: | BYD2: 0 | BYW2: Number of ferments achived: | BYZ2: 0 | BZS2: Number of ferments achived: | BZV2: 0 | CAO2: Number of ferments achived: | CAR2: 0 | CBK2: Number of ferments achived: | CBN2: 0 | CCG2: Number of ferments achived: | CCJ2: 0 | CDC2: Number of ferments achived: | CDF2: 0 | CDY2: Number of ferments achived: | CEB2: 0 | CEU2: Number of ferments achived: | CEX2: 0
